Workbook

Sheet Title (hidden)
J13: Waterfront Toronto Tool
L14: Version: | M14: 7
L15: Date Last Modified: | M15: 2011-11-17
L16: Last Modified By: | M16: Arup
L17: Date Report Printed | M17: =NOW() -> 2013-02-20T15:46:21.030

Sheet Intro (hidden)
A1: Introduction & Model Heirarchy
B5: TAB CATEGORY | D5: SUB CATEGORY w/ HYPERLINKS
B7: TITLE PAGE AND INTRODUCTIONS | D7: Title Page | F7: Introduction Page
B10: CONTROL PANEL | D10: Control Panel
B13: GRAPHICAL OUTPUTS | D13: Resource Wheel Comparison | F13: Detailed Carbon Analysis
B16: CALCULATION SUMMARIES | D16: Land Use Summary | F16: Resource Summary
B19: INPUTS | D19: Land | F19: Buildings | H19: Energy | J19: Water | L19: Waste | N19: Materials | P19: Transport | R19: Carbon

Sheet Control Panel
A1: Building Control Panel | G1: Scenario Control Panel
A2: STEP 1 | G2: STEP 2
A3: Building Code | B3: Building On/Off Toggle | C3: Phase | D3: Description | G3: Category | H3: Strategy | I3: Description | J3: Scenario 1 On/Off Toggle | K3: Scenario 1 Reduction Percentage (or value) from Baseline | L3: Scenario 2 On/Off Toggle | M3: Scenario 2 Reduction Percentage (or value) from Baseline | N3: "Quick Check" Graphical Output | AS3: Baseline | AT3: Scenario 1 | AU3: Scenario 2 | AW3: Scenario 1 | AX3: Scenario 2
AR4: Total Carbon (mton/p/yr) | AS4: =ROUND('Sum Resources'!$G$17,1) -> 3.1 | AT4: =ROUND('Sum Resources'!$G$33,1) -> 2.5 | AU4: =ROUND('Sum Resources'!$G$49,1) -> 0.5 | AW4: =(AT4-$AS4)/$AS4 -> -0.1935483871 | AX4: -0.8387096774
A5: =Land!A8 -> 1P-19 | B5: TRUE | C5: =Land!C8 -> 1 | D5: =Land!D8 -> residential, ground floor retail facing River Square | G5: Land Use (Primary Carbon) | H5: Strategy L1 | I5: Minimize Average Per Unit Residential Parking Space Requirement | J5: TRUE | K5: 0.71 | L5: TRUE | M5: 0.5 | Q5: =IF(J5=TRUE,K5,0) -> 0.71 | R5: =IF(L5=TRUE,M5,0) -> 0.5 | AR5: Total Primary Carbon (mton/p/yr) | AS5: =ROUND('Sum Resources'!$K$17,1) -> 3 | AT5: =ROUND('Sum Resources'!$K$33,1) -> 2.4 | AU5: =ROUND('Sum Resources'!$K$49,1) -> 0.5 | AW5: -0.2 | AX5: -0.8333333333
A6: =Land!A9 -> 1P-20 | B6: TRUE | C6: =Land!C9 -> 1 | D6: =Land!D9 -> residential, ground floor retail facing River Square | H6: Strategy L2 | I6: Minimize Commercial Parking Space Requirement | J6: TRUE | K6: 0.97 | L6: TRUE | M6: 0.7 | Q6: =IF(J6=TRUE,K6,0) -> 0.97 | R6: =IF(L6=TRUE,M6,0) -> 0.7 | AR6: Energy (kWh/m2/yr) | AS6: ='Sum Resources'!$AA$17 -> 149.6139749 | AT6: ='Sum Resources'!$AA$33 -> 113.6870948 | AU6: ='Sum Resources'!$AA$49 -> -0.3152935317 | AW6: -0.2401305099 | AX6: -1.00210738
A7: =Land!A10 -> 1P-22 | B7: TRUE | C7: =Land!C10 -> 1 | D7: =Land!D10 -> residential | H7: Strategy L3 | I7: Minimize Retail Parking Space Requirement | J7: TRUE | K7: 0.9 | L7: TRUE | M7: 0.9 | Q7: 0.9 | R7: 0.9 | AR7: Electrical | AS7: ='Sum Resources'!AE17 -> 74.83515273 | AT7: ='Sum Resources'!AE33 -> 60.46152529 | AU7: ='Sum Resources'!AE49 -> -3.212253894 | AW7: -0.1920705299 | AX7: -1.042924398
A8: =Land!A11 -> 1P-24 | B8: TRUE | C8: =Land!C11 -> 1 | D8: =Land!D11 -> residential, ground floor retail facing King St | H8: Strategy L4 | I8: Maximize Persons within 300m of Transit Station | J8: TRUE | K8: 0.8 | L8: TRUE | M8: 1 | Q8: 0.8 | R8: 1 | AR8: Thermal | AS8: ='Sum Resources'!AI17 -> 74.77882218 | AT8: ='Sum Resources'!AI33 -> 53.22556954 | AU8: ='Sum Resources'!AI49 -> 2.896960362 | AW8: -0.2882266932 | AX8: -0.961259615
A9: =Land!A12 -> 1P-21 | B9: TRUE | C9: =Land!C12 -> 1 | D9: =Land!D12 -> residential TCHC | H9: Strategy L5 | I9: Maximize Persons within 300m of 4 Services | J9: TRUE | K9: 0.8 | L9: TRUE | M9: 1 | Q9: 0.8 | R9: 1 | AR9: Water (L/p/d) | AS9: ='Sum Resources'!$AL$17 -> 347.8735471 | AT9: ='Sum Resources'!$AL$33 -> 201.6112384 | AU9: ='Sum Resources'!$AL$49 -> 134.3866007 | AW9: -0.4204467684 | AX9: -0.613691234
A10: =Land!A13 -> 1P-23 | B10: TRUE | C10: =Land!C13 -> 1 | D10: =Land!D13 -> residential TCHC, ground floor retail facing King St | H10: Strategy L6 | I10: Maximize Vegetated Open Space as % of Total Non-Building Area | J10: TRUE | K10: 0.6 | L10: TRUE | M10: 0.65 | Q10: 0.6 | R10: 0.65 | AR10: Wastewater (L/p/d) | AS10: ='Sum Resources'!$AP$17 -> 249.4235145 | AT10: ='Sum Resources'!$AP$33 -> 140.5213071 | AU10: ='Sum Resources'!$AP$49 -> 116.8189529 | AW10: -0.4366156398 | AX10: -0.5316441869
A11: =Land!A14 -> 1P-P1 | B11: TRUE | C11: =Land!C14 -> 1 | D11: =Land!D14 -> community park (Don River Park) | H11: Strategy L7 | I11: Maximize Green Plot Ratio/LAI | J11: TRUE | K11: 1.8 | L11: TRUE | M11: 2.2 | Q11: 1.8 | R11: 2.2 | AR11: Materials (mtonCO2/m2/yr) | AS11: ='Sum Resources'!$O$17 -> 0.1050811753 | AT11: ='Sum Resources'!$O$33 -> 0.0535913994 | AU11: ='Sum Resources'!$O$49 -> 0.03547965186 | AW11: -0.49 | AX11: -0.6623595829
A12: =Land!A15 -> 1P-P2 | B12: TRUE | C12: =Land!C15 -> 1 | D12: =Land!D15 -> neighborhood park (River Square) | H12: Strategy L8 | I12: [Insert Strategy & Link With Model] | Q12: 0 | R12: =IF(L12=TRUE,M12,0) -> 0 | AR12: Waste Landfilled (kg/p/yr) | AS12: ='Sum Resources'!$AX$17 -> 407.1203934 | AT12: ='Sum Resources'!$AX$33 -> 273.3346495 | AU12: ='Sum Resources'!$AX$49 -> 60.90622843 | AW12: -0.3286146951 | AX12: -0.8503975006
A13: =Land!A16 -> 1P-P3 | B13: TRUE | C13: =Land!C16 -> 1 | D13: =Land!D16 -> green frontage, median park (King St ramp and Don River) | AR13: Transport (mtonCO2/yr) | AS13: ='Sum Resources'!$S$17 -> 4923.529562 | AT13: ='Sum Resources'!$S$33 -> 4783.417671 | AU13: ='Sum Resources'!$S$49 -> 3907.17745 | AW13: -0.02845761143 | AX13: -0.2064275433
A14: =Land!A17 -> 1P-ST | B14: TRUE | C14: =Land!C17 -> 1 | D14: =Land!D17 -> streets | G14: Energy (Primary Carbon) | H14: Strategy E1 | I14: Passive Demand-side Strategies - Electric | J14: TRUE | K14: 0.05 | L14: TRUE | M14: 0.1 | Q14: =IF(J14=TRUE,K14,0) -> 0.05 | R14: =IF(L14=TRUE,M14,0) -> 0.1
A15: =Land!A18 -> 2P-17W | B15: TRUE | C15: =Land!C18 -> 2 | D15: =Land!D18 -> commercial/retail on Eastern Avenue | I15: Passive Demand-side Strategies - Thermal | J15: TRUE | K15: 0.05 | L15: TRUE | M15: 0.05 | Q15: =IF(J15=TRUE,K15,0) -> 0.05 | R15: =IF(L15=TRUE,M15,0) -> 0.05
A16: =Land!A19 -> 2P-DE | B16: TRUE | C16: =Land!C19 -> 2 | D16: =Land!D19 -> district energy plant on Eastern Avenue | H16: Strategy E2 | I16: Active Demand-side Stategies - Electric | J16: TRUE | K16: 0.15 | L16: TRUE | M16: 0.3 | Q16: 0.15 | R16: 0.3
A17: =Land!A20 -> 2P-16E | B17: TRUE | C17: =Land!C20 -> 2 | D17: =Land!D20 -> residential, park facing groundfloor retail | I17: Active Demand-side Stategies - Thermal | J17: TRUE | K17: 0.25 | L17: TRUE | M17: 0.35 | Q17: 0.25 | R17: 0.35
A18: =Land!A21 -> 2P-13 | B18: TRUE | C18: =Land!C21 -> 2 | D18: =Land!D21 -> residential, park facing groundfloor retail | H18: Strategy E3 | I18: Energy Efficient Exterior Lighting | J18: TRUE | K18: 0.15 | L18: TRUE | M18: 0.3 | Q18: 0.15 | R18: 0.3
A19: =Land!A22 -> 2P-09 | B19: TRUE | C19: =Land!C22 -> 2 | D19: =Land!D22 -> school, residential | H19: Strategy E4 | I19: Renewable Energy Supply - Electric | J19: FALSE | K19: 4000000 | L19: TRUE | M19: 17000000 | Q19: 0 | R19: 17000000
A20: =Land!A23 -> 2P-14 | B20: TRUE | C20: =Land!C23 -> 2 | D20: =Land!D23 -> commercial office with ground floor retail facing Front St | I20: Renewable Energy Supply - Thermal | J20: FALSE | K20: 6000000 | L20: TRUE | M20: 25000000 | N20: % Diff from Baseline | O20: =AW7 -> -0.1920705299 | P20: =AX7 -> -1.042924398 | Q20: 0 | R20: 25000000
A21: =Land!A24 -> 2P-15 | B21: TRUE | C21: =Land!C24 -> 2 | D21: =Land!D24 -> residential with ground floor retail facing Front St | H21: Strategy E5 | I21: District Energy Supply - Electric1 | J21: FALSE | K21: 500000 | L21: FALSE | M21: 800000 | Q21: 0 | R21: 0
A22: =Land!A25 -> 2P-16W | B22: TRUE | C22: =Land!C25 -> 2 | D22: =Land!D25 -> residential with ground floor retail facing Front St | I22: District Energy Supply - Thermal1 | J22: FALSE | K22: 500000 | L22: FALSE | M22: 800000 | Q22: 0 | R22: 0
A23: =Land!A26 -> 2P-10 | B23: TRUE | C23: =Land!C26 -> 2 | D23: =Land!D26 -> residential with ground floor retail facing Front St | H23: Strategy E6 | I23: Electricity Supplied by Off-site Renewables | J23: FALSE | K23: 5000000 | L23: TRUE | M23: 12500000 | Q23: 0 | R23: 12500000
A24: =Land!A27 -> 2P-11N | B24: TRUE | C24: =Land!C27 -> 2 | D24: =Land!D27 -> residential with ground floor retail facing Front St | H24: Strategy E7 | I24: Greywater treatment energy improvements | J24: FALSE | K24: 0.3 | L24: FALSE | M24: 0.5 | Q24: =IF(J24=TRUE,K24,0) -> 0 | R24: =IF(L24=TRUE,M24,0) -> 0
A25: =Land!A28 -> 2P-11S | B25: TRUE | C25: =Land!C28 -> 2 | D25: =Land!D28 -> residential | H25: Strategy E8 | I25: Blackwater treatment energy improvements | J25: FALSE | K25: 0.15 | L25: FALSE | M25: 0.3 | Q25: 0 | R25: 0
A26: =Land!A29 -> 2P-12N | B26: TRUE | C26: =Land!C29 -> 2 | D26: =Land!D29 -> residential with ground floor retail facing Front St | H26: Strategy E9 | I26: Solar PV coverage of rooftops | J26: FALSE | K26: 0.5 | L26: 2 | M26: 0.8 | Q26: =IF(AND(S26=TRUE,U26=TRUE), K26,0) -> 0 | R26: =IF(AND(T26=TRUE,U26=TRUE),M26,0) -> 0 | S26: TRUE | T26: TRUE | U26: FALSE
A27: =Land!A30 -> 2P-12S | B27: TRUE | C27: =Land!C30 -> 2 | D27: =Land!D30 -> residential | H27: Strategy E10 | I27: Solar Thermal HW coverage of rooftops | K27: 0.5 | M27: 0.8 | Q27: =IF(AND(S26=FALSE,U27=TRUE),K27,0) -> 0 | R27: =IF(AND(T26=FALSE,U27=TRUE),M27,0) -> 0 | U27: FALSE
A28: =Land!A31 -> 2P-08 | B28: TRUE | C28: =Land!C31 -> 2 | D28: =Land!D31 -> residential with ground floor retail facing Mill Street | H28: Strategy E11 | I28: Wind Power (kWh / year) | J28: FALSE | K28: =ROUND(K96*K97*K95*24*365.25*1000,-6) -> 33000000 | L28: FALSE | M28: =ROUND(M95*M96*M97*24*365.25*1000,-6) -> 53000000 | N28: % Diff from Baseline | O28: =AW8 -> -0.2882266932 | P28: =AX8 -> -0.961259615 | Q28: =IF(J28=FALSE,0,K28) -> 0 | R28: =IF(L28=FALSE,0,M28) -> 0
A29: =Land!A32 -> 2P-P4 | B29: TRUE | C29: =Land!C32 -> 2 | D29: =Land!D32 -> neighborhood park (Front Street Mall) | G29: 1 - Note that district energy fuel can be modified (to either natural gas or biomass) in the "Key Parameter Manipulation" table below
A30: =Land!A33 -> 2P-ST | B30: TRUE | C30: =Land!C33 -> 2 | D30: =Land!D33 -> neighborhood park (southern green strip) | G30: Water (Primary Carbon) | H30: Strategy WT1 | I30: Water Efficient Landscaping | J30: TRUE | K30: 0.5 | L30: TRUE | M30: 0.95 | Q30: =IF(J30=TRUE,K30,0) -> 0.5 | R30: =IF(L30=TRUE,M30,0) -> 0.95
A31: =Land!A34 -> 2P-ST | B31: TRUE | C31: =Land!C34 -> 2 | D31: =Land!D34 -> streets | H31: Strategy WT2 | I31: Low flush & flow fixtures | J31: TRUE | K31: 0.2 | L31: TRUE | M31: 0.35 | Q31: =IF(J31=TRUE,K31,0) -> 0.2 | R31: =IF(L31=TRUE,M31,0) -> 0.35
B32: FALSE | H32: Strategy WT3 | I32: Water efficient appliances | J32: TRUE | K32: 0.25 | L32: TRUE | M32: 0.45 | Q32: 0.25 | R32: 0.45
B33: FALSE | H33: Strategy WT4 | I33: Leak Reduction | J33: FALSE | K33: 0.5 | L33: FALSE | M33: 0.8 | Q33: 0 | R33: 0
B34: FALSE | H34: Strategy WT5 | I34: Rainwater harvesting | J34: TRUE | K34: 0.1 | L34: TRUE | M34: 0.3 | Q34: 0.1 | R34: 0.3
B35: FALSE | H35: Strategy WT6 | I35: Greywater Treatment | J35: TRUE | K35: 0.1 | L35: TRUE | M35: 0.3 | Q35: 0.1 | R35: 0.3
B36: FALSE | H36: Strategy WT7 | I36: Blackwater Treatment | J36: TRUE | K36: 0.25 | L36: TRUE | M36: 1 | Q36: 0.25 | R36: 1
H37: Strategy WT8 | I37: [Insert Strategy & Link With Model] | J37: FALSE | K37: 0 | L37: FALSE | M37: 0 | N37: % Diff from Baseline | O37: =AW9 -> -0.4204467684 | P37: =AX9 -> -0.613691234 | Q37: 0 | R37: 0
G39: Waste (Primary Carbon) | H39: Strategy WS1 | I39: Engage community to reduce waste generation | J39: FALSE | K39: 0.05 | L39: TRUE | M39: 0.15 | Q39: =IF(J39=TRUE,K39,0) -> 0 | R39: =IF(L39=TRUE,M39,0) -> 0.15
H40: Strategy WS2 | I40: 3-Bin Separation (additional recyclables and organics) | J40: TRUE | K40: 0.18 | L40: TRUE | M40: 0.54 | Q40: =IF(J40=TRUE,K40,0) -> 0.18 | R40: =IF(L40=TRUE,M40,0) -> 0.54
H41: Strategy WS3 | I41: Waste-to-Energy (Plasma Arc Gasification, Pyrolysis, etc.)1 | J41: FALSE | K41: 0.5 | L41: FALSE | M41: 1 | Q41: 0 | R41: 0
H42: Strategy WS4 | I42: Anaerobic Digestion (or other types of Organic treatment)2 | J42: FALSE | K42: 0.5 | L42: FALSE | M42: 1 | Q42: 0 | R42: 0
H43: Strategy WS5 | I43: Construction Waste Diversion | J43: TRUE | K43: 0.75 | L43: TRUE | M43: 0.95 | Q43: 0.75 | R43: 0.95
H44: Strategy WS6 | I44: Electronic and bulky waste program | J44: TRUE | K44: 0.5 | L44: TRUE | M44: 0.95 | Q44: =IF(J44=TRUE,K44,0) -> 0.5 | R44: =IF(L44=TRUE,M44,0) -> 0.95
H45: Strategy WS7 | I45: [Insert Strategy & Link With Model] | J45: FALSE | K45: 0 | L45: FALSE | M45: 0 | O45: ='Sum Resources'!BA33/'Sum Resources'!AS33 -> 0.6034931791 | P45: ='Sum Resources'!BA49/'Sum Resources'!AS49 -> 0.8960561604 | Q45: =IF(J45=TRUE,K45,0) -> 0 | R45: =IF(L45=TRUE,M45,0) -> 0
H46: Strategy WS8 | I46: [Insert Strategy & Link With Model] | J46: FALSE | K46: 0 | L46: FALSE | M46: 0 | N46: % Diff from Baseline | O46: =AW12 -> -0.3286146951 | P46: =AX12 -> -0.8503975006 | Q46: 0 | R46: 0
G47: 1 Not to be used with WS2; 2 Not to be used with WS3
G48: Transport (Primary Carbon) | H48: Strategy T1 | I48: Increase use of Alternative Vehicles | J48: TRUE | K48: 0.05 | L48: TRUE | M48: 0.25 | Q48: =IF(J48=TRUE,K48,0) -> 0.05 | R48: =IF(L48=TRUE,M48,0) -> 0.25
H49: Strategy T2 | I49: Higher Walk and Bike Modal Split for Short Trips | J49: TRUE | K49: 1km | L49: TRUE | M49: 3km | Q49: =IF(J49=TRUE,0.998118216155553,1) -> 0.9981182162 | R49: =IF(L49=TRUE,0.933365742,1) -> 0.933365742
H50: Strategy T3 | I50: Higher fuel costs | J50: FALSE | K50: 0.5 | L50: FALSE | M50: 1 | Q50: =IF(J50=TRUE,1,0) -> 0 | R50: =IF(L50=TRUE,1,0) -> 0
H51: Strategy T4 | I51: [Insert Strategy & Link With Model] | J51: FALSE | L51: FALSE | Q51: =IF(J51=TRUE,K51,0) -> 0 | R51: =IF(L51=TRUE,M51,0) -> 0
H52: Strategy T5 | I52: [Insert Strategy & Link With Model] | J52: FALSE | L52: FALSE | Q52: 0 | R52: 0
B53: FALSE | H53: Strategy T6 | I53: [Insert Strategy & Link With Model] | J53: FALSE | Q53: 0 | R53: 0
H54: Strategy T7 | I54: [Insert Strategy & Link With Model] | J54: FALSE | Q54: 0 | R54: 0
H55: Strategy T8 | I55: [Insert Strategy & Link With Model] | L55: FALSE | N55: % Diff from Baseline | O55: =AW13 -> -0.02845761143 | P55: =AX13 -> -0.2064275433 | Q55: 0 | R55: 0
G57: Carbon (Total Primary Carbon) | H57: Strategy C1 | I57: Carbon offset (Non-Energy) | J57: FALSE | K57: 5000 | L57: FALSE | M57: 200 | Q57: =IF(J57=TRUE,K57,0) -> 0 | R57: =IF(L57=TRUE,M57,0) -> 0
H58: Strategy C2 | I58: Carbon sequestration (vegetation intensity increase) | J58: TRUE | K58: 0.1 | L58: TRUE | M58: 0.15 | Q58: 0.1 | R58: 0.15
H59: Strategy C3 | I59: Carbon capture (non-sequestration) | J59: FALSE | K59: 5000 | L59: FALSE | M59: 10000 | Q59: 0 | R59: 0
H60: Strategy C4 | I60: Waste composting program | J60: FALSE | K60: 0.5 | L60: FALSE | M60: 0.5 | Q60: 0 | R60: 0
H61: Strategy C5 | I61: Off-site Renewable Energy-based Carbon Offsets | J61: FALSE | K61: 0 | L61: FALSE | M61: 0 | Q61: 0 | R61: 0
H62: Strategy C6 | I62: [Insert Strategy & Link With Model] | J62: FALSE | K62: 0 | M62: 0 | Q62: 0 | R62: 0
B63: FALSE | H63: Strategy C7 | I63: [Insert Strategy & Link With Model] | J63: FALSE | K63: 0 | L63: FALSE | M63: 0 | Q63: 0 | R63: 0
B64: FALSE | H64: Strategy C8 | I64: [Insert Strategy & Link With Model] | J64: FALSE | K64: 0 | L64: FALSE | M64: 0 | N64: % Diff from Baseline | O64: =AW5 -> -0.2 | P64: =AX5 -> -0.8333333333 | Q64: 0 | R64: 0
B65: FALSE
B66: FALSE | G66: Materials (Secondary Carbon) | H66: Strategy M1 | I66: Reduction amount of total materials (secondary carbon) | J66: TRUE | K66: 0.25 | L66: TRUE | M66: 0.3 | Q66: =IF(J66=TRUE,K66,0) -> 0.25 | R66: =IF(L66=TRUE,M66,0) -> 0.3
B67: FALSE | H67: Strategy M2 | I67: Use of Local Materials (secondary carbon) | J67: TRUE | K67: 0.15 | L67: TRUE | M67: 0.3 | Q67: =IF(J67=TRUE,K67,0) -> 0.15 | R67: 0.3
B68: FALSE | H68: Strategy M3 | I68: Use of Recycled Materials (secondary carbon) | J68: TRUE | K68: 0.2 | L68: TRUE | M68: 0.3 | Q68: 0.2 | R68: 0.3
B69: FALSE | H69: Strategy M4 | I69: Use of FSC timber (secondary carbon) | J69: FALSE | K69: 0.5 | L69: TRUE | M69: 0.9 | Q69: 0 | R69: 0.9
B70: FALSE | H70: Strategy M5 | I70: Design for disassembly/deconstruction (secondary carbon) | J70: FALSE | K70: 0.2 | L70: FALSE | M70: 0.5 | Q70: 0 | R70: 0
B71: FALSE | H71: Strategy M6 | I71: [Insert Strategy & Link With Model] (secondary carbon) | J71: FALSE | K71: 0 | L71: FALSE | M71: 0 | Q71: 0 | R71: 0
B72: FALSE | J72: FALSE | L72: FALSE | Q72: 0 | R72: 0
B73: FALSE | N73: % Diff from Baseline | O73: =AW11 -> -0.49 | P73: =AX11 -> -0.6623595829 | Q73: 0 | R73: 0
B74: FALSE
B75: FALSE | G75: Carbon (Total Primary + Secondary Carbon)
B76: FALSE
B77: FALSE
B78: FALSE
B79: FALSE
B80: FALSE
B81: FALSE
B82: FALSE | N82: % Diff from Baseline | O82: =AW4 -> -0.1935483871 | P82: =AX4 -> -0.8387096774
H83: Use Scenario emission factors | J83: FALSE | K83: FALSE | L83: TRUE | M83: FALSE
D84: Fuel Saving Calculator | E84: L / 100km | F84: Savings vs Baseline* (%) | H84: Relevant Strategy | I84: Key Parameter Manipulation | K84: Scenario 1 | M84: Scenario 2
D85: Fuel Consumption - Highway | E85: 4 | F85: N/A | H85: All | I85: Grid Emissions Intensity from Electricity Production (Baseline - 187 g CO2e / kWh) | K85: 187 | M85: 187
D86: Fuel Consumption - City | E86: 3.7 | F86: N/A | H86: All | I86: Losses from Transmition and Distribution | K86: 0.0373 | M86: 0.0373
D87: Expected Average Fuel Consumption | E87: =E86*0.55+E85*0.45 -> 3.835 | F87: =(1-(E87/12.6)) -> 0.6956349206 | H87: All | I87: Delieved Electricity Emissions Intensity (g CO2e / kWh) | K87: =K85/(1-K86) -> 194.2453516 | M87: =M85/(1-M86) -> 194.2453516
D88: *Baseline - 12.6L / 100 km | H88: Transportation
D89: Note: Fuel Consumption data can be obtained by clicking here | H89: T1 | I89: Hybrid Electric Vehicle (HEV) Fuel Consumption Savings | K89: 0.52 | M89: 0.6
H90: T1 | I90: Plug-In Hybrid Electric Vehicle (PHEV) Fuel Consumption Savings | K90: 0.75 | M90: 0.75
D91: Solar Efficiencies - Scenario 2 | H91: T1 | I91: Percentage of Alternative Vehicles - HEV (remaining are PHEV) | K91: 0.5 | M91: 0.5
B92: PV (BL1 = 17.4%) | D92: 0.25 | H92: Energy
B93: Thermal (BL1 = 35%) | D93: 0.4 | H93: E9 | I93: Annual PV Generation (kWh / m2) | K93: =238500/3600 -> 66.25 | M93: =K93*(D92/0.174) -> 95.18678161
B94: 1BL = Baseline | H94: E10 | I94: Annual Solar Thermal HW Production (kWh / m2) | K94: 23 | M94: =K94*D93/0.35 -> 26.28571429
H95: E11 | I95: Offshore Wind Generation - Capacity Factor | K95: 0.3 | M95: 0.4
H96: E11 | I96: Offshore Wind Generation - Turbine Nameplate Rating (MW) | K96: 2.5 | M96: 3 | Q96: FALSE | R96: FALSE
H97: E11 | I97: Offshore Wind Generation - # of Turbines | K97: 5 | M97: 5
H98: E5 | I98: District Energy - Fuel Used | K98: Biomass | M98: Biomass
H99: E5 | I99: - Assumes biomass energy is carbon neutral | K99: Natural Gas | M99: Natural Gas

Sheet Output Comparison
A1: =MID(CELL("filename",A1),FIND("]",CELL("filename",A1))+1,LEN(CELL("filename",A1))-FIND("]",CELL("filename",A1))) -> Output Comparison
A2: Scenario Control Panel
A3: Output Type: | B3: Per Year
Q5: Baseline | R5: Scenario 1 | S5: Scenario 2
P6: =CONCATENATE(Q25," (",R25,")") -> Total Primary Carbon (mton/yr) | Q6: =IF('Output Comparison'!$B$3="Per Year",'Sum Resources'!$J$17,IF('Output Comparison'!$B$3="Per Person",'Sum Resources'!$K$17,IF('Output Comparison'!$B$3="Per Square Meter",'Sum Resources'!$L$17,0))) -> 22084.20298 | R6: =IF('Output Comparison'!$B$3="Per Year",'Sum Resources'!$J$33,IF('Output Comparison'!$B$3="Per Person",'Sum Resources'!$K$33,IF('Output Comparison'!$B$3="Per Square Meter",'Sum Resources'!$L$33,0))) -> 17648.59471 | S6: =IF('Output Comparison'!$B$3="Per Year",'Sum Resources'!$J$49,IF('Output Comparison'!$B$3="Per Person",'Sum Resources'!$K$49,IF('Output Comparison'!$B$3="Per Square Meter",'Sum Resources'!$L$49,0))) -> 3692.305641
P7: Energy (MWh/yr) | Q7: =IF('Output Comparison'!$B$3="Per Year",'Sum Resources'!$Y$17,IF('Output Comparison'!$B$3="Per Person",'Sum Resources'!$Z$17,IF('Output Comparison'!$B$3="Per Square Meter",'Sum Resources'!$AA$17,0))) -> 86603.5858 | R7: =IF('Output Comparison'!$B$3="Per Year",'Sum Resources'!$Y$33,IF('Output Comparison'!$B$3="Per Person",'Sum Resources'!$Z$33,IF('Output Comparison'!$B$3="Per Square Meter",'Sum Resources'!$AA$33,0))) -> 65807.42259 | S7: =IF('Output Comparison'!$B$3="Per Year",'Sum Resources'!$Y$49,IF('Output Comparison'!$B$3="Per Person",'Sum Resources'!$Z$49,IF('Output Comparison'!$B$3="Per Square Meter",'Sum Resources'!$AA$49,0))) -> -182.5066839
P8: Potable Water (ML/yr) | Q8: =IF('Output Comparison'!$B$3="Per Year",'Sum Resources'!$AK$17,IF('Output Comparison'!$B$3="Per Person",'Sum Resources'!$AL$17,IF('Output Comparison'!$B$3="Per Square Meter",'Sum Resources'!$AM$17,0))) -> 929.0676217 | R8: =IF('Output Comparison'!$B$3="Per Year",'Sum Resources'!$AK$33,IF('Output Comparison'!$B$3="Per Person",'Sum Resources'!$AL$33,IF('Output Comparison'!$B$3="Per Square Meter",'Sum Resources'!$AM$33,0))) -> 538.4441425 | S8: =IF('Output Comparison'!$B$3="Per Year",'Sum Resources'!$AK$49,IF('Output Comparison'!$B$3="Per Person",'Sum Resources'!$AL$49,IF('Output Comparison'!$B$3="Per Square Meter",'Sum Resources'!$AM$49,0))) -> 358.9069664
P9: Wastewater (ML/yr) | Q9: =IF('Output Comparison'!$B$3="Per Year",'Sum Resources'!$AO$17,IF('Output Comparison'!$B$3="Per Person",'Sum Resources'!$AP$17,IF('Output Comparison'!$B$3="Per Square Meter",'Sum Resources'!$AQ$17,0))) -> 666.1366273 | R9: =IF('Output Comparison'!$B$3="Per Year",'Sum Resources'!$AO$33,IF('Output Comparison'!$B$3="Per Person",'Sum Resources'!$AP$33,IF('Output Comparison'!$B$3="Per Square Meter",'Sum Resources'!$AQ$33,0))) -> 375.2909576 | S9: =IF('Output Comparison'!$B$3="Per Year",'Sum Resources'!$AO$49,IF('Output Comparison'!$B$3="Per Person",'Sum Resources'!$AP$49,IF('Output Comparison'!$B$3="Per Square Meter",'Sum Resources'!$AQ$49,0))) -> 311.9889617
P10: Waste Landfilled (mton/yr) | Q10: =IF('Output Comparison'!$B$3="Per Year",'Sum Resources'!$AW$17,IF('Output Comparison'!$B$3="Per Person",'Sum Resources'!$AX$17,IF('Output Comparison'!$B$3="Per Square Meter",'Sum Resources'!$AY$17,0))) -> 2978.899919 | R10: =IF('Output Comparison'!$B$3="Per Year",'Sum Resources'!$AW$33,IF('Output Comparison'!$B$3="Per Person",'Sum Resources'!$AX$33,IF('Output Comparison'!$B$3="Per Square Meter",'Sum Resources'!$AY$33,0))) -> 1999.98963 | S10: =IF('Output Comparison'!$B$3="Per Year",'Sum Resources'!$AW49,IF('Output Comparison'!$B$3="Per Person",'Sum Resources'!$AX$49,IF('Output Comparison'!$B$3="Per Square Meter",'Sum Resources'!$AY$49,0))) -> 445.6508734
P11: Transport (mtonCO2e/yr) | Q11: =IF('Output Comparison'!$B$3="Per Year",'Sum Resources'!$BI$17,IF('Output Comparison'!$B$3="Per Person",'Sum Resources'!$BJ$17,IF('Output Comparison'!$B$3="Per Square Meter",'Sum Resources'!$BK$17,0))) -> 4923.529562 | R11: =IF('Output Comparison'!$B$3="Per Year",'Sum Resources'!$BI$33,IF('Output Comparison'!$B$3="Per Person",'Sum Resources'!$BJ$33,IF('Output Comparison'!$B$3="Per Square Meter",'Sum Resources'!$BK$33,0))) -> 4783.417671 | S11: =IF('Output Comparison'!$B$3="Per Year",'Sum Resources'!$BI$49,IF('Output Comparison'!$B$3="Per Person",'Sum Resources'!$BJ$49,IF('Output Comparison'!$B$3="Per Square Meter",'Sum Resources'!$BK$49,0))) -> 3907.17745
Q17: Baseline | R17: Scenario 1 | S17: Scenario 2
Q18: =Q6/Q6 -> 1 | R18: =IF(R6/$Q6<0,0,R6/$Q6) -> 0.7991501764 | S18: 0.1671921619
Q19: 1 | R19: 0.7598694901 | S19: 0
Q20: 1 | R20: 0.5795532316 | S20: 0.386308766
Q21: 1 | R21: 0.5633843602 | S21: 0.4683558131
Q22: 1 | R22: 0.6713853049 | S22: 0.1496024994
Q23: 1 | R23: 0.9715423886 | S23: 0.7935724567
Q25: Total Primary Carbon | R25: =IF('Output Comparison'!$B$3="Per Year",'Sum Resources'!F6,IF('Output Comparison'!$B$3="Per Person",'Sum Resources'!G6,IF('Output Comparison'!$B$3="Per Square Meter",'Sum Resources'!H6,0))) -> mton/yr
Q26: Energy | R26: =IF('Output Comparison'!$B$3="Per Year",'Sum Resources'!Y6,IF('Output Comparison'!$B$3="Per Person",'Sum Resources'!Z6,IF('Output Comparison'!$B$3="Per Square Meter",'Sum Resources'!AA6,0))) -> MWh/yr
Q27: Potable Water | R27: =IF('Output Comparison'!$B$3="Per Year",'Sum Resources'!AK6,IF('Output Comparison'!$B$3="Per Person",'Sum Resources'!AL6,IF('Output Comparison'!$B$3="Per Square Meter",'Sum Resources'!AM6,0))) -> ML/yr
Q28: Wastewater | R28: =IF('Output Comparison'!$B$3="Per Year",'Sum Resources'!AO6,IF('Output Comparison'!$B$3="Per Person",'Sum Resources'!AP6,IF('Output Comparison'!$B$3="Per Square Meter",'Sum Resources'!AQ6,0))) -> ML/yr
Q29: Waste Landfilled | R29: =IF('Output Comparison'!$B$3="Per Year",'Sum Resources'!AW6,IF('Output Comparison'!$B$3="Per Person",'Sum Resources'!AX6,IF('Output Comparison'!$B$3="Per Square Meter",'Sum Resources'!AY6,0))) -> mton/yr
Q30: Transport | R30: =IF('Output Comparison'!$B$3="Per Year",'Sum Resources'!BI6,IF('Output Comparison'!$B$3="Per Person",'Sum Resources'!BJ6,IF('Output Comparison'!$B$3="Per Square Meter",'Sum Resources'!BK6,0))) -> mtonCO2e/yr

Sheet Output Carbon
A1: =MID(CELL("filename",A1),FIND("]",CELL("filename",A1))+1,LEN(CELL("filename",A1))-FIND("]",CELL("filename",A1))) -> Output Carbon
A2: Scenario Control Panel
A3: Output Type: | B3: Per Year
... 2 more rows

Sheet Sum LandUse (hidden)
A1: Land-Use Summary
A2: Scenario Control Panel
A3: Block Parcels
A5: Description | B5: Gross Surface Area | C5: % Gross Surface Area | D5: Gross Floor Area* | E5: Net Floor Area | F5: % Net Floor Area | G5: Housing Units | H5: Residents | I5: Employees, Students
B6: ="LUGA-M" -> LUGA-M | D6: ="BGFA-M" -> BGFA-M | G6: ="DHDU" -> DHDU | H6: ="DPOP" -> DPOP | I6: DEMP,DSTU
B7: ha | C7: % | D7: m2 | E7: m2 | F7: % | G7: # | H7: # | I7: # | J7: persons/100m2
A9: Site | B9: =LU_C1!H75/10000 -> 28.97098 | C9: 1
A10: Hardscape | B10: =LU_C1!K75/10000 -> 6.61015 | C10: =B10/B$9 -> 0.2281645288
A11: Softscape | B11: =LU_C1!L75/10000 -> 13.35093 | C11: =B11/B$9 -> 0.4608380524
A12: Buildings Total (exc. parking) | B12: =LU_C1!I75/10000 -> 6.0066 | C12: =B12/B$9 -> 0.2073316125 | D12: =LU_C1!U75 -> 460756.3602 | E12: =SUM(E13:E18) -> 379236.1015 | F12: =SUM(F13:F18) -> 1 | G12: =SUM(G13:G18) -> 4569 | H12: =SUM(H13:H18) -> 7317 | I12: =SUM(I13:I18) -> 1744.382709 | J12: =IF(E12=0,0,SUM(H12,I12)/(E12/100)) -> 2.389377665
A13: Housing | D13: =E13/(E$12/D$12) -> 382810.413 | E13: =LU_C1!AO75 -> 315080.9 | F13: =E13/E$12 -> 0.8308304477 | G13: =LU_C1!AJ75 -> 4569 | H13: =LU_C1!AK75 -> 7317 | J13: 2.322260727
A14: Commercial | D14: 36098.23513 | E14: =LU_C1!AT75 -> 29711.48126 | F14: 0.07834560355 | I14: =LU_C1!AU75 -> 990.3827087 | J14: 3.333333333
A15: Retail | D15: 29941.11268 | E15: =LU_C1!AX75 -> 24643.72026 | F15: 0.06498252713 | I15: =LU_C1!AY75 -> 314 | J15: 1.274158271
A16: Hotel | D16: 0 | E16: =LU_C1!BJ75 -> 0 | F16: 0 | H16: =LU_C1!BM75 -> 0 | I16: =LU_C1!BL75 -> 0 | J16: 0
A17: Social | D17: 10934.63208 | E17: =LU_C1!BC75 -> 9000 | F17: 0.02373191783 | I17: =LU_C1!BD75+LU_C1!AM75 -> 440 | J17: 4.888888889
A18: Other/Utility | D18: 971.9672961 | E18: =LU_C1!BG75 -> 800 | F18: 0.002109503807 | J18: 0
A19: Parking Total (underground) | D19: =LU_C1!AB75 -> 128520 | E19: =D19 -> 128520 | F19: 1 | J19: 0
A21: * GFA estimated for space type based on the average building efficiency ratio; most buildings have some mixed-use component.
A23: Scenario 1 Target (WT Plan)
B24: Strategy L1 | C24: Strategy L2 | D24: Strategy L3 | E24: Strategy L4 | F24: Strategy L5 | G24: Strategy L6 | H24: Strategy L7 | I24: Strategy L8
B25: Housing Parking | C25: Office Parking | D25: Retail Parking | E25: Transit Access | F25: Services Access | G25: Vegetated Space | H25: Green Plot Ratio
B26: spaces/unit | C26: spaces/100m2 | D26: spaces/100m2 | E26: % people | F26: % people | G26: % people | H26: Ratio
A27: Housing Units (#) | B27: =LU_C1!AJ75 -> 4569
A28: Leasable Floor Area (m2) | C28: =LU_C1!AT75 -> 29711.48126 | D28: =LU_C1!AX75 -> 24643.72026
A29: Parking Spaces (#) | B29: =LU_C1!AR75 -> 3251 | C29: =LU_C1!AV75 -> 289 | D29: =LU_C1!BA75 -> 229
A30: Gross Area (m2) | H30: =LU_C1!H75 -> 289709.8
A31: Hardscape (m2) | G31: =LU_C1!K75 -> 66101.5
A32: Softscape (m2) | G32: =LU_C1!L75 -> 133509.3
A33: Softscape Trees (m2) | H33: =LU_C1!N75 -> 75578.83
A34: Sofscape Shrubs (m2) | H34: =LU_C1!O75 -> 0
A35: Softscape Grass (m2) | H35: =LU_C1!P75 -> 57910.67
A36: Tree LAI Factor | H36: 6
A37: Shrub LAI Factor | H37: 3
A38: Grass LAI Factor | H38: 1
A39: Total | B39: =B29/B27 -> 0.7115342526 | C39: =C29/(C28/100) -> 0.9726879568 | D39: =D29/(D28/100) -> 0.9292428157 | E39: =Buildings!AP75 -> 0.977597238 | F39: =Buildings!AQ75 -> 0.977597238 | G39: =G32/(G32+G31) -> 0.6688480784 | H39: =(H36*H33+H37*H34+H38*H35)/H30 -> 1.765158272
A40: Scenario 2 Target (Stretch Target)
B41: Strategy L1 | C41: Strategy L2 | D41: Strategy L3 | E41: Strategy L4 | F41: Strategy L5 | G41: Strategy L6 | H41: Strategy L7 | I41: Strategy L8
B42: Housing Parking | C42: Office Parking | D42: Retail Parking | E42: Transit Access | F42: Services Access | G42: Vegetated Space | H42: Green Plot Ratio
B43: spaces/unit | C43: spaces/100m2 | D43: spaces/100m2 | E43: % people | F43: % people | G43: % people | H43: Ratio
A44: Housing Units (#) | B44: =LU_C1!AJ75 -> 4569
A45: Leasable Floor Area (m2) | C45: =LU_C1!AT75 -> 29711.48126 | D45: =LU_C1!AX75 -> 24643.72026
A46: Parking Spaces (#) | B46: =LU_C1!BP75 -> 2284.5 | C46: =LU_C1!BQ75 -> 207.9803688 | D46: =LU_C1!BR75 -> 221.7934823
A47: Gross Area (m2) | H47: =LU_C1!H75 -> 289709.8
A48: Hardscape (m2) | G48: =LU_C1!BY75 -> 80375.33
A49: Softscape (m2) | G49: =LU_C1!BX75 -> 149268.47
A50: Softscape Trees (m2) | H50: =($H$56*H47-$H$54*H51-$H$55*H52)/H53 -> 96575.14833
A51: Sofscape Shrubs (m2) | H51: =H34 -> 0
A52: Softscape Grass (m2) | H52: =H35 -> 57910.67
A53: Tree LAI Factor | H53: =H36 -> 6
A54: Shrub LAI Factor | H54: =H37 -> 3
A55: Grass LAI Factor | H55: =H38 -> 1
A56: Total | B56: =B46/B44 -> 0.5 | C56: =C46/(C45/100) -> 0.7 | D56: =D46/(D45/100) -> 0.9 | E56: =Buildings!AS75 -> 1 | F56: =Buildings!AT75 -> 1 | G56: =G49/(G49+G48) -> 0.65 | H56: ='Control Panel'!M11 -> 2.2

Sheet Sum Resources (hidden)
A1: =MID(CELL("filename",A1),FIND("]",CELL("filename",A1))+1,LEN(CELL("filename",A1))-FIND("]",CELL("filename",A1))) -> Sum Resources
A2: Scenario Control Panel
A3: Baseline
B4: Land Use Output Table | F4: Carbon Output Table | Y4: Resource Output Table
B5: Residents | C5: Jobs | D5: GFA | F5: Total Primary + Secondary Carbon | J5: Total Primary Carbon | N5: Total Secondary Carbon (Materials Only) | R5: Total Energy Carbon | S5: Total Transport Carbon | T5: Total Water Carbon | U5: Total Waste Carbon | V5: Total Materials Carbon | W5: Total Carbon Offsets | Y5: Energy | AC5: Electricity | AG5: Thermal | AK5: Potable Water Use | AO5: Wastewater Generated | AS5: Waste generated | AW5: Waste landfilled | BA5: Waste diverted | BE5: Transport - Passenger Kilometers Travelled | BI5: Transport - CO2e
D6: m2 | F6: mton/yr | G6: mton/p/yr | H6: kg/m2/yr | J6: mton/yr | K6: mton/p/yr | L6: kg/m2/yr | N6: mton/yr | O6: mton/p/yr | P6: kg/m2/yr | R6: mton/yr | S6: mton/yr | T6: mton/yr | U6: mton/yr | V6: mton/yr | W6: mton/yr | Y6: MWh/yr | Z6: kWh/p/yr | AA6: kWh/m2/yr | AC6: MWh/yr | AD6: kWh/p/yr | AE6: kWh/m2/yr | AG6: MWh/yr | AH6: kWh/p/yr | AI6: kWh/m2/yr | AK6: ML/yr | AL6: L/p/d | AM6: L/m2/d | AO6: ML/yr | AP6: L/p/d | AQ6: L/m2/d | AS6: mton/yr | AT6: kg/p/yr | AU6: kg/m2/yr | AW6: mton/yr | AX6: kg/p/yr | AY6: kg/m2/yr | BA6: mton/yr | BB6: kg/p/yr | BC6: kg/m2/yr | BE6: thousand PKT/yr | BF6: PKT/p/yr | BG6: PKT/m2/yr | BI6: mtonCO2e/yr | BJ6: kgCO2e/p/yr | BK6: kgCO2e/m2/yr
A7: Site | B7: =WT_C!$B$24 -> 7317 | C7: =SUM(LU_C1!$AU$75,LU_C1!$AY$75,LU_C1!$BD$75,LU_C1!$BL$75) -> 1344.382709 | D7: =E_C!C20 -> 0 | F7: =J7+N7 -> 0 | G7: =$F7/B7 -> 0 | H7: =IF(SUM(D7:D10)=0,0,$F7/SUM(D7:D10))*1000 -> 0 | J7: =R7+S7+T7+U7+W7 -> 0 | K7: =J7/$B7 -> 0 | L7: =IF(SUM($D7:$D10)=0,0,$J7/SUM($D7:$D10))*1000 -> 0 | N7: =V7 -> 0 | O7: =N7/$B7 -> 0 | P7: =IF($D7=0,0,$N7/$D7)*1000 -> 0 | R7: =C_C!C34 -> 0 | S7: =C_C!F34 -> 0 | T7: =C_C!G34 -> 0 | U7: =C_C!H34 -> 0 | V7: =C_C!I34 -> 0 | W7: =C_C!J34 -> 0 | Y7: =E_C!B34/1000 -> 0 | Z7: =Y7*1000/$B7 -> 0 | AA7: =IF($D7=0,0,Y7*1000/$D7) -> 0 | AC7: =E_C!C34/1000 -> 0 | AD7: =AC7*1000/$B7 -> 0 | AE7: =IF($D7=0,0,AC7*1000/$D7) -> 0 | AG7: =E_C!D34/1000 -> 0 | AH7: =AG7*1000/$B7 -> 0 | AI7: =IF($D7=0,0,AG7/$D7*1000) -> 0 | AK7: =WT_C!$B34 -> 0 | AL7: =(AK7*1000000)/($B7*365) -> 0 | AM7: =IF($D7=0,0,(AK7*1000000)/($D7*365)) -> 0 | AO7: =WT_C!$C34 -> 0 | AP7: =(AO7*1000000)/($B7*365) -> 0 | AQ7: =IF($D7=0,0,(AO7*1000000)/($D7*365)) -> 0 | AS7: =WS_C!B34 -> 0 | AT7: =(AS7*1000)/($B7) -> 0 | AU7: =IF($D7=0,0,(AS7*1000)/($D7)) -> 0 | AW7: =WS_C!D34 -> 0 | AX7: =(AW7*1000)/($B7) -> 0 | AY7: =IF($D7=0,0,(AW7*1000)/($D7)) -> 0 | BA7: =WS_C!C34 -> 0 | BB7: =(BA7*1000)/($B7) -> 0 | BC7: =IF($D7=0,0,(BA7*1000)/($D7)) -> 0 | BE7: =T_C!G51/1000 -> 0 | BF7: =BE7*1000/B7 -> 0 | BG7: =T_C!H51 -> 0 | BI7: =T_C!M51 -> 0 | BJ7: =T_C!L51*1000 -> 0 | BK7: =T_C!N51*1000 -> 0
A8: Hardscape | B8: =WT_C!$B$24 -> 7317 | C8: =SUM(LU_C1!$AU$75,LU_C1!$AY$75,LU_C1!$BD$75,LU_C1!$BL$75) -> 1344.382709 | D8: =E_C!C21 -> 66101.5 | F8: =J8+N8 -> 139.4080635 | G8: 0.01905262587 | H8: =IF(D8=0,0,$F8/D8)*1000 -> 2.109 | J8: =R8+S8+T8+U8+W8 -> 86.5268635 | K8: =J8/$B8 -> 0.01182545627 | L8: =IF($D8=0,0,$J8/$D8)*1000 -> 1.309 | N8: =V8 -> 52.8812 | O8: =N8/$B8 -> 0.007227169605 | P8: =IF($D8=0,0,$N8/$D8)*1000 -> 0.8 | R8: =C_C!C35 -> 86.5268635 | S8: =C_C!F35 -> 0 | T8: =C_C!G35 -> 0 | U8: =C_C!H35 -> 0 | V8: =C_C!I35 -> 52.8812 | W8: =C_C!J35 -> 0 | Y8: =E_C!B35/1000 -> 462.7105 | Z8: =Y8*1000/$B8 -> 63.23773404 | AA8: =IF($D8=0,0,Y8*1000/$D8) -> 7 | AC8: =E_C!C35/1000 -> 462.7105 | AD8: =AC8*1000/$B8 -> 63.23773404 | AE8: =IF($D8=0,0,AC8*1000/$D8) -> 7 | AG8: =E_C!D35/1000 -> 0 | AH8: =AG8*1000/$B8 -> 0 | AI8: 0 | AK8: =WT_C!$B35 -> 0 | AL8: 0 | AM8: =IF($D8=0,0,(AK8*1000000)/($D8*365)) -> 0 | AO8: =WT_C!$C35 -> 0 | AP8: 0 | AQ8: =IF($D8=0,0,(AO8*1000000)/($D8*365)) -> 0 | AS8: =WS_C!B35 -> 0 | AT8: =(AS8*1000)/($B8) -> 0 | AU8: =IF($D8=0,0,(AS8*1000)/($D8)) -> 0 | AW8: =WS_C!D35 -> 0 | AX8: 0 | AY8: =IF($D8=0,0,(AW8*1000)/($D8)) -> 0 | BA8: =WS_C!C35 -> 0 | BB8: 0 | BC8: =IF($D8=0,0,(BA8*1000)/($D8)) -> 0 | BE8: =T_C!G52/1000 -> 0 | BF8: =BE8*1000/B8 -> 0 | BG8: =T_C!H52 -> 0 | BI8: =T_C!M52 -> 0 | BJ8: =T_C!L52*1000 -> 0 | BK8: =T_C!N52*1000 -> 0
A9: Softscape | B9: =WT_C!$B$24 -> 7317 | C9: =SUM(LU_C1!$AU$75,LU_C1!$AY$75,LU_C1!$BD$75,LU_C1!$BL$75) -> 1344.382709 | D9: =E_C!C22 -> 133509.3 | F9: 6.029057911 | G9: 0.0008239794876 | H9: =IF(D9=0,0,$F9/D9)*1000 -> 0.04515833662 | J9: 6.029057911 | K9: 0.0008239794876 | L9: 0.04515833662 | N9: 0 | O9: 0 | P9: 0 | R9: =C_C!C36 -> 174.7636737 | S9: =C_C!F36 -> 0 | T9: =C_C!G36 -> 0 | U9: =C_C!H36 -> -8.328070885 | V9: =C_C!I36 -> 0 | W9: =C_C!J36 -> -160.4065449 | Y9: =E_C!B36/1000 -> 934.5651 | Z9: 127.7251743 | AA9: 7 | AC9: =E_C!C36/1000 -> 934.5651 | AD9: 127.7251743 | AE9: 7 | AG9: =E_C!D36/1000 -> 0 | AH9: 0 | AI9: 0 | AK9: =WT_C!$B36 -> 151.4917067 | AL9: 56.72348939 | AM9: 3.108740529 | AO9: =WT_C!$C36 -> 0 | AP9: 0 | AQ9: 0 | AS9: =WS_C!B36 -> 60.52377097 | AT9: 8.271664749 | AU9: 0.45333 | AW9: =WS_C!D36 -> 52.05044303 | AX9: 7.113631684 | AY9: 0.3898638 | BA9: =WS_C!C36 -> 8.473327936 | BB9: 1.158033065 | BC9: 0.0634662 | BE9: =T_C!G53/1000 -> 0 | BF9: 0 | BG9: =T_C!H53 -> 0 | BI9: =T_C!M53 -> 0 | BJ9: =T_C!L53*1000 -> 0 | BK9: =T_C!N53*1000 -> 0
A10: Buildings Total | B10: =WT_C!$B$24 -> 7317 | C10: =SUM(LU_C1!$AU$75,LU_C1!$AY$75,LU_C1!$BD$75,LU_C1!$BL$75) -> 1344.382709 | D10: =E_C!C23 -> 379236.1015 | F10: 22707.64482 | G10: 3.103409159 | H10: =IF(D10=0,0,$F10/D10)*1000 -> 59.87732899 | J10: 21991.64706 | K10: 3.005555153 | L10: 57.98932899 | N10: 715.9977597 | O10: 0.09785400569 | P10: 1.888 | R10: =SUM(R11:R16) -> 15816.21383 | S10: =SUM(S11:S16) -> 4923.529562 | T10: =SUM(T11:T16) -> 203.9371587 | U10: 1047.966508 | V10: 715.9977597 | W10: 0 | Y10: =SUM(Y11:Y16) -> 85206.3102 | Z10: 11644.97884 | AA10: =IF($D10=0,0,Y10*1000/$D10) -> 224.6787947 | AC10: =SUM(AC11:AC16) -> 41920.82068 | AD10: 5729.236119 | AE10: 110.5401635 | AG10: =SUM(AG11:AG16) -> 43285.48952 | AH10: 5915.742725 | AI10: 114.1386312 | AK10: =WT_C!$B37 -> 0 | AL10: 0 | AM10: 0 | AO10: =WT_C!$C37 -> 0 | AP10: 0 | AQ10: 0 | AS10: =WS_C!B37 -> 0 | AT10: 0 | AU10: 0 | AW10: =WS_C!D37 -> 0 | AX10: 0 | AY10: 0 | BA10: =WS_C!C37 -> 0 | BB10: 0 | BC10: 0 | BE10: =T_C!G54/1000 -> 50153.76263 | BF10: 6854.416103 | BG10: =T_C!H54 -> 251.5613146 | BI10: =T_C!M54 -> 4923.529562 | BJ10: =T_C!L54*1000 -> 1189.703054 | BK10: =T_C!N54*1000 -> 27.68655103
A11: Housing | B11: =WT_C!$B$24 -> 7317 | C11: =SUM(LU_C1!$AU$75,LU_C1!$AY$75,LU_C1!$BD$75,LU_C1!$BL$75) -> 1344.382709 | D11: =E_C!C24 -> 315080.9 | F11: 17425.19158 | G11: 2.381466665 | H11: 55.30386509 | J11: 16830.31885 | K11: 2.300166577 | L11: 53.41586509 | N11: 594.8727392 | O11: 0.08130008736 | P11: 1.888 | R11: =C_C!C38 -> 12858.34304 | S11: =BI11 -> 2867.181736 | T11: =C_C!G38 -> 183.5233419 | U11: =C_C!H38 -> 921.270723 | V11: =C_C!I38 -> 594.8727392 | W11: =C_C!J38 -> 0 | Y11: =E_C!B38/1000 -> 69359.90156 | Z11: 9479.28134 | AA11: 220.1336278 | AC11: =E_C!C38/1000 -> 33577.50465 | AD11: 4588.971526 | AE11: 106.5678835 | AG11: =E_C!D38/1000 -> 35782.39691 | AH11: 4890.309814 | AI11: 113.5657443 | AK11: =WT_C!$B38 -> 686.371185 | AL11: 257 | AM11: 5.968210069 | AO11: =WT_C!$C38 -> 610.8703546 | AP11: 228.73 | AQ11: 5.311706962 | AS11: =WS_C!B38 -> 4460.07735 | AT11: 609.55 | AU11: 14.15534026 | AW11: =WS_C!D38 -> 2497.643316 | AX11: 341.348 | AY11: 7.926990548 | BA11: =WS_C!C38 -> 1962.434034 | BB11: 268.202 | BC11: 6.228349716 | BE11: =T_C!G55/1000 -> 32025.24405 | BF11: 4376.827122 | BG11: =T_C!H55 -> 114.3274243 | BI11: =T_C!M55 -> 2867.181736 | BJ11: =T_C!L55*1000 -> 416.1268187 | BK11: =T_C!N55*1000 -> 10.42295469
A12: Commercial/Government | B12: =WT_C!$B$24 -> 7317 | C12: =SUM(LU_C1!$AU$75,LU_C1!$AY$75,LU_C1!$BD$75,LU_C1!$BL$75) -> 1344.382709 | D12: =E_C!C25 -> 29711.48126 | F12: 3024.21229 | G12: 0.4133131461 | H12: 101.7859818 | J12: 2968.117013 | K12: 0.4056467149 | L12: 99.89798176 | N12: 56.09527662 | O12: 0.007666431136 | P12: 1.888 | R12: =C_C!C39 -> 1326.976445 | S12: =BI12 -> 1561.329597 | T12: =C_C!G39 -> 6.807362489 | U12: =C_C!H39 -> 73.0036079 | V12: =C_C!I39 -> 56.09527662 | W12: =C_C!J39 -> 0 | Y12: =E_C!B39/1000 -> 7100.431491 | Z12: 970.4020077 | AA12: 238.979384 | AC12: =E_C!C39/1000 -> 4098.87193 | AD12: 560.1847656 | AE12: 137.9558257 | AG12: =E_C!D39/1000 -> 3001.559561 | AH12: 410.2172422 | AI12: 101.0235584 | AK12: =WT_C!$B39 -> 30.89994051 | AL12: 11.56995644 | AM12: 2.849315068 | AO12: =WT_C!$C39 -> 18.01466532 | AP12: 6.745284604 | AQ12: 1.661150685 | AS12: =WS_C!B39 -> 289.5532406 | AT12: 39.57267195 | AU12: 9.7455 | AW12: =WS_C!D39 -> 237.4336573 | AX12: 32.449591 | AY12: 7.99131 | BA12: =WS_C!C39 -> 52.11958331 | BB12: 7.12308095 | BC12: 1.75419 | BE12: =T_C!G60/1000 -> 13764.49658 | BF12: 1881.166677 | BG12: =T_C!H60 -> 463.2719741 | BI12: =T_C!M60 -> 1561.329597 | BJ12: =T_C!L60*1000 -> 1576.491172 | BK12: =T_C!N60*1000 -> 52.54970574
A13: Retail | B13: =WT_C!$B$24 -> 7317 | C13: =SUM(LU_C1!$AU$75,LU_C1!$AY$75,LU_C1!$BD$75,LU_C1!$BL$75) -> 1344.382709 | D13: =E_C!C26 -> 24643.72026 | F13: 1845.98776 | G13: 0.2522875168 | H13: 74.90702464 | J13: 1799.460417 | K13: 0.2459287162 | L13: 73.01902464 | N13: 46.52734384 | O13: 0.00635880058 | P13: 1.888 | R13: =C_C!C40 -> 1241.007437 | S13: 495.0182281 | T13: =C_C!G40 -> 9.742573916 | U13: =C_C!H40 -> 53.69217753 | V13: =C_C!I40 -> 46.52734384 | W13: =C_C!J40 -> 0 | Y13: =E_C!B40/1000 -> 6652.126991 | Z13: 909.1331135 | AA13: 269.9319308 | AC13: =E_C!C40/1000 -> 3250.995177 | AD13: 444.3071173 | AE13: 131.9198215 | AG13: =E_C!D40/1000 -> 3401.131814 | AH13: 464.8259962 | AI13: 138.0121093 | AK13: =WT_C!$B40 -> 44.97478947 | AL13: 16.84004391 | AM13: 5 | AO13: =WT_C!$C40 -> 25.14090731 | AP13: 9.413584545 | AQ13: 2.795 | AS13: =WS_C!B40 -> 233.8689052 | AT13: 31.96240334 | AU13: 9.49 | AW13: =WS_C!D40 -> 191.7725023 | AX13: 26.20917074 | AY13: 7.7818 | BA13: =WS_C!C40 -> 42.09640294 | BB13: 5.753232601 | BC13: 1.7082 | BE13: =T_C!G61/1000 -> 4364.021996 | BF13: 596.4223037 | BG13: =T_C!H61 -> 177.0845453 | BI13: =T_C!M61 -> 495.0182281 | BJ13: =T_C!L61*1000 -> 1576.491172 | BK13: =T_C!N61*1000 -> 20.08699267
A14: Hotel | B14: =WT_C!$B$24 -> 7317 | C14: =SUM(LU_C1!$AU$75,LU_C1!$AY$75,LU_C1!$BD$75,LU_C1!$BL$75) -> 1344.382709 | D14: =E_C!C27 -> 0 | F14: 0 | G14: 0 | H14: 0 | J14: 0 | K14: 0 | L14: 0 | N14: 0 | O14: 0 | P14: 0 | R14: =C_C!C41 -> 0 | S14: 0 | T14: =C_C!G41 -> 0 | U14: =C_C!H41 -> 0 | V14: =C_C!I41 -> 0 | W14: =C_C!J41 -> 0 | Y14: =E_C!B41/1000 -> 0 | Z14: 0 | AA14: 0 | AC14: =E_C!C41/1000 -> 0 | AD14: 0 | AE14: 0 | AG14: =E_C!D41/1000 -> 0 | AH14: 0 | AI14: 0 | AK14: =WT_C!$B41 -> 0 | AL14: 0 | AM14: 0 | AO14: =WT_C!$C41 -> 0 | AP14: 0 | AQ14: 0 | AS14: =WS_C!B41 -> 0 | AT14: 0 | AU14: 0 | AW14: =WS_C!D41 -> 0 | AX14: 0 | AY14: 0 | BA14: =WS_C!C41 -> 0 | BB14: 0 | BC14: 0 | BE14: =T_C!G62/1000 -> 0 | BF14: 0 | BG14: =T_C!H62 -> 0 | BI14: =T_C!M62 -> 0 | BJ14: =T_C!L62*1000 -> 0 | BK14: =T_C!N62*1000 -> 0
A15: Social | B15: =WT_C!$B$24 -> 7317 | C15: =SUM(LU_C1!$AU$75,LU_C1!$AY$75,LU_C1!$BD$75,LU_C1!$BL$75) -> 1344.382709 | D15: =E_C!C28 -> 9000 | F15: 388.1427817 | G15: 0.05304671063 | H15: 43.12697575 | J15: 371.1507817 | K15: 0.05072444741 | L15: 41.23897575 | N15: 16.992 | O15: 0.002322263223 | P15: 1.888 | R15: =C_C!C42 -> 367.2869012 | S15: 0 | T15: =C_C!G42 -> 3.863880475 | U15: =C_C!H42 -> 0 | V15: =C_C!I42 -> 16.992 | W15: =C_C!J42 -> 0 | Y15: =E_C!B42/1000 -> 1973.850156 | Z15: 269.762219 | AA15: 219.316684 | AC15: =E_C!C42/1000 -> 953.448924 | AD15: 130.3059893 | AE15: 105.9387693 | AG15: =E_C!D42/1000 -> 1020.401232 | AH15: 139.4562297 | AI15: 113.3779147 | AK15: =WT_C!$B42 -> 15.33 | AL15: 5.740057401 | AM15: 4.666666667 | AO15: =WT_C!$C42 -> 12.1107 | AP15: 4.534645346 | AQ15: 3.686666667 | AS15: =WS_C!B42 -> 0 | AT15: 0 | AU15: 0 | AW15: =WS_C!D42 -> 0 | AX15: 0 | AY15: 0 | BA15: =WS_C!C42 -> 0 | BB15: 0 | BC15: 0 | BE15: =T_C!G63/1000 -> 0 | BF15: 0 | BG15: =T_C!H63 -> 0 | BI15: =T_C!M63 -> 0 | BJ15: =T_C!L63*1000 -> 0 | BK15: =T_C!N63*1000 -> 0
A16: Other/Utility | B16: =WT_C!$B$24 -> 7317 | C16: =SUM(LU_C1!$AU$75,LU_C1!$AY$75,LU_C1!$BD$75,LU_C1!$BL$75) -> 1344.382709 | D16: =E_C!C29 -> 800 | F16: 24.1104 | G16: 0.003295120951 | H16: =IF(D16=0,0,$F16/D16)*1000 -> 30.138 | J16: 22.6 | K16: 0.003088697554 | L16: 28.25 | N16: 1.5104 | O16: 0.0002064233976 | P16: 1.888 | R16: =C_C!C43 -> 22.6 | S16: =C_C!F43 -> 0 | T16: =C_C!G43 -> 0 | U16: =C_C!H43 -> 0 | V16: =C_C!I43 -> 1.5104 | W16: =C_C!J43 -> 0 | Y16: =E_C!B43/1000 -> 120 | Z16: 16.400164 | AA16: 150 | AC16: =E_C!C43/1000 -> 40 | AD16: 5.466721334 | AE16: 50 | AG16: =E_C!D43/1000 -> 80 | AH16: 10.93344267 | AI16: 100 | AK16: =WT_C!$B43 -> 0 | AL16: 0 | AM16: 0 | AO16: =WT_C!$C43 -> 0 | AP16: 0 | AQ16: 0 | AS16: =WS_C!B43 -> 0 | AT16: 0 | AU16: 0 | AW16: =WS_C!D43 -> 0 | AX16: 0 | AY16: 0 | BA16: =WS_C!C43 -> 0 | BB16: 0 | BC16: 0 | BE16: =T_C!G64/1000 -> 0 | BF16: 0 | BG16: =T_C!H64 -> 0 | BI16: =T_C!M64 -> 0 | BJ16: =T_C!L64*1000 -> 0 | BK16: =T_C!N64*1000 -> 0
A17: TOTAL | B17: =AVERAGE(B7:B16) -> 7317 | C17: =AVERAGE(C7:C16) -> 1344.382709 | D17: =SUM(D7:D10) -> 578846.9015 | F17: =SUM(F7:F9,F11:F16) -> 22853.08194 | G17: =F17/$B17 -> 3.123285764 | H17: =F17*1000/$D17 -> 39.48035634 | J17: =SUM(J7:J9,J11:J16) -> 22084.20298 | K17: =J17/$B17 -> 3.018204589 | L17: =J17*1000/$D17 -> 38.15206218 | N17: =SUM(N7:N9,N11:N16) -> 768.8789597 | O17: =N17/$B17 -> 0.1050811753 | P17: =N17*1000/$D17 -> 1.328294161 | R17: =SUM(R7:R9,R11:R16) -> 16077.50437 | S17: =SUM(S7:S9,S11:S16) -> 4923.529562 | T17: =SUM(T7:T9,T11:T16) -> 203.9371587 | U17: 1039.638438 | V17: 768.8789597 | W17: -160.4065449 | Y17: =SUM(Y7:Y9,Y11:Y16) -> 86603.5858 | Z17: =SUM(Z7:Z9,Z11:Z16) -> 11835.94175 | AA17: 149.6139749 | AC17: =SUM(AC7:AC9,AC11:AC16) -> 43318.09628 | AD17: =SUM(AD7:AD9,AD11:AD16) -> 5920.199027 | AE17: 74.83515273 | AG17: =SUM(AG7:AG9,AG11:AG16) -> 43285.48952 | AH17: =SUM(AH7:AH9,AH11:AH16) -> 5915.742725 | AI17: 74.77882218 | AK17: =SUM(AK7:AK16) -> 929.0676217 | AL17: =SUM(AL7:AL16) -> 347.8735471 | AM17: 4.397347101 | AO17: =SUM(AO7:AO16) -> 666.1366273 | AP17: =SUM(AP7:AP16) -> 249.4235145 | AQ17: 3.152874881 | AS17: =SUM(AS7:AS16) -> 5044.023267 | AT17: =SUM(AT7:AT16) -> 689.35674 | AU17: 8.713915983 | AW17: =SUM(AW7:AW16) -> 2978.899919 | AX17: =SUM(AX7:AX16) -> 407.1203934 | AY17: 5.146265637 | BA17: =SUM(BA7:BA16) -> 2065.123348 | BB17: =SUM(BB7:BB16) -> 282.2363466 | BC17: 3.567650346 | BE17: =SUM(BE7:BE9,BE11:BE16) -> 50153.76263 | BF17: =SUM(BF7:BF9,BF11:BF16) -> 6854.416103 | BG17: =SUM(BG7:BG9,BG11:BG16) -> 754.6839437 | BI17: =SUM(BI7:BI9,BI11:BI16) -> 4923.529562 | BJ17: =SUM(BJ7:BJ9,BJ11:BJ16) -> 3569.109163 | BK17: =SUM(BK7:BK9,BK11:BK16) -> 83.0596531
A19: Scenario 1
B20: Land Use Output Table | F20: Carbon Output Table | Y20: Resource Output Table
B21: =B$5 -> Residents | C21: =C5 -> Jobs | D21: =D5 -> GFA | F21: =F5 -> Total Primary + Secondary Carbon | J21: Total Primary Carbon | N21: Total Secondary Carbon (Materials Only) | R21: Total Energy Carbon | S21: Total Transport Carbon | T21: Total Water Carbon | U21: Total Waste Carbon | V21: Total Materials Carbon | W21: Total Carbon Offsets | Y21: =Y5 -> Energy | AC21: =AC5 -> Electricity | AG21: =AG5 -> Thermal | AK21: =AK5 -> Potable Water Use | AO21: =AO5 -> Wastewater Generated | AS21: =AS5 -> Waste generated | AW21: =AW5 -> Waste landfilled | BA21: =BA5 -> Waste diverted | BE21: =BE5 -> Transport - Passenger Kilometers Travelled | BI21: =BI5 -> Transport - CO2e
D22: =D6 -> m2 | F22: =F6 -> mton/yr | G22: =G6 -> mton/p/yr | H22: =H6 -> kg/m2/yr | J22: mton/yr | K22: mton/p/yr | L22: =L6 -> kg/m2/yr | N22: mton/yr | O22: mton/p/yr | P22: =P6 -> kg/m2/yr | R22: mton/yr | S22: mton/yr | T22: mton/yr | U22: mton/yr | V22: mton/yr | W22: mton/yr | Y22: =Y6 -> MWh/yr | Z22: =Z6 -> kWh/p/yr | AA22: =AA6 -> kWh/m2/yr | AC22: =AC6 -> MWh/yr | AD22: =AD6 -> kWh/p/yr | AE22: =AE6 -> kWh/m2/yr | AG22: =AG6 -> MWh/yr | AH22: =AH6 -> kWh/p/yr | AI22: =AI6 -> kWh/m2/yr | AK22: =AK6 -> ML/yr | AL22: =AL6 -> L/p/d | AM22: =AM6 -> L/m2/d | AO22: =AO6 -> ML/yr | AP22: =AP6 -> L/p/d | AQ22: =AQ6 -> L/m2/d | AS22: =AS6 -> mton/yr | AT22: =AT6 -> kg/p/yr | AU22: =AU6 -> kg/m2/yr | AW22: =AW6 -> mton/yr | AX22: =AX6 -> kg/p/yr | AY22: =AY6 -> kg/m2/yr | BA22: =BA6 -> mton/yr | BB22: =BB6 -> kg/p/yr | BC22: =BC6 -> kg/m2/yr | BE22: =BE6 -> thousand PKT/yr | BF22: =BF6 -> PKT/p/yr | BG22: =BG6 -> PKT/m2/yr | BI22: =BI6 -> mtonCO2e/yr | BJ22: =BJ6 -> kgCO2e/p/yr | BK22: =BK6 -> kgCO2e/m2/yr
A23: Site | B23: =WT_C!$B$24 -> 7317 | C23: =SUM(LU_C1!$AU$75,LU_C1!$AY$75,LU_C1!$BD$75,LU_C1!$BL$75) -> 1344.382709 | D23: =E_C!C20 -> 0 | F23: =J23+N23 -> 0 | G23: =$F23/B23 -> 0 | H23: =IF(SUM(D23:D26)=0,0,$F23/SUM(D23:D26))*1000 -> 0 | J23: =R23+S23+T23+U23+W23 -> 0 | K23: =J23/$B23 -> 0 | L23: =IF(SUM($D23:$D26)=0,0,$J23/SUM($D23:$D26))*1000 -> 0 | N23: =V23 -> 0 | O23: =N23/$B23 -> 0 | P23: =IF($D23=0,0,$N23/$D23)*1000 -> 0 | R23: =C_C!C49 -> 0 | S23: =C_C!F49 -> 0 | T23: =C_C!G49 -> 0 | U23: =C_C!H49 -> 0 | V23: =C_C!I49 -> 0 | W23: =C_C!K49+C_C!L49+C_C!M49 -> 0 | Y23: =E_C!B49/1000 -> 0 | Z23: =Y23*1000/$B23 -> 0 | AA23: =IF($D23=0,0,Y23*1000/$D23) -> 0 | AC23: =E_C!C49/1000 -> 0 | AD23: =AC23*1000/$B23 -> 0 | AE23: =IF($D23=0,0,AC23*1000/$D23) -> 0 | AG23: =E_C!D49/1000 -> 0 | AH23: =AG23*1000/$B23 -> 0 | AI23: =IF($D23=0,0,AG23/$D23*1000) -> 0 | AK23: =WT_C!$B49 -> 0 | AL23: =(AK23*1000000)/($B23*365) -> 0 | AM23: =IF($D23=0,0,(AK23*1000000)/($D23*365)) -> 0 | AO23: =WT_C!$D49 -> 0 | AP23: =(AO23*1000000)/($B23*365) -> 0 | AQ23: =IF($D23=0,0,(AO23*1000000)/($D23*365)) -> 0 | AS23: =WS_C!B49 -> 0 | AT23: =(AS23*1000)/($B23) -> 0 | AU23: =IF($D23=0,0,(AS23*1000)/($D23)) -> 0 | AW23: =WS_C!D49 -> 0 | AX23: =(AW23*1000)/($B23) -> 0 | AY23: =IF($D23=0,0,(AW23*1000)/($D23)) -> 0 | BA23: =WS_C!C49 -> 0 | BB23: =(BA23*1000)/($B23) -> 0 | BC23: =IF($D23=0,0,(BA23*1000)/($D23)) -> 0 | BE23: N/A | BF23: N/A | BG23: N/A | BI23: =T_C!C72 -> 0 | BJ23: =T_C!B72*1000 -> 0 | BK23: =T_C!D72*1000 -> 0
A24: Hardscape | B24: =WT_C!$B$24 -> 7317 | C24: =SUM(LU_C1!$AU$75,LU_C1!$AY$75,LU_C1!$BD$75,LU_C1!$BL$75) -> 1344.382709 | D24: =E_C!C21 -> 66101.5 | F24: =J24+N24 -> 100.517246 | G24: 0.01373749432 | H24: =IF(D24=0,0,$F24/D24)*1000 -> 1.52065 | J24: =R24+S24+T24+U24+W24 -> 73.54783398 | K24: =J24/$B24 -> 0.01005163783 | L24: =IF($D24=0,0,$J24/$D24)*1000 -> 1.11265 | N24: =V24 -> 26.969412 | O24: =N24/$B24 -> 0.003685856499 | P24: =IF($D24=0,0,$N24/$D24)*1000 -> 0.408 | R24: =C_C!C50 -> 73.54783398 | S24: =C_C!F50 -> 0 | T24: =C_C!G50 -> 0 | U24: =C_C!H50 -> 0 | V24: =C_C!I50 -> 26.969412 | W24: =C_C!K50+C_C!L50+C_C!M50 -> 0 | Y24: =E_C!B50/1000 -> 393.303925 | Z24: =Y24*1000/$B24 -> 53.75207394 | AA24: =IF($D24=0,0,Y24*1000/$D24) -> 5.95 | AC24: =E_C!C50/1000 -> 393.303925 | AD24: =AC24*1000/$B24 -> 53.75207394 | AE24: =IF($D24=0,0,AC24*1000/$D24) -> 5.95 | AG24: =E_C!D50/1000 -> 0 | AH24: =AG24*1000/$B24 -> 0 | AI24: =IF($D24=0,0,AG24/$D24*1000) -> 0 | AK24: =WT_C!$B50 -> 0 | AL24: 0 | AM24: =IF($D24=0,0,(AK24*1000000)/($D24*365)) -> 0 | AO24: =WT_C!$D50 -> 0 | AP24: 0 | AQ24: =IF($D24=0,0,(AO24*1000000)/($D24*365)) -> 0 | AS24: =WS_C!B50 -> 0 | AT24: 0 | AU24: 0 | AW24: =WS_C!D50 -> 0 | AX24: 0 | AY24: 0 | BA24: =WS_C!C50 -> 0 | BB24: 0 | BC24: 0 | BE24: N/A | BF24: N/A | BG24: N/A | BI24: =T_C!C73 -> 0 | BJ24: =T_C!B73*1000 -> 0 | BK24: =T_C!D73*1000 -> 0
A25: Softscape | B25: =WT_C!$B$24 -> 7317 | C25: =SUM(LU_C1!$AU$75,LU_C1!$AY$75,LU_C1!$BD$75,LU_C1!$BL$75) -> 1344.382709 | D25: =E_C!C22 -> 133509.3 | F25: -34.48306303 | G25: -0.004712732408 | H25: -0.2582821049 | J25: -34.48306303 | K25: -0.004712732408 | L25: -0.2582821049 | N25: 0 | O25: 0 | P25: 0 | R25: =C_C!C51 -> 148.5491226 | S25: =C_C!F51 -> 0 | T25: =C_C!G51 -> 0 | U25: =C_C!H51 -> -6.584986281 | V25: =C_C!I51 -> 0 | W25: =C_C!K51+C_C!L51+C_C!M51 -> -176.4471994 | Y25: =E_C!B51/1000 -> 794.380335 | Z25: 108.5663981 | AA25: 5.95 | AC25: =E_C!C51/1000 -> 794.380335 | AD25: 108.5663981 | AE25: 5.95 | AG25: =E_C!D51/1000 -> 0 | AH25: 0 | AI25: 0 | AK25: =WT_C!$B51 -> 75.74585337 | AL25: 28.3617447 | AM25: 1.554370264 | AO25: =WT_C!$D51 -> 0 | AP25: 0 | AQ25: 0 | AS25: =WS_C!B51 -> 60.52377097 | AT25: 8.271664749 | AU25: 0.45333 | AW25: =WS_C!D51 -> 41.15616426 | AX25: 5.624732029 | AY25: 0.3082644 | BA25: =WS_C!C51 -> 19.36760671 | BB25: 2.64693272 | BC25: 0.1450656 | BE25: N/A | BF25: N/A | BG25: N/A | BI25: =T_C!C74 -> 0 | BJ25: =T_C!B74*1000 -> 0 | BK25: =T_C!D74*1000 -> 0
A26: Buildings Total | B26: =WT_C!$B$24 -> 7317 | C26: =SUM(LU_C1!$AU$75,LU_C1!$AY$75,LU_C1!$BD$75,LU_C1!$BL$75) -> 1344.382709 | D26: =E_C!C23 -> 379236.1015 | F26: 17974.68879 | G26: 2.456565367 | H26: 47.39709305 | J26: 17609.52994 | K26: 2.406659824 | L26: 46.43421305 | N26: 365.1588574 | O26: 0.0499055429 | P26: 0.96288 | R26: =SUM(R27:R32)+C_C!C52 -> 11998.18923 | S26: =SUM(S27:S32) -> 4783.417671 | T26: =SUM(T27:T32) -> 121.2640939 | U26: =SUM(U27:U32) -> 706.6589427 | V26: =SUM(V27:V32) -> 365.1588574 | W26: =C_C!K52+C_C!L52+C_C!M52 -> 0 | Y26: =SUM(Y27:Y32)+E_C!B52/1000 -> 64619.73833 | Z26: 8831.452553 | AA26: 170.39448 | AC26: =SUM(AC27:AC32)+E_C!C52/1000 -> 33810.28232 | AD26: 4620.784791 | AE26: 89.15364909 | AG26: =SUM(AG27:AG32)+E_C!D52/1000 -> 30809.45601 | AH26: 4210.667761 | AI26: 81.24083094 | AK26: =WT_C!$B52 -> -24.0319561 | AL26: -8.998356653 | AM26: -0.173614736 | AO26: =WT_C!$D52 -> 0 | AP26: 0 | AQ26: 0 | AS26: =WS_C!B52 -> 0 | AT26: 0 | AU26: 0 | AW26: =WS_C!D52 -> 0 | AX26: 0 | AY26: 0 | BA26: =WS_C!C52 -> 0 | BB26: 0 | BC26: 0 | BE26: N/A | BF26: N/A | BG26: N/A | BI26: =T_C!C75 -> 4783.417671 | BJ26: =T_C!B75*1000 -> 1155.19349 | BK26: =T_C!D75*1000 -> 26.88376952
A27: Housing | B27: =WT_C!$B$24 -> 7317 | C27: =SUM(LU_C1!$AU$75,LU_C1!$AY$75,LU_C1!$BD$75,LU_C1!$BL$75) -> 1344.382709 | D27: =E_C!C24 -> 315080.9 | F27: 13553.70024 | G27: 1.852357557 | H27: 43.01657208 | J27: 13250.31515 | K27: 1.810894512 | L27: 42.05369208 | N27: 303.385097 | O27: 0.04146304455 | P27: 0.96288 | R27: =C_C!C53 -> 9744.112364 | S27: =BI27 -> 2786.965355 | T27: =C_C!G53 -> 107.3674451 | U27: =C_C!H53 -> 611.8699835 | V27: =C_C!I53 -> 303.385097 | W27: =C_C!K53+C_C!L53+C_C!M53 -> 0 | Y27: =E_C!B53/1000 -> 52537.32665 | Z27: 7180.17311 | AA27: 166.7423403 | AC27: =E_C!C53/1000 -> 27071.59524 | AD27: 3699.821682 | AE27: 85.91950589 | AG27: =E_C!D53/1000 -> 25465.73141 | AH27: 3480.351429 | AI27: 80.82283441 | AK27: =WT_C!$B53 -> 418.4530566 | AL27: 156.68262 | AM27: 3.638578951 | AO27: =WT_C!$D53 -> 342.9522263 | AP27: 128.41262 | AQ27: 2.982075843 | AS27: =WS_C!B53 -> 4460.07735 | AT27: 609.55 | AU27: 14.15534026 | AW27: =WS_C!D53 -> 1608.125489 | AX27: 219.779348 | AY27: 5.103849485 | BA27: =WS_C!C53 -> 2851.951861 | BB27: 389.770652 | BC27: 9.051490778 | BE27: N/A | BF27: N/A | BG27: N/A | BI27: =T_C!C76 -> 2786.965355 | BJ27: =T_C!B76*1000 -> 404.4354507 | BK27: =T_C!D76*1000 -> 10.13030867
A28: Commercial/Government | B28: =WT_C!$B$24 -> 7317 | C28: =SUM(LU_C1!$AU$75,LU_C1!$AY$75,LU_C1!$BD$75,LU_C1!$BL$75) -> 1344.382709 | D28: =E_C!C25 -> 29711.48126 | F28: 2622.033906 | G28: 0.3583482173 | H28: 88.24985477 | J28: 2593.425315 | K28: 0.3544383375 | L28: 87.28697477 | N28: 28.60859108 | O28: 0.003909879879 | P28: 0.96288 | R28: =C_C!C54 -> 1017.742906 | S28: =BI28 -> 1515.852548 | T28: =C_C!G54 -> 4.709956568 | U28: =C_C!H54 -> 55.11990504 | V28: =C_C!I54 -> 28.60859108 | W28: =C_C!K54+C_C!L54+C_C!M54 -> 0 | Y28: =E_C!B54/1000 -> 5448.486652 | Z28: 744.6339555 | AA28: 183.3798391 | AC28: =E_C!C54/1000 -> 3310.571982 | AD28: 452.449362 | AE28: 111.4239964 | AG28: =E_C!D54/1000 -> 2137.91467 | AH28: 292.1845934 | AI28: 71.95584264 | AK28: =WT_C!$B54 -> 23.52122012 | AL28: 8.807120261 | AM28: 2.168915726 | AO28: =WT_C!$D54 -> 10.63594492 | AP28: 3.982448426 | AQ28: 0.9807513425 | AS28: =WS_C!B54 -> 289.5532406 | AT28: 39.57267195 | AU28: 9.7455 | AW28: =WS_C!D54 -> 192.4255016 | AX28: 26.29841487 | AY28: 6.47646948 | BA28: =WS_C!C54 -> 97.12773904 | BB28: 13.27425708 | BC28: 3.26903052 | BE28: N/A | BF28: N/A | BG28: N/A | BI28: =T_C!C81 -> 1515.852548 | BJ28: =T_C!B81*1000 -> 1530.57251 | BK28: =T_C!D81*1000 -> 51.01908365
A29: Retail | B29: =WT_C!$B$24 -> 7317 | C29: =SUM(LU_C1!$AU$75,LU_C1!$AY$75,LU_C1!$BD$75,LU_C1!$BL$75) -> 1344.382709 | D29: =E_C!C26 -> 24643.72026 | F29: 1491.985169 | G29: 0.2039066788 | H29: 60.54220522 | J29: 1468.256224 | K29: 0.2006636906 | L29: 59.57932522 | N29: 23.72894536 | O29: 0.003242988296 | P29: 0.96288 | R29: =C_C!C55 -> 941.1891301 | S29: 480.599768 | T29: =C_C!G55 -> 6.798271418 | U29: =C_C!H55 -> 39.66905419 | V29: =C_C!I55 -> 23.72894536 | W29: =C_C!K55+C_C!L55+C_C!M55 -> 0 | Y29: =E_C!B55/1000 -> 5048.67139 | Z29: 689.9919899 | AA29: 204.8664462 | AC29: =E_C!C55/1000 -> 2626.356185 | AD29: 358.9389347 | AE29: 106.57304 | AG29: =E_C!D55/1000 -> 2422.315205 | AH29: 331.0530553 | AI29: 98.2934062 | AK29: =WT_C!$B55 -> 34.61666819 | AL29: 12.96162182 | AM29: 3.8484525 | AO29: =WT_C!$D55 -> 14.78278604 | AP29: 5.535162452 | AQ29: 1.6434525 | AS29: =WS_C!B55 -> 233.8689052 | AT29: 31.96240334 | AU29: 9.49 | AW29: =WS_C!D55 -> 158.2824751 | AX29: 21.63215458 | AY29: 6.422832 | BA29: =WS_C!C55 -> 75.58643017 | BB29: 10.33024876 | BC29: 3.067168 | BE29: N/A | BF29: N/A | BG29: N/A | BI29: =T_C!C82 -> 480.599768 | BJ29: =T_C!B82*1000 -> 1530.57251 | BK29: =T_C!D82*1000 -> 19.50191623
A30: Hotel | B30: =WT_C!$B$24 -> 7317 | C30: =SUM(LU_C1!$AU$75,LU_C1!$AY$75,LU_C1!$BD$75,LU_C1!$BL$75) -> 1344.382709 | D30: =E_C!C27 -> 0 | F30: 0 | G30: 0 | H30: 0 | J30: 0 | K30: 0 | L30: 0 | N30: 0 | O30: 0 | P30: 0 | R30: =C_C!C56 -> 0 | S30: 0 | T30: =C_C!G56 -> 0 | U30: =C_C!H56 -> 0 | V30: =C_C!I56 -> 0 | W30: =C_C!K56+C_C!L56+C_C!M56 -> 0 | Y30: =E_C!B56/1000 -> 0 | Z30: 0 | AA30: 0 | AC30: =E_C!C56/1000 -> 0 | AD30: 0 | AE30: 0 | AG30: =E_C!D56/1000 -> 0 | AH30: 0 | AI30: 0 | AK30: =WT_C!$B56 -> 0 | AL30: 0 | AM30: 0 | AO30: =WT_C!$D56 -> 0 | AP30: 0 | AQ30: 0 | AS30: =WS_C!B56 -> 0 | AT30: 0 | AU30: 0 | AW30: =WS_C!D56 -> 0 | AX30: 0 | AY30: 0 | BA30: =WS_C!C56 -> 0 | BB30: 0 | BC30: 0 | BE30: N/A | BF30: N/A | BG30: N/A | BI30: =T_C!C83 -> 0 | BJ30: =T_C!B83*1000 -> 0 | BK30: =T_C!D83*1000 -> 0
A31: Social | B31: =WT_C!$B$24 -> 7317 | C31: =SUM(LU_C1!$AU$75,LU_C1!$AY$75,LU_C1!$BD$75,LU_C1!$BL$75) -> 1344.382709 | D31: =E_C!C28 -> 9000 | F31: 289.3860686 | G31: 0.03954982487 | H31: 32.15400762 | J31: 280.7201486 | K31: 0.03836547063 | L31: 31.19112762 | N31: 8.66592 | O31: 0.001184354244 | P31: 0.96288 | R31: =C_C!C57 -> 278.3317278 | S31: 0 | T31: =C_C!G57 -> 2.388420822 | U31: =C_C!H57 -> 0 | V31: =C_C!I57 -> 8.66592 | W31: =C_C!K57+C_C!L57+C_C!M57 -> 0 | Y31: =E_C!B57/1000 -> 1495.953635 | Z31: 204.4490413 | AA31: 166.2170706 | AC31: =E_C!C57/1000 -> 769.4589063 | AD31: 105.1604355 | AE31: 85.49543404 | AG31: =E_C!D57/1000 -> 726.4947291 | AH31: 99.28860587 | AI31: 80.72163657 | AK31: =WT_C!$B57 -> 10.13930032 | AL31: 3.796488315 | AM31: 3.086545 | AO31: =WT_C!$D57 -> 6.920000325 | AP31: 2.591076261 | AQ31: 2.106545 | AS31: =WS_C!B57 -> 0 | AT31: 0 | AU31: 0 | AW31: =WS_C!D57 -> 0 | AX31: 0 | AY31: 0 | BA31: =WS_C!C57 -> 0 | BB31: 0 | BC31: 0 | BE31: N/A | BF31: N/A | BG31: N/A | BI31: =T_C!C84 -> 0 | BJ31: =T_C!B84*1000 -> 0 | BK31: =T_C!D84*1000 -> 0
A32: Other/Utility | B32: =WT_C!$B$24 -> 7317 | C32: =SUM(LU_C1!$AU$75,LU_C1!$AY$75,LU_C1!$BD$75,LU_C1!$BL$75) -> 1344.382709 | D32: =E_C!C29 -> 800 | F32: 17.583404 | G32: 0.002403089244 | H32: =IF(D32=0,0,$F32/D32)*1000 -> 21.979255 | J32: 16.8131 | K32: 0.002297813311 | L32: 21.016375 | N32: 0.770304 | O32: 0.0001052759328 | P32: 0.96288 | R32: =C_C!C58 -> 16.8131 | S32: =C_C!F58 -> 0 | T32: =C_C!G58 -> 0 | U32: =C_C!H58 -> 0 | V32: =C_C!I58 -> 0.770304 | W32: =C_C!K58+C_C!L58+C_C!M58 -> 0 | Y32: =E_C!B58/1000 -> 89.3 | Z32: =Y32*1000/$B32 -> 12.20445538 | AA32: 111.625 | AC32: =E_C!C58/1000 -> 32.3 | AD32: 4.414377477 | AE32: 40.375 | AG32: =E_C!D58/1000 -> 57 | AH32: 7.790077901 | AI32: 71.25 | AK32: =WT_C!$B58 -> 0 | AL32: 0 | AM32: 0 | AO32: =WT_C!$D58 -> 0 | AP32: 0 | AQ32: 0 | AS32: =WS_C!B58 -> 0 | AT32: 0 | AU32: 0 | AW32: =WS_C!D58 -> 0 | AX32: 0 | AY32: 0 | BA32: =WS_C!C58 -> 0 | BB32: 0 | BC32: 0 | BE32: N/A | BF32: N/A | BG32: N/A | BI32: =T_C!C85 -> 0 | BJ32: =T_C!B85*1000 -> 0 | BK32: =T_C!D85*1000 -> 0
A33: TOTAL | B33: =AVERAGE(B23:B32) -> 7317 | C33: =AVERAGE(C23:C32) -> 1344.382709 | D33: =SUM(D23:D26) -> 578846.9015 | F33: =SUM(F23:F25,F27:F32) -> 18040.72298 | G33: =F33/$B33 -> 2.465590129 | H33: =F33*1000/$D33 -> 31.16665724 | J33: =SUM(J23:J25,J26) -> 17648.59471 | K33: =J33/$B33 -> 2.41199873 | L33: =J33*1000/$D33 -> 30.48922722 | N33: =SUM(N23:N25,N27:N32) -> 392.1282694 | O33: =N33/$B33 -> 0.0535913994 | P33: =N33*1000/$D33 -> 0.6774300223 | R33: =SUM(R23:R25,R27:R32) -> 12220.28618 | S33: =SUM(S23:S25,S27:S32) -> 4783.417671 | T33: =SUM(T23:T25,T27:T32) -> 121.2640939 | U33: =SUM(U23:U25,U27:U32) -> 700.0739565 | V33: =SUM(V23:V25,V27:V32) -> 392.1282694 | W33: =SUM(W23:W25,W27:W32) -> -176.4471994 | Y33: =SUM(Y23:Y26) -> 65807.42259 | Z33: =SUM(Z23:Z25,Z27:Z32) -> 8993.771025 | AA33: =IF($D33=0,0,Y33*1000/$D33) -> 113.6870948 | AC33: =SUM(AC23:AC26) -> 34997.96658 | AD33: =SUM(AD23:AD25,AD27:AD32) -> 4783.103263 | AE33: 60.46152529 | AG33: =SUM(AG23:AG26) -> 30809.45601 | AH33: =SUM(AH23:AH25,AH27:AH32) -> 4210.667761 | AI33: 53.22556954 | AK33: =SUM(AK23:AK32) -> 538.4441425 | AL33: =SUM(AL23:AL32) -> 201.6112384 | AM33: 2.548496723 | AO33: =SUM(AO23:AO32) -> 375.2909576 | AP33: =SUM(AP23:AP32) -> 140.5213071 | AQ33: 1.776280398 | AS33: =SUM(AS23:AS32) -> 5044.023267 | AT33: =SUM(AT23:AT32) -> 689.35674 | AU33: 8.713915983 | AW33: =SUM(AW23:AW32) -> 1999.98963 | AX33: =SUM(AX23:AX32) -> 273.3346495 | AY33: 3.455127124 | BA33: =SUM(BA23:BA32) -> 3044.033637 | BB33: =SUM(BB23:BB32) -> 416.0220906 | BC33: 5.258788859 | BE33: =SUM(BE23:BE25,BE27:BE32) -> 0 | BF33: =SUM(BF23:BF25,BF27:BF32) -> 0 | BG33: =SUM(BG23:BG25,BG27:BG32) -> 0 | BI33: =SUM(BI23:BI25,BI27:BI32) -> 4783.417671 | BJ33: =SUM(BJ23:BJ25,BJ27:BJ32) -> 3465.58047 | BK33: =SUM(BK23:BK25,BK27:BK32) -> 80.65130856
A35: Scenario 2
B36: Land Use Output Table | F36: Carbon Output Table | Y36: Resource Output Table
B37: =B$5 -> Residents | C37: =C$5 -> Jobs | D37: =D$5 -> GFA | F37: =F21 -> Total Primary + Secondary Carbon | J37: Total Primary Carbon | N37: Total Secondary Carbon (Materials Only) | R37: =R21 -> Total Energy Carbon | S37: Total Transport Carbon | T37: Total Water Carbon | U37: Total Waste Carbon | V37: Total Materials Carbon | W37: Total Carbon Offsets | Y37: Energy | AC37: =AC21 -> Electricity | AG37: =AG21 -> Thermal | AK37: =AK21 -> Potable Water Use | AO37: =AO21 -> Wastewater Generated | AS37: =AS21 -> Waste generated | AW37: =AW21 -> Waste landfilled | BA37: =BA21 -> Waste diverted | BE37: =BE21 -> Transport - Passenger Kilometers Travelled | BI37: =BI21 -> Transport - CO2e
D38: =D22 -> m2 | F38: =F22 -> mton/yr | G38: =G22 -> mton/p/yr | H38: =H22 -> kg/m2/yr | J38: mton/yr | K38: mton/p/yr | L38: =L22 -> kg/m2/yr | N38: mton/yr | O38: mton/p/yr | P38: =P22 -> kg/m2/yr | R38: mton/yr | S38: mton/yr | T38: mton/yr | U38: mton/yr | V38: mton/yr | W38: mton/yr | Y38: =Y22 -> MWh/yr | Z38: =Z22 -> kWh/p/yr | AA38: =AA22 -> kWh/m2/yr | AC38: =AC22 -> MWh/yr | AD38: =AD22 -> kWh/p/yr | AE38: =AE22 -> kWh/m2/yr | AG38: =AG22 -> MWh/yr | AH38: =AH22 -> kWh/p/yr | AI38: =AI22 -> kWh/m2/yr | AK38: =AK22 -> ML/yr | AL38: =AL22 -> L/p/d | AM38: =AM22 -> L/m2/d | AO38: =AO22 -> ML/yr | AP38: =AP22 -> L/p/d | AQ38: =AQ22 -> L/m2/d | AS38: =AS22 -> mton/yr | AT38: =AT22 -> kg/p/yr | AU38: =AU22 -> kg/m2/yr | AW38: =AW22 -> mton/yr | AX38: =AX22 -> kg/p/yr | AY38: =AY22 -> kg/m2/yr | BA38: =BA22 -> mton/yr | BB38: =BB22 -> kg/p/yr | BC38: =BC22 -> kg/m2/yr | BE38: =BE22 -> thousand PKT/yr | BF38: =BF22 -> PKT/p/yr | BG38: =BG22 -> PKT/m2/yr | BI38: =BI22 -> mtonCO2e/yr | BJ38: =BJ22 -> kgCO2e/p/yr | BK38: =BK22 -> kgCO2e/m2/yr
A39: Site | B39: =WT_C!$B$24 -> 7317 | C39: =SUM(LU_C1!$AU$75,LU_C1!$AY$75,LU_C1!$BD$75,LU_C1!$BL$75) -> 1344.382709 | D39: =E_C!C20 -> 0 | F39: =J39+N39 -> -10241.5 | G39: =$F39/B39 -> -1.399685664 | H39: =IF(SUM($D39:$D42)=0,0,$F39/SUM($D39:$D42))*1000 -> -17.69293396 | J39: =R39+S39+T39+U39+W39 -> -10241.5 | K39: =J39/$B39 -> -1.399685664 | L39: =IF(SUM($D39:$D42)=0,0,$J39/SUM($D39:$D42))*1000 -> -17.69293396 | N39: =V39 -> 0 | O39: =N39/$B39 -> 0 | P39: =IF($D39=0,0,$N39/$D39)*1000 -> 0 | R39: =C_C!C64 -> -10241.5 | S39: =C_C!F64 -> 0 | T39: =C_C!G64 -> 0 | U39: =C_C!H64 -> 0 | V39: =C_C!I64 -> 0 | W39: =C_C!K64+C_C!L64+C_C!M64 -> 0 | Y39: =E_C!B64/1000 -> -54500 | Z39: =Y39*1000/$B39 -> -7448.407817 | AA39: =IF($D39=0,0,Y39*1000/$D39) -> 0 | AC39: =E_C!C64/1000 -> -29500 | AD39: =AC39*1000/$B39 -> -4031.706984 | AE39: =IF($D39=0,0,AC39*1000/$D39) -> 0 | AG39: =E_C!D64/1000 -> -25000 | AH39: =AG39*1000/$B39 -> -3416.700834 | AI39: =IF($D39=0,0,AG39/$D39*1000) -> 0 | AK39: =WT_C!$B64 -> 0 | AL39: =(AK39*1000000)/($B39*365) -> 0 | AM39: =IF($D39=0,0,(AK39*1000000)/($D39*365)) -> 0 | AO39: =WT_C!$D64 -> 0 | AP39: =(AO39*1000000)/($B39*365) -> 0 | AQ39: =IF($D39=0,0,(AO39*1000000)/($D39*365)) -> 0 | AS39: =WS_C!B64 -> 0 | AT39: =AS39/$B39 -> 0 | AU39: =IF($D39=0,0,(AS39*1000)/($D39)) -> 0 | AW39: =WS_C!D64 -> 0 | AX39: =(AW39*1000)/($B39) -> 0 | AY39: =IF($D39=0,0,(AW39*1000)/($D39)) -> 0 | BA39: =WS_C!C64 -> 0 | BB39: =(BA39*1000)/($B39) -> 0 | BC39: =IF($D39=0,0,(BA39*1000)/($D39)) -> 0 | BE39: N/A | BF39: N/A | BG39: N/A | BI39: =T_C!C93 -> 0 | BJ39: =T_C!B93*1000 -> 0 | BK39: =T_C!D93*1000 -> 0
A40: Hardscape | B40: =WT_C!$B$24 -> 7317 | C40: =SUM(LU_C1!$AU$75,LU_C1!$AY$75,LU_C1!$BD$75,LU_C1!$BL$75) -> 1344.382709 | D40: =E_C!C21 -> 66101.5 | F40: =J40+N40 -> 78.70705605 | G40: 0.01075673856 | H40: =IF(D40=0,0,$F40/D40)*1000 -> 1.1907 | J40: =R40+S40+T40+U40+W40 -> 60.56880445 | K40: =J40/$B40 -> 0.008277819386 | L40: =IF($D40=0,0,$J40/$D40)*1000 -> 0.9163 | N40: =V40 -> 18.1382516 | O40: =N40/$B40 -> 0.002478919175 | P40: =IF($D40=0,0,$N40/$D40)*1000 -> 0.2744 | R40: =C_C!C65 -> 60.56880445 | S40: =C_C!F65 -> 0 | T40: =C_C!G65 -> 0 | U40: =C_C!H65 -> 0 | V40: =C_C!I65 -> 18.1382516 | W40: =C_C!K65+C_C!L65+C_C!M65 -> 0 | Y40: =E_C!B65/1000 -> 323.89735 | Z40: =Y40*1000/$B40 -> 44.26641383 | AA40: =IF($D40=0,0,Y40*1000/$D40) -> 4.9 | AC40: =E_C!C65/1000 -> 323.89735 | AD40: =AC40*1000/$B40 -> 44.26641383 | AE40: =IF($D40=0,0,AC40*1000/$D40) -> 4.9 | AG40: =E_C!D65/1000 -> 0 | AH40: =AG40*1000/$B40 -> 0 | AI40: =IF($D40=0,0,AG40/$D40*1000) -> 0 | AK40: =WT_C!$B65 -> 0 | AL40: 0 | AM40: =IF($D40=0,0,(AK40*1000000)/($D40*365)) -> 0 | AO40: =WT_C!$D65 -> 0 | AP40: 0 | AQ40: =IF($D40=0,0,(AO40*1000000)/($D40*365)) -> 0 | AS40: =WS_C!B65 -> 0 | AT40: =AS40/$B40 -> 0 | AU40: 0 | AW40: =WS_C!D65 -> 0 | AX40: =(AW40*1000)/($B40) -> 0 | AY40: 0 | BA40: =WS_C!C65 -> 0 | BB40: =(BA40*1000)/($B40) -> 0 | BC40: 0 | BE40: N/A | BF40: N/A | BG40: N/A | BI40: =T_C!C94 -> 0 | BJ40: =T_C!B94*1000 -> 0 | BK40: =T_C!D94*1000 -> 0
A41: Softscape | B41: =WT_C!$B$24 -> 7317 | C41: =SUM(LU_C1!$AU$75,LU_C1!$AY$75,LU_C1!$BD$75,LU_C1!$BL$75) -> 1344.382709 | D41: =E_C!C22 -> 133509.3 | F41: -114.0706722 | G41: -0.01558981444 | H41: -0.8544024442 | J41: -114.0706722 | K41: -0.01558981444 | L41: -0.8544024442 | N41: 0 | O41: 0 | P41: 0 | R41: =C_C!C66 -> 122.3345716 | S41: =C_C!F66 -> 0 | T41: =C_C!G66 -> 0 | U41: =C_C!H66 -> -2.633994513 | V41: =C_C!I66 -> 0 | W41: =C_C!K66+C_C!L66+C_C!M66 -> -233.7712493 | Y41: =E_C!B66/1000 -> 654.19557 | Z41: 89.40762198 | AA41: 4.9 | AC41: =E_C!C66/1000 -> 654.19557 | AD41: 89.40762198 | AE41: 4.9 | AG41: =E_C!D66/1000 -> 0 | AH41: 0 | AI41: 0 | AK41: =WT_C!$B66 -> 0 | AL41: 0 | AM41: 0 | AO41: =WT_C!$D66 -> -7.574585337 | AP41: -2.83617447 | AQ41: -0.1554370264 | AS41: =WS_C!B66 -> 51.44520532 | AT41: 0.007030915037 | AU41: 0.3853305 | AW41: =WS_C!D66 -> 16.4624657 | AX41: 2.249892812 | AY41: 0.12330576 | BA41: =WS_C!C66 -> 34.98273962 | BB41: 4.781022225 | BC41: 0.26202474 | BE41: N/A | BF41: N/A | BG41: N/A | BI41: =T_C!C95 -> 0 | BJ41: =T_C!B95*1000 -> 0 | BK41: =T_C!D95*1000 -> 0
A42: Buildings Total | B42: =WT_C!$B$24 -> 7317 | C42: =SUM(LU_C1!$AU$75,LU_C1!$AY$75,LU_C1!$BD$75,LU_C1!$BL$75) -> 1344.382709 | D42: =E_C!C23 -> 379236.1015 | F42: 14228.77387 | G42: 1.944618542 | H42: 37.51956581 | J42: 13987.30751 | K42: 1.911617809 | L42: 36.88284805 | N42: 241.4663611 | O42: 0.03300073269 | P42: 0.63671776 | R42: =SUM(R43:R48)+C_C!C67 -> 9862.451101 | S42: =SUM(S43:S48) -> 3907.17745 | T42: =SUM(T43:T48) -> 84.93024635 | U42: =SUM(U43:U48) -> 132.7487112 | V42: =SUM(V43:V48) -> 241.4663611 | W42: =C_C!K67+C_C!L67+C_C!M67 -> 0 | Y42: =SUM(Y43:Y48)+E_C!B67/1000 -> 53339.4004 | Z42: 7289.790952 | AA42: 140.6495853 | AC42: =SUM(AC43:AC48)+E_C!C67/1000 -> 26662.50387 | AD42: 3643.911968 | AE42: 70.30581677 | AG42: =SUM(AG43:AG48)+E_C!D67/1000 -> 26676.89653 | AH42: 3645.878984 | AI42: 70.34376849 | AK42: =WT_C!$B67 -> 0 | AL42: 0 | AM42: 0 | AO42: =WT_C!$D67 -> 72.09586831 | AP42: 26.99506996 | AQ42: 0.5208442079 | AS42: =WS_C!B67 -> 0 | AT42: 0 | AU42: 0 | AW42: =WS_C!D67 -> 0 | AX42: 0 | AY42: 0 | BA42: =WS_C!C67 -> 0 | BB42: 0 | BC42: 0 | BE42: N/A | BF42: N/A | BG42: N/A | BI42: =T_C!C96 -> 3907.17745 | BJ42: =T_C!B96*1000 -> 939.3754887 | BK42: =T_C!D96*1000 -> 21.86328592
A43: Housing | B43: =WT_C!$B$24 -> 7317 | C43: =SUM(LU_C1!$AU$75,LU_C1!$AY$75,LU_C1!$BD$75,LU_C1!$BL$75) -> 1344.382709 | D43: =E_C!C24 -> 315080.9 | F43: 10687.9713 | G43: 1.460704018 | H43: 33.92135576 | J43: 10487.3537 | K43: 1.433286005 | L43: 33.284638 | N43: 200.6176049 | O43: 0.02741801351 | P43: 0.63671776 | R43: =C_C!C68 -> 8016.677217 | S43: =BI43 -> 2285.303294 | T43: =C_C!G68 -> 82.55834574 | U43: =C_C!H68 -> 102.8148404 | V43: =C_C!I68 -> 200.6176049 | W43: =C_C!K68+C_C!L68+C_C!M68 -> 0 | Y43: =E_C!B68/1000 -> 43469.67521 | Z43: 5940.915022 | AA43: 137.9635364 | AC43: =E_C!C68/1000 -> 21412.53293 | AD43: 2926.408765 | AE43: 67.95884147 | AG43: =E_C!D68/1000 -> 22057.14228 | AH43: 3014.506257 | AI43: 70.00469492 | AK43: =WT_C!$B68 -> 331.1740968 | AL43: 124.0025 | AM43: 2.879661358 | AO43: =WT_C!$D68 -> 255.6732664 | AP43: 95.7325 | AQ43: 2.223158251 | AS43: =WS_C!B68 -> 3791.065747 | AT43: 0.5181175 | AU43: 12.03203922 | AW43: =WS_C!D68 -> 275.4209266 | AX43: 37.64123638 | AY43: 0.8741276496 | BA43: =WS_C!C68 -> 3515.644821 | BB43: 480.4762636 | BC43: 11.15791157 | BE43: N/A | BF43: N/A | BG43: N/A | BI43: =T_C!C97 -> 2285.303294 | BJ43: =T_C!B97*1000 -> 331.3192662 | BK43: =T_C!D97*1000 -> 8.300141288
A44: Commercial/Government | B44: =WT_C!$B$24 -> 7317 | C44: =SUM(LU_C1!$AU$75,LU_C1!$AY$75,LU_C1!$BD$75,LU_C1!$BL$75) -> 1344.382709 | D44: =E_C!C25 -> 29711.48126 | F44: 2097.814541 | G44: 0.2867041876 | H44: 70.60619167 | J44: 2078.896713 | K44: 0.2841187253 | L44: 69.96947391 | N44: 18.91782779 | O44: 0.00258546232 | P44: 0.63671776 | R44: =C_C!C69 -> 828.9174535 | S44: =BI44 -> 1231.445425 | T44: =C_C!G69 -> 0.4543816665 | U44: =C_C!H69 -> 18.07945243 | V44: =C_C!I69 -> 18.91782779 | W44: =C_C!K69+C_C!L69+C_C!M69 -> 0 | Y44: =E_C!B69/1000 -> 4427.158519 | Z44: 605.0510481 | AA44: 149.0049749 | AC44: =E_C!C69/1000 -> 2578.590992 | AD44: 352.4109597 | AE44: 86.78769563 | AG44: =E_C!D69/1000 -> 1848.567527 | AH44: 252.6400884 | AI44: 62.21727926 | AK44: =WT_C!$B69 -> 8.55001354 | AL44: 3.201406947 | AM44: 0.7884054795 | AO44: =WT_C!$D69 -> -4.335261654 | AP44: -1.623264888 | AQ44: -0.3997589041 | AS44: =WS_C!B69 -> 246.1202545 | AT44: 0.03363677115 | AU44: 8.283675 | AW44: =WS_C!D69 -> 82.00480761 | AX44: 11.20743578 | AY44: 2.760037673 | BA44: =WS_C!C69 -> 164.1154469 | BB44: 22.42933537 | BC44: 5.523637327 | BE44: N/A | BF44: N/A | BG44: N/A | BI44: =T_C!C102 -> 1231.445425 | BJ44: =T_C!B102*1000 -> 1243.4036 | BK44: =T_C!D102*1000 -> 41.44678667
A45: Retail | B45: =WT_C!$B$24 -> 7317 | C45: =SUM(LU_C1!$AU$75,LU_C1!$AY$75,LU_C1!$BD$75,LU_C1!$BL$75) -> 1344.382709 | D45: =E_C!C26 -> 24643.72026 | F45: 1192.249397 | G45: 0.1629423804 | H45: 48.37944048 | J45: 1176.558303 | K45: 0.1607979094 | L45: 47.74272272 | N45: 15.69109436 | O45: 0.002144471007 | P45: 0.63671776 | R45: =C_C!C70 -> 773.8183202 | S45: 390.4287304 | T45: =C_C!G70 -> 0.4568339907 | U45: =C_C!H70 -> 11.8544184 | V45: =C_C!I70 -> 15.69109436 | W45: =C_C!K70+C_C!L70+C_C!M70 -> 0 | Y45: =E_C!B70/1000 -> 4134.390357 | Z45: 565.0389992 | AA45: 167.7664863 | AC45: =E_C!C70/1000 -> 2041.491035 | AD45: 279.0065649 | AE45: 82.840213 | AG45: =E_C!D70/1000 -> 2092.899322 | AH45: 286.0324343 | AI45: 84.92627331 | AK45: =WT_C!$B70 -> 12.30735114 | AL45: 4.608278016 | AM45: 1.36825 | AO45: =WT_C!$D70 -> -7.526531017 | AP45: -2.818181348 | AQ45: -0.83675 | AS45: =WS_C!B70 -> 198.7885694 | AT45: 0.02716804284 | AU45: 8.0665 | AW45: =WS_C!D70 -> 71.76267357 | AX45: 9.807663464 | AY45: 2.9120065 | BA45: =WS_C!C70 -> 127.0258959 | BB45: 17.36037937 | BC45: 5.1544935 | BE45: N/A | BF45: N/A | BG45: N/A | BI45: =T_C!C103 -> 390.4287304 | BJ45: =T_C!B103*1000 -> 1243.4036 | BK45: =T_C!D103*1000 -> 15.84292982
A46: Hotel | B46: =WT_C!$B$24 -> 7317 | C46: =SUM(LU_C1!$AU$75,LU_C1!$AY$75,LU_C1!$BD$75,LU_C1!$BL$75) -> 1344.382709 | D46: =E_C!C27 -> 0 | F46: 0 | G46: 0 | H46: 0 | J46: 0 | K46: 0 | L46: 0 | N46: 0 | O46: 0 | P46: 0 | R46: =C_C!C71 -> 0 | S46: 0 | T46: =C_C!G71 -> 0 | U46: =C_C!H71 -> 0 | V46: =C_C!I71 -> 0 | W46: =C_C!K71+C_C!L71+C_C!M71 -> 0 | Y46: =E_C!B71/1000 -> 0 | Z46: 0 | AA46: 0 | AC46: =E_C!C71/1000 -> 0 | AD46: 0 | AE46: 0 | AG46: =E_C!D71/1000 -> 0 | AH46: 0 | AI46: 0 | AK46: =WT_C!$B71 -> 0 | AL46: 0 | AM46: 0 | AO46: =WT_C!$D71 -> 0 | AP46: 0 | AQ46: 0 | AS46: =WS_C!B71 -> 0 | AT46: 0 | AU46: 0 | AW46: =WS_C!D71 -> 0 | AX46: 0 | AY46: 0 | BA46: =WS_C!C71 -> 0 | BB46: 0 | BC46: 0 | BE46: N/A | BF46: N/A | BG46: N/A | BI46: =T_C!C104 -> 0 | BJ46: =T_C!B104*1000 -> 0 | BK46: =T_C!D104*1000 -> 0
A47: Social | B47: =WT_C!$B$24 -> 7317 | C47: =SUM(LU_C1!$AU$75,LU_C1!$AY$75,LU_C1!$BD$75,LU_C1!$BL$75) -> 1344.382709 | D47: =E_C!C28 -> 9000 | F47: 236.1802551 | G47: 0.03227829097 | H47: 26.24225056 | J47: 230.4497952 | K47: 0.0314951203 | L47: 25.6055328 | N47: 5.73045984 | O47: 0.0007831706765 | P47: 0.63671776 | R47: =C_C!C72 -> 228.9891103 | S47: 0 | T47: =C_C!G72 -> 1.460684945 | U47: =C_C!H72 -> 0 | V47: =C_C!I72 -> 5.73045984 | W47: =C_C!K72+C_C!L72+C_C!M72 -> 0 | Y47: =E_C!B72/1000 -> 1233.576306 | Z47: 168.5904477 | AA47: 137.064034 | AC47: =E_C!C72/1000 -> 604.6889058 | AD47: 82.64164354 | AE47: 67.1876562 | AG47: =E_C!D72/1000 -> 628.8874 | AH47: 85.94880416 | AI47: 69.87637778 | AK47: =WT_C!$B72 -> 6.875505 | AL47: 2.574415744 | AM47: 2.093 | AO47: =WT_C!$D72 -> 3.656205 | AP47: 1.36900369 | AQ47: 1.113 | AS47: =WS_C!B72 -> 0 | AT47: 0 | AU47: 0 | AW47: =WS_C!D72 -> 0 | AX47: 0 | AY47: 0 | BA47: =WS_C!C72 -> 0 | BB47: 0 | BC47: 0 | BE47: N/A | BF47: N/A | BG47: N/A | BI47: =T_C!C105 -> 0 | BJ47: =T_C!B105*1000 -> 0 | BK47: =T_C!D105*1000 -> 0
A48: Other/Utility | B48: =WT_C!$B$24 -> 7317 | C48: =SUM(LU_C1!$AU$75,LU_C1!$AY$75,LU_C1!$BD$75,LU_C1!$BL$75) -> 1344.382709 | D48: =E_C!C29 -> 800 | F48: 14.55837421 | G48: 0.001989664372 | H48: =IF(D48=0,0,$F48/D48)*1000 -> 18.19796776 | J48: 14.049 | K48: 0.0019200492 | L48: 17.56125 | N48: 0.509374208 | O48: 6.961517125e-05 | P48: 0.63671776 | R48: =C_C!C73 -> 14.049 | S48: =C_C!F73 -> 0 | T48: =C_C!G73 -> 0 | U48: =C_C!H73 -> 0 | V48: =C_C!I73 -> 0.509374208 | W48: =C_C!K73+C_C!L73+C_C!M73 -> 0 | Y48: =E_C!B73/1000 -> 74.6 | Z48: 10.19543529 | AA48: 93.25 | AC48: =E_C!C73/1000 -> 25.2 | AD48: 3.44403444 | AE48: 31.5 | AG48: =E_C!D73/1000 -> 49.4 | AH48: 6.751400847 | AI48: 61.75 | AK48: =WT_C!$B73 -> 0 | AL48: 0 | AM48: 0 | AO48: =WT_C!$D73 -> 0 | AP48: 0 | AQ48: 0 | AS48: =WS_C!B73 -> 0 | AT48: 0 | AU48: 0 | AW48: =WS_C!D73 -> 0 | AX48: 0 | AY48: 0 | BA48: =WS_C!C73 -> 0 | BB48: 0 | BC48: 0 | BE48: N/A | BF48: N/A | BG48: N/A | BI48: =T_C!C106 -> 0 | BJ48: =T_C!B106*1000 -> 0 | BK48: =T_C!D106*1000 -> 0
A49: TOTAL | B49: =AVERAGE(B39:B48) -> 7317 | C49: =AVERAGE(C39:C48) -> 1344.382709 | D49: =SUM(D39:D42) -> 578846.9015 | F49: =SUM(F39:F41,F42) -> 3951.910253 | G49: =F49/$B49 -> 0.5400998023 | H49: =F49*1000/$D49 -> 6.827211553 | J49: =SUM(J39:J41,J42) -> 3692.305641 | K49: =J49/$B49 -> 0.5046201504 | L49: =J49*1000/$D49 -> 6.378725758 | N49: =SUM(N39:N41,N43:N48) -> 259.6046127 | O49: =N49/$B49 -> 0.03547965186 | P49: =N49*1000/$D49 -> 0.4484857948 | R49: =SUM(R39:R41,R43:R48) -> -196.1455227 | S49: =SUM(S39:S41,S43:S48) -> 3907.17745 | T49: =SUM(T39:T41,T43:T48) -> 84.93024635 | U49: =SUM(U39:U41,U43:U48) -> 130.1147167 | V49: =SUM(V39:V41,V43:V48) -> 259.6046127 | W49: =SUM(W39:W41,W43:W48) -> -233.7712493 | Y49: =SUM(Y39:Y42) -> -182.5066839 | Z49: =SUM(Z39:Z41,Z43:Z48) -> -24.94282956 | AA49: -0.3152935317 | AC49: =SUM(AC39:AC42) -> -1859.403213 | AD49: =SUM(AD39:AD41,AD43:AD48) -> -254.1209804 | AE49: -3.212253894 | AG49: =SUM(AG39:AG42) -> 1676.896529 | AH49: =SUM(AH39:AH41,AH43:AH48) -> 229.1781508 | AI49: 2.896960362 | AK49: =SUM(AK39:AK48) -> 358.9069664 | AL49: =SUM(AL39:AL48) -> 134.3866007 | AM49: 1.698733732 | AO49: =SUM(AO39:AO48) -> 311.9889617 | AP49: =SUM(AP39:AP48) -> 116.8189529 | AQ49: 1.476667278 | AS49: =SUM(AS39:AS48) -> 4287.419777 | AT49: =SUM(AT39:AT48) -> 0.585953229 | AU49: 7.406828586 | AW49: =SUM(AW39:AW48) -> 445.6508734 | AX49: =SUM(AX39:AX48) -> 60.90622843 | AY49: 0.7698942022 | BA49: =SUM(BA39:BA48) -> 3841.768903 | BB49: =SUM(BB39:BB48) -> 525.0470006 | BC49: 6.636934383 | BE49: =SUM(BE39:BE41,BE43:BE48) -> 0 | BF49: =SUM(BF39:BF41,BF43:BF48) -> 0 | BG49: =SUM(BG39:BG41,BG43:BG48) -> 0 | BI49: =SUM(BI39:BI41,BI43:BI48) -> 3907.17745 | BJ49: =SUM(BJ39:BJ41,BJ43:BJ48) -> 2818.126466 | BK49: =SUM(BK39:BK41,BK43:BK48) -> 65.58985777

Sheet Land (hidden)
A1: =CONCATENATE("Base Data Input: ",MID(CELL("filename",A1),FIND("]",CELL("filename",A1))+1,LEN(CELL("filename",A1))-FIND("]",CELL("filename",A1)))) -> Base Data Input: Land
A2: Scenario Control Panel
A3: Land-use Surface Cover Assumptions
A4: Block Parcels | H4: Site | I4: = | J4: Buildings | L4: + | M4: Hardscape | O4: + | P4: Softscape
B5: Building On/Off Toggle | C5: Phase | D5: Description | E5: Geo-reference | F5: Land-use Designation | H5: Gross Area | J5: Building Footprint | K5: Building Coverage | M5: Hardscape | N5: Hardscape Coverage | P5: Gross Green Open Space | Q5: Vegetated Open Space/% of Non-building Area | R5: Canopy Tree Coverage | S5: Canopy Tree Landscape Coverage (% of softscape) | T5: Shrub Coverage | U5: Shrub Landscape Coverage (% of softscape) | V5: Lawn/Grass Coverage | W5: Lawn /Grass Coverage (% of softscape)
A6: CODE | E6: LGEO | F6: LUDE | H6: LUGA-M | J6: LUBC-M | K6: LUBC-P | M6: OSHS-M | N6: OSHS-P | P6: OSGR-M | Q6: OSGR-P | R6: OSG3-M | S6: OSG3-P | T6: OSG2-M | U6: OSG2-M | V6: OSG1-M | W6: OSG1-P
A7: UNITS | H7: m2 | J7: m2 | K7: % | M7: m2 | N7: % | P7: m2 | Q7: % | R7: m2 | S7: % | T7: m2 | U7: % | V7: m2 | W7: %
A8: 1P-19 | B8: ON | C8: 1 | D8: residential, ground floor retail facing River Square | E8: N/A | F8: N/A | H8: 2998 | J8: 2069 | K8: =IF(H8=0,0,J8/H8) -> 0.6901267512 | M8: =(H8-J8)*N8 -> 232.25 | N8: 0.25 | P8: =H8-J8-M8 -> 696.75 | Q8: =IF(H8=0,0,P8/(H8-J8)) -> 0.75 | R8: =S8*P8 -> 278.7 | S8: 0.4 | T8: =U8*P8 -> 0 | U8: 0 | V8: =W8*P8 -> 418.05 | W8: =1-S8-U8 -> 0.6
A9: 1P-20 | B9: ON | C9: 1 | D9: residential, ground floor retail facing River Square | E9: N/A | F9: N/A | H9: 3068 | J9: 1981 | K9: 0.6456975228 | M9: =(H9-J9)*N9 -> 271.75 | N9: 0.25 | P9: 815.25 | Q9: =IF(H9=0,0,P9/(H9-J9)) -> 0.75 | R9: 326.1 | S9: 0.4 | T9: 0 | U9: 0 | V9: 489.15 | W9: 0.6
A10: 1P-22 | B10: ON | C10: 1 | D10: residential | E10: N/A | F10: N/A | H10: 6401 | J10: =1023+335+201 -> 1559 | K10: 0.2435556944 | M10: =(H10-J10)*N10 -> 968.4 | N10: 0.2 | P10: 3873.6 | Q10: 0.8 | R10: 1549.44 | S10: 0.4 | T10: 0 | U10: 0 | V10: 2324.16 | W10: 0.6
A11: 1P-24 | B11: ON | C11: 1 | D11: residential, ground floor retail facing King St | E11: N/A | F11: N/A | H11: 7156 | J11: =819+604+134 -> 1557 | K11: 0.2175796534 | M11: 1399.75 | N11: 0.25 | P11: 4199.25 | Q11: 0.75 | R11: 1679.7 | S11: 0.4 | T11: 0 | U11: 0 | V11: 2519.55 | W11: 0.6
A12: 1P-21 | B12: ON | C12: 1 | D12: residential TCHC | E12: N/A | F12: N/A | H12: 3999 | J12: =268+604+201 -> 1073 | K12: 0.2683170793 | M12: 585.2 | N12: 0.2 | P12: 2340.8 | Q12: 0.8 | R12: 936.32 | S12: 0.4 | T12: 0 | U12: 0 | V12: 1404.48 | W12: 0.6
A13: 1P-23 | B13: ON | C13: 1 | D13: residential TCHC, ground floor retail facing King St | E13: N/A | F13: N/A | H13: 4509 | J13: =134*2+604+1133 -> 2005 | K13: 0.4446662231 | M13: 626 | N13: 0.25 | P13: 1878 | Q13: 0.75 | R13: 751.2 | S13: 0.4 | T13: 0 | U13: 0 | V13: 1126.8 | W13: 0.6
A14: 1P-P1 | B14: ON | C14: 1 | D14: community park (Don River Park) | E14: N/A | F14: N/A | H14: 53168 | J14: 0 | K14: 0 | M14: 7975.2 | N14: 0.15 | P14: 45192.8 | Q14: 0.85 | R14: 27115.68 | S14: 0.6 | T14: 0 | U14: 0 | V14: 18077.12 | W14: 0.4
A15: 1P-P2 | B15: ON | C15: 1 | D15: neighborhood park (River Square) | E15: N/A | F15: N/A | H15: 2277 | J15: 0 | K15: 0 | M15: 455.4 | N15: 0.2 | P15: 1821.6 | Q15: 0.8 | R15: 1092.96 | S15: 0.6 | T15: 0 | U15: 0 | V15: 728.64 | W15: 0.4
A16: 1P-P3 | B16: ON | C16: 1 | D16: green frontage, median park (King St ramp and Don River) | E16: N/A | F16: N/A | H16: =6607+960+5419 -> 12986 | J16: 0 | K16: 0 | M16: 1947.9 | N16: 0.15 | P16: 11038.1 | Q16: 0.85 | R16: 8830.48 | S16: 0.8 | T16: 0 | U16: 0 | V16: 2207.62 | W16: 0.2
A17: 1P-ST | B17: ON | C17: 1 | D17: streets | E17: N/A | F17: N/A | H17: =13633 -> 13633 | J17: 0 | K17: 0 | M17: 10906.4 | N17: 0.8 | P17: 2726.6 | Q17: 0.2 | R17: 1908.62 | S17: 0.7 | T17: 0 | U17: 0 | V17: 817.98 | W17: 0.3
A18: 2P-17W | B18: ON | C18: 2 | D18: commercial/retail on Eastern Avenue | E18: N/A | F18: N/A | H18: 13974 | J18: =1217+1504+2026+1747 -> 6494 | K18: 0.4647201946 | M18: 1870 | N18: 0.25 | P18: 5610 | Q18: 0.75 | R18: 2244 | S18: 0.4 | T18: 0 | U18: 0 | V18: 3366 | W18: 0.6
A19: 2P-DE | B19: ON | C19: 2 | D19: district energy plant on Eastern Avenue | E19: N/A | F19: N/A | H19: 1555 | J19: 981 | K19: 0.6308681672 | M19: 143.5 | N19: 0.25 | P19: 430.5 | Q19: 0.75 | R19: 301.35 | S19: 0.7 | T19: 0 | U19: 0 | V19: 129.15 | W19: 0.3
A20: 2P-16E | B20: ON | C20: 2 | D20: residential, park facing groundfloor retail | E20: N/A | F20: N/A | H20: 11014 | J20: 4475 | K20: 0.4063010714 | M20: 1634.75 | N20: 0.25 | P20: 4904.25 | Q20: 0.75 | R20: 1961.7 | S20: 0.4 | T20: 0 | U20: 0 | V20: 2942.55 | W20: 0.6
A21: 2P-13 | B21: ON | C21: 2 | D21: residential, park facing groundfloor retail | E21: N/A | F21: N/A | H21: 10696 | J21: 5080 | K21: 0.4749439043 | M21: 1404 | N21: 0.25 | P21: 4212 | Q21: 0.75 | R21: 1684.8 | S21: 0.4 | T21: 0 | U21: 0 | V21: 2527.2 | W21: 0.6
A22: 2P-09 | B22: ON | C22: 2 | D22: school, residential | E22: N/A | F22: N/A | H22: 4119 | J22: 2666 | K22: 0.6472444768 | M22: 363.25 | N22: 0.25 | P22: 1089.75 | Q22: 0.75 | R22: 435.9 | S22: 0.4 | T22: 0 | U22: 0 | V22: 653.85 | W22: 0.6
A23: 2P-14 | B23: ON | C23: 2 | D23: commercial office with ground floor retail facing Front St | E23: N/A | F23: N/A | H23: 6537 | J23: 3294 | K23: 0.503900872 | M23: 810.75 | N23: 0.25 | P23: 2432.25 | Q23: 0.75 | R23: 972.9 | S23: 0.4 | T23: 0 | U23: 0 | V23: 1459.35 | W23: 0.6
A24: 2P-15 | B24: ON | C24: 2 | D24: residential with ground floor retail facing Front St | E24: N/A | F24: N/A | H24: 3217 | J24: 1647 | K24: 0.5119676717 | M24: 314 | N24: 0.2 | P24: 1256 | Q24: 0.8 | R24: 502.4 | S24: 0.4 | T24: 0 | U24: 0 | V24: 753.6 | W24: 0.6
A25: 2P-16W | B25: ON | C25: 2 | D25: residential with ground floor retail facing Front St | E25: N/A | F25: N/A | H25: 3216 | J25: 1647 | K25: 0.5121268657 | M25: 392.25 | N25: 0.25 | P25: 1176.75 | Q25: 0.75 | R25: 470.7 | S25: 0.4 | T25: 0 | U25: 0 | V25: 706.05 | W25: 0.6
A26: 2P-10 | B26: ON | C26: 2 | D26: residential with ground floor retail facing Front St | E26: N/A | F26: N/A | H26: 12026 | J26: =1486+1577+2900 -> 5963 | K26: 0.4958423416 | M26: 1515.75 | N26: 0.25 | P26: 4547.25 | Q26: 0.75 | R26: 1818.9 | S26: 0.4 | T26: 0 | U26: 0 | V26: 2728.35 | W26: 0.6
A27: 2P-11N | B27: ON | C27: 2 | D27: residential with ground floor retail facing Front St | E27: N/A | F27: N/A | H27: 3643 | J27: 1500 | K27: 0.4117485589 | M27: 535.75 | N27: 0.25 | P27: 1607.25 | Q27: 0.75 | R27: 642.9 | S27: 0.4 | T27: 0 | U27: 0 | V27: 964.35 | W27: 0.6
A28: 2P-11S | B28: ON | C28: 2 | D28: residential | E28: N/A | F28: N/A | H28: 7037 | J28: =2682+1182 -> 3864 | K28: 0.5490976268 | M28: 634.6 | N28: 0.2 | P28: 2538.4 | Q28: 0.8 | R28: 1015.36 | S28: 0.4 | T28: 0 | U28: 0 | V28: 1523.04 | W28: 0.6
A29: 2P-12N | B29: ON | C29: 2 | D29: residential with ground floor retail facing Front St | E29: N/A | F29: N/A | H29: 3374 | J29: 1500 | K29: 0.4445761707 | M29: 468.5 | N29: 0.25 | P29: 1405.5 | Q29: 0.75 | R29: 562.2 | S29: 0.4 | T29: 0 | U29: 0 | V29: 843.3 | W29: 0.6
A30: 2P-12S | B30: ON | C30: 2 | D30: residential | E30: N/A | F30: N/A | H30: 6838 | J30: =1182+2552 -> 3734 | K30: 0.5460661012 | M30: 620.8 | N30: 0.2 | P30: 2483.2 | Q30: 0.8 | R30: 993.28 | S30: 0.4 | T30: 0 | U30: 0 | V30: 1489.92 | W30: 0.6
A31: 2P-08 | B31: ON | C31: 2 | D31: residential with ground floor retail facing Mill Street | E31: N/A | F31: N/A | H31: 10696 | J31: =3821+1368+883+905 -> 6977 | K31: 0.6522999252 | M31: 929.75 | N31: 0.25 | P31: 2789.25 | Q31: 0.75 | R31: 1115.7 | S31: 0.4 | T31: 0 | U31: 0 | V31: 1673.55 | W31: 0.6
A32: 2P-P4 | B32: ON | C32: 2 | D32: neighborhood park (Front Street Mall) | E32: N/A | F32: N/A | H32: =1611+1897+2137 -> 5645 | J32: 0 | K32: 0 | M32: 1129 | N32: 0.2 | P32: 4516 | Q32: 0.8 | R32: 2709.6 | S32: 0.6 | T32: 0 | U32: 0 | V32: 1806.4 | W32: 0.4
A33: 2P-ST | B33: ON | C33: 2 | D33: neighborhood park (southern green strip) | E33: N/A | F33: N/A | H33: 13436 | J33: 0 | K33: 0 | M33: 2015.4 | N33: 0.15 | P33: 11420.6 | Q33: 0.85 | R33: 9136.48 | S33: 0.8 | T33: 0 | U33: 0 | V33: 2284.12 | W33: 0.2
A34: 2P-ST | B34: ON | C34: 2 | D34: streets | E34: N/A | F34: N/A | H34: =32439 -> 32439 | J34: 0 | K34: 0 | M34: 25951.2 | N34: 0.8 | P34: 6487.8 | Q34: 0.2 | R34: 4541.46 | S34: 0.7 | T34: 0 | U34: 0 | V34: 1946.34 | W34: 0.3
B35: =IF(VLOOKUP(A35,'Control Panel'!$A$5:$B$69,2,FALSE)=TRUE,"ON","OFF") ->  | J35: 0 | K35: =IF(H35=0,0,J35/H35) -> 0 | M35: =(H35-J35)*N35 -> 0 | P35: =H35-J35-M35 -> 0 | Q35: =IF(H35=0,0,P35/(H35-J35)) -> 0 | R35: =S35*P35 -> 0 | T35: =U35*P35 -> 0 | V35: =W35*P35 -> 0 | W35: =1-S35-U35 -> 1
B36: =IF(VLOOKUP(A36,'Control Panel'!$A$5:$B$69,2,FALSE)=TRUE,"ON","OFF") ->  | J36: 0 | K36: =IF(H36=0,0,J36/H36) -> 0 | M36: 0 | P36: =H36-J36-M36 -> 0 | Q36: =IF(H36=0,0,P36/(H36-J36)) -> 0 | R36: =S36*P36 -> 0 | T36: =U36*P36 -> 0 | V36: =W36*P36 -> 0 | W36: =1-S36-U36 -> 1
B37: =IF(VLOOKUP(A37,'Control Panel'!$A$5:$B$69,2,FALSE)=TRUE,"ON","OFF") ->  | J37: 0 | K37: 0 | M37: 0 | P37: 0 | Q37: 0 | R37: 0 | T37: 0 | V37: 0 | W37: 1
B38: =IF(VLOOKUP(A38,'Control Panel'!$A$5:$B$69,2,FALSE)=TRUE,"ON","OFF") ->  | J38: 0 | K38: 0 | M38: 0 | P38: 0 | Q38: 0 | R38: 0 | T38: 0 | V38: 0 | W38: 1
B39: =IF(VLOOKUP(A39,'Control Panel'!$A$5:$B$69,2,FALSE)=TRUE,"ON","OFF") ->  | J39: 0 | K39: 0 | M39: 0 | P39: 0 | Q39: 0 | R39: 0 | T39: 0 | V39: 0 | W39: 1
B40: =IF(VLOOKUP(A40,'Control Panel'!$A$5:$B$69,2,FALSE)=TRUE,"ON","OFF") ->  | J40: 0 | K40: 0 | M40: 0 | P40: 0 | Q40: 0 | R40: 0 | T40: 0 | V40: 0 | W40: 1
B41: =IF(VLOOKUP(A41,'Control Panel'!$A$5:$B$69,2,FALSE)=TRUE,"ON","OFF") ->  | J41: 0 | K41: 0 | M41: 0 | P41: 0 | Q41: 0 | R41: 0 | T41: 0 | V41: 0 | W41: 1
B42: =IF(VLOOKUP(A42,'Control Panel'!$A$5:$B$69,2,FALSE)=TRUE,"ON","OFF") ->  | J42: 0 | K42: 0 | M42: 0 | P42: 0 | Q42: 0 | R42: 0 | T42: 0 | V42: 0 | W42: 1
B43: =IF(VLOOKUP(A43,'Control Panel'!$A$5:$B$69,2,FALSE)=TRUE,"ON","OFF") ->  | J43: 0 | K43: 0 | M43: 0 | P43: 0 | Q43: 0 | R43: 0 | T43: 0 | V43: 0 | W43: 1
B44: =IF(VLOOKUP(A44,'Control Panel'!$A$5:$B$69,2,FALSE)=TRUE,"ON","OFF") ->  | J44: 0 | K44: 0 | M44: 0 | P44: 0 | Q44: 0 | R44: 0 | T44: 0 | V44: 0 | W44: 1
B45: =IF(VLOOKUP(A45,'Control Panel'!$A$5:$B$69,2,FALSE)=TRUE,"ON","OFF") ->  | J45: 0 | K45: 0 | M45: 0 | P45: 0 | Q45: 0 | R45: 0 | T45: 0 | V45: 0 | W45: 1
B46: =IF(VLOOKUP(A46,'Control Panel'!$A$5:$B$69,2,FALSE)=TRUE,"ON","OFF") ->  | J46: 0 | K46: 0 | M46: 0 | P46: 0 | Q46: 0 | R46: 0 | T46: 0 | V46: 0 | W46: 1
B47: =IF(VLOOKUP(A47,'Control Panel'!$A$5:$B$69,2,FALSE)=TRUE,"ON","OFF") ->  | J47: 0 | K47: 0 | M47: 0 | P47: 0 | Q47: 0 | R47: 0 | T47: 0 | V47: 0 | W47: 1
B48: =IF(VLOOKUP(A48,'Control Panel'!$A$5:$B$69,2,FALSE)=TRUE,"ON","OFF") ->  | J48: 0 | K48: 0 | M48: 0 | P48: 0 | Q48: 0 | R48: 0 | T48: 0 | V48: 0 | W48: 1
B49: =IF(VLOOKUP(A49,'Control Panel'!$A$5:$B$69,2,FALSE)=TRUE,"ON","OFF") ->  | J49: 0 | K49: 0 | M49: 0 | P49: 0 | Q49: 0 | R49: 0 | T49: 0 | V49: 0 | W49: 1
B50: =IF(VLOOKUP(A50,'Control Panel'!$A$5:$B$69,2,FALSE)=TRUE,"ON","OFF") ->  | J50: 0 | K50: 0 | M50: 0 | P50: 0 | Q50: 0 | R50: 0 | T50: 0 | V50: 0 | W50: 1
B51: =IF(VLOOKUP(A51,'Control Panel'!$A$5:$B$69,2,FALSE)=TRUE,"ON","OFF") ->  | J51: 0 | K51: 0 | M51: 0 | P51: 0 | Q51: 0 | R51: 0 | T51: 0 | V51: 0 | W51: 1
B52: =IF(VLOOKUP(A52,'Control Panel'!$A$5:$B$69,2,FALSE)=TRUE,"ON","OFF") ->  | J52: 0 | K52: 0 | M52: 0 | P52: 0 | Q52: 0 | R52: 0 | T52: 0 | V52: 0 | W52: 1
B53: =IF(VLOOKUP(A53,'Control Panel'!$A$5:$B$69,2,FALSE)=TRUE,"ON","OFF") ->  | J53: 0 | K53: 0 | M53: 0 | P53: 0 | Q53: 0 | R53: 0 | T53: 0 | V53: 0 | W53: 1
B54: =IF(VLOOKUP(A54,'Control Panel'!$A$5:$B$69,2,FALSE)=TRUE,"ON","OFF") ->  | J54: 0 | K54: 0 | M54: 0 | P54: 0 | Q54: 0 | R54: 0 | T54: 0 | V54: 0 | W54: 1
B55: =IF(VLOOKUP(A55,'Control Panel'!$A$5:$B$69,2,FALSE)=TRUE,"ON","OFF") ->  | J55: 0 | K55: 0 | M55: 0 | P55: 0 | Q55: 0 | R55: 0 | T55: 0 | V55: 0 | W55: 1
B56: =IF(VLOOKUP(A56,'Control Panel'!$A$5:$B$69,2,FALSE)=TRUE,"ON","OFF") ->  | J56: 0 | K56: 0 | M56: 0 | P56: 0 | Q56: 0 | R56: 0 | T56: 0 | V56: 0 | W56: 1
B57: =IF(VLOOKUP(A57,'Control Panel'!$A$5:$B$69,2,FALSE)=TRUE,"ON","OFF") ->  | J57: 0 | K57: 0 | M57: 0 | P57: 0 | Q57: 0 | R57: 0 | T57: 0 | V57: 0 | W57: 1
B58: =IF(VLOOKUP(A58,'Control Panel'!$A$5:$B$69,2,FALSE)=TRUE,"ON","OFF") ->  | J58: 0 | K58: 0 | M58: 0 | P58: 0 | Q58: 0 | R58: 0 | T58: 0 | V58: 0 | W58: 1
B59: =IF(VLOOKUP(A59,'Control Panel'!$A$5:$B$69,2,FALSE)=TRUE,"ON","OFF") ->  | J59: 0 | K59: 0 | M59: 0 | P59: 0 | Q59: 0 | R59: 0 | T59: 0 | V59: 0 | W59: 1
B60: =IF(VLOOKUP(A60,'Control Panel'!$A$5:$B$69,2,FALSE)=TRUE,"ON","OFF") ->  | J60: 0 | K60: 0 | M60: 0 | P60: 0 | Q60: 0 | R60: 0 | T60: 0 | V60: 0 | W60: 1
B61: =IF(VLOOKUP(A61,'Control Panel'!$A$5:$B$69,2,FALSE)=TRUE,"ON","OFF") ->  | J61: 0 | K61: 0 | M61: 0 | P61: 0 | Q61: 0 | R61: 0 | T61: 0 | V61: 0 | W61: 1
B62: =IF(VLOOKUP(A62,'Control Panel'!$A$5:$B$69,2,FALSE)=TRUE,"ON","OFF") ->  | J62: 0 | K62: 0 | M62: 0 | P62: 0 | Q62: 0 | R62: 0 | T62: 0 | V62: 0 | W62: 1
B63: =IF(VLOOKUP(A63,'Control Panel'!$A$5:$B$69,2,FALSE)=TRUE,"ON","OFF") ->  | J63: 0 | K63: 0 | M63: 0 | P63: 0 | Q63: 0 | R63: 0 | T63: 0 | V63: 0 | W63: 1
B64: =IF(VLOOKUP(A64,'Control Panel'!$A$5:$B$69,2,FALSE)=TRUE,"ON","OFF") ->  | J64: 0 | K64: 0 | M64: 0 | P64: 0 | Q64: 0 | R64: 0 | T64: 0 | V64: 0 | W64: 1
B65: =IF(VLOOKUP(A65,'Control Panel'!$A$5:$B$69,2,FALSE)=TRUE,"ON","OFF") ->  | J65: 0 | K65: 0 | M65: 0 | P65: 0 | Q65: 0 | R65: 0 | T65: 0 | V65: 0 | W65: 1
B66: =IF(VLOOKUP(A66,'Control Panel'!$A$5:$B$69,2,FALSE)=TRUE,"ON","OFF") ->  | J66: 0 | K66: 0 | M66: 0 | P66: 0 | Q66: 0 | R66: 0 | T66: 0 | V66: 0 | W66: 1
B67: =IF(VLOOKUP(A67,'Control Panel'!$A$5:$B$69,2,FALSE)=TRUE,"ON","OFF") ->  | J67: 0 | K67: 0 | M67: 0 | P67: 0 | Q67: 0 | R67: 0 | T67: 0 | V67: 0 | W67: 1
B68: =IF(VLOOKUP(A68,'Control Panel'!$A$5:$B$69,2,FALSE)=TRUE,"ON","OFF") ->  | J68: 0 | K68: 0 | M68: 0 | P68: 0 | Q68: 0 | R68: 0 | T68: 0 | V68: 0 | W68: 1
B69: =IF(VLOOKUP(A69,'Control Panel'!$A$5:$B$69,2,FALSE)=TRUE,"ON","OFF") ->  | J69: 0 | K69: 0 | M69: 0 | P69: 0 | Q69: 0 | R69: 0 | T69: 0 | V69: 0 | W69: 1
B70: =IF(VLOOKUP(A70,'Control Panel'!$A$5:$B$69,2,FALSE)=TRUE,"ON","OFF") ->  | J70: 0 | K70: 0 | M70: 0 | P70: 0 | Q70: 0 | R70: 0 | T70: 0 | V70: 0 | W70: 1
B71: =IF(VLOOKUP(A71,'Control Panel'!$A$5:$B$69,2,FALSE)=TRUE,"ON","OFF") ->  | J71: 0 | K71: 0 | M71: 0 | P71: 0 | Q71: 0 | R71: 0 | T71: 0 | V71: 0 | W71: 1
B72: =IF(VLOOKUP(A72,'Control Panel'!$A$5:$B$69,2,FALSE)=TRUE,"ON","OFF") ->  | J72: 0 | K72: 0 | M72: 0 | P72: 0 | Q72: 0 | R72: 0 | T72: 0 | V72: 0 | W72: 1
B73: =IF(VLOOKUP(A73,'Control Panel'!$A$5:$B$69,2,FALSE)=TRUE,"ON","OFF") ->  | J73: 0 | K73: 0 | M73: 0 | P73: 0 | Q73: 0 | R73: 0 | T73: 0 | V73: 0 | W73: 1
A75: Total | H75: =SUMIF($B$8:$B$73,"ON",(H8:H73)) -> 259657 | J75: =SUMIF($B$8:$B$73,"ON",(J8:J73)) -> 60066 | K75: =J75/H75 -> 0.2313282523 | M75: =SUMIF($B$8:$B$73,"ON",(M8:M73)) -> 66101.5 | N75: =M75/H75 -> 0.2545723782 | P75: =SUMIF($B$8:$B$73,"ON",(P8:P73)) -> 133489.5 | Q75: =IF(H75=0,0,P75/(H75-J75)) -> 0.6688152271 | R75: =SUMIF($B$8:$B$73,"ON",(R8:R73)) -> 75578.83 | S75: =V75/P75 -> 0.4338219111 | V75: =SUMIF($B$8:$B$73,"ON",(V8:V73)) -> 57910.67 | W75: =1-S75 -> 0.5661780889

Sheet Buildings (hidden)
A1: =CONCATENATE("Base Data Input: ",MID(CELL("filename",A1),FIND("]",CELL("filename",A1))+1,LEN(CELL("filename",A1))-FIND("]",CELL("filename",A1)))) -> Base Data Input: Buildings
A2: Scenario Control Panel | AO2: Scenario Control Panel | AU2: Scenario 2 Variants
A3: Buildings Assumptions
A4: Block Parcels | H4: General | L4: Bdg Type - Housing | Q4: Bdg Type - Comm./Gov. Office | U4: Bdg Type - Retail | Y4: Bdg Type - Social | AE4: Bdg Type - Utilities | AH4: Bdg Type - Hotel | AP4: Proximity | AS4: Proximity | AV4: Proximity | AZ4: Type Specific - Housing Detail (unused)
B5: Building On/Off Toggle | C5: Phase | D5: Description | E5: Geo-reference | F5: Land-use Designation | H5: Building Efficiency Ratio | I5: Avg GFA Parking/Space | J5: % Roof Area Greenroof | L5: Total Units | M5: Avg Unit Size (all units) | N5: Avg Residents/ persons (all units) | O5: Avg Parking Ratio/unit Scenario 1 | Q5: Leasable GFA | R5: Area Per Employee | S5: Parking Spaces Per 100m2 Scenario 1 | U5: Leasable GFA | V5: Area Per Employee | W5: Parking Spaces/100m2 Scenario 1 | Y5: Students | Z5: GFA/Student | AA5: Employees/Student | AB5: Community Space (inc meeting space, rec/gym) | AC5: Parking Spaces/100m2 | AE5: Leasable GFA | AF5: Parking Spaces/100m2 | AH5: Leasable GFA | AI5: Rooms | AJ5: GFA/Room | AK5: Employees/Room | AL5: Annual Avg Occupancy Rate | AM5: Avg Guests/Room | AN5: Parking Spaces/ Guest | AP5: Entrance w/I 300m of Transit Stop? Scenario 1 | AQ5: Entrance w/I 300m of 4 Services? Scenario 1 | AS5: Entrance w/I 300m of Transit Stop? Scenario 2 | AT5: Entrance w/I 300m of 4 Services? Scenario 2 | AV5: Residential Avg Parking Ratio/unit Scenario 2 | AW5: Comm. Parking Spaces Per 100m2 Scenario 2 | AX5: Retail Parking Spaces Per 100m2 Scenario 2 | AZ5: Units by Type | BE5: Avg Unit Size | BM5: Parking Ratio
A6: CODE | E6: LGEO | F6: LUDE | H6: BEFF-P | I6: PKSA-M | J6: RGRA-P | L6: DHDU | M6: HUAV-M | N6: HRAV | O6: PKHR | Q6: CGFA | R6: CAPE-M | S6: CPSP | U6: RGFA-M | V6: RAPE-M | W6: RPKR | Y6: DSTU | Z6: SAPS-M | AA6: SEPS | AB6: SCSP-M | AC6: SPFA-M | AE6: UGFA-M | AF6: SPFA-M | AH6: IGFA-M | AI6: IRMS | AJ6: IAPR-M | AK6: IEPR | AL6: IOCR-P | AM6: IGPR | AN6: IPPG | AP6: PT300 | AQ6: PS300 | AS6: PT300-2 | AT6: PT300-2 | AV6: PKHR2 | AW6: CPSP2 | AX6: RPKR2 | AZ6: HTST | BA6: HT1B | BB6: HT2B | BC6: HT3B | BE6: HUST | BF6: HU1B | BG6: HU2B | BH6: HU3B | BJ6: HR1B | BK6: HR2B | BL6: HR3B | BM6: HPST | BN6: HP1B | BO6: HP2B | BP6: HP3B
A7: UNITS | H7: % | I7: m2 | J7: % | M7: m2 | N7: # | O7: # | Q7: m2 | R7: m2 | S7: # | U7: m2 | V7: m2 | W7: # | Y7: # | Z7: m2 | AA7: # | AB7: m2 | AC7: # | AF7: # | AH7: m2 | AI7: # | AJ7: m2 | AK7: # | AL7: % | AM7: # | AN7: # | AV7: # | AW7: # | AX7: # | AZ7: Studio | BA7: 1BR | BB7: 2BR | BC7: 3BR+ | BE7: Studio | BF7: 1BR | BG7: 2BR | BH7: 3BR+ | BJ7: 1BR | BK7: 2BR | BL7: 3BR+ | BM7: Studio | BN7: 1BR | BO7: 2BR | BP7: 3BR+
A8: =Land!A8 -> 1P-19 | B8: =IF(VLOOKUP(A8,'Control Panel'!$A$5:$B$69,2,FALSE)=TRUE,"ON","OFF") -> ON | C8: 1 | D8: residential, ground floor retail facing River Square | E8: N/A | F8: N/A | H8: 0.82 | I8: 34 | J8: 0.5 | L8: 132 | M8: 69.7 | N8: 1.6 | O8: ='Control Panel'!$K$5 -> 0.71 | Q8: 0 | R8: 0 | S8: ='Control Panel'!$K$6 -> 0.97 | U8: =44439/3/(3.28^2) -> 1376.877603 | V8: 80 | W8: ='Control Panel'!$K$7 -> 0.9 | Y8: 0 | Z8: 0 | AA8: 0 | AB8: 0 | AC8: 0 | AE8: 0 | AF8: 0 | AP8: TRUE | AQ8: TRUE | AS8: TRUE | AT8: TRUE | AV8: ='Control Panel'!$M$5 -> 0.5 | AW8: ='Control Panel'!$M$6 -> 0.7 | AX8: ='Control Panel'!$M$7 -> 0.9 | AZ8: 13 | BA8: 66 | BB8: 46 | BC8: 7
A9: =Land!A9 -> 1P-20 | B9: =IF(VLOOKUP(A9,'Control Panel'!$A$5:$B$69,2,FALSE)=TRUE,"ON","OFF") -> ON | C9: 1 | D9: residential, ground floor retail facing River Square | E9: N/A | F9: N/A | H9: 0.82 | I9: 34 | J9: 0.5 | L9: 258 | M9: 69.7 | N9: 1.6 | O9: ='Control Panel'!$K$5 -> 0.71 | Q9: 0 | R9: 0 | S9: ='Control Panel'!$K$6 -> 0.97 | U9: =44439/3/(3.28^2) -> 1376.877603 | V9: 80 | W9: ='Control Panel'!$K$7 -> 0.9 | Y9: 0 | Z9: 0 | AA9: 0 | AB9: 0 | AC9: 0 | AE9: 0 | AF9: 0 | AP9: TRUE | AQ9: TRUE | AS9: TRUE | AT9: TRUE | AV9: ='Control Panel'!$M$5 -> 0.5 | AW9: ='Control Panel'!$M$6 -> 0.7 | AX9: ='Control Panel'!$M$7 -> 0.9 | AZ9: 26 | BA9: 129 | BB9: 90 | BC9: 13
A10: =Land!A10 -> 1P-22 | B10: =IF(VLOOKUP(A10,'Control Panel'!$A$5:$B$69,2,FALSE)=TRUE,"ON","OFF") -> ON | C10: 1 | D10: residential | E10: N/A | F10: N/A | H10: 0.82 | I10: 34 | J10: 0.5 | L10: 298 | M10: 69.7 | N10: 1.6 | O10: ='Control Panel'!$K$5 -> 0.71 | Q10: 0 | R10: 0 | S10: ='Control Panel'!$K$6 -> 0.97 | U10: 0 | V10: 0 | W10: ='Control Panel'!$K$7 -> 0.9 | Y10: 0 | Z10: 0 | AA10: 0 | AB10: 0 | AC10: 0 | AE10: 0 | AF10: 0 | AP10: TRUE | AQ10: TRUE | AS10: TRUE | AT10: TRUE | AV10: ='Control Panel'!$M$5 -> 0.5 | AW10: ='Control Panel'!$M$6 -> 0.7 | AX10: ='Control Panel'!$M$7 -> 0.9 | AZ10: 30 | BA10: 149 | BB10: 104 | BC10: 15
A11: =Land!A11 -> 1P-24 | B11: =IF(VLOOKUP(A11,'Control Panel'!$A$5:$B$69,2,FALSE)=TRUE,"ON","OFF") -> ON | C11: 1 | D11: residential, ground floor retail facing King St | E11: N/A | F11: N/A | H11: 0.82 | I11: 34 | J11: 0.5 | L11: 246 | M11: 60 | N11: 1.6 | O11: ='Control Panel'!$K$5 -> 0.71 | Q11: 0 | R11: 0 | S11: ='Control Panel'!$K$6 -> 0.97 | U11: =44439/6/(3.28^2) -> 688.4388013 | V11: 80 | W11: ='Control Panel'!$K$7 -> 0.9 | Y11: 0 | Z11: 0 | AA11: 0 | AB11: 0 | AC11: 0 | AE11: 0 | AF11: 0 | AP11: TRUE | AQ11: TRUE | AS11: TRUE | AT11: TRUE | AV11: ='Control Panel'!$M$5 -> 0.5 | AW11: ='Control Panel'!$M$6 -> 0.7 | AX11: ='Control Panel'!$M$7 -> 0.9 | AZ11: 25 | BA11: 123 | BB11: 86 | BC11: 12
A12: =Land!A12 -> 1P-21 | B12: =IF(VLOOKUP(A12,'Control Panel'!$A$5:$B$69,2,FALSE)=TRUE,"ON","OFF") -> ON | C12: 1 | D12: residential TCHC | E12: N/A | F12: N/A | H12: 0.82 | I12: 34 | J12: 0.5 | L12: 121 | M12: 65.6 | N12: 1.6 | O12: ='Control Panel'!$K$5 -> 0.71 | Q12: 0 | R12: 0 | S12: ='Control Panel'!$K$6 -> 0.97 | U12: 0 | V12: 0 | W12: ='Control Panel'!$K$7 -> 0.9 | Y12: 0 | Z12: 0 | AA12: 0 | AB12: 0 | AC12: 0 | AE12: 0 | AF12: 0 | AP12: TRUE | AQ12: TRUE | AS12: TRUE | AT12: TRUE | AV12: ='Control Panel'!$M$5 -> 0.5 | AW12: ='Control Panel'!$M$6 -> 0.7 | AX12: ='Control Panel'!$M$7 -> 0.9 | AZ12: 12 | BA12: 61 | BB12: 42 | BC12: 6
A13: =Land!A13 -> 1P-23 | B13: =IF(VLOOKUP(A13,'Control Panel'!$A$5:$B$69,2,FALSE)=TRUE,"ON","OFF") -> ON | C13: 1 | D13: residential TCHC, ground floor retail facing King St | E13: N/A | F13: N/A | H13: 0.82 | I13: 34 | J13: 0.5 | L13: 121 | M13: 65.6 | N13: 1.6 | O13: ='Control Panel'!$K$5 -> 0.71 | Q13: 0 | R13: 0 | S13: ='Control Panel'!$K$6 -> 0.97 | U13: =44439/6/(3.28^2) -> 688.4388013 | V13: 80 | W13: ='Control Panel'!$K$7 -> 0.9 | Y13: 0 | Z13: 0 | AA13: 0 | AB13: 0 | AC13: 0 | AE13: 0 | AF13: 0 | AP13: FALSE | AQ13: FALSE | AS13: TRUE | AT13: TRUE | AV13: ='Control Panel'!$M$5 -> 0.5 | AW13: ='Control Panel'!$M$6 -> 0.7 | AX13: ='Control Panel'!$M$7 -> 0.9 | AZ13: 12 | BA13: 61 | BB13: 42 | BC13: 6
A14: =Land!A14 -> 1P-P1 | B14: =IF(VLOOKUP(A14,'Control Panel'!$A$5:$B$69,2,FALSE)=TRUE,"ON","OFF") -> ON | C14: 1 | D14: community park (Don River Park) | E14: N/A | F14: N/A | H14: 0 | I14: 34 | J14: 0 | L14: 0 | M14: 0 | N14: 0 | O14: ='Control Panel'!$K$5 -> 0.71 | Q14: 0 | R14: 0 | S14: ='Control Panel'!$K$6 -> 0.97 | U14: 0 | V14: 0 | W14: ='Control Panel'!$K$7 -> 0.9 | Y14: 0 | Z14: 0 | AA14: 0 | AB14: 0 | AC14: 0 | AE14: 0 | AF14: 0 | AP14: TRUE | AQ14: TRUE | AS14: TRUE | AT14: TRUE | AV14: ='Control Panel'!$M$5 -> 0.5 | AW14: ='Control Panel'!$M$6 -> 0.7 | AX14: ='Control Panel'!$M$7 -> 0.9
A15: =Land!A15 -> 1P-P2 | B15: =IF(VLOOKUP(A15,'Control Panel'!$A$5:$B$69,2,FALSE)=TRUE,"ON","OFF") -> ON | C15: 1 | D15: neighborhood park (River Square) | E15: N/A | F15: N/A | H15: 0 | I15: 34 | J15: 0 | L15: 0 | M15: 0 | N15: 0 | O15: ='Control Panel'!$K$5 -> 0.71 | Q15: 0 | R15: 0 | S15: ='Control Panel'!$K$6 -> 0.97 | U15: 0 | V15: 0 | W15: ='Control Panel'!$K$7 -> 0.9 | Y15: 0 | Z15: 0 | AA15: 0 | AB15: 0 | AC15: 0 | AE15: 0 | AF15: 0 | AP15: TRUE | AQ15: TRUE | AS15: TRUE | AT15: TRUE | AV15: ='Control Panel'!$M$5 -> 0.5 | AW15: ='Control Panel'!$M$6 -> 0.7 | AX15: ='Control Panel'!$M$7 -> 0.9
A16: =Land!A16 -> 1P-P3 | B16: =IF(VLOOKUP(A16,'Control Panel'!$A$5:$B$69,2,FALSE)=TRUE,"ON","OFF") -> ON | C16: 1 | D16: green frontage, median park (King St ramp and Don River) | E16: N/A | F16: N/A | H16: 0 | I16: 34 | J16: 0 | L16: 0 | M16: 0 | N16: 0 | O16: ='Control Panel'!$K$5 -> 0.71 | Q16: 0 | R16: 0 | S16: ='Control Panel'!$K$6 -> 0.97 | U16: 0 | V16: 0 | W16: ='Control Panel'!$K$7 -> 0.9 | Y16: 0 | Z16: 0 | AA16: 0 | AB16: 0 | AC16: 0 | AE16: 0 | AF16: 0 | AP16: TRUE | AQ16: TRUE | AS16: TRUE | AT16: TRUE | AV16: ='Control Panel'!$M$5 -> 0.5 | AW16: ='Control Panel'!$M$6 -> 0.7 | AX16: ='Control Panel'!$M$7 -> 0.9
A17: =Land!A17 -> 1P-ST | B17: =IF(VLOOKUP(A17,'Control Panel'!$A$5:$B$69,2,FALSE)=TRUE,"ON","OFF") -> ON | C17: 1 | D17: streets | E17: N/A | F17: N/A | H17: 0 | I17: 34 | J17: 0 | L17: 0 | M17: 0 | N17: 0 | O17: ='Control Panel'!$K$5 -> 0.71 | Q17: 0 | R17: 0 | S17: ='Control Panel'!$K$6 -> 0.97 | U17: 0 | V17: 0 | W17: ='Control Panel'!$K$7 -> 0.9 | Y17: 0 | Z17: 0 | AA17: 0 | AB17: 0 | AC17: 0 | AE17: 0 | AF17: 0 | AP17: TRUE | AQ17: TRUE | AS17: TRUE | AT17: TRUE | AV17: ='Control Panel'!$M$5 -> 0.5 | AW17: ='Control Panel'!$M$6 -> 0.7 | AX17: ='Control Panel'!$M$7 -> 0.9
A18: =Land!A18 -> 2P-17W | B18: =IF(VLOOKUP(A18,'Control Panel'!$A$5:$B$69,2,FALSE)=TRUE,"ON","OFF") -> ON | C18: 2 | D18: commercial/retail on Eastern Avenue | E18: N/A | F18: N/A | H18: 0.85 | I18: 34 | J18: 0.5 | L18: 0 | M18: 0 | N18: 0 | O18: ='Control Panel'!$K$5 -> 0.71 | Q18: =83498/(3.28^2) -> 7761.191255 | R18: 30 | S18: ='Control Panel'!$K$6 -> 0.97 | U18: 0 | V18: 0 | W18: ='Control Panel'!$K$7 -> 0.9 | Y18: 0 | Z18: 0 | AA18: 0 | AB18: 0 | AC18: 0 | AE18: 0 | AF18: 0 | AP18: TRUE | AQ18: TRUE | AS18: TRUE | AT18: TRUE | AV18: ='Control Panel'!$M$5 -> 0.5 | AW18: ='Control Panel'!$M$6 -> 0.7 | AX18: ='Control Panel'!$M$7 -> 0.9
A19: =Land!A19 -> 2P-DE | B19: =IF(VLOOKUP(A19,'Control Panel'!$A$5:$B$69,2,FALSE)=TRUE,"ON","OFF") -> ON | C19: 2 | D19: district energy plant on Eastern Avenue | E19: N/A | F19: N/A | H19: 0 | I19: 34 | J19: 0.5 | L19: 0 | M19: 0 | N19: 0 | O19: ='Control Panel'!$K$5 -> 0.71 | Q19: 0 | R19: 0 | S19: ='Control Panel'!$K$6 -> 0.97 | U19: 0 | V19: 0 | W19: ='Control Panel'!$K$7 -> 0.9 | Y19: 0 | Z19: 0 | AA19: 0 | AB19: 0 | AC19: 0 | AE19: 800 | AF19: 0 | AP19: TRUE | AQ19: TRUE | AS19: TRUE | AT19: TRUE | AV19: ='Control Panel'!$M$5 -> 0.5 | AW19: ='Control Panel'!$M$6 -> 0.7 | AX19: ='Control Panel'!$M$7 -> 0.9
A20: =Land!A20 -> 2P-16E | B20: =IF(VLOOKUP(A20,'Control Panel'!$A$5:$B$69,2,FALSE)=TRUE,"ON","OFF") -> ON | C20: 2 | D20: residential, park facing groundfloor retail | E20: N/A | F20: N/A | H20: 0.82 | I20: 34 | J20: 0.5 | L20: 500 | M20: 69.7 | N20: 1.6 | O20: ='Control Panel'!$K$5 -> 0.71 | Q20: 0 | R20: 0 | S20: ='Control Panel'!$K$6 -> 0.97 | U20: =39521/(3.28^2) -> 3673.501636 | V20: 80 | W20: ='Control Panel'!$K$7 -> 0.9 | Y20: 0 | Z20: 0 | AA20: 0 | AB20: 0 | AC20: 0 | AE20: 0 | AF20: 0 | AP20: TRUE | AQ20: TRUE | AS20: TRUE | AT20: TRUE | AV20: ='Control Panel'!$M$5 -> 0.5 | AW20: ='Control Panel'!$M$6 -> 0.7 | AX20: ='Control Panel'!$M$7 -> 0.9 | AZ20: 17 | BA20: 83 | BB20: 58 | BC20: 8
A21: =Land!A21 -> 2P-13 | B21: =IF(VLOOKUP(A21,'Control Panel'!$A$5:$B$69,2,FALSE)=TRUE,"ON","OFF") -> ON | C21: 2 | D21: residential, park facing groundfloor retail | E21: N/A | F21: N/A | H21: 0.82 | I21: 34 | J21: 0.5 | L21: 474 | M21: 69.7 | N21: 1.6 | O21: ='Control Panel'!$K$5 -> 0.71 | Q21: 0 | R21: 0 | S21: ='Control Panel'!$K$6 -> 0.97 | U21: =22381/(3.28^2) -> 2080.32793 | V21: 80 | W21: ='Control Panel'!$K$7 -> 0.9 | Y21: 0 | Z21: 0 | AA21: 0 | AB21: 0 | AC21: 0 | AE21: 0 | AF21: 0 | AP21: TRUE | AQ21: TRUE | AS21: TRUE | AT21: TRUE | AV21: ='Control Panel'!$M$5 -> 0.5 | AW21: ='Control Panel'!$M$6 -> 0.7 | AX21: ='Control Panel'!$M$7 -> 0.9 | AZ21: 47 | BA21: 237 | BB21: 166 | BC21: 24
A22: =Land!A22 -> 2P-09 | B22: =IF(VLOOKUP(A22,'Control Panel'!$A$5:$B$69,2,FALSE)=TRUE,"ON","OFF") -> ON | C22: 2 | D22: school, residential | E22: N/A | F22: N/A | H22: 0.78 | I22: 34 | J22: 0.5 | L22: 100 | M22: 69.7 | N22: 1.6 | O22: ='Control Panel'!$K$5 -> 0.71 | Q22: 0 | R22: 0 | S22: ='Control Panel'!$K$6 -> 0.97 | U22: 0 | V22: 0 | W22: ='Control Panel'!$K$7 -> 0.9 | Y22: 400 | Z22: 10 | AA22: 0.1 | AB22: 5000 | AC22: 0.12 | AE22: 0 | AF22: 0 | AP22: TRUE | AQ22: TRUE | AS22: TRUE | AT22: TRUE | AV22: ='Control Panel'!$M$5 -> 0.5 | AW22: ='Control Panel'!$M$6 -> 0.7 | AX22: ='Control Panel'!$M$7 -> 0.9 | AZ22: 10 | BA22: 50 | BB22: 35 | BC22: 5
A23: =Land!A23 -> 2P-14 | B23: =IF(VLOOKUP(A23,'Control Panel'!$A$5:$B$69,2,FALSE)=TRUE,"ON","OFF") -> ON | C23: 2 | D23: commercial office with ground floor retail facing Front St | E23: N/A | F23: N/A | H23: 0.85 | I23: 34 | J23: 0.5 | L23: 157 | M23: 69.7 | N23: 1.6 | O23: ='Control Panel'!$K$5 -> 0.71 | Q23: =236150/(3.28^2) -> 21950.29001 | R23: 30 | S23: ='Control Panel'!$K$6 -> 0.97 | U23: 0 | V23: 0 | W23: ='Control Panel'!$K$7 -> 0.9 | Y23: 0 | Z23: 0 | AA23: 0 | AB23: 0 | AC23: 0 | AE23: 0 | AF23: 0 | AP23: TRUE | AQ23: TRUE | AS23: TRUE | AT23: TRUE | AV23: ='Control Panel'!$M$5 -> 0.5 | AW23: ='Control Panel'!$M$6 -> 0.7 | AX23: ='Control Panel'!$M$7 -> 0.9 | AZ23: 16 | BA23: 78 | BB23: 55 | BC23: 8
A24: =Land!A24 -> 2P-15 | B24: =IF(VLOOKUP(A24,'Control Panel'!$A$5:$B$69,2,FALSE)=TRUE,"ON","OFF") -> ON | C24: 2 | D24: residential with ground floor retail facing Front St | E24: N/A | F24: N/A | H24: 0.82 | I24: 34 | J24: 0.5 | L24: =166+119 -> 285 | M24: 69.7 | N24: 1.6 | O24: ='Control Panel'!$K$5 -> 0.71 | Q24: 0 | R24: 0 | S24: ='Control Panel'!$K$6 -> 0.97 | U24: =15161/(3.28^2) -> 1409.22442 | V24: 80 | W24: ='Control Panel'!$K$7 -> 0.9 | Y24: 0 | Z24: 0 | AA24: 0 | AB24: 0 | AC24: 0 | AE24: 0 | AF24: 0 | AP24: TRUE | AQ24: TRUE | AS24: TRUE | AT24: TRUE | AV24: ='Control Panel'!$M$5 -> 0.5 | AW24: ='Control Panel'!$M$6 -> 0.7 | AX24: ='Control Panel'!$M$7 -> 0.9 | AZ24: 28 | BA24: 142 | BB24: 100 | BC24: 15
A25: =Land!A25 -> 2P-16W | B25: =IF(VLOOKUP(A25,'Control Panel'!$A$5:$B$69,2,FALSE)=TRUE,"ON","OFF") -> ON | C25: 2 | D25: residential with ground floor retail facing Front St | E25: N/A | F25: N/A | H25: 0.82 | I25: 34 | J25: 0.5 | L25: 166 | M25: 69.7 | N25: 1.6 | O25: ='Control Panel'!$K$5 -> 0.71 | Q25: 0 | R25: 0 | S25: ='Control Panel'!$K$6 -> 0.97 | U25: =15150/(3.28^2) -> 1408.201963 | V25: 80 | W25: ='Control Panel'!$K$7 -> 0.9 | Y25: 0 | Z25: 0 | AA25: 0 | AB25: 0 | AC25: 0 | AE25: 0 | AF25: 0 | AP25: TRUE | AQ25: TRUE | AS25: TRUE | AT25: TRUE | AV25: ='Control Panel'!$M$5 -> 0.5 | AW25: ='Control Panel'!$M$6 -> 0.7 | AX25: ='Control Panel'!$M$7 -> 0.9 | AZ25: 50 | BA25: 250 | BB25: 175 | BC25: 25
A26: =Land!A26 -> 2P-10 | B26: =IF(VLOOKUP(A26,'Control Panel'!$A$5:$B$69,2,FALSE)=TRUE,"ON","OFF") -> ON | C26: 2 | D26: residential with ground floor retail facing Front St | E26: N/A | F26: N/A | H26: 0.82 | I26: 34 | J26: 0.5 | L26: 362 | M26: 69.7 | N26: 1.6 | O26: ='Control Panel'!$K$5 -> 0.71 | Q26: 0 | R26: 0 | S26: ='Control Panel'!$K$6 -> 0.97 | U26: =24748/(3.28^2) -> 2300.342058 | V26: 80 | W26: ='Control Panel'!$K$7 -> 0.9 | Y26: 0 | Z26: 0 | AA26: 0 | AB26: 0 | AC26: 0 | AE26: 0 | AF26: 0 | AP26: TRUE | AQ26: TRUE | AS26: TRUE | AT26: TRUE | AV26: ='Control Panel'!$M$5 -> 0.5 | AW26: ='Control Panel'!$M$6 -> 0.7 | AX26: ='Control Panel'!$M$7 -> 0.9 | AZ26: 36 | BA26: 181 | BB26: 127 | BC26: 18
A27: =Land!A27 -> 2P-11N | B27: =IF(VLOOKUP(A27,'Control Panel'!$A$5:$B$69,2,FALSE)=TRUE,"ON","OFF") -> ON | C27: 2 | D27: residential with ground floor retail facing Front St | E27: N/A | F27: N/A | H27: 0.82 | I27: 34 | J27: 0.5 | L27: 250 | M27: 69.7 | N27: 1.6 | O27: ='Control Panel'!$K$5 -> 0.71 | Q27: 0 | R27: 0 | S27: ='Control Panel'!$K$6 -> 0.97 | U27: =25609/(3.28^2) -> 2380.372546 | V27: 80 | W27: ='Control Panel'!$K$7 -> 0.9 | Y27: 0 | Z27: 0 | AA27: 0 | AB27: 0 | AC27: 0 | AE27: 0 | AF27: 0 | AP27: TRUE | AQ27: TRUE | AS27: TRUE | AT27: TRUE | AV27: ='Control Panel'!$M$5 -> 0.5 | AW27: ='Control Panel'!$M$6 -> 0.7 | AX27: ='Control Panel'!$M$7 -> 0.9 | AZ27: 25 | BA27: 125 | BB27: 88 | BC27: 12
A28: =Land!A28 -> 2P-11S | B28: =IF(VLOOKUP(A28,'Control Panel'!$A$5:$B$69,2,FALSE)=TRUE,"ON","OFF") -> ON | C28: 2 | D28: residential | E28: N/A | F28: N/A | H28: 0.82 | I28: 34 | J28: 0.5 | L28: 111 | M28: 69.7 | N28: 1.6 | O28: ='Control Panel'!$K$5 -> 0.71 | Q28: 0 | R28: 0 | S28: ='Control Panel'!$K$6 -> 0.97 | U28: 0 | V28: 0 | W28: ='Control Panel'!$K$7 -> 0.9 | Y28: 0 | Z28: 0 | AA28: 0 | AB28: 0 | AC28: 0 | AE28: 0 | AF28: 0 | AP28: TRUE | AQ28: TRUE | AS28: TRUE | AT28: TRUE | AV28: ='Control Panel'!$M$5 -> 0.5 | AW28: ='Control Panel'!$M$6 -> 0.7 | AX28: ='Control Panel'!$M$7 -> 0.9 | AZ28: 11 | BA28: 56 | BB28: 39 | BC28: 5
A29: =Land!A29 -> 2P-12N | B29: =IF(VLOOKUP(A29,'Control Panel'!$A$5:$B$69,2,FALSE)=TRUE,"ON","OFF") -> ON | C29: 2 | D29: residential with ground floor retail facing Front St | E29: N/A | F29: N/A | H29: 0.82 | I29: 34 | J29: 0.5 | L29: 180 | M29: 69.7 | N29: 1.6 | O29: ='Control Panel'!$K$5 -> 0.71 | Q29: 0 | R29: 0 | S29: ='Control Panel'!$K$6 -> 0.97 | U29: =24318/(3.28^2) -> 2260.37329 | V29: 80 | W29: ='Control Panel'!$K$7 -> 0.9 | Y29: 0 | Z29: 0 | AA29: 0 | AB29: 0 | AC29: 0 | AE29: 0 | AF29: 0 | AP29: TRUE | AQ29: TRUE | AS29: TRUE | AT29: TRUE | AV29: ='Control Panel'!$M$5 -> 0.5 | AW29: ='Control Panel'!$M$6 -> 0.7 | AX29: ='Control Panel'!$M$7 -> 0.9 | AZ29: 18 | BA29: 90 | BB29: 63 | BC29: 9
A30: =Land!A30 -> 2P-12S | B30: =IF(VLOOKUP(A30,'Control Panel'!$A$5:$B$69,2,FALSE)=TRUE,"ON","OFF") -> ON | C30: 2 | D30: residential | E30: N/A | F30: N/A | H30: 0.82 | I30: 34 | J30: 0.5 | L30: 102 | M30: 69.7 | N30: 1.6 | O30: ='Control Panel'!$K$5 -> 0.71 | Q30: 0 | R30: 0 | S30: ='Control Panel'!$K$6 -> 0.97 | U30: 0 | V30: 0 | W30: ='Control Panel'!$K$7 -> 0.9 | Y30: 0 | Z30: 0 | AA30: 0 | AB30: 0 | AC30: 0 | AE30: 0 | AF30: 0 | AP30: TRUE | AQ30: TRUE | AS30: TRUE | AT30: TRUE | AV30: ='Control Panel'!$M$5 -> 0.5 | AW30: ='Control Panel'!$M$6 -> 0.7 | AX30: ='Control Panel'!$M$7 -> 0.9 | AZ30: 10 | BA30: 51 | BB30: 36 | BC30: 5
A31: =Land!A31 -> 2P-08 | B31: =IF(VLOOKUP(A31,'Control Panel'!$A$5:$B$69,2,FALSE)=TRUE,"ON","OFF") -> ON | C31: 2 | D31: residential with ground floor retail facing Mill Street | E31: N/A | F31: N/A | H31: 0.82 | I31: 34 | J31: 0.5 | L31: 706 | M31: 69.7 | N31: 1.6 | O31: ='Control Panel'!$K$5 -> 0.71 | Q31: 0 | R31: 0 | S31: ='Control Panel'!$K$6 -> 0.97 | U31: =53800/(3.28^2) -> 5000.743605 | V31: 80 | W31: ='Control Panel'!$K$7 -> 0.9 | Y31: 0 | Z31: 0 | AA31: 0 | AB31: 0 | AC31: 0 | AE31: 0 | AF31: 0 | AP31: TRUE | AQ31: TRUE | AS31: TRUE | AT31: TRUE | AV31: ='Control Panel'!$M$5 -> 0.5 | AW31: ='Control Panel'!$M$6 -> 0.7 | AX31: ='Control Panel'!$M$7 -> 0.9 | AZ31: 71 | BA31: 353 | BB31: 247 | BC31: 35
A32: =Land!A32 -> 2P-P4 | B32: =IF(VLOOKUP(A32,'Control Panel'!$A$5:$B$69,2,FALSE)=TRUE,"ON","OFF") -> ON | C32: 2 | D32: neighborhood park (Front Street Mall) | E32: N/A | F32: N/A | H32: 0 | I32: 34 | J32: 0 | L32: 0 | M32: 0 | N32: 0 | O32: ='Control Panel'!$K$5 -> 0.71 | Q32: 0 | R32: 0 | S32: ='Control Panel'!$K$6 -> 0.97 | U32: 0 | V32: 0 | W32: ='Control Panel'!$K$7 -> 0.9 | Y32: 0 | Z32: 0 | AA32: 0 | AB32: 0 | AC32: 0 | AE32: 0 | AF32: 0 | AP32: TRUE | AQ32: TRUE | AS32: TRUE | AT32: TRUE | AV32: ='Control Panel'!$M$5 -> 0.5 | AW32: ='Control Panel'!$M$6 -> 0.7 | AX32: ='Control Panel'!$M$7 -> 0.9
A33: =Land!A33 -> 2P-ST | B33: =IF(VLOOKUP(A33,'Control Panel'!$A$5:$B$69,2,FALSE)=TRUE,"ON","OFF") -> ON | C33: 2 | D33: neighborhood park (southern green strip) | E33: N/A | F33: N/A | H33: 0 | I33: 34 | J33: 0 | L33: 0 | M33: 0 | N33: 0 | O33: ='Control Panel'!$K$5 -> 0.71 | Q33: 0 | R33: 0 | S33: ='Control Panel'!$K$6 -> 0.97 | U33: 0 | V33: 0 | W33: ='Control Panel'!$K$7 -> 0.9 | Y33: 0 | Z33: 0 | AA33: 0 | AB33: 0 | AC33: 0 | AE33: 0 | AF33: 0 | AP33: TRUE | AQ33: TRUE | AS33: TRUE | AT33: TRUE | AV33: ='Control Panel'!$M$5 -> 0.5 | AW33: ='Control Panel'!$M$6 -> 0.7 | AX33: ='Control Panel'!$M$7 -> 0.9
A34: =Land!A34 -> 2P-ST | B34: =IF(VLOOKUP(A34,'Control Panel'!$A$5:$B$69,2,FALSE)=TRUE,"ON","OFF") -> ON | C34: 2 | D34: streets | E34: N/A | F34: N/A | H34: 0 | I34: 34 | J34: 0 | L34: 0 | M34: 0 | N34: 0 | O34: ='Control Panel'!$K$5 -> 0.71 | Q34: 0 | R34: 0 | S34: ='Control Panel'!$K$6 -> 0.97 | U34: 0 | V34: 0 | W34: ='Control Panel'!$K$7 -> 0.9 | Y34: 0 | Z34: 0 | AA34: 0 | AB34: 0 | AC34: 0 | AE34: 0 | AF34: 0 | AP34: TRUE | AQ34: TRUE | AS34: TRUE | AT34: TRUE | AV34: ='Control Panel'!$M$5 -> 0.5 | AW34: ='Control Panel'!$M$6 -> 0.7 | AX34: ='Control Panel'!$M$7 -> 0.9
B35: =IF(VLOOKUP(A35,'Control Panel'!$A$5:$B$69,2,FALSE)=TRUE,"ON","OFF") ->  | H35: 0 | J35: 0 | L35: 0 | M35: 0 | N35: 0 | O35: ='Control Panel'!$K$5 -> 0.71 | Q35: 0 | R35: 0 | S35: ='Control Panel'!$K$6 -> 0.97 | U35: 0 | V35: 0 | W35: ='Control Panel'!$K$7 -> 0.9 | Y35: 0 | Z35: 0 | AA35: 0 | AB35: 0 | AC35: 0 | AE35: 0 | AF35: 0 | AP35: TRUE | AQ35: TRUE | AS35: TRUE | AT35: TRUE | AV35: ='Control Panel'!$M$5 -> 0.5 | AW35: ='Control Panel'!$M$6 -> 0.7 | AX35: ='Control Panel'!$M$7 -> 0.9
B36: =IF(VLOOKUP(A36,'Control Panel'!$A$5:$B$69,2,FALSE)=TRUE,"ON","OFF") ->  | H36: 0 | J36: 0 | L36: 0 | M36: 0 | N36: 0 | O36: ='Control Panel'!$K$5 -> 0.71 | Q36: 0 | R36: 0 | S36: ='Control Panel'!$K$6 -> 0.97 | U36: 0 | V36: 0 | W36: ='Control Panel'!$K$7 -> 0.9 | Y36: 0 | Z36: 0 | AA36: 0 | AB36: 0 | AC36: 0 | AE36: 0 | AF36: 0 | AP36: TRUE | AQ36: TRUE | AS36: TRUE | AT36: TRUE | AV36: ='Control Panel'!$M$5 -> 0.5 | AW36: ='Control Panel'!$M$6 -> 0.7 | AX36: ='Control Panel'!$M$7 -> 0.9
B37: =IF(VLOOKUP(A37,'Control Panel'!$A$5:$B$69,2,FALSE)=TRUE,"ON","OFF") ->  | H37: 0 | J37: 0 | L37: 0 | M37: 0 | N37: 0 | O37: ='Control Panel'!$K$5 -> 0.71 | Q37: 0 | R37: 0 | S37: ='Control Panel'!$K$6 -> 0.97 | U37: 0 | V37: 0 | W37: ='Control Panel'!$K$7 -> 0.9 | AE37: 0 | AP37: TRUE | AQ37: TRUE | AS37: TRUE | AT37: TRUE | AV37: ='Control Panel'!$M$5 -> 0.5 | AW37: ='Control Panel'!$M$6 -> 0.7 | AX37: ='Control Panel'!$M$7 -> 0.9
B38: =IF(VLOOKUP(A38,'Control Panel'!$A$5:$B$69,2,FALSE)=TRUE,"ON","OFF") ->  | H38: 0 | J38: 0 | L38: 0 | M38: 0 | N38: 0 | O38: ='Control Panel'!$K$5 -> 0.71 | Q38: 0 | R38: 0 | S38: ='Control Panel'!$K$6 -> 0.97 | U38: 0 | V38: 0 | W38: ='Control Panel'!$K$7 -> 0.9 | AE38: 0 | AP38: TRUE | AQ38: TRUE | AS38: TRUE | AT38: TRUE | AV38: ='Control Panel'!$M$5 -> 0.5 | AW38: ='Control Panel'!$M$6 -> 0.7 | AX38: ='Control Panel'!$M$7 -> 0.9
B39: =IF(VLOOKUP(A39,'Control Panel'!$A$5:$B$69,2,FALSE)=TRUE,"ON","OFF") ->  | H39: 0 | J39: 0 | L39: 0 | M39: 0 | N39: 0 | O39: ='Control Panel'!$K$5 -> 0.71 | Q39: 0 | R39: 0 | S39: ='Control Panel'!$K$6 -> 0.97 | U39: 0 | V39: 0 | W39: ='Control Panel'!$K$7 -> 0.9 | AE39: 0 | AP39: TRUE | AQ39: TRUE | AS39: TRUE | AT39: TRUE | AV39: ='Control Panel'!$M$5 -> 0.5 | AW39: ='Control Panel'!$M$6 -> 0.7 | AX39: ='Control Panel'!$M$7 -> 0.9
B40: =IF(VLOOKUP(A40,'Control Panel'!$A$5:$B$69,2,FALSE)=TRUE,"ON","OFF") ->  | H40: 0 | J40: 0 | L40: 0 | M40: 0 | N40: 0 | O40: ='Control Panel'!$K$5 -> 0.71 | Q40: 0 | R40: 0 | S40: ='Control Panel'!$K$6 -> 0.97 | U40: 0 | V40: 0 | W40: ='Control Panel'!$K$7 -> 0.9 | AE40: 0 | AP40: TRUE | AQ40: TRUE | AS40: TRUE | AT40: TRUE | AV40: ='Control Panel'!$M$5 -> 0.5 | AW40: ='Control Panel'!$M$6 -> 0.7 | AX40: ='Control Panel'!$M$7 -> 0.9
B41: =IF(VLOOKUP(A41,'Control Panel'!$A$5:$B$69,2,FALSE)=TRUE,"ON","OFF") ->  | H41: 0 | J41: 0 | L41: 0 | M41: 0 | N41: 0 | O41: ='Control Panel'!$K$5 -> 0.71 | Q41: 0 | R41: 0 | S41: ='Control Panel'!$K$6 -> 0.97 | U41: 0 | V41: 0 | W41: ='Control Panel'!$K$7 -> 0.9 | AE41: 0 | AP41: TRUE | AQ41: TRUE | AS41: TRUE | AT41: TRUE | AV41: ='Control Panel'!$M$5 -> 0.5 | AW41: ='Control Panel'!$M$6 -> 0.7 | AX41: ='Control Panel'!$M$7 -> 0.9
B42: =IF(VLOOKUP(A42,'Control Panel'!$A$5:$B$69,2,FALSE)=TRUE,"ON","OFF") ->  | H42: 0 | J42: 0 | L42: 0 | M42: 0 | N42: 0 | O42: ='Control Panel'!$K$5 -> 0.71 | Q42: 0 | R42: 0 | S42: ='Control Panel'!$K$6 -> 0.97 | U42: 0 | V42: 0 | W42: ='Control Panel'!$K$7 -> 0.9 | AE42: 0 | AP42: TRUE | AQ42: TRUE | AS42: TRUE | AT42: TRUE | AV42: ='Control Panel'!$M$5 -> 0.5 | AW42: ='Control Panel'!$M$6 -> 0.7 | AX42: ='Control Panel'!$M$7 -> 0.9
B43: =IF(VLOOKUP(A43,'Control Panel'!$A$5:$B$69,2,FALSE)=TRUE,"ON","OFF") ->  | H43: 0 | J43: 0 | L43: 0 | M43: 0 | N43: 0 | O43: ='Control Panel'!$K$5 -> 0.71 | Q43: 0 | R43: 0 | S43: ='Control Panel'!$K$6 -> 0.97 | U43: 0 | V43: 0 | W43: ='Control Panel'!$K$7 -> 0.9 | AE43: 0 | AP43: TRUE | AQ43: TRUE | AS43: TRUE | AT43: TRUE | AV43: ='Control Panel'!$M$5 -> 0.5 | AW43: ='Control Panel'!$M$6 -> 0.7 | AX43: ='Control Panel'!$M$7 -> 0.9
B44: =IF(VLOOKUP(A44,'Control Panel'!$A$5:$B$69,2,FALSE)=TRUE,"ON","OFF") ->  | H44: 0 | J44: 0 | L44: 0 | M44: 0 | N44: 0 | O44: ='Control Panel'!$K$5 -> 0.71 | Q44: 0 | R44: 0 | S44: ='Control Panel'!$K$6 -> 0.97 | U44: 0 | V44: 0 | W44: ='Control Panel'!$K$7 -> 0.9 | AE44: 0 | AP44: TRUE | AQ44: TRUE | AS44: TRUE | AT44: TRUE | AV44: ='Control Panel'!$M$5 -> 0.5 | AW44: ='Control Panel'!$M$6 -> 0.7 | AX44: ='Control Panel'!$M$7 -> 0.9
B45: =IF(VLOOKUP(A45,'Control Panel'!$A$5:$B$69,2,FALSE)=TRUE,"ON","OFF") ->  | H45: 0 | J45: 0 | L45: 0 | M45: 0 | N45: 0 | O45: ='Control Panel'!$K$5 -> 0.71 | Q45: 0 | R45: 0 | S45: ='Control Panel'!$K$6 -> 0.97 | U45: 0 | V45: 0 | W45: ='Control Panel'!$K$7 -> 0.9 | AE45: 0 | AP45: TRUE | AQ45: TRUE | AS45: TRUE | AT45: TRUE | AV45: ='Control Panel'!$M$5 -> 0.5 | AW45: ='Control Panel'!$M$6 -> 0.7 | AX45: ='Control Panel'!$M$7 -> 0.9
B46: =IF(VLOOKUP(A46,'Control Panel'!$A$5:$B$69,2,FALSE)=TRUE,"ON","OFF") ->  | H46: 0 | J46: 0 | L46: 0 | M46: 0 | N46: 0 | O46: ='Control Panel'!$K$5 -> 0.71 | Q46: 0 | R46: 0 | S46: ='Control Panel'!$K$6 -> 0.97 | U46: 0 | V46: 0 | W46: ='Control Panel'!$K$7 -> 0.9 | AE46: 0 | AP46: TRUE | AQ46: TRUE | AS46: TRUE | AT46: TRUE | AV46: ='Control Panel'!$M$5 -> 0.5 | AW46: ='Control Panel'!$M$6 -> 0.7 | AX46: ='Control Panel'!$M$7 -> 0.9
B47: =IF(VLOOKUP(A47,'Control Panel'!$A$5:$B$69,2,FALSE)=TRUE,"ON","OFF") ->  | H47: 0 | J47: 0 | L47: 0 | M47: 0 | N47: 0 | O47: ='Control Panel'!$K$5 -> 0.71 | Q47: 0 | R47: 0 | S47: ='Control Panel'!$K$6 -> 0.97 | U47: 0 | V47: 0 | W47: ='Control Panel'!$K$7 -> 0.9 | AE47: 0 | AP47: TRUE | AQ47: TRUE | AS47: TRUE | AT47: TRUE | AV47: ='Control Panel'!$M$5 -> 0.5 | AW47: ='Control Panel'!$M$6 -> 0.7 | AX47: ='Control Panel'!$M$7 -> 0.9
B48: =IF(VLOOKUP(A48,'Control Panel'!$A$5:$B$69,2,FALSE)=TRUE,"ON","OFF") ->  | H48: 0 | J48: 0 | L48: 0 | M48: 0 | N48: 0 | O48: ='Control Panel'!$K$5 -> 0.71 | Q48: 0 | R48: 0 | S48: ='Control Panel'!$K$6 -> 0.97 | U48: 0 | V48: 0 | W48: ='Control Panel'!$K$7 -> 0.9 | AE48: 0 | AP48: TRUE | AQ48: TRUE | AS48: TRUE | AT48: TRUE | AV48: ='Control Panel'!$M$5 -> 0.5 | AW48: ='Control Panel'!$M$6 -> 0.7 | AX48: ='Control Panel'!$M$7 -> 0.9
B49: =IF(VLOOKUP(A49,'Control Panel'!$A$5:$B$69,2,FALSE)=TRUE,"ON","OFF") ->  | H49: 0 | J49: 0 | L49: 0 | M49: 0 | N49: 0 | O49: ='Control Panel'!$K$5 -> 0.71 | Q49: 0 | R49: 0 | S49: ='Control Panel'!$K$6 -> 0.97 | U49: 0 | V49: 0 | W49: ='Control Panel'!$K$7 -> 0.9 | AE49: 0 | AP49: TRUE | AQ49: TRUE | AS49: TRUE | AT49: TRUE | AV49: ='Control Panel'!$M$5 -> 0.5 | AW49: ='Control Panel'!$M$6 -> 0.7 | AX49: ='Control Panel'!$M$7 -> 0.9
B50: =IF(VLOOKUP(A50,'Control Panel'!$A$5:$B$69,2,FALSE)=TRUE,"ON","OFF") ->  | H50: 0 | J50: 0 | L50: 0 | M50: 0 | N50: 0 | O50: ='Control Panel'!$K$5 -> 0.71 | Q50: 0 | R50: 0 | S50: ='Control Panel'!$K$6 -> 0.97 | U50: 0 | V50: 0 | W50: ='Control Panel'!$K$7 -> 0.9 | AE50: 0 | AP50: TRUE | AQ50: TRUE | AS50: TRUE | AT50: TRUE | AV50: ='Control Panel'!$M$5 -> 0.5 | AW50: ='Control Panel'!$M$6 -> 0.7 | AX50: ='Control Panel'!$M$7 -> 0.9
B51: =IF(VLOOKUP(A51,'Control Panel'!$A$5:$B$69,2,FALSE)=TRUE,"ON","OFF") ->  | H51: 0 | J51: 0 | L51: 0 | M51: 0 | N51: 0 | O51: ='Control Panel'!$K$5 -> 0.71 | Q51: 0 | R51: 0 | S51: ='Control Panel'!$K$6 -> 0.97 | U51: 0 | V51: 0 | W51: ='Control Panel'!$K$7 -> 0.9 | AE51: 0 | AP51: TRUE | AQ51: TRUE | AS51: TRUE | AT51: TRUE | AV51: ='Control Panel'!$M$5 -> 0.5 | AW51: ='Control Panel'!$M$6 -> 0.7 | AX51: ='Control Panel'!$M$7 -> 0.9
B52: =IF(VLOOKUP(A52,'Control Panel'!$A$5:$B$69,2,FALSE)=TRUE,"ON","OFF") ->  | H52: 0 | J52: 0 | L52: 0 | M52: 0 | N52: 0 | O52: ='Control Panel'!$K$5 -> 0.71 | Q52: 0 | R52: 0 | S52: ='Control Panel'!$K$6 -> 0.97 | U52: 0 | V52: 0 | W52: ='Control Panel'!$K$7 -> 0.9 | AE52: 0 | AP52: TRUE | AQ52: TRUE | AS52: TRUE | AT52: TRUE | AV52: ='Control Panel'!$M$5 -> 0.5 | AW52: ='Control Panel'!$M$6 -> 0.7 | AX52: ='Control Panel'!$M$7 -> 0.9
B53: =IF(VLOOKUP(A53,'Control Panel'!$A$5:$B$69,2,FALSE)=TRUE,"ON","OFF") ->  | H53: 0 | J53: 0 | L53: 0 | M53: 0 | N53: 0 | O53: ='Control Panel'!$K$5 -> 0.71 | Q53: 0 | R53: 0 | S53: ='Control Panel'!$K$6 -> 0.97 | U53: 0 | V53: 0 | W53: ='Control Panel'!$K$7 -> 0.9 | AE53: 0 | AP53: TRUE | AQ53: TRUE | AS53: TRUE | AT53: TRUE | AV53: ='Control Panel'!$M$5 -> 0.5 | AW53: ='Control Panel'!$M$6 -> 0.7 | AX53: ='Control Panel'!$M$7 -> 0.9
B54: =IF(VLOOKUP(A54,'Control Panel'!$A$5:$B$69,2,FALSE)=TRUE,"ON","OFF") ->  | H54: 0 | J54: 0 | L54: 0 | M54: 0 | N54: 0 | O54: ='Control Panel'!$K$5 -> 0.71 | Q54: 0 | R54: 0 | S54: ='Control Panel'!$K$6 -> 0.97 | U54: 0 | V54: 0 | W54: ='Control Panel'!$K$7 -> 0.9 | AE54: 0 | AP54: TRUE | AQ54: TRUE | AS54: TRUE | AT54: TRUE | AV54: ='Control Panel'!$M$5 -> 0.5 | AW54: ='Control Panel'!$M$6 -> 0.7 | AX54: ='Control Panel'!$M$7 -> 0.9
B55: =IF(VLOOKUP(A55,'Control Panel'!$A$5:$B$69,2,FALSE)=TRUE,"ON","OFF") ->  | H55: 0 | J55: 0 | L55: 0 | M55: 0 | N55: 0 | O55: ='Control Panel'!$K$5 -> 0.71 | Q55: 0 | R55: 0 | S55: ='Control Panel'!$K$6 -> 0.97 | U55: 0 | V55: 0 | W55: ='Control Panel'!$K$7 -> 0.9 | AE55: 0 | AP55: TRUE | AQ55: TRUE | AS55: TRUE | AT55: TRUE | AV55: ='Control Panel'!$M$5 -> 0.5 | AW55: ='Control Panel'!$M$6 -> 0.7 | AX55: ='Control Panel'!$M$7 -> 0.9
B56: =IF(VLOOKUP(A56,'Control Panel'!$A$5:$B$69,2,FALSE)=TRUE,"ON","OFF") ->  | H56: 0 | J56: 0 | L56: 0 | M56: 0 | N56: 0 | O56: ='Control Panel'!$K$5 -> 0.71 | Q56: 0 | R56: 0 | S56: ='Control Panel'!$K$6 -> 0.97 | U56: 0 | V56: 0 | W56: ='Control Panel'!$K$7 -> 0.9 | AE56: 0 | AP56: TRUE | AQ56: TRUE | AS56: TRUE | AT56: TRUE | AV56: ='Control Panel'!$M$5 -> 0.5 | AW56: ='Control Panel'!$M$6 -> 0.7 | AX56: ='Control Panel'!$M$7 -> 0.9
B57: =IF(VLOOKUP(A57,'Control Panel'!$A$5:$B$69,2,FALSE)=TRUE,"ON","OFF") ->  | H57: 0 | J57: 0 | L57: 0 | M57: 0 | N57: 0 | O57: ='Control Panel'!$K$5 -> 0.71 | Q57: 0 | R57: 0 | S57: ='Control Panel'!$K$6 -> 0.97 | U57: 0 | V57: 0 | W57: ='Control Panel'!$K$7 -> 0.9 | AE57: 0 | AP57: TRUE | AQ57: TRUE | AS57: TRUE | AT57: TRUE | AV57: ='Control Panel'!$M$5 -> 0.5 | AW57: ='Control Panel'!$M$6 -> 0.7 | AX57: ='Control Panel'!$M$7 -> 0.9
B58: =IF(VLOOKUP(A58,'Control Panel'!$A$5:$B$69,2,FALSE)=TRUE,"ON","OFF") ->  | H58: 0 | J58: 0 | L58: 0 | M58: 0 | N58: 0 | O58: ='Control Panel'!$K$5 -> 0.71 | Q58: 0 | R58: 0 | S58: ='Control Panel'!$K$6 -> 0.97 | U58: 0 | V58: 0 | W58: ='Control Panel'!$K$7 -> 0.9 | AE58: 0 | AP58: TRUE | AQ58: TRUE | AS58: TRUE | AT58: TRUE | AV58: ='Control Panel'!$M$5 -> 0.5 | AW58: ='Control Panel'!$M$6 -> 0.7 | AX58: ='Control Panel'!$M$7 -> 0.9
B59: =IF(VLOOKUP(A59,'Control Panel'!$A$5:$B$69,2,FALSE)=TRUE,"ON","OFF") ->  | H59: 0 | J59: 0 | L59: 0 | M59: 0 | N59: 0 | O59: ='Control Panel'!$K$5 -> 0.71 | Q59: 0 | R59: 0 | S59: ='Control Panel'!$K$6 -> 0.97 | U59: 0 | V59: 0 | W59: ='Control Panel'!$K$7 -> 0.9 | AE59: 0 | AP59: TRUE | AQ59: TRUE | AS59: TRUE | AT59: TRUE | AV59: ='Control Panel'!$M$5 -> 0.5 | AW59: ='Control Panel'!$M$6 -> 0.7 | AX59: ='Control Panel'!$M$7 -> 0.9
B60: =IF(VLOOKUP(A60,'Control Panel'!$A$5:$B$69,2,FALSE)=TRUE,"ON","OFF") ->  | H60: 0 | J60: 0 | L60: 0 | M60: 0 | N60: 0 | O60: ='Control Panel'!$K$5 -> 0.71 | Q60: 0 | R60: 0 | S60: ='Control Panel'!$K$6 -> 0.97 | U60: 0 | V60: 0 | W60: ='Control Panel'!$K$7 -> 0.9 | AE60: 0 | AP60: TRUE | AQ60: TRUE | AS60: TRUE | AT60: TRUE | AV60: ='Control Panel'!$M$5 -> 0.5 | AW60: ='Control Panel'!$M$6 -> 0.7 | AX60: ='Control Panel'!$M$7 -> 0.9
B61: =IF(VLOOKUP(A61,'Control Panel'!$A$5:$B$69,2,FALSE)=TRUE,"ON","OFF") ->  | H61: 0 | J61: 0 | L61: 0 | M61: 0 | N61: 0 | O61: ='Control Panel'!$K$5 -> 0.71 | Q61: 0 | R61: 0 | S61: ='Control Panel'!$K$6 -> 0.97 | U61: 0 | V61: 0 | W61: ='Control Panel'!$K$7 -> 0.9 | AE61: 0 | AP61: TRUE | AQ61: TRUE | AS61: TRUE | AT61: TRUE | AV61: ='Control Panel'!$M$5 -> 0.5 | AW61: ='Control Panel'!$M$6 -> 0.7 | AX61: ='Control Panel'!$M$7 -> 0.9
B62: =IF(VLOOKUP(A62,'Control Panel'!$A$5:$B$69,2,FALSE)=TRUE,"ON","OFF") ->  | H62: 0 | J62: 0 | L62: 0 | M62: 0 | N62: 0 | O62: ='Control Panel'!$K$5 -> 0.71 | Q62: 0 | R62: 0 | S62: ='Control Panel'!$K$6 -> 0.97 | U62: 0 | V62: 0 | W62: ='Control Panel'!$K$7 -> 0.9 | AE62: 0 | AP62: TRUE | AQ62: TRUE | AS62: TRUE | AT62: TRUE | AV62: ='Control Panel'!$M$5 -> 0.5 | AW62: ='Control Panel'!$M$6 -> 0.7 | AX62: ='Control Panel'!$M$7 -> 0.9
B63: =IF(VLOOKUP(A63,'Control Panel'!$A$5:$B$69,2,FALSE)=TRUE,"ON","OFF") ->  | H63: 0 | J63: 0 | L63: 0 | M63: 0 | N63: 0 | O63: ='Control Panel'!$K$5 -> 0.71 | Q63: 0 | R63: 0 | S63: ='Control Panel'!$K$6 -> 0.97 | U63: 0 | V63: 0 | W63: ='Control Panel'!$K$7 -> 0.9 | AE63: 0 | AP63: TRUE | AQ63: TRUE | AS63: TRUE | AT63: TRUE | AV63: ='Control Panel'!$M$5 -> 0.5 | AW63: ='Control Panel'!$M$6 -> 0.7 | AX63: ='Control Panel'!$M$7 -> 0.9
B64: =IF(VLOOKUP(A64,'Control Panel'!$A$5:$B$69,2,FALSE)=TRUE,"ON","OFF") ->  | H64: 0 | J64: 0 | L64: 0 | M64: 0 | N64: 0 | O64: ='Control Panel'!$K$5 -> 0.71 | Q64: 0 | R64: 0 | S64: ='Control Panel'!$K$6 -> 0.97 | U64: 0 | V64: 0 | W64: ='Control Panel'!$K$7 -> 0.9 | AE64: 0 | AP64: TRUE | AQ64: TRUE | AS64: TRUE | AT64: TRUE | AV64: ='Control Panel'!$M$5 -> 0.5 | AW64: ='Control Panel'!$M$6 -> 0.7 | AX64: ='Control Panel'!$M$7 -> 0.9
B65: =IF(VLOOKUP(A65,'Control Panel'!$A$5:$B$69,2,FALSE)=TRUE,"ON","OFF") ->  | H65: 0 | J65: 0 | L65: 0 | M65: 0 | N65: 0 | O65: ='Control Panel'!$K$5 -> 0.71 | Q65: 0 | R65: 0 | S65: ='Control Panel'!$K$6 -> 0.97 | U65: 0 | V65: 0 | W65: ='Control Panel'!$K$7 -> 0.9 | AE65: 0 | AP65: TRUE | AQ65: TRUE | AS65: TRUE | AT65: TRUE | AV65: ='Control Panel'!$M$5 -> 0.5 | AW65: ='Control Panel'!$M$6 -> 0.7 | AX65: ='Control Panel'!$M$7 -> 0.9
B66: =IF(VLOOKUP(A66,'Control Panel'!$A$5:$B$69,2,FALSE)=TRUE,"ON","OFF") ->  | H66: 0 | J66: 0 | L66: 0 | M66: 0 | N66: 0 | O66: ='Control Panel'!$K$5 -> 0.71 | Q66: 0 | R66: 0 | S66: ='Control Panel'!$K$6 -> 0.97 | U66: 0 | V66: 0 | W66: ='Control Panel'!$K$7 -> 0.9 | AE66: 0 | AP66: TRUE | AQ66: TRUE | AS66: TRUE | AT66: TRUE | AV66: ='Control Panel'!$M$5 -> 0.5 | AW66: ='Control Panel'!$M$6 -> 0.7 | AX66: ='Control Panel'!$M$7 -> 0.9
B67: =IF(VLOOKUP(A67,'Control Panel'!$A$5:$B$69,2,FALSE)=TRUE,"ON","OFF") ->  | H67: 0 | J67: 0 | L67: 0 | M67: 0 | N67: 0 | O67: ='Control Panel'!$K$5 -> 0.71 | Q67: 0 | R67: 0 | S67: ='Control Panel'!$K$6 -> 0.97 | U67: 0 | V67: 0 | W67: ='Control Panel'!$K$7 -> 0.9 | AE67: 0 | AP67: TRUE | AQ67: TRUE | AS67: TRUE | AT67: TRUE | AV67: ='Control Panel'!$M$5 -> 0.5 | AW67: ='Control Panel'!$M$6 -> 0.7 | AX67: ='Control Panel'!$M$7 -> 0.9
B68: =IF(VLOOKUP(A68,'Control Panel'!$A$5:$B$69,2,FALSE)=TRUE,"ON","OFF") ->  | H68: 0 | J68: 0 | L68: 0 | M68: 0 | N68: 0 | O68: ='Control Panel'!$K$5 -> 0.71 | Q68: 0 | R68: 0 | S68: ='Control Panel'!$K$6 -> 0.97 | U68: 0 | V68: 0 | W68: ='Control Panel'!$K$7 -> 0.9 | AE68: 0 | AP68: TRUE | AQ68: TRUE | AS68: TRUE | AT68: TRUE | AV68: ='Control Panel'!$M$5 -> 0.5 | AW68: ='Control Panel'!$M$6 -> 0.7 | AX68: ='Control Panel'!$M$7 -> 0.9
B69: =IF(VLOOKUP(A69,'Control Panel'!$A$5:$B$69,2,FALSE)=TRUE,"ON","OFF") ->  | H69: 0 | J69: 0 | L69: 0 | M69: 0 | N69: 0 | O69: ='Control Panel'!$K$5 -> 0.71 | Q69: 0 | R69: 0 | S69: ='Control Panel'!$K$6 -> 0.97 | U69: 0 | V69: 0 | W69: ='Control Panel'!$K$7 -> 0.9 | AE69: 0 | AP69: TRUE | AQ69: TRUE | AS69: TRUE | AT69: TRUE | AV69: ='Control Panel'!$M$5 -> 0.5 | AW69: ='Control Panel'!$M$6 -> 0.7 | AX69: ='Control Panel'!$M$7 -> 0.9
B70: =IF(VLOOKUP(A70,'Control Panel'!$A$5:$B$69,2,FALSE)=TRUE,"ON","OFF") ->  | H70: 0 | J70: 0 | L70: 0 | M70: 0 | N70: 0 | O70: ='Control Panel'!$K$5 -> 0.71 | Q70: 0 | R70: 0 | S70: ='Control Panel'!$K$6 -> 0.97 | U70: 0 | V70: 0 | W70: ='Control Panel'!$K$7 -> 0.9 | AE70: 0 | AP70: TRUE | AQ70: TRUE | AS70: TRUE | AT70: TRUE | AV70: ='Control Panel'!$M$5 -> 0.5 | AW70: ='Control Panel'!$M$6 -> 0.7 | AX70: ='Control Panel'!$M$7 -> 0.9
B71: =IF(VLOOKUP(A71,'Control Panel'!$A$5:$B$69,2,FALSE)=TRUE,"ON","OFF") ->  | H71: 0 | J71: 0 | L71: 0 | M71: 0 | N71: 0 | O71: ='Control Panel'!$K$5 -> 0.71 | Q71: 0 | R71: 0 | S71: ='Control Panel'!$K$6 -> 0.97 | U71: 0 | V71: 0 | W71: ='Control Panel'!$K$7 -> 0.9 | AE71: 0 | AP71: TRUE | AQ71: TRUE | AS71: TRUE | AT71: TRUE | AV71: ='Control Panel'!$M$5 -> 0.5 | AW71: ='Control Panel'!$M$6 -> 0.7 | AX71: ='Control Panel'!$M$7 -> 0.9
B72: =IF(VLOOKUP(A72,'Control Panel'!$A$5:$B$69,2,FALSE)=TRUE,"ON","OFF") ->  | H72: 0 | J72: 0 | L72: 0 | M72: 0 | N72: 0 | O72: ='Control Panel'!$K$5 -> 0.71 | Q72: 0 | R72: 0 | S72: ='Control Panel'!$K$6 -> 0.97 | U72: 0 | V72: 0 | W72: ='Control Panel'!$K$7 -> 0.9 | Y72: 0 | Z72: 0 | AA72: 0 | AB72: 0 | AC72: 0 | AE72: 0 | AF72: 0 | AP72: TRUE | AQ72: TRUE | AS72: TRUE | AT72: TRUE | AV72: ='Control Panel'!$M$5 -> 0.5 | AW72: ='Control Panel'!$M$6 -> 0.7 | AX72: ='Control Panel'!$M$7 -> 0.9
B73: =IF(VLOOKUP(A73,'Control Panel'!$A$5:$B$69,2,FALSE)=TRUE,"ON","OFF") ->  | H73: 0 | J73: 0 | L73: 0 | M73: 0 | N73: 0 | O73: ='Control Panel'!$K$5 -> 0.71 | Q73: 0 | R73: 0 | S73: ='Control Panel'!$K$6 -> 0.97 | U73: 0 | V73: 0 | W73: ='Control Panel'!$K$7 -> 0.9 | Y73: 0 | Z73: 0 | AA73: 0 | AB73: 0 | AC73: 0 | AE73: 0 | AF73: 0 | AP73: TRUE | AQ73: TRUE | AS73: TRUE | AT73: TRUE | AV73: ='Control Panel'!$M$5 -> 0.5 | AW73: ='Control Panel'!$M$6 -> 0.7 | AX73: ='Control Panel'!$M$7 -> 0.9
B74: =IF(VLOOKUP(A74,'Control Panel'!$A$5:$B$69,2,FALSE)=TRUE,"ON","OFF") -> 
A75: Total | H75: =LU_C1!Y75/LU_C1!U75 -> 0.8230729606 | J75: =LU_C1!AG75/LU_C1!AF75 -> 0.5 | L75: =SUMIF($B$8:$B$73,"ON",L8:L73) -> 4569 | M75: =LU_C1!AO75/L75 -> 68.96058218 | N75: =LU_C1!AQ75/L75 -> 1.601444517 | O75: ='Control Panel'!$K$5 -> 0.71 | Q75: =SUMIF($B$8:$B$73,"ON",Q8:Q73) -> 29711.48126 | R75: =Q75/LU_C1!AU75 -> 30 | S75: ='Control Panel'!$K$6 -> 0.97 | U75: =SUMIF($B$8:$B$73,"ON",U8:U73) -> 24643.72026 | V75: =U75/LU_C1!AY75 -> 78.48318553 | W75: ='Control Panel'!$K$7 -> 0.9 | Y75: =SUMIF($B$8:$B$73,"ON",Y8:Y73) -> 400 | Z75: =LU_C1!BC75/Y75 -> 22.5 | AA75: =LU_C1!BD75/Y75 -> 0.1 | AB75: =SUMIF($B$8:$B$73,"ON",AB8:AB73) -> 5000 | AC75: =SUM(LU_C1!BC75,AB75)/LU_C1!BE75 -> 1272.727273 | AE75: =SUMIF($B$8:$B$73,"ON",AE8:AE73) -> 800 | AH75: =SUMIF($B$8:$B$73,"ON",AH8:AH73) -> 0 | AI75: =SUMIF($B$8:$B$73,"ON",AI8:AI73) -> 0 | AP75: =(SUMIFS(LU_C1!AK8:AK73,AP8:AP73,"TRUE",B8:B73,"ON")+SUMIFS(LU_C1!AL8:AL73,AP8:AP73,"TRUE",B8:B73,"ON")+SUMIFS(LU_C1!AM8:AM73,AP8:AP73,"TRUE",B8:B73,"ON"))/SUM(LU_C1!AK75,LU_C1!AL75,LU_C1!AM75) -> 0.977597238 | AQ75: =(SUMIFS(LU_C1!AK8:AK73,AQ8:AQ73,"TRUE",B8:B73,"ON")+SUMIFS(LU_C1!AL8:AL73,AQ8:AQ73,"TRUE",B8:B73,"ON")+SUMIFS(LU_C1!AM8:AM73,AQ8:AQ73,"TRUE",B8:B73,"ON"))/SUM(LU_C1!AK75,LU_C1!AL75,LU_C1!AM75) -> 0.977597238 | AS75: =(SUMIFS(LU_C1!AK8:AK73,AS8:AS73,"TRUE",B8:B73,"ON")+SUMIFS(LU_C1!AL8:AL73,AS8:AS73,"TRUE",B8:B73,"ON")+SUMIFS(LU_C1!AM8:AM73,AS8:AS73,"TRUE",B8:B73,"ON"))/SUM(LU_C1!AK75,LU_C1!AL75,LU_C1!AM75) -> 1 | AT75: =(SUMIFS(LU_C1!AK8:AK73,AT8:AT73,"TRUE",B8:B73,"ON")+SUMIFS(LU_C1!AL8:AL73,AT8:AT73,"TRUE",B8:B73,"ON")+SUMIFS(LU_C1!AM8:AM73,AT8:AT73,"TRUE",B8:B73,"ON"))/SUM(LU_C1!AK75,LU_C1!AL75,LU_C1!AM75) -> 1 | AV75: ='Control Panel'!$M$5 -> 0.5 | AW75: ='Control Panel'!$M$6 -> 0.7 | AX75: ='Control Panel'!$M$7 -> 0.9 | AZ75: =SUMIF($B$8:$B$73,"ON",AZ8:AZ73) -> 457 | BA75: =SUMIF($B$8:$B$73,"ON",BA8:BA73) -> 2285 | BB75: 1599 | BC75: 228
AZ76: 1.33 | BA76: 1.38 | BB76: 1.85 | BC76: 2.36
Q77: employees | R77: =Q75/R75 -> 990.3827087 | V77: =U75/V75 -> 314 | AZ77: =AZ76*AZ75 -> 607.81 | BA77: =BA76*BA75 -> 3153.3 | BB77: 2958.15 | BC77: 538.08

Sheet Energy (hidden)
A1: =CONCATENATE("Base Data Input: ",MID(CELL("filename",A1),FIND("]",CELL("filename",A1))+1,LEN(CELL("filename",A1))-FIND("]",CELL("filename",A1)))) -> Base Data Input: Energy
A2: Scenario Control Panel
A3: 1. Numerical Inputs
A4: Code | B4: Description | C4: Units | E4: Site | F4: Water Electricity | L4: Housing | T4: Commercial/Government | AB4: Retail | AJ4: Hotel | AR4: Social | AZ4: Other/Utility
E5: Land Exterior Lighting | F5: Water Distribution | G5: Water Treatment | H5: Total | I5: Wastewater Treatment | J5: Wastewater Distribution | K5: Total | L5: Interior Lighting | M5: Ventilation | N5: Hot Water | O5: HVAC Cooling | P5: HVAC Heating | Q5: HVAC Auxiliaries | R5: Appliances & Eqmpt | S5: Total | T5: Interior Lighting | U5: Ventilation | V5: Hot Water | W5: HVAC Cooling | X5: HVAC Heating | Y5: HVAC Auxiliaries | Z5: Appliances & Eqmpt | AA5: Total | AB5: Interior Lighting | AC5: Ventilation | AD5: Hot Water | AE5: HVAC Cooling | AF5: HVAC Heating | AG5: HVAC Auxiliaries | AH5: Appliances & Eqmpt | AI5: Total | AJ5: Interior Lighting | AK5: Ventilation | AL5: Hot Water | AM5: HVAC Cooling | AN5: HVAC Heating | AO5: HVAC Auxiliaries | AP5: Appliances & Eqmpt | AQ5: Total | AR5: Interior Lighting | AS5: Ventilation | AT5: Hot Water | AU5: HVAC Cooling | AV5: HVAC Heating | AW5: HVAC Auxiliaries | AX5: Appliances & Eqmpt | AY5: Total | AZ5: Interior Lighting | BA5: Ventilation | BB5: Hot Water | BC5: HVAC Cooling | BD5: HVAC Heating | BE5: HVAC Auxiliaries | BF5: Appliances & Eqmpt | BG5: Total
A6: Code | C6: UNIT | E6: LEXT-E | F6: WDIS | G6: WTRE | H6: WTOT | I6: WATR | J6: WADI | K6: WATOT | L6: HLGT-E | M6: HVENT-E | N6: HHW-E | O6: HCOOL-E | P6: HHEAT-E | Q6: HAUX-E | R6: HAPP-E | S6: HTOT-E | T6: CLGT-E | U6: CVENT-E | V6: CHW-E | W6: CCOOL-E | X6: CHEAT-E | Y6: CAUX-E | Z6: CAPP-E | AA6: CTOT-E | AB6: RLGT-E | AC6: RVENT-E | AD6: RHW-E | AE6: RCOOL-E | AF6: RHEAT-E | AG6: RAUX-E | AH6: RAPP-E | AI6: RTOT-E | AJ6: HLLGT-E | AK6: HLVENT-E | AL6: HLHW-E | AM6: HLCOOL-E | AN6: HLHEAT-E | AO6: HLAUX-E | AP6: HLAPP-E | AQ6: HLTOT-E | AR6: SLGT-E | AS6: SVENT-E | AT6: SHW-E | AU6: SCOOL-E | AV6: SHEAT-E | AW6: SAUX-E | AX6: SAPP-E | AY6: STOT-E | AZ6: OLGT-E | BA6: OVENT-E | BB6: OHW-E | BC6: OCOOL-E | BD6: OHEAT-E | BE6: OAUX-E | BF6: OAPP-E | BG6: OTOT-E
A7: Units
A8: AELEC | B8: Annual - Building Electricity Use | C8: kWh/m2/yr | E8: 7 | L8: 22.53955217 | M8: 29.1911615 | N8: 0 | O8: 8.696942 | P8: 0.1932136667 | Q8: 3.486346333 | R8: 39.96640367 | S8: =SUM(L8:R8) -> 104.0736193 | T8: 37.8 | U8: 10.278861 | V8: 0 | W8: 32.638461 | X8: 0.2036716836 | Y8: 16.378303 | Z8: 39.625369 | AA8: =SUM(T8:Z8) -> 136.9246657 | AB8: 63.1399455 | AC8: 10.9866465 | AD8: 0 | AE8: 16.569357 | AF8: 0.285704 | AG8: 12.9923505 | AH8: 26.1582305 | AI8: =SUM(AB8:AH8) -> 130.132234 | AJ8: 22.53955217 | AK8: 29.1911615 | AL8: 0 | AM8: 8.696942 | AN8: 0.1932136667 | AO8: 3.486346333 | AP8: 39.96640367 | AQ8: =SUM(AJ8:AP8) -> 104.0736193 | AR8: 22.53955217 | AS8: 29.1911615 | AT8: 0 | AU8: 8.696942 | AV8: 0.1932136667 | AW8: 3.486346333 | AX8: 39.96640367 | AY8: =SUM(AR8:AX8) -> 104.0736193 | AZ8: 0 | BA8: 0 | BB8: 0 | BC8: 0 | BD8: 0 | BE8: 0 | BF8: 0 | BG8: 50
A9: ATHRM | B9: Annual - Building Thermal Use | C9: kWh/m2/yr | L9: 0 | M9: 0 | N9: 27.61622667 | O9: 0 | P9: 85.33556633 | Q9: 0 | R9: 0 | S9: =SUM(L9:R9) -> 112.951793 | T9: 0 | U9: 0 | V9: 8.253517 | W9: 0 | X9: 92.578038 | Y9: 0 | Z9: 0 | AA9: =SUM(T9:Z9) -> 100.831555 | AB9: 0 | AC9: 0 | AD9: 7.8118195 | AE9: 0 | AF9: 129.877231 | AG9: 0 | AH9: 0 | AI9: =SUM(AB9:AH9) -> 137.6890505 | AJ9: 0 | AK9: 0 | AL9: 27.61622667 | AM9: 0 | AN9: 85.33556633 | AO9: 0 | AP9: 0 | AQ9: =SUM(AJ9:AP9) -> 112.951793 | AR9: 0 | AS9: 0 | AT9: 27.61622667 | AU9: 0 | AV9: 85.33556633 | AW9: 0 | AX9: 0 | AY9: =SUM(AR9:AX9) -> 112.951793 | AZ9: 0 | BA9: 0 | BB9: 0 | BC9: 0 | BD9: 0 | BE9: 0 | BF9: 0 | BG9: 100
A11: AWELEC | B11: Annual - Water Electricity Use | C11: kWh/ML | H11: 700 | K11: 500
A12: AWTHRM | B12: Annual - Water Thermal Use | C12: kWh/ML | I12: 316.67 | K12: =SUM(I12:J12) -> 316.67
A14: GWELEC | B14: Greywater Electricity Use | C14: kWh/ML | I14: 470
A15: BWELEC | B15: Blackwater Electricity Use | C15: kWh/ML | I15: 1056
A17: RDELEC | B17: Baseline Electricity Provided by District Plant | C17: kWh/yr | BG17: 0
A18: RDTHRM | B18: Baseline Thermal Provided by District Plant | C18: kWh/yr | BG18: 0
A20: TRELEC | B20: Transit Electricity Use | C20: kWh/mi | BG20: 20
A21: NEVELEC | B21: NEV electricity Use | C21: kWh/mi | BG21: 0.169
A50: 2. Source Inputs
A51: Code | B51: Description | C51: Units | E51: Site | F51: Water Electricity | L51: Housing | T51: Commercial/Government | AB51: Retail | AJ51: Hotel | AR51: Social | AZ51: Other/Utility
E52: Land Exterior Lighting | F52: Water Distribution | G52: Water Treatment | H52: Total | I52: Wastewater Treatment | J52: Wastewater Distribution | K52: Total | L52: Interior Lighting | M52: Ventilation | N52: Hot Water | O52: HVAC Cooling | P52: HVAC Heating | Q52: HVAC Auxiliaries | R52: Appliances & Eqmpt | S52: Total | T52: Interior Lighting | U52: Ventilation | V52: Hot Water | W52: HVAC Cooling | X52: HVAC Heating | Y52: HVAC Auxiliaries | Z52: Appliances & Eqmpt | AA52: Total | AB52: Interior Lighting | AC52: Ventilation | AD52: Hot Water | AE52: HVAC Cooling | AF52: HVAC Heating | AG52: HVAC Auxiliaries | AH52: Appliances & Eqmpt | AI52: Total | AJ52: Interior Lighting | AK52: Ventilation | AL52: Hot Water | AM52: HVAC Cooling | AN52: HVAC Heating | AO52: HVAC Auxiliaries | AP52: Appliances & Eqmpt | AQ52: Total | AR52: Interior Lighting | AS52: Ventilation | AT52: Hot Water | AU52: HVAC Cooling | AV52: HVAC Heating | AW52: HVAC Auxiliaries | AX52: Appliances & Eqmpt | AY52: Total | AZ52: Interior Lighting | BA52: Ventilation | BB52: Hot Water | BC52: HVAC Cooling | BD52: HVAC Heating | BE52: HVAC Auxiliaries | BF52: Appliances & Eqmpt | BG52: Total
A53: Units | C53: UNIT | E53: =E6 -> LEXT-E | F53: =F6 -> WDIS | G53: WTRE | H53: WTOT | I53: WATR | J53: WADI | K53: WATOT | L53: HLGT-E | M53: HVENT-E | N53: HHW-E | O53: HCOOL-E | P53: HHEAT-E | Q53: HAUX-E | R53: HAPP-E | S53: HTOT-E | T53: CLGT-E | U53: CVENT-E | V53: CHW-E | W53: CCOOL-E | X53: CHEAT-E | Y53: CAUX-E | Z53: CAPP-E | AA53: CTOT-E | AB53: RLGT-E | AC53: RVENT-E | AD53: RHW-E | AE53: RCOOL-E | AF53: RHEAT-E | AG53: RAUX-E | AH53: RAPP-E | AI53: RTOT-E | AJ53: HLLGT-E | AK53: HLVENT-E | AL53: HLHW-E | AM53: HLCOOL-E | AN53: HLHEAT-E | AO53: HLAUX-E | AP53: HLAPP-E | AQ53: HLTOT-E | AR53: SLGT-E | AS53: SVENT-E | AT53: SHW-E | AU53: SCOOL-E | AV53: SHEAT-E | AW53: SAUX-E | AX53: SAPP-E | AY53: STOT-E | AZ53: OLGT-E | BA53: OVENT-E | BB53: OHW-E | BC53: OCOOL-E | BD53: OHEAT-E | BE53: OAUX-E | BF53: OAPP-E | BG53: OTOT-E
A54: Code
A55: =IF(A8="","",A8) -> AELEC | B55: Annual - Building Electricity Use | C55: kWh/m2/yr | E55: a | K55: b | L55: b | M55: b | N55: b | O55: b | P55: b | Q55: b | R55: b | S55: b | T55: b | U55: b | V55: b | W55: b | X55: b | Y55: b | Z55: b | AA55: b | AB55: b | AC55: b | AD55: b | AE55: b | AF55: b | AG55: b | AH55: b | AI55: b | AJ55: b | AK55: b | AL55: b | AM55: b | AN55: b | AO55: b | AP55: b | AQ55: b | AR55: b | AS55: b | AT55: b | AU55: b | AV55: b | AW55: b | AX55: b | AY55: b | AZ55: ? | BA55: ? | BB55: ? | BC55: ? | BD55: ? | BE55: ? | BF55: ? | BG55: ??
A56: ATHRM | B56: Annual - Building Thermal Use | C56: kWh/m2/yr | K56: b | L56: b | M56: b | N56: b | O56: b | P56: b | Q56: b | R56: b | S56: b | T56: b | U56: b | V56: b | W56: b | X56: b | Y56: b | Z56: b | AA56: b | AB56: b | AC56: b | AD56: b | AE56: b | AF56: b | AG56: b | AH56: b | AI56: b | AJ56: b | AK56: b | AL56: b | AM56: b | AN56: b | AO56: b | AP56: b | AQ56: b | AR56: b | AS56: b | AT56: b | AU56: b | AV56: b | AW56: b | AX56: b | AY56: b | AZ56: ? | BA56: ? | BB56: ? | BC56: ? | BD56: ? | BE56: ? | BF56: ? | BG56: ??
A58: AWELEC | B58: Annual - Water Electricity Use | C58: kWh/ML | F58: c | G58: c | H58: c | I58: c | J58: c | K58: c
A59: AWTHRM | B59: Annual - Water Thermal Use | C59: kWh/ML | H59: d | I59: c | K59: c
A61: GWELEC | B61: Greywater Electricity Use | C61: kWh/ML | I61: e
A62: BWELEC | B62: Blackwater Electricity Use | C62: kWh/ML | I62: f
A64: RDELEC | B64: Baseline Electricity Provided by District Plant | C64: kWh/yr | BG64: g
A65: RDTHRM | B65: Baseline Thermal Provided by District Plant | C65: kWh/yr | BG65: g
A67: TRELEC | B67: Transit Electricity Use | C67: kWh/mi
A68: NEVELEC | B68: NEV electricity Use | C68: kWh/mi
A84: =IF(A29="","",A29) -> 
A86: =IF(A39="","",A39) -> 
A87: =IF(A40="","",A40) -> 
A88: =IF(A41="","",A41) -> 
A89: =IF(A42="","",A42) -> 
A90: =IF(A35="","",A35) -> 
A91: =IF(A36="","",A36) -> 
A92: =IF(A45="","",A45) -> 
A93: =IF(A46="","",A46) -> 
A94: =IF(A47="","",A47) -> 
A95: =IF(A48="","",A48) -> 
A96: =IF(A41="","",A41) -> 
A97: =IF(A42="","",A42) -> 
A99: Sources
A100: a | B100: ASHRAE 90.1-2004 Table 9.4.5 for Drives (1.6W/m2 for average 12 hours per day)
A101: b | B101: Arup Energy Model
A102: c | B102: Kennedy, C. - Chistopher Morgan of the City of Toronto
A103: d | B103: Sahely, H. & Kennedy, C., Water Use Model for Quantifying Environmental and Economic Sustainability Indicators. Journal of Water Resources Planning and Management©2009
B104: Equation: 38000 KJ/m3 x AVERAGE(47 m3,28 m3) x 80%/3600 kJ/kWh
A105: e | B105: Typical Trickling Filter Energy Use
A106: f | B106: MBR information from GE
A107: g | B107: District Energy Provider

Sheet Water (hidden)
A1: =CONCATENATE("Base Data Input: ",MID(CELL("filename",A1),FIND("]",CELL("filename",A1))+1,LEN(CELL("filename",A1))-FIND("]",CELL("filename",A1)))) -> Base Data Input: Water
A2: Scenario Control Panel
A3: 1. Numerical Inputs
A4: Code | B4: Description | C4: Units | E4: Site | F4: Hardscape | G4: Softscape | H4: Buildings Total | I4: Housing | J4: Commercial/Government | K4: Retail | L4: Hotel | M4: Social | N4: Other/Utility
A6: Code | C6: UNIT | E6: SITE | F6: HARD | G6: SOFT | H6: BTOT | I6: HOUS | J6: COMM | K6: RETA | L6: HOTE | M6: SOCI | N6: OTHE
A7: Units
A8: WCON | B8: Water Consumption | C8: Lppd, Lsqmd,Lspd | G8: 7.167 | I8: 257 | J8: 4 | K8: 5 | L8: 187.5 | M8: 105
A10: TWPC | B10: Total Water Percentage | C10: % | I10: =SUM(I11:I17) -> 1 | J10: =SUM(J11:J17) -> 1 | K10: 1 | L10: =SUM(L11:L17) -> 1 | M10: 1
A11: PWPO-FL | B11: Flow | C11: % | I11: 0.37 | J11: 0.222 | K11: 0.171 | L11: 0.338 | M11: 0.28 | N11: 0.09
A12: PWPO-DI | B12: Dish | C12: % | I12: 0.02 | J12: 0.028 | K12: 0.035 | L12: 0.03 | M12: 0.04 | N12: 0.1
A13: PWPO-LE | B13: Leaks | C13: % | I13: 0.11 | J13: 0.106 | K13: 0.112 | L13: 0.095 | M13: 0.1 | N13: 0.1
A14: PWPO-PR | B14: Process | C14: % | J14: 0.011 | K14: 0.012 | L14: 0.011 | M14: 0.04 | N14: 0.1
A15: PWPO-CO | B15: Cooling | C15: % | J15: 0.311 | K15: 0.329 | L15: 0.055 | M15: 0.11 | N15: 0.1
A16: PWPO-LA | B16: Laundry | C16: % | I16: 0.22 | J16: 0 | K16: 0.035 | L16: 0.191 | M16: 0.19 | N16: 0.1
A17: PWNP-FL | B17: Flush | C17: % | H17: =J11+J12+J13+J16+J17+J14 -> 0.689 | I17: 0.28 | J17: 0.322 | K17: 0.306 | L17: 0.28 | M17: 0.24 | N17: 0.26
A18: PWNP-IR | B18: Irrigation | C18: % | G18: 1
A20: EGRW | B20: Efficiency of Greywater System | C20: % | I20: 0.9 | J20: 0.9 | K20: 0.9 | L20: 0.9 | M20: 0.9 | N20: 0.9
A21: EBLW | B21: Efficiency of Blackwater System | C21: % | I21: 0.9 | J21: 0.9 | K21: 0.9 | L21: 0.9 | M21: 0.9 | N21: 0.9
A23: RRCO | B23: Roof Rainwater Runoff Coefficient | C23: % | F23: 0.95 | G23: 0.25 | H23: 0.95
A24: ARAD | B24: Total Yearly Rainfall | C24: mm/yr | E24: 842.3 | F24: =E24 -> 842.3 | G24: =F24 -> 842.3 | H24: 842.3 | I24: 842.3 | J24: 842.3 | K24: 842.3 | L24: 842.3 | M24: 842.3 | N24: 842.3
A25: 2YSD | B25: 2-year, 24 Hour Storm Depth | C25: mm | E25: 51.11 | F25: 51.11 | G25: 51.11 | H25: 51.11 | I25: 51.11 | J25: 51.11 | K25: 51.11 | L25: 51.11 | M25: 51.11 | N25: 51.11
A26: 2YSI | B26: 2-year, 24 Hour Storm Intensity | C26: mm/hr | E26: 2.12 | F26: 2.12 | G26: 2.12 | H26: 2.12 | I26: 2.12 | J26: 2.12 | K26: 2.12 | L26: 2.12 | M26: 2.12 | N26: 2.12
A27: EVAP | B27: Evapotranspiration | C27: mm/yr | E27: 817.51
A28: IRDD | B28: Irrigation Efficiency | C28: % | G28: 0.625
A50: 2. Source Inputs
A51: Code | B51: Description | C51: Units | E51: Site | F51: Hardscape | G51: Softscape | H51: Buildings Total | I51: Housing | J51: Commercial/Government | K51: Retail | L51: Hotel | M51: Social | N51: Other/Utility
A53: Code | E53: SITE | F53: HARD | G53: SOFT | H53: BTOT | I53: HOUS | J53: COMM | K53: RETA | L53: HOTE | M53: SOCI | N53: OTHE
A54: Units
A55: =IF(A8="","",A8) -> WCON | B55: Water Consumption | C55: Lppd, Lsqmd,Lspd | G55: a | I55: b | J55: c | K55: d | L55: e | M55: f
A57: TWPC | B57: Total Water Percentage | C57: %
A58: PWPO-FL | B58: Flow | C58: % | I58: g | J58: b,i | K58: b,i | L58: b,i | M58: b,i
A59: PWPO-DI | B59: Dish | C59: % | I59: g | J59: b,i | K59: b,i | L59: b,i | M59: b,i
A60: PWPO-LE | B60: Leaks | C60: % | I60: g | J60: b,i | K60: b,i | L60: b,i | M60: b,i
A61: PWPO-PR | B61: Process | C61: % | I61: g | J61: b,i | K61: b,i | L61: b,i | M61: b,i
A62: PWPO-CO | B62: Cooling | C62: % | I62: g | J62: b,i | K62: b,i | L62: b,i | M62: b,i
A63: PWPO-LA | B63: Laundry | C63: % | I63: g | J63: b,i | K63: b,i | L63: b,i | M63: b,i
A64: PWNP-FL | B64: Flush | C64: % | I64: g | J64: b,i | K64: b,i | L64: b,i | M64: b,i
A65: PWNP-IR | B65: Irrigation | C65: % | G65: h
A67: EGRW | B67: Efficiency of Greywater System | C67: % | I67: j | J67: j | K67: j | L67: j | M67: j
A68: EBLW | B68: Efficiency of Blackwater System | C68: % | I68: j | J68: j | K68: j | L68: j | M68: j
A70: RRCO | B70: Roof Rainwater Runoff Coefficient | C70: % | F70: k | G70: k | H70: k
A71: ARAD | B71: Total Yearly Rainfall | C71: mm/yr | E71: l | F71: =$E$71 -> l | G71: l | H71: l | I71: l | J71: l | K71: l | L71: l | M71: l | N71: l
A72: 2YSD | B72: 2-year, 24 Hour Storm Depth | C72: mm | E72: m | F72: m | G72: m | H72: m | I72: m | J72: m | K72: m | L72: m | M72: m | N72: m
A73: 2YSI | B73: 2-year, 24 Hour Storm Intensity | C73: mm/hr | E73: m | F73: m | G73: m | H73: m | I73: m | J73: m | K73: m | L73: m | M73: m | N73: m
A74: EVAP | B74: Evapotranspiration | C74: mm/yr | E74: n
A75: IRDD | B75: Irrigation Efficiency | C75: % | G75: j
A78: =IF(A34="","",A34) ->  | B78: =IF(B34="","",B34) ->  | C78: =IF(C34="","",C34) -> 
A79: Sources
A80: a | B80: Landscape demand equation: Evapotranspiration (817.51 mm/y) x species factor (1.0) x density factor (1.0) x microclimate factor (1.0)/Irrigation efficiency (63%)
A81: b | B81: City of Toronto. "Water Efficiency Plan". (2001 value) pg. 6 of Chapter 2, © December 2002
A82: c | B82: AWWARF. "Commercial and Institutional End Uses of Water"
A83: d | B83: Ontario sewer codes. http://www.ene.gov.on.ca/publications/6238e.pdf
A84: e | B84: Ontario sewer codes: http://www.ene.gov.on.ca/publications/6238e.pdf, Avg value-assumes per bed per day
A85: f | B85: Ontario sewer codes: http://www.ene.gov.on.ca/publications/6238e.pdf, Avg value-assumes per student per day
A86: g | B86: City of Toronto. "Water Efficiency Plan". pg.36 ©December 2002
A87: h | B87: Assumes that 100% of softscape water is used for irrigation
A88: i | B88: AWWARF
A89: j | B89: Arup
A90: k | B90: Rational Method Coefficients
A91: l | B91: Canadian Climate Normals 1971-2000. Environment Canada. Ashbridges Bay data
A92: m | B92: Ontario Ministry of the Environement SWM Manual
A93: n | B93: World Water and Climate Atlas x days per month x 12

Sheet Waste (hidden)
A1: =CONCATENATE("Base Data Input: ",MID(CELL("filename",A1),FIND("]",CELL("filename",A1))+1,LEN(CELL("filename",A1))-FIND("]",CELL("filename",A1)))) -> Base Data Input: Waste
A2: Scenario Control Panel
A3: 1. Numerical Inputs
A4: Code | B4: Description | C4: Units | E4: Site | F4: Hardscape | G4: Softscape | H4: Buildings Total | I4: Residential | J4: Commercial/Government | K4: Retail | L4: Hotel | M4: Social | N4: Other/Utility
A6: Code | C6: UNIT | E6: SITE | F6: HARD | G6: SOFT | H6: BTOT | I6: HOUS | J6: COMM | K6: RETA | L6: HOTE | M6: SOCI | N6: OTHE
A7: Units
A8: WGEN | B8: Waste Generation | C8: kg/hh/day kg/m2/day | G8: 0.001242 | I8: 1.67 | J8: 0.0267 | K8: 0.026 | L8: 0.288
A9: WGENPA | B9: Paper | C9: % | I9: 0.361 | J9: 0.535 | K9: 0.474 | L9: 0.332
A10: WGENGL | B10: Glass | C10: % | I10: 0.065 | J10: 0.017 | K10: 0.017 | L10: 0.053
A11: WGENME | B11: Metal | C11: % | I11: 0.032 | J11: 0.015 | K11: 0.04 | L11: 0.031
A12: WGENEL | B12: Electronics | C12: % | I12: 0.006 | J12: 0 | K12: 0.002 | L12: 0.003
A13: WGENPL | B13: Plastic | C13: % | I13: 0.121 | J13: 0.117 | K13: 0.109 | L13: 0.078
A14: WGENOR | B14: Organic | C14: % | G14: 1 | I14: 0.325 | J14: 0.227 | K14: 0.22 | L14: 0.453
A15: WGENC | B15: C&D | C15: % | I15: 0.012 | J15: 0.079 | K15: 0.117 | L15: 0.05
A16: WGENHO | B16: Household hazardous | C16: % | I16: 0.003 | J16: 0.002 | K16: 0.01 | L16: 0.001
A17: WGENSP | B17: Special Waste | C17: % | I17: 0.075 | J17: 0.009 | K17: 0.008 | L17: 0
A18: WGENMI | B18: Mixed residue | C18: % | I18: 0 | J18: 0 | K18: 0 | L18: 0
A20: WDIVR | B20: Diversion Rate | C20: % | G20: 0.14 | I20: 0.44 | J20: 0.18 | K20: 0.18 | L20: 0.18 | M20: 0.18
A22: CPERD | B22: Construction period | C22: years | E22: 1 | F22: =$E$22 -> 1 | G22: 1 | H22: 1 | I22: 1 | J22: 1 | K22: 1 | L22: 1 | M22: 1 | N22: 1
A23: CDIVR | B23: Construction Waste Diversion Rate | C23: % | I23: 0.12 | J23: 0.12 | K23: 0.12 | L23: 0.12 | M23: 0.12 | N23: 0.12
A24: CWGEN | B24: Construction & Demolition Debris | C24: kg/m2 | E24: 18.9 | I24: 18.9 | J24: 18.9 | K24: =$E$24 -> 18.9 | L24: 18.9 | M24: 18.9 | N24: 18.9
A25: CW-WO | B25: Wood | C25: % | E25: 0.306 | I25: =$E$25 -> 0.306 | J25: 0.306 | K25: 0.306 | L25: 0.306 | M25: 0.306 | N25: 0.306
A26: CW-FI | B26: Fill & Aggregate | C26: % | E26: 0.128 | I26: =$E$26 -> 0.128 | J26: 0.128 | K26: 0.128 | L26: 0.128 | M26: 0.128 | N26: 0.128
A27: CW-ST | B27: Steel | C27: % | E27: 0.079 | I27: =$E$27 -> 0.079 | J27: 0.079 | K27: 0.079 | L27: 0.079 | M27: 0.079 | N27: 0.079
A28: CW-PO | B28: Portland Cement Concrete | C28: % | E28: 0.069 | I28: =$E$28 -> 0.069 | J28: 0.069 | K28: 0.069 | L28: 0.069 | M28: 0.069 | N28: 0.069
A29: CW-DR | B29: Drywall | C29: % | E29: 0.089 | I29: =$E$29 -> 0.089 | J29: 0.089 | K29: 0.089 | L29: 0.089 | M29: 0.089 | N29: 0.089
A30: CW-AS | B30: Asphalt | C30: % | E30: 0.034 | I30: =$E$30 -> 0.034 | J30: 0.034 | K30: 0.034 | L30: 0.034 | M30: 0.034 | N30: 0.034
A31: CW-BR | B31: Brick | C31: % | E31: 0.004 | I31: =$E$31 -> 0.004 | J31: 0.004 | K31: 0.004 | L31: 0.004 | M31: 0.004 | N31: 0.004
A32: CW-OC | B32: OCC | C32: % | E32: 0.045 | I32: =$E$32 -> 0.045 | J32: 0.045 | K32: 0.045 | L32: 0.045 | M32: 0.045 | N32: 0.045
A33: CW-PC | B33: Plastic | C33: % | E33: 0.03 | I33: =$E$33 -> 0.03 | J33: 0.03 | K33: 0.03 | L33: 0.03 | M33: 0.03 | N33: 0.03
A34: CW-PR | B34: Plaster | C34: % | E34: 0.011 | I34: =$E$34 -> 0.011 | J34: 0.011 | K34: 0.011 | L34: 0.011 | M34: 0.011 | N34: 0.011
A35: CW-SH | B35: Shingles | C35: % | E35: 0.035 | I35: =$E$35 -> 0.035 | J35: 0.035 | K35: 0.035 | L35: 0.035 | M35: 0.035 | N35: 0.035
A36: CW-EL | B36: Electrical Wire | C36: % | E36: 0.01 | I36: =$E$36 -> 0.01 | J36: 0.01 | K36: 0.01 | L36: 0.01 | M36: 0.01 | N36: 0.01
A37: CW-CO | B37: Construction Paper | C37: % | E37: 0.005 | I37: =$E$37 -> 0.005 | J37: 0.005 | K37: 0.005 | L37: 0.005 | M37: 0.005 | N37: 0.005
A38: CW-CG | B38: Ceiling Tiles | C38: % | E38: 0.029 | I38: =$E$38 -> 0.029 | J38: 0.029 | K38: 0.029 | L38: 0.029 | M38: 0.029 | N38: 0.029
A39: CW-NO | B39: Non-ferrous Metals | C39: % | E39: 0.002 | I39: =$E$39 -> 0.002 | J39: 0.002 | K39: 0.002 | L39: 0.002 | M39: 0.002 | N39: 0.002
A40: CW-GL | B40: Glass | C40: % | E40: 0.035 | I40: =$E$40 -> 0.035 | J40: 0.035 | K40: 0.035 | L40: 0.035 | M40: 0.035 | N40: 0.035
A41: CW-CE | B41: Ceramics | C41: % | E41: 0.005 | I41: =$E$41 -> 0.005 | J41: 0.005 | K41: 0.005 | L41: 0.005 | M41: 0.005 | N41: 0.005
A42: CW-OT | B42: Other | C42: % | E42: 0.084 | I42: =$E$42 -> 0.084 | J42: 0.084 | K42: 0.084 | L42: 0.084 | M42: 0.084 | N42: 0.084
A55: 2. Source Inputs
A56: Code | B56: Description | C56: Units | E56: Site | F56: Hardscape | G56: Softscape | H56: Buildings Total | I56: Residential | J56: Commercial/Government | K56: Retail | L56: Hotel | M56: Social | N56: Other/Utility
A58: Code | E58: SITE | F58: HARD | G58: SOFT | H58: BTOT | I58: HOUS | J58: COMM | K58: RETA | L58: HOTE | M58: SOCI | N58: OTHE
A59: Units
A60: =IF(A8="","",A8) -> WGEN | B60: =IF(B8="","",B8) -> Waste Generation | C60: =IF(C8="","",C8) -> kg/hh/day kg/m2/day | G60: a | I60: b | J60: c | K60: d | L60: d
A61: =IF(A9="","",A9) -> WGENPA | B61: =IF(B9="","",B9) -> Paper | C61: % | I61: b | J61: c | K61: c | L61: c
A62: WGENGL | B62: Glass | C62: % | I62: b | J62: c | K62: c | L62: c
A63: WGENME | B63: Metal | C63: % | I63: b | J63: c | K63: c | L63: c
A64: WGENEL | B64: Electronics | C64: % | I64: b | J64: c | K64: c | L64: c
A65: WGENPL | B65: Plastic | C65: % | I65: b | J65: c | K65: c | L65: c
A66: WGENOR | B66: Organic | C66: % | I66: b | J66: c | K66: c | L66: c
A67: WGENC | B67: C&D | C67: % | I67: b | J67: c | K67: c | L67: c
A68: WGENHO | B68: Household hazardous | C68: % | I68: b | J68: c | K68: c | L68: c
A69: WGENSP | B69: Special Waste | C69: % | I69: b | J69: c | K69: c | L69: c
A70: WGENMI | B70: Mixed residue | C70: % | I70: b | J70: c | K70: c | L70: c
A72: WDIVR | B72: Diversion Rate | C72: % | G72: e | I72: e | J72: f | K72: f | L72: f | M72: f
A74: CPERD | B74: Construction period | C74: years | E74: g | F74: =$E$74 -> g | G74: =$E$74 -> g | H74: g | I74: g | J74: g | K74: g | L74: g | M74: g | N74: g
A75: CDIVR | B75: =IF(B23="","",B23) -> Construction Waste Diversion Rate | C75: =IF(C23="","",C23) -> % | H75: h | I75: =$H$75 -> h | J75: h | K75: h | L75: h | M75: h | N75: h
A76: =IF(A24="","",A24) -> CWGEN | B76: Construction & Demolition Debris | C76: kg/m2 | I76: i | J76: j | K76: j | L76: j | M76: j | N76: j
A77: CW-WO | B77: Wood | C77: % | H77: h | I77: =$H$77 -> h | J77: h | K77: h | L77: h | M77: h | N77: h
A78: CW-FI | B78: Fill & Aggregate | C78: % | H78: h | I78: =$H$78 -> h | J78: h | K78: h | L78: h | M78: h | N78: h
A79: CW-ST | B79: Steel | C79: % | H79: h | I79: =$H$79 -> h | J79: h | K79: h | L79: h | M79: h | N79: h
A80: CW-PO | B80: Portland Cement Concrete | C80: % | H80: h | I80: =$H$80 -> h | J80: h | K80: h | L80: h | M80: h | N80: h
A81: CW-DR | B81: Drywall | C81: % | H81: h | I81: =$H$81 -> h | J81: h | K81: h | L81: h | M81: h | N81: h
A82: CW-AS | B82: Asphalt | C82: % | H82: h | I82: =$H$82 -> h | J82: h | K82: h | L82: h | M82: h | N82: h
A83: CW-BR | B83: Brick | C83: % | H83: h | I83: =$H$83 -> h | J83: h | K83: h | L83: h | M83: h | N83: h
A84: CW-OC | B84: OCC | C84: % | H84: h | I84: =$H$84 -> h | J84: h | K84: h | L84: h | M84: h | N84: h
A85: CW-PC | B85: Plastic | C85: % | H85: h | I85: =$H$85 -> h | J85: h | K85: h | L85: h | M85: h | N85: h
A86: CW-PR | B86: Plaster | C86: % | H86: h | I86: =$H$86 -> h | J86: h | K86: h | L86: h | M86: h | N86: h
A87: CW-SH | B87: Shingles | C87: % | H87: h | I87: =$H$87 -> h | J87: h | K87: h | L87: h | M87: h | N87: h
A88: CW-EL | B88: Electrical Wire | C88: % | H88: h | I88: =$H$88 -> h | J88: h | K88: h | L88: h | M88: h | N88: h
A89: CW-CO | B89: Construction Paper | C89: % | H89: h | I89: =$H$89 -> h | J89: h | K89: h | L89: h | M89: h | N89: h
A90: CW-CG | B90: Ceiling Tiles | C90: % | H90: h | I90: =$H$90 -> h | J90: h | K90: h | L90: h | M90: h | N90: h
A91: CW-NO | B91: Non-ferrous Metals | C91: % | H91: h | I91: =$H$91 -> h | J91: h | K91: h | L91: h | M91: h | N91: h
A92: =IF(A40="","",A40) -> CW-GL | B92: Glass | C92: % | H92: h | I92: =$H$92 -> h | J92: h | K92: h | L92: h | M92: h | N92: h
A93: CW-CE | B93: Ceramics | C93: % | H93: h | I93: =$H$93 -> h | J93: h | K93: h | L93: h | M93: h | N93: h
A94: CW-OT | B94: Other | C94: % | H94: h | I94: =$H$94 -> h | J94: h | K94: h | L94: h | M94: h | N94: h
A95: =IF(A44="","",A44) -> 
A100: =IF(A50="","",A50) -> 
A104: Sources
A105: a | B105: 136 kg per 300 m2 per year. http://www.ene.gov.on.ca/en/myenvironment/outside/yard.php
A106: b | B106: Policy and Planning Group. "City of Toronto Waste Composition Study of Multi-Family Residential Buildings Receiving Collectino of Source Seprated Organic Materials. ©2003
A107: c | B107: Calrecycle. "Waste Disposal and Diversion Findings for Selected Industry Groups". Large Office. ©2006
A108: d | B108: Calrecycle. "Estimated Solid Waste Generation Rate". http://www.calrecycle.ca.gov/wastechar/WasteGenRates/default.htm - Retail: average of Co. of Los Angeles Dept. of Regional Planning, Vesting Tentative Tract. Hotel - 0.288
A109: e | B109: City of Toronto. http://www.toronto.ca/garbage/residential-diversion.htm (2009)
A110: f | B110: Crittenden, G. "IC&I Waste Management Trends". Solid Waste and Recycling. ©June 2005. http://www.solidwastemag.com/issues/story.aspx?aid=1000151619&type=Print%20Archives
A111: g | B111: Arup
A112: h | B112: Ontario Waste Management Association. "The Private Sector Waste IC&I Waste Management System in Ontario" ©January 2005
A113: i | B113: USEPA. "Characterization of Building-Related Construction and Demolition Debris in the United States". "Residential C&D". ©June 1998
A114: j | B114: USEPA. "Characterization of Building-Related Construction and Demolition Debris in the United States". "Non-residential C&D". ©June 1998

Sheet Transport (hidden)
A1: =CONCATENATE("Base Data Input: ",MID(CELL("filename",A1),FIND("]",CELL("filename",A1))+1,LEN(CELL("filename",A1))-FIND("]",CELL("filename",A1)))) -> Base Data Input: Transport
A2: Scenario Control Panel
A3: 1. Numerical Inputs
A4: Code | B4: Description | C4: Units | E4: Site | F4: Hardscape | G4: Softscape | H4: Buildings Total | I4: Residential | M4: Commercial/Government | N4: Retail | O4: Hotel | P4: Social | Q4: Other/Utility
I5: studio | J5: 1 bedroom | K5: 2 bedroom | L5: 3bedroom
A6: Code | C6: UNIT | E6: SITE | F6: HARD | G6: SOFT | H6: BTOT | I6: HTST | J6: HT1B | K6: HT2B | L6: HT3B | M6: COMM | N6: RETA | O6: HOTE | P6: SOCI | Q6: OTHE
A7: Units
A8: AEF | B8: Annual Expansion Factor | I8: 300 | J8: 300 | K8: 300 | L8: 300 | M8: 250 | N8: 250 | O8: 360 | P8: 300 | Q8: 300
A9: AKT | B9: Daily Kilometres Travelled
A10: AKT-C | B10: Resident - per Capita
A11: AKT-C-AM | B11: All modes | C11: KT/p/day | I11: 14.78679745 | J11: 14.70903728 | K11: 14.30530693 | L11: 16.84507726
A12: AKT-C-AD | B12: Auto driver | C12: VKT/p/day | I12: 9.344972567 | J12: 8.730928822 | K12: 9.106613444 | L12: 11.48818746
A13: AKT-C-LT | B13: Transit | C13: PKT/p/day | I13: 5.399080444 | J13: 5.947024541 | K13: 5.164321929 | L13: 5.320914585
A14: AKT-C-BK | B14: Bicycle | C14: PKT/p/day | I14: 0.005252669039 | J14: 0.005252669039 | K14: 0.005252669039 | L14: 0.005252669039
A15: AKT-C-WK | B15: Walk | C15: PKT/p/day | I15: 0.03749177331 | J15: 0.02583125 | K15: 0.02911889301 | L15: 0.03072253896
A16: AKT-HH | B16: Resident - per Household | C16: km
A17: AKT-HH-AM | B17: All modes | C17: KT/hh/day | I17: 19.53714543 | J17: 39.40146794 | K17: 26.34113488 | L17: 23.23092919 | T17: =TRANSPOSE(I17:L21) -> 19.53714543 | U17: 12.34710143 | V17: 7.13356764 | W17: 0.006940120687 | X17: 0.04953623188
A18: AKT-HH-AD | B18: Auto driver | C18: VKT/hh/day | I18: 12.34710143 | J18: 26.89917065 | K18: 16.76661999 | L18: 14.42289337 | T18: 39.40146794 | U18: 26.89917065 | V18: 12.45872683 | W18: 0.007196489517 | X18: 0.03637396392
A19: AKT-HH-LT | B19: Transit | C19: PKT/hh/day | I19: 7.13356764 | J19: 12.45872683 | K19: 9.508279213 | L19: 8.735253955 | T19: 26.34113488 | U19: 16.76661999 | V19: 9.508279213 | W19: 0.009670939288 | X19: 0.05656473058
A20: AKT-HH-BK | B20: Bicycle | C20: PKT/hh/day | I20: 0.006940120687 | J20: 0.007196489517 | K20: 0.009670939288 | L20: 0.01229893238 | T20: 23.23092919 | U20: 14.42289337 | V20: 8.735253955 | W20: 0.01229893238 | X20: 0.06048292683
A21: AKT-HH-WK | B21: Walk | C21: PKT/hh/day | I21: 0.04953623188 | J21: 0.03637396392 | K21: 0.05656473058 | L21: 0.06048292683
A22: AKT-NRWT | B22: Non-Resident - Work Trips
A23: AKT-NRWT-AM | B23: All modes | C23: km/day | M23: =M24+M25 -> 17.05063771 | N23: =N24+N25 -> 17.05063771 | T23: =TRANSPOSE(M23:N27) -> 17.05063771 | U23: 13.72302983 | V23: 3.327607883 | W23: 0 | X23: 0
A24: AKT-NRWT-AD | B24: Auto driver | C24: km/day | M24: 13.72302983 | N24: 13.72302983 | T24: =TRANSPOSE(M23:N27) -> 17.05063771 | U24: 13.72302983 | V24: 3.327607883 | W24: 0 | X24: 0
A25: AKT-NRWT-LT | B25: Transit | C25: km/day | M25: 3.327607883 | N25: 3.327607883
A26: AKT-NRWT-BK | B26: Bicycle | C26: km/day | M26: 0 | N26: 0
A27: AKT-NRWT-WK | B27: Walk | C27: km/day | M27: 0 | N27: 0
A28: AKT-NROT | B28: Non-Resident - Other Trips
A29: AKT-NROT-AM | B29: All modes | C29: km/day | M29: =M30+M31 -> 38.54199918 | N29: =N30+N31 -> 38.54199918
A30: AKT-NROT-AD | B30: Auto driver | C30: km/day | M30: 31.84153359 | N30: 31.84153359
A31: AKT-NROT-LT | B31: Local transit | C31: km/day | M31: 6.70046559 | N31: 6.70046559
A32: AKT-NROT-BK | B32: Bicycle | C32: km/day | M32: 0 | N32: 0
A33: AKT-NROT-WK | B33: Walk | C33: m/trip/day | M33: 0 | N33: 0
A34: MS | B34: Modal Split
A35: MS-AM | B35: All modes | C35: 1 | I35: =SUM(I36:I38) -> 0.9974645103 | J35: =SUM(J36:J38) -> 0.9982438518 | K35: =SUM(K36:K38) -> 0.9979644692 | L35: =SUM(L36:L38) -> 0.9981761711 | M35: =SUM(M36:M39) -> 1.000190386 | N35: =SUM(N36:N39) -> 1.000190386
A36: MS-AD | B36: Auto driver | C36: % of total trips | I36: =I12/I$11 -> 0.6319808326 | J36: 0.593575817 | K36: 0.6365898673 | L36: 0.6819907851 | M36: =(M30+M24)/(M$29+M$23) -> 0.8196150779 | N36: =(N30+N24)/(N$29+N$23) -> 0.8196150779
A37: MS-LT | B37: Local transit | C37: % of total trips | I37: 0.3651284507 | J37: 0.4043109299 | K37: 0.3610074186 | L37: 0.3158735638 | M37: =(M31+M25)/(M$29+M$23) -> 0.1803849221 | N37: =(N31+N25)/(N$29+N$23) -> 0.1803849221
A38: MS-BK | B38: Bicycle | C38: % of total trips | I38: 0.0003552269554 | J38: 0.0003571048831 | K38: 0.0003671832463 | L38: 0.0003118221994 | M38: 0.0001903855307 | N38: 0.0001903855307
A39: MS-WK | B39: Walk | C39: % of total trips | I39: 0.002535489745 | J39: 0.001756148244 | K39: 0.00203553081 | L39: 0.001823828914 | M39: 0 | N39: 0
A40: CE | B40: Fuel/Carbon Intensity Factors for each mode
A41: CE-P1 | B41: Phase 1 2015: Pan Am
A42: CE-P1-AD | B42: Auto driver | C42: gCO2/PKT | I42: 270.2999938 | J42: 270.2999938 | K42: 270.2999938 | L42: 270.2999938 | M42: 270.2999938 | N42: 270.2999938
A43: CE-P1-TS | B43: Transit | C43: gCO2/PKT | I43: 29.5 | J43: 29.5 | K43: 29.5 | L43: 29.5 | M43: 29.5 | N43: 29.5
A44: CE-P1-BK | B44: Bicycle | C44: gCO2/PKT | I44: 0 | J44: 0 | K44: 0 | L44: 0 | M44: 0 | N44: 0
A45: CE-P1-WK | B45: Walk | C45: gCO2/PKT | I45: 0 | J45: 0 | K45: 0 | L45: 0 | M45: 0 | N45: 0
B46: Hybrid (scenario 1) | C46: % less than auto | I46: 0.52
A47: AUS | B47: Average Unit Size | C47: m2 | I47: 39.669581 | J47: 53.4470959 | K47: 90.5618444 | L47: 111.4836
A48: HOUSU | B48: Units by Type in WDL | H48: 4569 | I48: =Buildings!AZ75 -> 457 | J48: =Buildings!BA75 -> 2285 | K48: =Buildings!BB75 -> 1599 | L48: =Buildings!BC75 -> 228
A49: NRWTF-A | B49: non residential work trip factor | C49: auto | M49: 0.0854789272 | N49: 0.0854789272
A50: NRWTF-T | C50: transit | M50: 0.01807662835 | N50: 0.01807662835
A51: NROTF-A | B51: non residential 'other trip' factor | C51: auto | M51: 1.326390805 | N51: 1.326390805
A52: NROTF-T | C52: transit | M52: 0.6558773946 | N52: 0.6558773946
A53: DP | B53: Demographic Profile | C53: This is a summary of the demographic characteristics of the synthesized population
A54: DP-VO | B54: Vehicle Ownership | C54: # vehicles / household (average for each dwelling type) | E54: 0.62 | F54: 0.62 | G54: 0.62 | H54: 0.62 | I54: 0.62 | J54: 0.62 | K54: 0.62 | L54: 0.62
A55: from landuse tab | B55: Parking | C55: spaces per dwelling unit and non-residentail uses
A56: DP-DD | B56: Dwelling unit occupant density | C56: # persons / household (average for each dwelling type) | E56: 1.61 | H56: =E56 -> 1.61 | I56: 1.33 | J56: 1.38 | K56: 1.85 | L56: 2.36
B57: Number of People (in model) | C57: #persons | E57: 6600 | H57: =SUM(I57:L57) -> 6600 | I57: 556 | J57: 2869 | K57: 2687 | L57: 488
A58: DP-POP | B58: Number of People (in WDL) | C58: #persons | E58: =SUM(I58:L58) -> 7257.34 | H58: =SUM(I58:N58) -> 8561.722709 | I58: =Buildings!AZ77 -> 607.81 | J58: =Buildings!BA77 -> 3153.3 | K58: =Buildings!BB77 -> 2958.15 | L58: =Buildings!BC77 -> 538.08 | M58: =Buildings!R77 -> 990.3827087 | N58: =Buildings!V77 -> 314

Sheet Materials (hidden)
A1: =CONCATENATE("Base Data Input: ",MID(CELL("filename",A1),FIND("]",CELL("filename",A1))+1,LEN(CELL("filename",A1))-FIND("]",CELL("filename",A1)))) -> Base Data Input: Materials
A2: Scenario Control Panel
A3: 1. Numerical Inputs
A4: Code | B4: Description | C4: Units | E4: Site | F4: Hardscape | G4: Softscape | H4: Buildings Total | I4: Residential | J4: Commercial/Government | K4: Retail | L4: Hotel | M4: Social | N4: Other/Utility
A6: Code | C6: UNIT | E6: SITE | F6: HARD | G6: SOFT | H6: BTOT | I6: HOUS | J6: COMM | K6: RETA | L6: HOTE | M6: SOCI | N6: OTHE
A7: Units
A8: BLIFE | B8: Building Lifetime | C8: years | E8: 10 | F8: 10 | G8: 10 | I8: 50 | J8: 50 | K8: 50 | L8: 50 | M8: 50 | N8: 50
A10: SUCC | B10: Hardscape concrete consumption | C10: % | E10: 0.8 | F10: 0.1
A11: PCON | B11: Structure concrete consumption | C11: % | I11: 0.4 | J11: 0.4 | K11: 0.4 | L11: 0.4 | M11: 0.4 | N11: 0.4
A12: PSTL | B12: Steel consumption | C12: % | E12: 0.2 | I12: 0.4 | J12: 0.4 | K12: 0.4 | L12: 0.4 | M12: 0.4 | N12: 0.4
A13: PWOD | B13: Wood consumption | C13: % | E13: 0 | I13: 0.08 | J13: 0.08 | K13: 0.08 | L13: 0.08 | M13: 0.08 | N13: 0.08
A14: PGLS | B14: Glass consumption | C14: % | E14: 0
A15: PASP | B15: Asphalt consumption | C15: % | F15: 0.9
A53: 2. Source Inputs
A54: Code | B54: Description | C54: Units | E54: Site | G54: Open-Space | I54: Residential | J54: Commercial/Government | K54: Retail | L54: Hotel | M54: Social | N54: Other/Utility
A56: Units
A57: Code
A58: =IF(A8="","",A8) -> BLIFE | B58: Building Lifetime | C58: years | I58: a | J58: a | K58: a | L58: a | M58: a | N58: a
A60: SUCC | B60: Hardscape concrete consumption | C60: %
A61: PCON | B61: Structure concrete consumption | C61: %
A62: PSTL | B62: Steel consumption | C62: %
A63: PWOD | B63: Wood consumption | C63: %
A64: PGLS | B64: Glass consumption | C64: %
A65: PASP | B65: Asphalt consumption | C65: %
A78: =IF(A28="","",A28) -> 
A98: =IF(A48="","",A48) -> 
A103: Sources
A104: a | B104: Norman, J., MacLean, H., Kennedy, C. "Comparing High and Low Residential Density: Life Cycle Analysis of Energy Use and Greenhouse Gas Emissions". Journal of Urban Planning and Development. ASCS. © 2006
A105: b | B105: Arup assumption

Sheet Carbon (hidden)
A1: =CONCATENATE("Base Data Input: ",MID(CELL("filename",A1),FIND("]",CELL("filename",A1))+1,LEN(CELL("filename",A1))-FIND("]",CELL("filename",A1)))) -> Base Data Input: Carbon
A2: Scenario Control Panel
A3: 1. Numerical Inputs
A4: Code | B4: Description | C4: Units | E4: Site | F4: Hardscape | G4: Softscape | H4: Buildings Total | I4: Residential | J4: Commercial/Government | K4: Retail | L4: Hotel | M4: Social | N4: Other/Utility
A6: Code | C6: UNIT | E6: SITE | F6: HARD | G6: SOFT | H6: BTOT | I6: HOUS | J6: COMM | K6: RETA | L6: HOTE | M6: SOCI | N6: OTHE
A7: Units
A8: GRELEC | B8: Grid Electricity | C8: gCO2eq/kWh | E8: =170*(1+E12) -> 187 | F8: =170*(1+F12) -> 187 | G8: 187 | H8: 187 | I8: 187 | J8: 187 | K8: 187 | L8: 187 | M8: 187 | N8: 187
A9: GRGAS | B9: Gas | C9: gCO2eq/kWh | E9: 189 | F9: =$E9 -> 189 | G9: =$E9 -> 189 | H9: 189 | I9: 189 | J9: 189 | K9: 189 | L9: 189 | M9: 189 | N9: 189
A10: GRDPE | B10: District Plant (Electricity primary) | C10: gCO2eq/kWh | E10: 189 | F10: =$E10 -> 189 | G10: 189 | H10: 189 | I10: 189 | J10: 189 | K10: 189 | L10: 189 | M10: 189 | N10: 189
A11: GRDPT | B11: District Plant (Thermal primary) | C11: gCO2eq/kWh | E11: 0 | F11: =$E11 -> 0 | G11: 0 | H11: 0 | I11: 0 | J11: 0 | K11: 0 | L11: 0 | M11: 0 | N11: 0
B12: Transmission and Distribution loss | C12: % | E12: 0.1 | F12: =$E12 -> 0.1 | G12: 0.1 | H12: 0.1 | I12: 0.1 | J12: 0.1 | K12: 0.1 | L12: 0.1 | M12: 0.1 | N12: 0.1
A13: WTMM | B13: Waste Destination Mix
B14: % of Waste Landfilled | C14: % | E14: 1 | F14: =$E$14 -> 1 | G14: 1 | H14: 1 | I14: 1 | J14: 1 | K14: 1 | L14: 1 | M14: 1 | N14: 1
B15: % of Waste Incinerated | C15: % | E15: 0 | F15: =$E$15 -> 0 | G15: 0 | H15: 0 | I15: 0 | J15: 0 | K15: 0 | L15: 0 | M15: 0 | N15: 0
B16: Waste Destination | C16: Waste Destination
A17: WC-PA | B17: Paper | C17: mtonCO2eq/mton | E17: =$E$14*E23+$E$15*E30 -> 0.24 | F17: =$E17 -> 0.24 | G17: =$E17 -> 0.24 | H17: 0.24 | I17: 0.24 | J17: 0.24 | K17: 0.24 | L17: 0.24 | M17: 0.24 | N17: 0.24
A18: WC-FD | B18: Food | C18: mtonCO2eq/mton | E18: =$E$14*E24+$E$15*E31 -> 0.83 | F18: =$E18 -> 0.83 | G18: 0.83 | H18: 0.83 | I18: 0.83 | J18: 0.83 | K18: 0.83 | L18: 0.83 | M18: 0.83 | N18: 0.83
A19: WC-YD | B19: Yard | C19: mtonCO2eq/mton | E19: -0.16 | F19: =$E19 -> -0.16 | G19: -0.16 | H19: -0.16 | I19: -0.16 | J19: -0.16 | K19: -0.16 | L19: -0.16 | M19: -0.16 | N19: -0.16
A20: WC-WO | B20: Wood/textile | C20: mtonCO2eq/mton | E20: -0.2195 | F20: -0.2195 | G20: -0.2195 | H20: -0.2195 | I20: -0.2195 | J20: -0.2195 | K20: -0.2195 | L20: -0.2195 | M20: -0.2195 | N20: -0.2195
A21: WC-OT | B21: Other waste | C21: mtonCO2eq/mton | E21: 0.05 | F21: 0.05 | G21: 0.05 | H21: 0.05 | I21: 0.05 | J21: 0.05 | K21: 0.05 | L21: 0.05 | M21: 0.05 | N21: 0.05
A22: WALD | B22: Waste-Landfill
A23: WALD-PA | B23: Paper | C23: mtonCO2eq/mton | E23: 0.24 | F23: =$E23 -> 0.24 | G23: 0.24 | H23: 0.24 | I23: =$E23 -> 0.24 | J23: 0.24 | K23: 0.24 | L23: 0.24 | M23: 0.24 | N23: 0.24
A24: WALD-FD | B24: Food | C24: mtonCO2eq/mton | E24: 0.83 | F24: 0.83 | G24: 0.83 | H24: 0.83 | I24: =$E24 -> 0.83 | J24: 0.83 | K24: 0.83 | L24: 0.83 | M24: 0.83 | N24: 0.83
A25: WALD-YD | B25: Yard | C25: mtonCO2eq/mton | E25: -0.16 | F25: =$E25 -> -0.16 | G25: -0.16 | H25: -0.16 | I25: -0.16 | J25: -0.16 | K25: -0.16 | L25: -0.16 | M25: -0.16 | N25: -0.16
A26: WALD-WO | B26: Wood/textile | C26: mtonCO2eq/mton | E26: -0.2195 | F26: -0.2195 | G26: -0.2195 | H26: -0.2195 | I26: -0.2195 | J26: -0.2195 | K26: -0.2195 | L26: -0.2195 | M26: -0.2195 | N26: -0.2195
A27: WALD-OT | B27: Other waste | C27: mtonCO2eq/mton | E27: 0.05 | F27: 0.05 | G27: 0.05 | H27: 0.05 | I27: 0.05 | J27: 0.05 | K27: 0.05 | L27: 0.05 | M27: 0.05 | N27: 0.05
A29: WINC | B29: Waste-Incineration
A30: WINC-PA | B30: Paper | C30: mtonCO2eq/mton | E30: -0.04 | F30: =$E30 -> -0.04 | G30: =$E30 -> -0.04 | H30: -0.04 | I30: -0.04 | J30: -0.04 | K30: -0.04 | L30: -0.04 | M30: -0.04 | N30: -0.04
A31: WINC-FD | B31: Food | C31: mtonCO2eq/mton | E31: 0.02 | F31: =$E31 -> 0.02 | G31: 0.02 | H31: 0.02 | I31: 0.02 | J31: 0.02 | K31: 0.02 | L31: 0.02 | M31: 0.02 | N31: 0.02
A32: WINC-YD | B32: Yard | C32: mtonCO2eq/mton | E32: 0.01 | F32: =$E32 -> 0.01 | G32: 0.01 | H32: 0.01 | I32: 0.01 | J32: 0.01 | K32: 0.01 | L32: 0.01 | M32: 0.01 | N32: 0.01
A33: WINC-WO | B33: Wood/textile | C33: mtonCO2eq/mton | E33: 0.0735 | F33: 0.0735 | G33: 0.0735 | H33: 0.0735 | I33: 0.0735 | J33: 0.0735 | K33: 0.0735 | L33: 0.0735 | M33: 0.0735 | N33: 0.0735
A34: WINC-OT | B34: Other waste | C34: mtonCO2eq/mton | E34: 0.45 | F34: 0.45 | G34: 0.45 | H34: 0.45 | I34: 0.45 | J34: 0.45 | K34: 0.45 | L34: 0.45 | M34: 0.45 | N34: 0.45
B36: Compost
A37: WCOMP-PA | B37: Paper | C37: mtonCO2eq/mton | E37: 0 | F37: =$E37 -> 0 | G37: =$E37 -> 0 | H37: 0 | I37: 0 | J37: 0 | K37: 0 | L37: 0 | M37: 0 | N37: 0
A38: WCOMP-FD | B38: Food | C38: mtonCO2eq/mton | E38: -0.23 | F38: =$E38 -> -0.23 | G38: -0.23 | H38: -0.23 | I38: -0.23 | J38: -0.23 | K38: -0.23 | L38: -0.23 | M38: -0.23 | N38: -0.23
A39: WCOMP-YD | B39: Yard | C39: mtonCO2eq/mton | E39: -0.23 | F39: =$E39 -> -0.23 | G39: -0.23 | H39: -0.23 | I39: -0.23 | J39: -0.23 | K39: -0.23 | L39: -0.23 | M39: -0.23 | N39: -0.23
A40: WCOMP-WO | B40: Wood/textile | C40: mtonCO2eq/mton | E40: 0 | F40: 0 | G40: 0 | H40: 0 | I40: 0 | J40: 0 | K40: 0 | L40: 0 | M40: 0 | N40: 0
A41: WCOMP-OT | B41: Other waste | C41: mtonCO2eq/mton | E41: 0 | F41: 0 | G41: 0 | H41: 0 | I41: 0 | J41: 0 | K41: 0 | L41: 0 | M41: 0 | N41: 0
B43: Anaerobic Digestion
A44: WAD-PA | B44: Paper | C44: mtonCO2eq/mton | E44: -0.35 | F44: -0.35 | G44: -0.35 | H44: -0.35 | I44: -0.35 | J44: -0.35 | K44: -0.35 | L44: -0.35 | M44: -0.35 | N44: -0.35
A45: WAD-FD | B45: Food | C45: mtonCO2eq/mton | E45: -0.23 | F45: -0.23 | G45: -0.23 | H45: -0.23 | I45: -0.23 | J45: -0.23 | K45: -0.23 | L45: -0.23 | M45: -0.23 | N45: -0.23
A46: WAD-YD | B46: Yard | C46: mtonCO2eq/mton | E46: -0.26 | F46: -0.26 | G46: -0.26 | H46: -0.26 | I46: -0.26 | J46: -0.26 | K46: -0.26 | L46: -0.26 | M46: -0.26 | N46: -0.26
A47: WAD-WO | B47: Wood/textile | C47: mtonCO2eq/mton | E47: 0 | F47: 0 | G47: 0 | H47: 0 | I47: 0 | J47: 0 | K47: 0 | L47: 0 | M47: 0 | N47: 0
A48: WAD-OT | B48: Other waste | C48: mtonCO2eq/mton | E48: 0 | F48: 0 | G48: 0 | H48: 0 | I48: 0 | J48: 0 | K48: 0 | L48: 0 | M48: 0 | N48: 0
B50: Thermal Treatment
A51: WAT-PA | B51: Paper | C51: mtonCO2eq/mton | E51: -0.04 | F51: =$E51 -> -0.04 | G51: =$E51 -> -0.04 | H51: -0.04 | I51: -0.04 | J51: -0.04 | K51: -0.04 | L51: -0.04 | M51: -0.04 | N51: -0.04
A52: WAT-FD | B52: Food | C52: mtonCO2eq/mton | E52: 0.02 | F52: =$E52 -> 0.02 | G52: 0.02 | H52: 0.02 | I52: 0.02 | J52: 0.02 | K52: 0.02 | L52: 0.02 | M52: 0.02 | N52: 0.02
A53: WAT-YD | B53: Yard | C53: mtonCO2eq/mton | E53: 0.01 | F53: =$E53 -> 0.01 | G53: 0.01 | H53: 0.01 | I53: 0.01 | J53: 0.01 | K53: 0.01 | L53: 0.01 | M53: 0.01 | N53: 0.01
A54: WAT-WO | B54: Wood/textile | C54: mtonCO2eq/mton | E54: 0.0735 | F54: 0.0735 | G54: 0.0735 | H54: 0.0735 | I54: 0.0735 | J54: 0.0735 | K54: 0.0735 | L54: 0.0735 | M54: 0.0735 | N54: 0.0735
A55: WAT-OT | B55: Other waste | C55: mtonCO2eq/mton | E55: 0.45 | F55: 0.45 | G55: 0.45 | H55: 0.45 | I55: 0.45 | J55: 0.45 | K55: 0.45 | L55: 0.45 | M55: 0.45 | N55: 0.45
A57: MHSC | B57: Hardscape concrete | C57: mtonCO2e/m2 | F57: 0.08
A58: MCEC | B58: Concrete consumption | C58: mtonCO2e/m2 | E58: 0.14 | F58: 0 | I58: 0.14 | J58: 0.14 | K58: 0.14 | L58: 0.14 | M58: 0.14 | N58: 0.14
A59: MSEC | B59: Steel consumption | C59: mtonCO2e/m2 | E59: 0.09 | F59: 0.075 | I59: 0.09 | J59: 0.09 | K59: 0.09 | L59: 0.09 | M59: 0.09 | N59: 0.09
A60: MWEC | B60: Wood consumption | C60: mtonCO2e/m2 | E60: 0.03 | F60: 0.03 | I60: 0.03 | J60: 0.03 | K60: 0.03 | L60: 0.03 | M60: 0.03 | N60: 0.03
A61: MGLC | B61: Glass consumption | C61: mtonCO2e/m2 | E61: 0.05 | I61: 0.05 | J61: 0.05 | K61: 0.05 | L61: 0.05 | M61: 0.05 | N61: 0.05
A62: MASC | B62: Asphalt consumption | C62: mtonCO2e/m2 | F62: 0.2
A64: MTRP | B64: Transport effect on materials | C64: % | E64: 0.1 | F64: =$E$64 -> 0.1 | I64: =$E$64 -> 0.1 | J64: 0.1 | K64: 0.1 | L64: 0.1 | M64: 0.1 | N64: 0.1
A65: MREC | B65: Recycling effect on materials | C65: % | E65: 0.2 | F65: =$E$65 -> 0.2 | I65: =$E$65 -> 0.2 | J65: 0.2 | K65: 0.2 | L65: 0.2 | M65: 0.2 | N65: 0.2
E66: 1 | F66: =$E$66 -> 1
A68: OFFC | B68: Carbon offset | C68: mtonCO2eq/yr
A70: SEQCT | B70: Carbon sequestration Trees | C70: mtonCO2eq/m2/yr | E70: 0.00204192 | G70: 0.00204192
A71: SEQCG | B71: Carbon sequestration Grass | C71: mtonCO2eq/m2/yr | E71: 0.000105 | G71: 0.000105
A73: CAPC | B73: Carbon Capture (non-sequestration) | C73: mtonCO2eq/yr | E73: 20000
A91: 2. Source Inputs
A92: Code | B92: Description | C92: Units | E92: Site | F92: Hardscape | G92: Softscape | H92: Buildings Total | I92: Residential | J92: Commercial/Government | K92: Retail | L92: Hotel | M92: Social | N92: Other/Utility
A94: Code | C94: UNIT | E94: SITE | F94: HARD | G94: SOFT | H94: BTOT | I94: HOUS | J94: COMM | K94: RETA | L94: HOTE | M94: SOCI | N94: OTHE
A95: Units
A96: =IF(A8="","",A8) -> GRELEC | B96: Grid Electricity | C96: gCO2eq/kWh | E96: a | F96: a | G96: a | H96: a | I96: a | J96: a | K96: a | L96: a | M96: a | N96: a
A97: GRGAS | B97: Gas | C97: gCO2eq/kWh | E97: b | F97: b | G97: b | H97: b | I97: b | J97: b | K97: b | L97: b | M97: b | N97: b
A98: =IF(A10="","",A10) -> GRDPE | B98: =IF(B10="","",B10) -> District Plant (Electricity primary) | C98: =IF(C10="","",C10) -> gCO2eq/kWh | E98: h | F98: h | G98: h | H98: h | I98: h | J98: h | K98: h | L98: h | M98: h | N98: h
A99: =IF(A16="","",A16) ->  | B99: Waste Destination | C99: Waste Destination | E99: i | F99: i | G99: i | H99: i | I99: i | J99: i | K99: i | L99: i | M99: i | N99: i
A100: WC-PA | B100: Paper | C100: mtonCO2eq/mton
A101: WC-FD | B101: Food | C101: mtonCO2eq/mton
A102: WC-YD | B102: Yard | C102: mtonCO2eq/mton
A103: WC-WO | B103: Wood/textile | C103: mtonCO2eq/mton
A104: WC-OT | B104: Other waste | C104: mtonCO2eq/mton
A105: =IF(A13="","",A13) -> WTMM | B105: =IF(B13="","",B13) -> Waste Destination Mix | C105: =IF(C13="","",C13) -> 
A106: =IF(A22="","",A22) -> WALD | B106: Waste-Landfill
A107: WALD-PA | B107: Paper | C107: mtonCO2eq/mton | E107: c | F107: =$E107 -> c | G107: =$E107 -> c | H107: c | I107: c | J107: c | K107: c | L107: c | M107: c | N107: c
A108: WALD-FD | B108: Food | C108: mtonCO2eq/mton | E108: c | F108: =$E108 -> c | G108: c | H108: c | I108: c | J108: c | K108: c | L108: c | M108: c | N108: c
A109: WALD-YD | B109: Yard | C109: mtonCO2eq/mton | E109: c | F109: c | G109: c | H109: c | I109: c | J109: c | K109: c | L109: c | M109: c | N109: c
A110: WALD-WO | B110: Wood/textile | C110: mtonCO2eq/mton | E110: d | F110: d | G110: d | H110: d | I110: d | J110: d | K110: d | L110: d | M110: d | N110: d
A111: WALD-OT | B111: Other waste | C111: mtonCO2eq/mton | E111: c | F111: c | G111: c | H111: c | I111: c | J111: c | K111: c | L111: c | M111: c | N111: c
A113: WINC | B113: Waste-Incineration
A114: WINC-PA | B114: Paper | C114: mtonCO2eq/mton | E114: c | F114: =$E114 -> c | G114: c | H114: c | I114: c | J114: c | K114: c | L114: c | M114: c | N114: c
A115: WINC-FD | B115: Food | C115: mtonCO2eq/mton | E115: c | F115: c | G115: c | H115: c | I115: c | J115: c | K115: c | L115: c | M115: c | N115: c
A116: WINC-YD | B116: Yard | C116: mtonCO2eq/mton | E116: c | F116: c | G116: c | H116: c | I116: c | J116: c | K116: c | L116: c | M116: c | N116: c
A117: WINC-WO | B117: Wood/textile | C117: mtonCO2eq/mton | E117: d | F117: d | G117: d | H117: d | I117: d | J117: d | K117: d | L117: d | M117: d | N117: d
A118: =IF(A34="","",A34) -> WINC-OT | B118: Other waste | C118: mtonCO2eq/mton | E118: c | F118: c | G118: c | H118: c | I118: c | J118: c | K118: c | L118: c | M118: c | N118: c
B120: Compost
A121: WCOMP-PA | B121: Paper | C121: mtonCO2eq/mton | E121: c | F121: =$E121 -> c | G121: =$E121 -> c | H121: c | I121: c | J121: c | K121: c | L121: c | M121: c | N121: c
A122: WCOMP-FD | B122: Food | C122: mtonCO2eq/mton | E122: c | F122: =$E122 -> c | G122: c | H122: c | I122: c | J122: c | K122: c | L122: c | M122: c | N122: c
A123: WCOMP-YD | B123: Yard | C123: mtonCO2eq/mton | E123: c | F123: c | G123: c | H123: c | I123: c | J123: c | K123: c | L123: c | M123: c | N123: c
A124: WCOMP-WO | B124: Wood/textile | C124: mtonCO2eq/mton | E124: d | F124: d | G124: d | H124: d | I124: d | J124: d | K124: d | L124: d | M124: d | N124: d
A125: WCOMP-OT | B125: Other waste | C125: mtonCO2eq/mton | E125: c | F125: c | G125: c | H125: c | I125: c | J125: c | K125: c | L125: c | M125: c | N125: c
B127: Anaerobic Digestion
A128: WAD-PA | B128: Paper | C128: mtonCO2eq/mton | E128: c | F128: =$E128 -> c | G128: c | H128: c | I128: c | J128: c | K128: c | L128: c | M128: c | N128: c
A129: WAD-FD | B129: Food | C129: mtonCO2eq/mton | E129: c | F129: c | G129: c | H129: c | I129: c | J129: c | K129: c | L129: c | M129: c | N129: c
A130: WAD-YD | B130: Yard | C130: mtonCO2eq/mton | E130: c | F130: c | G130: c | H130: c | I130: c | J130: c | K130: c | L130: c | M130: c | N130: c
A131: WAD-WO | B131: Wood/textile | C131: mtonCO2eq/mton | E131: d | F131: d | G131: d | H131: d | I131: d | J131: d | K131: d | L131: d | M131: d | N131: d
A132: WAD-OT | B132: Other waste | C132: mtonCO2eq/mton | E132: c | F132: c | G132: c | H132: c | I132: c | J132: c | K132: c | L132: c | M132: c | N132: c
B133: =IF(B49="","",B49) -> 
A134: =IF(A50="","",A50) ->  | B134: =IF(B50="","",B50) -> Thermal Treatment | C134: =IF(C50="","",C50) -> 
A135: =IF(A51="","",A51) -> WAT-PA | B135: =IF(B51="","",B51) -> Paper | C135: =IF(C51="","",C51) -> mtonCO2eq/mton | E135: c | F135: =$E135 -> c | G135: c | H135: c | I135: c | J135: c | K135: c | L135: c | M135: c | N135: c
A136: =IF(A52="","",A52) -> WAT-FD | B136: =IF(B52="","",B52) -> Food | C136: =IF(C52="","",C52) -> mtonCO2eq/mton | E136: c | F136: c | G136: c | H136: c | I136: c | J136: c | K136: c | L136: c | M136: c | N136: c
A137: =IF(A53="","",A53) -> WAT-YD | B137: =IF(B53="","",B53) -> Yard | C137: =IF(C53="","",C53) -> mtonCO2eq/mton | E137: c | F137: c | G137: c | H137: c | I137: c | J137: c | K137: c | L137: c | M137: c | N137: c
A138: =IF(A54="","",A54) -> WAT-WO | B138: =IF(B54="","",B54) -> Wood/textile | C138: =IF(C54="","",C54) -> mtonCO2eq/mton | E138: d | F138: d | G138: d | H138: d | I138: d | J138: d | K138: d | L138: d | M138: d | N138: d
A139: =IF(A55="","",A55) -> WAT-OT | B139: =IF(B55="","",B55) -> Other waste | C139: mtonCO2eq/mton | E139: c | F139: c | G139: c | H139: c | I139: c | J139: c | K139: c | L139: c | M139: c | N139: c
A140: =IF(A56="","",A56) -> 
A141: =IF(A57="","",A57) -> MHSC | B141: Hardscape concrete | C141: mtonCO2e/m2 | F141: g
A142: =IF(A58="","",A58) -> MCEC | B142: Concrete consumption | C142: mtonCO2e/m2 | E142: g | F142: g | I142: g | J142: g | K142: g | L142: g | M142: g | N142: g
A143: =IF(A59="","",A59) -> MSEC | B143: Steel consumption | C143: mtonCO2e/m2 | E143: g | F143: g | I143: g | J143: g | K143: g | L143: g | M143: g | N143: g
A144: =IF(A60="","",A60) -> MWEC | B144: Wood consumption | C144: mtonCO2e/m2 | E144: g | F144: g | I144: g | J144: g | K144: g | L144: g | M144: g | N144: g
A145: =IF(A61="","",A61) -> MGLC | B145: Glass consumption | C145: mtonCO2e/m2 | E145: g | I145: g | J145: g | K145: g | L145: g | M145: g | N145: g
A146: =IF(A62="","",A62) -> MASC | B146: Asphalt consumption | C146: mtonCO2e/m2 | F146: g
A147: =IF(A63="","",A63) -> 
A148: =IF(A64="","",A64) -> MTRP | B148: Transport effect on materials | C148: % | E148: g | F148: g | I148: g | J148: g | K148: g | L148: g | M148: g | N148: g
A149: =IF(A65="","",A65) -> MREC | B149: Recycling effect on materials | C149: % | E149: g | F149: g | I149: g | J149: g | K149: g | L149: g | M149: g | N149: g
A150: =IF(A66="","",A66) -> 
A151: =IF(A67="","",A67) -> 
A152: =IF(A68="","",A68) -> OFFC | B152: Carbon offset | C152: mtonCO2eq/yr
A153: =IF(A69="","",A69) -> 
A154: =IF(A70="","",A70) -> SEQCT | B154: Carbon sequestration Trees | C154: mtonCO2eq/m2/yr | E154: e | G154: e
A155: =IF(A71="","",A71) -> SEQCG | B155: Carbon sequestration Grass | C155: mtonCO2eq/m2/yr | E155: f | G155: f
A156: =IF(A72="","",A72) -> 
A157: =IF(A73="","",A73) -> CAPC | B157: Carbon Capture (non-sequestration) | C157: mtonCO2eq/yr
A158: =IF(A75="","",A75) -> 
A159: =IF(#REF!="","",#REF!) ->  | B159: =IF(#REF!="","",#REF!) ->  | C159: =IF(#REF!="","",#REF!) -> 
A160: =IF(A75="","",A75) -> 
A161: =IF(#REF!="","",#REF!) ->  | B161: =IF(#REF!="","",#REF!) ->  | C161: =IF(#REF!="","",#REF!) -> 
A162: Sources
A163: a | B163: Environment Canada. National Inventory Report: Greenhouse gas sources and sinks in Canada. 1990 - 2008
A164: b | B164: Environment Canada, "National Inventory Report: 1990-2004, Greenhouse Gas Sources and Sinks in Canada", Environment Canada, Ottawa, 2006. Appendix 13, "Emission Factors".
A165: c | B165: Environment Canada and Natural Resources Canada. "Determination of the Impact of Waste Management Activities on Greenhouse Gas Emissions: 2005 Update Final Report, Contract No. K2216-04-0006". Waste GHG Calculator Emission Factors. ©October 2009
A166: d | B166: Iclei default USA
A167: e | B167: USDA Center for Urban Forest Research, 141.8 kg CO2e/tree/yr based on 8m trunk-to-trunk planting intervals (144 trees per hectare), assumes maturity (10 to 30 years)
A168: f | B168: USDA Agricultural Research Service, urban turgrass sequestration rate, CENTURY model
A169: g | B169: Arup study
A170: h | B170: District Plant emission factor
A171: i | B171: City of Toronto

Sheet LU_C1 (hidden)
A1: =CONCATENATE("Base Data Input: ",MID(CELL("filename",A1),FIND("]",CELL("filename",A1))+1,LEN(CELL("filename",A1))-FIND("]",CELL("filename",A1)))) -> Base Data Input: LU_C1
A2: Scenario Control Panel
A3: =CONCATENATE(Land!A3," & ",Buildings!A3) -> Land-use Surface Cover Assumptions & Buildings Assumptions | AO3: =SUM(AO8:AO13) -> 78588.8
A4: Block Parcels | H4: Surface Cover | N4: Softscape Detail | U4: General | AA4: Parking - Scenario 1 | AF4: Roof Area | AJ4: Demographics | AO4: Housing | AT4: Commercial/Gov. Office | AX4: Retail | BC4: Social | BG4: Utility | BJ4: Hotel | BP4: Parking - Scenario 2 | BV4: Softscape - Scenario 2
B5: Building On/Off Toggle | C5: Phase | D5: Description | E5: Geo-reference | F5: Land-use Designation | H5: Gross Area | I5: Building Footprint | J5: Available Rooftops | K5: Hardscape | L5: Softscape | N5: Canopy Tree Coverage | O5: Shrub Coverage | P5: Lawn/Grass Coverage | Q5: Vegetated Open Space/% of Non-Building Area | R5: Canopy Cover/Open Space | S5: Green Plot Ratio | U5: Total GFA | V5: FAR | W5: Building Height | X5: Core & Access | Y5: Leasable GFA | AA5: Parking Spaces | AB5: Parking (under-ground) GFA | AC5: Parking Spaces/ Housing Unit | AD5: Non-residential Leasable GFA/Parking Space | AF5: Total Building Roof Area | AG5: Greenroof Area | AH5: Other Available Roof Area | AJ5: Units | AK5: Residents | AL5: Employees | AM5: Students | AO5: Leasable GFA | AP5: Units Density | AQ5: Total Residents | AR5: Total Parking Spaces Scenario 1 | AT5: Leasable GFA | AU5: Total Employees | AV5: Total Parking Spaces Scenario 1 | AX5: Leasable GFA | AY5: Total Employees | AZ5: Total Retail Area/ Resident+ Employee | BA5: Total Parking Spaces Scenario 1 | BC5: Leasable GFA | BD5: Total Employees | BE5: Total Parking Spaces Scenario 1 | BG5: Leasable GFA | BH5: Total Parking Spaces Scenario 1 | BJ5: Leasable GFA | BK5: Total Avg Guests | BL5: Total Employees | BM5: Hotel Guests | BN5: Total Parking Spaces Scenario 1 | BP5: Residential Parking Spaces | BQ5: Comm./Gov. Office Parking Spaces | BR5: Retail Parking Spaces | BS5: Total Parking Spaces | BT5: Parking (under-ground) GFA | BV5: Hardscape+Softscape | BW5: Targeted Ratio of Softscape to non-Building Area | BX5: Implied Softscape | BY5: Implied Hardscape | BZ5: Canopy Tree Coverage | CA5: Shrub Coverage | CB5: Lawn/Grass Coverage
A6: CODE | E6: LGEO | F6: LUDE | H6: LUGA-M | I6: LUBC-M | K6: OSHS-M | L6: OSGR-M | N6: OSG3-M | O6: OSG2-M | P6: OSG1-M | Q6: ="OSGR-P" -> OSGR-P | R6: OSGC-P | S6: OSGP | U6: BGFA-M | V6: BFAR | W6: BFLR | X6: BCOR-M | Y6: BNET-M | AA6: PKSP | AB6: PKFA-M | AC6: PKHR | AD6: PKCR-M | AF6: RTRA-M | AG6: RGRA-M | AH6: RORA-M | AJ6: DHDU | AK6: DPOP | AL6: DEMP | AM6: DSTU | AO6: HGFA-M | AP6: HTDE | AQ6: DPOP | AR6: HPTO | AT6: CGFA | AU6: CEMP | AV6: CPTO | AX6: RGFA-M | AY6: REMP | AZ6: RRAT-M | BA6: RPTO | BC6: SGFA-M | BD6: STEM | BE6: SPTO | BG6: ="UGFA-M" -> UGFA-M | BH6: UPTO | BJ6: IGFA-M | BK6: DHOT | BL6: IETO | BM6: DHOT | BN6: IPTO | BP6: HPTO2 | BQ6: CPTO2 | BR6: RPTO2 | BS6: PKSP2 | BT6: PKFA2-M | BZ6: OSG3-M2 | CA6: OSG2-M2 | CB6: OSG1-M2
A7: Units | H7: m2 | I7: m2 | K7: m2 | L7: m2 | N7: m2 | O7: m2 | P7: m2 | Q7: =Land!Q7 -> % | R7: % | S7: Ratio | U7: m2 | V7: Ratio | W7: Floors | X7: m2 | Y7: m2 | AA7: # | AB7: m2 | AC7: # | AD7: m2 | AF7: m2 | AG7: m2 | AH7: m2 | AJ7: # | AK7: # | AL7: # | AM7: # | AO7: m2 | AP7: units/ha | AQ7: # | AR7: # | AT7: m2 | AU7: # | AX7: m2 | AY7: # | AZ7: m2 | BA7: # | BC7: m2 | BD7: # | BE7: # | BG7: m2 | BH7: # | BJ7: m2 | BK7: # | BL7: # | BM7: # | BN7: # | BP7: # | BQ7: # | BR7: # | BS7: # | BT7: m2 | BV7: m2
A8: =Land!A8 -> 1P-19 | B8: =IF(VLOOKUP(A8,'Control Panel'!$A$5:$B$69,2,FALSE)=TRUE,"ON","OFF") -> ON | C8: =Land!C8 -> 1 | D8: =Land!D8 -> residential, ground floor retail facing River Square | H8: =SUM(I8:L8) -> 4033.25 | I8: =Land!J8 -> 2069 | J8: =I8*(1-Buildings!J8) -> 1034.5 | K8: =Land!M8 -> 232.25 | L8: =SUM(N8:Q8) -> 697.5 | N8: =Land!R8 -> 278.7 | O8: =Land!T8 -> 0 | P8: =Land!V8 -> 418.05 | Q8: =Land!Q8 -> 0.75 | R8: =IF(SUM(L8,K8)=0,0,N8/SUM(L8,K8)) -> 0.2997579995 | S8: =IF(H8=0,0,(N8*6+O8*3+P8*1)/H8) -> 0.5182545094 | U8: =IF(Buildings!H8=0,0,Y8/Buildings!H8) -> 12899.11903 | V8: =IF(Land!H8=0,0,U8/Land!H8) -> 4.302574726 | W8: =IF(Land!J8=0,0,ROUNDUP(U8/Land!J8,0)) -> 7 | X8: =U8-Y8 -> 2321.841425 | Y8: =SUM(AO8,Buildings!Q8,Buildings!U8,Buildings!AH8,BC8,Buildings!AE8) -> 10577.2776 | AA8: =SUM(AR8,AV8,BA8,BN8,BE8,BH8) -> 107 | AB8: =AA8*Buildings!I8 -> 3638 | AC8: =Buildings!O8 -> 0.71 | AD8: =IF(SUM(AV8,BA8,BN8,BE8,BH8)=0,0,SUM(Buildings!Q8,Buildings!U8,Buildings!AH8,BC8,Buildings!AE8)/SUM(AV8,BA8,BN8,BE8,BH8)) -> 105.9136617 | AF8: =Land!J8 -> 2069 | AG8: =Buildings!J8*AF8 -> 1034.5 | AH8: =AF8-AG8 -> 1034.5 | AJ8: =Buildings!L8 -> 132 | AK8: =AQ8 -> 212 | AL8: =SUM(AU8,AY8,BL8,BD8) -> 18 | AM8: =Buildings!Y8 -> 0 | AO8: =Buildings!L8*Buildings!M8 -> 9200.4 | AP8: =Buildings!L8/(Land!H8/10000) -> 440.293529 | AQ8: =ROUNDUP(Buildings!N8*Buildings!L8,0) -> 212 | AR8: =ROUNDUP(Buildings!L8*Buildings!O8,0) -> 94 | AT8: =Buildings!Q8 -> 0 | AU8: =IF(Buildings!R8=0,0,Buildings!Q8/Buildings!R8) -> 0 | AV8: =ROUNDUP(Buildings!Q8/100*Buildings!S8,0) -> 0 | AX8: =Buildings!U8 -> 1376.877603 | AY8: =ROUNDUP(IF(Buildings!V8=0,0,Buildings!U8/Buildings!V8),0) -> 18 | AZ8: =IF(SUM(AK8,AL8,AM8,BM8)=0,0,Buildings!U8/SUM(AK8,AL8,AM8,BM8)) -> 5.986424359 | BA8: =ROUNDUP(Buildings!U8/100*Buildings!W8,0) -> 13 | BC8: =Buildings!Y8*Buildings!Z8+Buildings!AB8 -> 0 | BD8: =ROUNDUP(Buildings!AA8*Buildings!Y8,0) -> 0 | BE8: =ROUNDUP(BC8/100*Buildings!AC8,0) -> 0 | BG8: =Buildings!AE8 -> 0 | BH8: =Buildings!AE8/100*Buildings!AF8 -> 0 | BM8: =BK8 -> 0 | BP8: =(Buildings!AV8*Buildings!L8) -> 66 | BQ8: =(Buildings!AW8*(Buildings!Q8/100)) -> 0 | BR8: =(Buildings!AX8*(Buildings!U8/100)) -> 12.39189842 | BS8: 78.39189842 | BT8: =BS8*Buildings!I8 -> 2665.324546 | BV8: =H8-I8 -> 1964.25
A9: =Land!A9 -> 1P-20 | B9: =IF(VLOOKUP(A9,'Control Panel'!$A$5:$B$69,2,FALSE)=TRUE,"ON","OFF") -> ON | C9: 1 | D9: residential, ground floor retail facing River Square | H9: =SUM(I9:L9) -> 4059.25 | I9: =Land!J9 -> 1981 | J9: =I9*(1-Buildings!J9) -> 990.5 | K9: =Land!M9 -> 271.75 | L9: 816 | N9: =Land!R9 -> 326.1 | O9: =Land!T9 -> 0 | P9: =Land!V9 -> 489.15 | Q9: =Land!Q9 -> 0.75 | R9: =IF(SUM(L9,K9)=0,0,N9/SUM(L9,K9)) -> 0.299793151 | S9: =IF(H9=0,0,(N9*6+O9*3+P9*1)/H9) -> 0.6025127795 | U9: =IF(Buildings!H9=0,0,Y9/Buildings!H9) -> 23609.11903 | V9: =IF(Land!H9=0,0,U9/Land!H9) -> 7.695279996 | W9: =IF(Land!J9=0,0,ROUNDUP(U9/Land!J9,0)) -> 12 | X9: 4249.641425 | Y9: =SUM(AO9,Buildings!Q9,Buildings!U9,Buildings!AH9,BC9,Buildings!AE9) -> 19359.4776 | AA9: 197 | AB9: =AA9*Buildings!I9 -> 6698 | AC9: =Buildings!O9 -> 0.71 | AD9: =IF(SUM(AV9,BA9,BN9,BE9,BH9)=0,0,SUM(Buildings!Q9,Buildings!U9,Buildings!AH9,BC9,Buildings!AE9)/SUM(AV9,BA9,BN9,BE9,BH9)) -> 105.9136617 | AF9: =Land!J9 -> 1981 | AG9: =Buildings!J9*AF9 -> 990.5 | AH9: 990.5 | AJ9: =Buildings!L9 -> 258 | AK9: 413 | AL9: 18 | AM9: =Buildings!Y9 -> 0 | AO9: =Buildings!L9*Buildings!M9 -> 17982.6 | AP9: =Buildings!L9/(Land!H9/10000) -> 840.9387223 | AQ9: =ROUNDUP(Buildings!N9*Buildings!L9,0) -> 413 | AR9: =ROUNDUP(Buildings!L9*Buildings!O9,0) -> 184 | AT9: =Buildings!Q9 -> 0 | AU9: =IF(Buildings!R9=0,0,Buildings!Q9/Buildings!R9) -> 0 | AV9: =ROUNDUP(Buildings!Q9/100*Buildings!S9,0) -> 0 | AX9: =Buildings!U9 -> 1376.877603 | AY9: =ROUNDUP(IF(Buildings!V9=0,0,Buildings!U9/Buildings!V9),0) -> 18 | AZ9: =IF(SUM(AK9,AL9,AM9,BM9)=0,0,Buildings!U9/SUM(AK9,AL9,AM9,BM9)) -> 3.194611607 | BA9: =ROUNDUP(Buildings!U9/100*Buildings!W9,0) -> 13 | BC9: =Buildings!Y9*Buildings!Z9+Buildings!AB9 -> 0 | BD9: =ROUNDUP(Buildings!AA9*Buildings!Y9,0) -> 0 | BE9: =ROUNDUP(BC9/100*Buildings!AC9,0) -> 0 | BG9: =Buildings!AE9 -> 0 | BH9: =Buildings!AE9/100*Buildings!AF9 -> 0 | BM9: 0 | BP9: =(Buildings!AV9*Buildings!L9) -> 129 | BQ9: =(Buildings!AW9*(Buildings!Q9/100)) -> 0 | BR9: =(Buildings!AX9*(Buildings!U9/100)) -> 12.39189842 | BS9: 141.3918984 | BT9: =BS9*Buildings!I9 -> 4807.324546 | BV9: =H9-I9 -> 2078.25
A10: =Land!A10 -> 1P-22 | B10: =IF(VLOOKUP(A10,'Control Panel'!$A$5:$B$69,2,FALSE)=TRUE,"ON","OFF") -> ON | C10: 1 | D10: residential | H10: 7181.3 | I10: =Land!J10 -> 1559 | J10: =I10*(1-Buildings!J10) -> 779.5 | K10: =Land!M10 -> 968.4 | L10: 3874.4 | N10: =Land!R10 -> 1549.44 | O10: =Land!T10 -> 0 | P10: =Land!V10 -> 2324.16 | Q10: =Land!Q10 -> 0.8 | R10: 0.319947138 | S10: 1.618202832 | U10: =IF(Buildings!H10=0,0,Y10/Buildings!H10) -> 25330 | V10: =IF(Land!H10=0,0,U10/Land!H10) -> 3.957194188 | W10: =IF(Land!J10=0,0,ROUNDUP(U10/Land!J10,0)) -> 17 | X10: 4559.4 | Y10: =SUM(AO10,Buildings!Q10,Buildings!U10,Buildings!AH10,BC10,Buildings!AE10) -> 20770.6 | AA10: 212 | AB10: =AA10*Buildings!I10 -> 7208 | AC10: =Buildings!O10 -> 0.71 | AD10: =IF(SUM(AV10,BA10,BN10,BE10,BH10)=0,0,SUM(Buildings!Q10,Buildings!U10,Buildings!AH10,BC10,Buildings!AE10)/SUM(AV10,BA10,BN10,BE10,BH10)) -> 0 | AF10: =Land!J10 -> 1559 | AG10: =Buildings!J10*AF10 -> 779.5 | AH10: 779.5 | AJ10: =Buildings!L10 -> 298 | AK10: 477 | AL10: 0 | AM10: =Buildings!Y10 -> 0 | AO10: =Buildings!L10*Buildings!M10 -> 20770.6 | AP10: =Buildings!L10/(Land!H10/10000) -> 465.5522575 | AQ10: =ROUNDUP(Buildings!N10*Buildings!L10,0) -> 477 | AR10: =ROUNDUP(Buildings!L10*Buildings!O10,0) -> 212 | AT10: =Buildings!Q10 -> 0 | AU10: =IF(Buildings!R10=0,0,Buildings!Q10/Buildings!R10) -> 0 | AV10: =ROUNDUP(Buildings!Q10/100*Buildings!S10,0) -> 0 | AX10: =Buildings!U10 -> 0 | AY10: =ROUNDUP(IF(Buildings!V10=0,0,Buildings!U10/Buildings!V10),0) -> 0 | AZ10: =IF(SUM(AK10,AL10,AM10,BM10)=0,0,Buildings!U10/SUM(AK10,AL10,AM10,BM10)) -> 0 | BA10: =ROUNDUP(Buildings!U10/100*Buildings!W10,0) -> 0 | BC10: =Buildings!Y10*Buildings!Z10+Buildings!AB10 -> 0 | BD10: =ROUNDUP(Buildings!AA10*Buildings!Y10,0) -> 0 | BE10: =ROUNDUP(BC10/100*Buildings!AC10,0) -> 0 | BG10: =Buildings!AE10 -> 0 | BH10: =Buildings!AE10/100*Buildings!AF10 -> 0 | BM10: 0 | BP10: =(Buildings!AV10*Buildings!L10) -> 149 | BQ10: =(Buildings!AW10*(Buildings!Q10/100)) -> 0 | BR10: =(Buildings!AX10*(Buildings!U10/100)) -> 0 | BS10: 149 | BT10: =BS10*Buildings!I10 -> 5066 | BV10: 5622.3
A11: =Land!A11 -> 1P-24 | B11: =IF(VLOOKUP(A11,'Control Panel'!$A$5:$B$69,2,FALSE)=TRUE,"ON","OFF") -> ON | C11: 1 | D11: residential, ground floor retail facing King St | H11: 7935.25 | I11: =Land!J11 -> 1557 | J11: =I11*(1-Buildings!J11) -> 778.5 | K11: =Land!M11 -> 1399.75 | L11: 4200 | N11: =Land!R11 -> 1679.7 | O11: =Land!T11 -> 0 | P11: =Land!V11 -> 2519.55 | Q11: =Land!Q11 -> 0.75 | R11: 0.2999598196 | S11: 1.58756813 | U11: =IF(Buildings!H11=0,0,Y11/Buildings!H11) -> 18839.55951 | V11: =IF(Land!H11=0,0,U11/Land!H11) -> 2.632694175 | W11: =IF(Land!J11=0,0,ROUNDUP(U11/Land!J11,0)) -> 13 | X11: 3391.120712 | Y11: =SUM(AO11,Buildings!Q11,Buildings!U11,Buildings!AH11,BC11,Buildings!AE11) -> 15448.4388 | AA11: 182 | AB11: =AA11*Buildings!I11 -> 6188 | AC11: =Buildings!O11 -> 0.71 | AD11: =IF(SUM(AV11,BA11,BN11,BE11,BH11)=0,0,SUM(Buildings!Q11,Buildings!U11,Buildings!AH11,BC11,Buildings!AE11)/SUM(AV11,BA11,BN11,BE11,BH11)) -> 98.34840019 | AF11: =Land!J11 -> 1557 | AG11: =Buildings!J11*AF11 -> 778.5 | AH11: 778.5 | AJ11: =Buildings!L11 -> 246 | AK11: 394 | AL11: 9 | AM11: =Buildings!Y11 -> 0 | AO11: =Buildings!L11*Buildings!M11 -> 14760 | AP11: =Buildings!L11/(Land!H11/10000) -> 343.7674679 | AQ11: =ROUNDUP(Buildings!N11*Buildings!L11,0) -> 394 | AR11: =ROUNDUP(Buildings!L11*Buildings!O11,0) -> 175 | AT11: =Buildings!Q11 -> 0 | AU11: =IF(Buildings!R11=0,0,Buildings!Q11/Buildings!R11) -> 0 | AV11: =ROUNDUP(Buildings!Q11/100*Buildings!S11,0) -> 0 | AX11: =Buildings!U11 -> 688.4388013 | AY11: =ROUNDUP(IF(Buildings!V11=0,0,Buildings!U11/Buildings!V11),0) -> 9 | AZ11: =IF(SUM(AK11,AL11,AM11,BM11)=0,0,Buildings!U11/SUM(AK11,AL11,AM11,BM11)) -> 1.708284867 | BA11: =ROUNDUP(Buildings!U11/100*Buildings!W11,0) -> 7 | BC11: =Buildings!Y11*Buildings!Z11+Buildings!AB11 -> 0 | BD11: =ROUNDUP(Buildings!AA11*Buildings!Y11,0) -> 0 | BE11: =ROUNDUP(BC11/100*Buildings!AC11,0) -> 0 | BG11: =Buildings!AE11 -> 0 | BH11: =Buildings!AE11/100*Buildings!AF11 -> 0 | BM11: 0 | BP11: =(Buildings!AV11*Buildings!L11) -> 123 | BQ11: =(Buildings!AW11*(Buildings!Q11/100)) -> 0 | BR11: =(Buildings!AX11*(Buildings!U11/100)) -> 6.195949212 | BS11: 129.1959492 | BT11: =BS11*Buildings!I11 -> 4392.662273 | BV11: 6378.25
A12: =Land!A12 -> 1P-21 | B12: =IF(VLOOKUP(A12,'Control Panel'!$A$5:$B$69,2,FALSE)=TRUE,"ON","OFF") -> ON | C12: 1 | D12: residential TCHC | H12: 4536.3 | I12: =Land!J12 -> 1073 | J12: =I12*(1-Buildings!J12) -> 536.5 | K12: =Land!M12 -> 585.2 | L12: 2341.6 | N12: =Land!R12 -> 936.32 | O12: =Land!T12 -> 0 | P12: =Land!V12 -> 1404.48 | Q12: =Land!Q12 -> 0.8 | R12: 0.3199125325 | S12: 1.548045764 | U12: =IF(Buildings!H12=0,0,Y12/Buildings!H12) -> 9680 | V12: =IF(Land!H12=0,0,U12/Land!H12) -> 2.420605151 | W12: =IF(Land!J12=0,0,ROUNDUP(U12/Land!J12,0)) -> 10 | X12: 1742.4 | Y12: =SUM(AO12,Buildings!Q12,Buildings!U12,Buildings!AH12,BC12,Buildings!AE12) -> 7937.6 | AA12: 86 | AB12: =AA12*Buildings!I12 -> 2924 | AC12: =Buildings!O12 -> 0.71 | AD12: =IF(SUM(AV12,BA12,BN12,BE12,BH12)=0,0,SUM(Buildings!Q12,Buildings!U12,Buildings!AH12,BC12,Buildings!AE12)/SUM(AV12,BA12,BN12,BE12,BH12)) -> 0 | AF12: =Land!J12 -> 1073 | AG12: =Buildings!J12*AF12 -> 536.5 | AH12: 536.5 | AJ12: =Buildings!L12 -> 121 | AK12: 194 | AL12: 0 | AM12: =Buildings!Y12 -> 0 | AO12: =Buildings!L12*Buildings!M12 -> 7937.6 | AP12: =Buildings!L12/(Land!H12/10000) -> 302.5756439 | AQ12: =ROUNDUP(Buildings!N12*Buildings!L12,0) -> 194 | AR12: =ROUNDUP(Buildings!L12*Buildings!O12,0) -> 86 | AT12: =Buildings!Q12 -> 0 | AU12: =IF(Buildings!R12=0,0,Buildings!Q12/Buildings!R12) -> 0 | AV12: =ROUNDUP(Buildings!Q12/100*Buildings!S12,0) -> 0 | AX12: =Buildings!U12 -> 0 | AY12: =ROUNDUP(IF(Buildings!V12=0,0,Buildings!U12/Buildings!V12),0) -> 0 | AZ12: =IF(SUM(AK12,AL12,AM12,BM12)=0,0,Buildings!U12/SUM(AK12,AL12,AM12,BM12)) -> 0 | BA12: =ROUNDUP(Buildings!U12/100*Buildings!W12,0) -> 0 | BC12: =Buildings!Y12*Buildings!Z12+Buildings!AB12 -> 0 | BD12: =ROUNDUP(Buildings!AA12*Buildings!Y12,0) -> 0 | BE12: =ROUNDUP(BC12/100*Buildings!AC12,0) -> 0 | BG12: =Buildings!AE12 -> 0 | BH12: =Buildings!AE12/100*Buildings!AF12 -> 0 | BM12: 0 | BP12: =(Buildings!AV12*Buildings!L12) -> 60.5 | BQ12: =(Buildings!AW12*(Buildings!Q12/100)) -> 0 | BR12: =(Buildings!AX12*(Buildings!U12/100)) -> 0 | BS12: 60.5 | BT12: =BS12*Buildings!I12 -> 2057 | BV12: 3463.3
A13: =Land!A13 -> 1P-23 | B13: =IF(VLOOKUP(A13,'Control Panel'!$A$5:$B$69,2,FALSE)=TRUE,"ON","OFF") -> ON | C13: 1 | D13: residential TCHC, ground floor retail facing King St | H13: 5512.25 | I13: =Land!J13 -> 2005 | J13: =I13*(1-Buildings!J13) -> 1002.5 | K13: =Land!M13 -> 626 | L13: 1878.75 | N13: =Land!R13 -> 751.2 | O13: =Land!T13 -> 0 | P13: =Land!V13 -> 1126.8 | Q13: =Land!Q13 -> 0.75 | R13: 0.2999101707 | S13: 1.022087169 | U13: =IF(Buildings!H13=0,0,Y13/Buildings!H13) -> 10519.55951 | V13: =IF(Land!H13=0,0,U13/Land!H13) -> 2.333013864 | W13: =IF(Land!J13=0,0,ROUNDUP(U13/Land!J13,0)) -> 6 | X13: 1893.520712 | Y13: =SUM(AO13,Buildings!Q13,Buildings!U13,Buildings!AH13,BC13,Buildings!AE13) -> 8626.038801 | AA13: 93 | AB13: =AA13*Buildings!I13 -> 3162 | AC13: =Buildings!O13 -> 0.71 | AD13: =IF(SUM(AV13,BA13,BN13,BE13,BH13)=0,0,SUM(Buildings!Q13,Buildings!U13,Buildings!AH13,BC13,Buildings!AE13)/SUM(AV13,BA13,BN13,BE13,BH13)) -> 98.34840019 | AF13: =Land!J13 -> 2005 | AG13: =Buildings!J13*AF13 -> 1002.5 | AH13: 1002.5 | AJ13: =Buildings!L13 -> 121 | AK13: 194 | AL13: 9 | AM13: =Buildings!Y13 -> 0 | AO13: =Buildings!L13*Buildings!M13 -> 7937.6 | AP13: =Buildings!L13/(Land!H13/10000) -> 268.3521845 | AQ13: =ROUNDUP(Buildings!N13*Buildings!L13,0) -> 194 | AR13: =ROUNDUP(Buildings!L13*Buildings!O13,0) -> 86 | AT13: =Buildings!Q13 -> 0 | AU13: =IF(Buildings!R13=0,0,Buildings!Q13/Buildings!R13) -> 0 | AV13: =ROUNDUP(Buildings!Q13/100*Buildings!S13,0) -> 0 | AX13: =Buildings!U13 -> 688.4388013 | AY13: =ROUNDUP(IF(Buildings!V13=0,0,Buildings!U13/Buildings!V13),0) -> 9 | AZ13: =IF(SUM(AK13,AL13,AM13,BM13)=0,0,Buildings!U13/SUM(AK13,AL13,AM13,BM13)) -> 3.391324144 | BA13: =ROUNDUP(Buildings!U13/100*Buildings!W13,0) -> 7 | BC13: =Buildings!Y13*Buildings!Z13+Buildings!AB13 -> 0 | BD13: =ROUNDUP(Buildings!AA13*Buildings!Y13,0) -> 0 | BE13: =ROUNDUP(BC13/100*Buildings!AC13,0) -> 0 | BG13: =Buildings!AE13 -> 0 | BH13: =Buildings!AE13/100*Buildings!AF13 -> 0 | BM13: 0 | BP13: =(Buildings!AV13*Buildings!L13) -> 60.5 | BQ13: =(Buildings!AW13*(Buildings!Q13/100)) -> 0 | BR13: =(Buildings!AX13*(Buildings!U13/100)) -> 6.195949212 | BS13: 66.69594921 | BT13: =BS13*Buildings!I13 -> 2267.662273 | BV13: 3507.25
A14: =Land!A14 -> 1P-P1 | B14: =IF(VLOOKUP(A14,'Control Panel'!$A$5:$B$69,2,FALSE)=TRUE,"ON","OFF") -> ON | C14: 1 | D14: community park (Don River Park) | H14: 53168.85 | I14: =Land!J14 -> 0 | J14: =I14*(1-Buildings!J14) -> 0 | K14: =Land!M14 -> 7975.2 | L14: 45193.65 | N14: =Land!R14 -> 27115.68 | O14: =Land!T14 -> 0 | P14: =Land!V14 -> 18077.12 | Q14: =Land!Q14 -> 0.85 | R14: 0.5099918467 | S14: 3.399945645 | U14: =IF(Buildings!H14=0,0,Y14/Buildings!H14) -> 0 | V14: =IF(Land!H14=0,0,U14/Land!H14) -> 0 | W14: =IF(Land!J14=0,0,ROUNDUP(U14/Land!J14,0)) -> 0 | X14: 0 | Y14: =SUM(AO14,Buildings!Q14,Buildings!U14,Buildings!AH14,BC14,Buildings!AE14) -> 0 | AA14: 0 | AB14: =AA14*Buildings!I14 -> 0 | AC14: =Buildings!O14 -> 0.71 | AD14: =IF(SUM(AV14,BA14,BN14,BE14,BH14)=0,0,SUM(Buildings!Q14,Buildings!U14,Buildings!AH14,BC14,Buildings!AE14)/SUM(AV14,BA14,BN14,BE14,BH14)) -> 0 | AF14: =Land!J14 -> 0 | AG14: =Buildings!J14*AF14 -> 0 | AH14: 0 | AJ14: =Buildings!L14 -> 0 | AK14: 0 | AL14: 0 | AM14: =Buildings!Y14 -> 0 | AO14: =Buildings!L14*Buildings!M14 -> 0 | AP14: =Buildings!L14/(Land!H14/10000) -> 0 | AQ14: =ROUNDUP(Buildings!N14*Buildings!L14,0) -> 0 | AR14: =ROUNDUP(Buildings!L14*Buildings!O14,0) -> 0 | AT14: =Buildings!Q14 -> 0 | AU14: =IF(Buildings!R14=0,0,Buildings!Q14/Buildings!R14) -> 0 | AV14: =ROUNDUP(Buildings!Q14/100*Buildings!S14,0) -> 0 | AX14: =Buildings!U14 -> 0 | AY14: =ROUNDUP(IF(Buildings!V14=0,0,Buildings!U14/Buildings!V14),0) -> 0 | AZ14: =IF(SUM(AK14,AL14,AM14,BM14)=0,0,Buildings!U14/SUM(AK14,AL14,AM14,BM14)) -> 0 | BA14: =ROUNDUP(Buildings!U14/100*Buildings!W14,0) -> 0 | BC14: =Buildings!Y14*Buildings!Z14+Buildings!AB14 -> 0 | BD14: =ROUNDUP(Buildings!AA14*Buildings!Y14,0) -> 0 | BE14: =ROUNDUP(BC14/100*Buildings!AC14,0) -> 0 | BG14: =Buildings!AE14 -> 0 | BH14: =Buildings!AE14/100*Buildings!AF14 -> 0 | BM14: 0 | BP14: =(Buildings!AV14*Buildings!L14) -> 0 | BQ14: =(Buildings!AW14*(Buildings!Q14/100)) -> 0 | BR14: =(Buildings!AX14*(Buildings!U14/100)) -> 0 | BS14: 0 | BT14: =BS14*Buildings!I14 -> 0 | BV14: 53168.85
A15: =Land!A15 -> 1P-P2 | B15: =IF(VLOOKUP(A15,'Control Panel'!$A$5:$B$69,2,FALSE)=TRUE,"ON","OFF") -> ON | C15: 1 | D15: neighborhood park (River Square) | H15: 2277.8 | I15: =Land!J15 -> 0 | J15: =I15*(1-Buildings!J15) -> 0 | K15: =Land!M15 -> 455.4 | L15: 1822.4 | N15: =Land!R15 -> 1092.96 | O15: =Land!T15 -> 0 | P15: =Land!V15 -> 728.64 | Q15: =Land!Q15 -> 0.8 | R15: 0.4798314163 | S15: 3.198876109 | U15: =IF(Buildings!H15=0,0,Y15/Buildings!H15) -> 0 | V15: =IF(Land!H15=0,0,U15/Land!H15) -> 0 | W15: =IF(Land!J15=0,0,ROUNDUP(U15/Land!J15,0)) -> 0 | X15: 0 | Y15: =SUM(AO15,Buildings!Q15,Buildings!U15,Buildings!AH15,BC15,Buildings!AE15) -> 0 | AA15: 0 | AB15: =AA15*Buildings!I15 -> 0 | AC15: =Buildings!O15 -> 0.71 | AD15: =IF(SUM(AV15,BA15,BN15,BE15,BH15)=0,0,SUM(Buildings!Q15,Buildings!U15,Buildings!AH15,BC15,Buildings!AE15)/SUM(AV15,BA15,BN15,BE15,BH15)) -> 0 | AF15: =Land!J15 -> 0 | AG15: =Buildings!J15*AF15 -> 0 | AH15: 0 | AJ15: =Buildings!L15 -> 0 | AK15: 0 | AL15: 0 | AM15: =Buildings!Y15 -> 0 | AO15: =Buildings!L15*Buildings!M15 -> 0 | AP15: =Buildings!L15/(Land!H15/10000) -> 0 | AQ15: =ROUNDUP(Buildings!N15*Buildings!L15,0) -> 0 | AR15: =ROUNDUP(Buildings!L15*Buildings!O15,0) -> 0 | AT15: =Buildings!Q15 -> 0 | AU15: =IF(Buildings!R15=0,0,Buildings!Q15/Buildings!R15) -> 0 | AV15: =ROUNDUP(Buildings!Q15/100*Buildings!S15,0) -> 0 | AX15: =Buildings!U15 -> 0 | AY15: =ROUNDUP(IF(Buildings!V15=0,0,Buildings!U15/Buildings!V15),0) -> 0 | AZ15: =IF(SUM(AK15,AL15,AM15,BM15)=0,0,Buildings!U15/SUM(AK15,AL15,AM15,BM15)) -> 0 | BA15: =ROUNDUP(Buildings!U15/100*Buildings!W15,0) -> 0 | BC15: =Buildings!Y15*Buildings!Z15+Buildings!AB15 -> 0 | BD15: =ROUNDUP(Buildings!AA15*Buildings!Y15,0) -> 0 | BE15: =ROUNDUP(BC15/100*Buildings!AC15,0) -> 0 | BG15: =Buildings!AE15 -> 0 | BH15: =Buildings!AE15/100*Buildings!AF15 -> 0 | BM15: 0 | BP15: =(Buildings!AV15*Buildings!L15) -> 0 | BQ15: =(Buildings!AW15*(Buildings!Q15/100)) -> 0 | BR15: =(Buildings!AX15*(Buildings!U15/100)) -> 0 | BS15: 0 | BT15: =BS15*Buildings!I15 -> 0 | BV15: 2277.8
A16: =Land!A16 -> 1P-P3 | B16: =IF(VLOOKUP(A16,'Control Panel'!$A$5:$B$69,2,FALSE)=TRUE,"ON","OFF") -> ON | C16: 1 | D16: green frontage, median park (King St ramp and Don River) | H16: 12986.85 | I16: =Land!J16 -> 0 | J16: =I16*(1-Buildings!J16) -> 0 | K16: =Land!M16 -> 1947.9 | L16: 11038.95 | N16: =Land!R16 -> 8830.48 | O16: =Land!T16 -> 0 | P16: =Land!V16 -> 2207.62 | Q16: =Land!Q16 -> 0.85 | R16: 0.6799554934 | S16: 4.249721834 | U16: =IF(Buildings!H16=0,0,Y16/Buildings!H16) -> 0 | V16: =IF(Land!H16=0,0,U16/Land!H16) -> 0 | W16: =IF(Land!J16=0,0,ROUNDUP(U16/Land!J16,0)) -> 0 | X16: 0 | Y16: =SUM(AO16,Buildings!Q16,Buildings!U16,Buildings!AH16,BC16,Buildings!AE16) -> 0 | AA16: 0 | AB16: =AA16*Buildings!I16 -> 0 | AC16: =Buildings!O16 -> 0.71 | AD16: =IF(SUM(AV16,BA16,BN16,BE16,BH16)=0,0,SUM(Buildings!Q16,Buildings!U16,Buildings!AH16,BC16,Buildings!AE16)/SUM(AV16,BA16,BN16,BE16,BH16)) -> 0 | AF16: =Land!J16 -> 0 | AG16: =Buildings!J16*AF16 -> 0 | AH16: 0 | AJ16: =Buildings!L16 -> 0 | AK16: 0 | AL16: 0 | AM16: =Buildings!Y16 -> 0 | AO16: =Buildings!L16*Buildings!M16 -> 0 | AP16: =Buildings!L16/(Land!H16/10000) -> 0 | AQ16: =ROUNDUP(Buildings!N16*Buildings!L16,0) -> 0 | AR16: =ROUNDUP(Buildings!L16*Buildings!O16,0) -> 0 | AT16: =Buildings!Q16 -> 0 | AU16: =IF(Buildings!R16=0,0,Buildings!Q16/Buildings!R16) -> 0 | AV16: =ROUNDUP(Buildings!Q16/100*Buildings!S16,0) -> 0 | AX16: =Buildings!U16 -> 0 | AY16: =ROUNDUP(IF(Buildings!V16=0,0,Buildings!U16/Buildings!V16),0) -> 0 | AZ16: =IF(SUM(AK16,AL16,AM16,BM16)=0,0,Buildings!U16/SUM(AK16,AL16,AM16,BM16)) -> 0 | BA16: =ROUNDUP(Buildings!U16/100*Buildings!W16,0) -> 0 | BC16: =Buildings!Y16*Buildings!Z16+Buildings!AB16 -> 0 | BD16: =ROUNDUP(Buildings!AA16*Buildings!Y16,0) -> 0 | BE16: =ROUNDUP(BC16/100*Buildings!AC16,0) -> 0 | BG16: =Buildings!AE16 -> 0 | BH16: =Buildings!AE16/100*Buildings!AF16 -> 0 | BM16: 0 | BP16: =(Buildings!AV16*Buildings!L16) -> 0 | BQ16: =(Buildings!AW16*(Buildings!Q16/100)) -> 0 | BR16: =(Buildings!AX16*(Buildings!U16/100)) -> 0 | BS16: 0 | BT16: =BS16*Buildings!I16 -> 0 | BV16: 12986.85
A17: =Land!A17 -> 1P-ST | B17: =IF(VLOOKUP(A17,'Control Panel'!$A$5:$B$69,2,FALSE)=TRUE,"ON","OFF") -> ON | C17: 1 | D17: streets | H17: 13633.2 | I17: =Land!J17 -> 0 | J17: =I17*(1-Buildings!J17) -> 0 | K17: =Land!M17 -> 10906.4 | L17: 2726.8 | N17: =Land!R17 -> 1908.62 | O17: =Land!T17 -> 0 | P17: =Land!V17 -> 817.98 | Q17: =Land!Q17 -> 0.2 | R17: 0.1399979462 | S17: 0.8999867969 | U17: =IF(Buildings!H17=0,0,Y17/Buildings!H17) -> 0 | V17: =IF(Land!H17=0,0,U17/Land!H17) -> 0 | W17: =IF(Land!J17=0,0,ROUNDUP(U17/Land!J17,0)) -> 0 | X17: 0 | Y17: =SUM(AO17,Buildings!Q17,Buildings!U17,Buildings!AH17,BC17,Buildings!AE17) -> 0 | AA17: 0 | AB17: =AA17*Buildings!I17 -> 0 | AC17: =Buildings!O17 -> 0.71 | AD17: =IF(SUM(AV17,BA17,BN17,BE17,BH17)=0,0,SUM(Buildings!Q17,Buildings!U17,Buildings!AH17,BC17,Buildings!AE17)/SUM(AV17,BA17,BN17,BE17,BH17)) -> 0 | AF17: =Land!J17 -> 0 | AG17: =Buildings!J17*AF17 -> 0 | AH17: 0 | AJ17: =Buildings!L17 -> 0 | AK17: 0 | AL17: 0 | AM17: =Buildings!Y17 -> 0 | AO17: =Buildings!L17*Buildings!M17 -> 0 | AP17: =Buildings!L17/(Land!H17/10000) -> 0 | AQ17: =ROUNDUP(Buildings!N17*Buildings!L17,0) -> 0 | AR17: =ROUNDUP(Buildings!L17*Buildings!O17,0) -> 0 | AT17: =Buildings!Q17 -> 0 | AU17: =IF(Buildings!R17=0,0,Buildings!Q17/Buildings!R17) -> 0 | AV17: =ROUNDUP(Buildings!Q17/100*Buildings!S17,0) -> 0 | AX17: =Buildings!U17 -> 0 | AY17: =ROUNDUP(IF(Buildings!V17=0,0,Buildings!U17/Buildings!V17),0) -> 0 | AZ17: =IF(SUM(AK17,AL17,AM17,BM17)=0,0,Buildings!U17/SUM(AK17,AL17,AM17,BM17)) -> 0 | BA17: =ROUNDUP(Buildings!U17/100*Buildings!W17,0) -> 0 | BC17: =Buildings!Y17*Buildings!Z17+Buildings!AB17 -> 0 | BD17: =ROUNDUP(Buildings!AA17*Buildings!Y17,0) -> 0 | BE17: =ROUNDUP(BC17/100*Buildings!AC17,0) -> 0 | BG17: =Buildings!AE17 -> 0 | BH17: =Buildings!AE17/100*Buildings!AF17 -> 0 | BM17: 0 | BP17: =(Buildings!AV17*Buildings!L17) -> 0 | BQ17: =(Buildings!AW17*(Buildings!Q17/100)) -> 0 | BR17: =(Buildings!AX17*(Buildings!U17/100)) -> 0 | BS17: 0 | BT17: =BS17*Buildings!I17 -> 0 | BV17: 13633.2
A18: =Land!A18 -> 2P-17W | B18: =IF(VLOOKUP(A18,'Control Panel'!$A$5:$B$69,2,FALSE)=TRUE,"ON","OFF") -> ON | C18: 2 | D18: commercial/retail on Eastern Avenue | H18: 17221.75 | I18: =Land!J18 -> 6494 | J18: =I18*(1-Buildings!J18) -> 3247 | K18: =Land!M18 -> 1870 | L18: 5610.75 | N18: =Land!R18 -> 2244 | O18: =Land!T18 -> 0 | P18: =Land!V18 -> 3366 | Q18: =Land!Q18 -> 0.75 | R18: 0.2999699228 | S18: 0.9772526021 | U18: =IF(Buildings!H18=0,0,Y18/Buildings!H18) -> 9130.813241 | V18: =IF(Land!H18=0,0,U18/Land!H18) -> 0.6534144298 | W18: =IF(Land!J18=0,0,ROUNDUP(U18/Land!J18,0)) -> 2 | X18: 1369.621986 | Y18: =SUM(AO18,Buildings!Q18,Buildings!U18,Buildings!AH18,BC18,Buildings!AE18) -> 7761.191255 | AA18: 76 | AB18: =AA18*Buildings!I18 -> 2584 | AC18: =Buildings!O18 -> 0.71 | AD18: =IF(SUM(AV18,BA18,BN18,BE18,BH18)=0,0,SUM(Buildings!Q18,Buildings!U18,Buildings!AH18,BC18,Buildings!AE18)/SUM(AV18,BA18,BN18,BE18,BH18)) -> 102.1209376 | AF18: =Land!J18 -> 6494 | AG18: =Buildings!J18*AF18 -> 3247 | AH18: 3247 | AJ18: =Buildings!L18 -> 0 | AK18: 0 | AL18: 258.7063752 | AM18: =Buildings!Y18 -> 0 | AO18: =Buildings!L18*Buildings!M18 -> 0 | AP18: =Buildings!L18/(Land!H18/10000) -> 0 | AQ18: =ROUNDUP(Buildings!N18*Buildings!L18,0) -> 0 | AR18: =ROUNDUP(Buildings!L18*Buildings!O18,0) -> 0 | AT18: =Buildings!Q18 -> 7761.191255 | AU18: =IF(Buildings!R18=0,0,Buildings!Q18/Buildings!R18) -> 258.7063752 | AV18: =ROUNDUP(Buildings!Q18/100*Buildings!S18,0) -> 76 | AX18: =Buildings!U18 -> 0 | AY18: =ROUNDUP(IF(Buildings!V18=0,0,Buildings!U18/Buildings!V18),0) -> 0 | AZ18: =IF(SUM(AK18,AL18,AM18,BM18)=0,0,Buildings!U18/SUM(AK18,AL18,AM18,BM18)) -> 0 | BA18: =ROUNDUP(Buildings!U18/100*Buildings!W18,0) -> 0 | BC18: =Buildings!Y18*Buildings!Z18+Buildings!AB18 -> 0 | BD18: =ROUNDUP(Buildings!AA18*Buildings!Y18,0) -> 0 | BE18: =ROUNDUP(BC18/100*Buildings!AC18,0) -> 0 | BG18: =Buildings!AE18 -> 0 | BH18: =Buildings!AE18/100*Buildings!AF18 -> 0 | BM18: 0 | BP18: =(Buildings!AV18*Buildings!L18) -> 0 | BQ18: =(Buildings!AW18*(Buildings!Q18/100)) -> 54.32833879 | BR18: =(Buildings!AX18*(Buildings!U18/100)) -> 0 | BS18: 54.32833879 | BT18: =BS18*Buildings!I18 -> 1847.163519 | BV18: 10727.75
A19: =Land!A19 -> 2P-DE | B19: =IF(VLOOKUP(A19,'Control Panel'!$A$5:$B$69,2,FALSE)=TRUE,"ON","OFF") -> ON | C19: 2 | D19: district energy plant on Eastern Avenue | H19: 2046.25 | I19: =Land!J19 -> 981 | J19: =I19*(1-Buildings!J19) -> 490.5 | K19: =Land!M19 -> 143.5 | L19: 431.25 | N19: =Land!R19 -> 301.35 | O19: =Land!T19 -> 0 | P19: =Land!V19 -> 129.15 | Q19: =Land!Q19 -> 0.75 | R19: 0.5243149195 | S19: 0.9467318265 | U19: =IF(Buildings!H19=0,0,Y19/Buildings!H19) -> 0 | V19: =IF(Land!H19=0,0,U19/Land!H19) -> 0 | W19: =IF(Land!J19=0,0,ROUNDUP(U19/Land!J19,0)) -> 0 | X19: -800 | Y19: =SUM(AO19,Buildings!Q19,Buildings!U19,Buildings!AH19,BC19,Buildings!AE19) -> 800 | AA19: 0 | AB19: =AA19*Buildings!I19 -> 0 | AC19: =Buildings!O19 -> 0.71 | AD19: =IF(SUM(AV19,BA19,BN19,BE19,BH19)=0,0,SUM(Buildings!Q19,Buildings!U19,Buildings!AH19,BC19,Buildings!AE19)/SUM(AV19,BA19,BN19,BE19,BH19)) -> 0 | AF19: =Land!J19 -> 981 | AG19: =Buildings!J19*AF19 -> 490.5 | AH19: 490.5 | AJ19: =Buildings!L19 -> 0 | AK19: 0 | AL19: 0 | AM19: =Buildings!Y19 -> 0 | AO19: =Buildings!L19*Buildings!M19 -> 0 | AP19: =Buildings!L19/(Land!H19/10000) -> 0 | AQ19: =ROUNDUP(Buildings!N19*Buildings!L19,0) -> 0 | AR19: =ROUNDUP(Buildings!L19*Buildings!O19,0) -> 0 | AT19: =Buildings!Q19 -> 0 | AU19: =IF(Buildings!R19=0,0,Buildings!Q19/Buildings!R19) -> 0 | AV19: =ROUNDUP(Buildings!Q19/100*Buildings!S19,0) -> 0 | AX19: =Buildings!U19 -> 0 | AY19: =ROUNDUP(IF(Buildings!V19=0,0,Buildings!U19/Buildings!V19),0) -> 0 | AZ19: =IF(SUM(AK19,AL19,AM19,BM19)=0,0,Buildings!U19/SUM(AK19,AL19,AM19,BM19)) -> 0 | BA19: =ROUNDUP(Buildings!U19/100*Buildings!W19,0) -> 0 | BC19: =Buildings!Y19*Buildings!Z19+Buildings!AB19 -> 0 | BD19: =ROUNDUP(Buildings!AA19*Buildings!Y19,0) -> 0 | BE19: =ROUNDUP(BC19/100*Buildings!AC19,0) -> 0 | BG19: =Buildings!AE19 -> 800 | BH19: =Buildings!AE19/100*Buildings!AF19 -> 0 | BM19: 0 | BP19: =(Buildings!AV19*Buildings!L19) -> 0 | BQ19: =(Buildings!AW19*(Buildings!Q19/100)) -> 0 | BR19: =(Buildings!AX19*(Buildings!U19/100)) -> 0 | BS19: 0 | BT19: =BS19*Buildings!I19 -> 0 | BV19: 1065.25
A20: =Land!A20 -> 2P-16E | B20: =IF(VLOOKUP(A20,'Control Panel'!$A$5:$B$69,2,FALSE)=TRUE,"ON","OFF") -> ON | C20: 2 | D20: residential, park facing groundfloor retail | H20: 13252.25 | I20: =Land!J20 -> 4475 | J20: =I20*(1-Buildings!J20) -> 2237.5 | K20: =Land!M20 -> 1634.75 | L20: 4905 | N20: =Land!R20 -> 1961.7 | O20: =Land!T20 -> 0 | P20: =Land!V20 -> 2942.55 | Q20: =Land!Q20 -> 0.75 | R20: 0.299965595 | S20: 1.110207701 | U20: =IF(Buildings!H20=0,0,Y20/Buildings!H20) -> 46979.88004 | V20: =IF(Land!H20=0,0,U20/Land!H20) -> 4.265469407 | W20: =IF(Land!J20=0,0,ROUNDUP(U20/Land!J20,0)) -> 11 | X20: 8456.378408 | Y20: =SUM(AO20,Buildings!Q20,Buildings!U20,Buildings!AH20,BC20,Buildings!AE20) -> 38523.50164 | AA20: 389 | AB20: =AA20*Buildings!I20 -> 13226 | AC20: =Buildings!O20 -> 0.71 | AD20: =IF(SUM(AV20,BA20,BN20,BE20,BH20)=0,0,SUM(Buildings!Q20,Buildings!U20,Buildings!AH20,BC20,Buildings!AE20)/SUM(AV20,BA20,BN20,BE20,BH20)) -> 108.0441658 | AF20: =Land!J20 -> 4475 | AG20: =Buildings!J20*AF20 -> 2237.5 | AH20: 2237.5 | AJ20: =Buildings!L20 -> 500 | AK20: 800 | AL20: 46 | AM20: =Buildings!Y20 -> 0 | AO20: =Buildings!L20*Buildings!M20 -> 34850 | AP20: =Buildings!L20/(Land!H20/10000) -> 453.9676775 | AQ20: =ROUNDUP(Buildings!N20*Buildings!L20,0) -> 800 | AR20: =ROUNDUP(Buildings!L20*Buildings!O20,0) -> 355 | AT20: =Buildings!Q20 -> 0 | AU20: =IF(Buildings!R20=0,0,Buildings!Q20/Buildings!R20) -> 0 | AV20: =ROUNDUP(Buildings!Q20/100*Buildings!S20,0) -> 0 | AX20: =Buildings!U20 -> 3673.501636 | AY20: =ROUNDUP(IF(Buildings!V20=0,0,Buildings!U20/Buildings!V20),0) -> 46 | AZ20: =IF(SUM(AK20,AL20,AM20,BM20)=0,0,Buildings!U20/SUM(AK20,AL20,AM20,BM20)) -> 4.342200515 | BA20: =ROUNDUP(Buildings!U20/100*Buildings!W20,0) -> 34 | BC20: =Buildings!Y20*Buildings!Z20+Buildings!AB20 -> 0 | BD20: =ROUNDUP(Buildings!AA20*Buildings!Y20,0) -> 0 | BE20: =ROUNDUP(BC20/100*Buildings!AC20,0) -> 0 | BG20: =Buildings!AE20 -> 0 | BH20: =Buildings!AE20/100*Buildings!AF20 -> 0 | BM20: 0 | BP20: =(Buildings!AV20*Buildings!L20) -> 250 | BQ20: =(Buildings!AW20*(Buildings!Q20/100)) -> 0 | BR20: =(Buildings!AX20*(Buildings!U20/100)) -> 33.06151472 | BS20: 283.0615147 | BT20: =BS20*Buildings!I20 -> 9624.091501 | BV20: 8777.25
A21: =Land!A21 -> 2P-13 | B21: =IF(VLOOKUP(A21,'Control Panel'!$A$5:$B$69,2,FALSE)=TRUE,"ON","OFF") -> ON | C21: 2 | D21: residential, park facing groundfloor retail | H21: 13236.75 | I21: =Land!J21 -> 5080 | J21: =I21*(1-Buildings!J21) -> 2540 | K21: =Land!M21 -> 1404 | L21: 4212.75 | N21: =Land!R21 -> 1684.8 | O21: =Land!T21 -> 0 | P21: =Land!V21 -> 2527.2 | Q21: =Land!Q21 -> 0.75 | R21: 0.2999599412 | S21: 0.9546149924 | U21: =IF(Buildings!H21=0,0,Y21/Buildings!H21) -> 42826.98528 | V21: =IF(Land!H21=0,0,U21/Land!H21) -> 4.004018818 | W21: =IF(Land!J21=0,0,ROUNDUP(U21/Land!J21,0)) -> 9 | X21: 7708.85735 | Y21: =SUM(AO21,Buildings!Q21,Buildings!U21,Buildings!AH21,BC21,Buildings!AE21) -> 35118.12793 | AA21: 356 | AB21: =AA21*Buildings!I21 -> 12104 | AC21: =Buildings!O21 -> 0.71 | AD21: =IF(SUM(AV21,BA21,BN21,BE21,BH21)=0,0,SUM(Buildings!Q21,Buildings!U21,Buildings!AH21,BC21,Buildings!AE21)/SUM(AV21,BA21,BN21,BE21,BH21)) -> 109.4909437 | AF21: =Land!J21 -> 5080 | AG21: =Buildings!J21*AF21 -> 2540 | AH21: 2540 | AJ21: =Buildings!L21 -> 474 | AK21: 759 | AL21: 27 | AM21: =Buildings!Y21 -> 0 | AO21: =Buildings!L21*Buildings!M21 -> 33037.8 | AP21: =Buildings!L21/(Land!H21/10000) -> 443.1563201 | AQ21: =ROUNDUP(Buildings!N21*Buildings!L21,0) -> 759 | AR21: =ROUNDUP(Buildings!L21*Buildings!O21,0) -> 337 | AT21: =Buildings!Q21 -> 0 | AU21: =IF(Buildings!R21=0,0,Buildings!Q21/Buildings!R21) -> 0 | AV21: =ROUNDUP(Buildings!Q21/100*Buildings!S21,0) -> 0 | AX21: =Buildings!U21 -> 2080.32793 | AY21: =ROUNDUP(IF(Buildings!V21=0,0,Buildings!U21/Buildings!V21),0) -> 27 | AZ21: =IF(SUM(AK21,AL21,AM21,BM21)=0,0,Buildings!U21/SUM(AK21,AL21,AM21,BM21)) -> 2.646727646 | BA21: =ROUNDUP(Buildings!U21/100*Buildings!W21,0) -> 19 | BC21: =Buildings!Y21*Buildings!Z21+Buildings!AB21 -> 0 | BD21: =ROUNDUP(Buildings!AA21*Buildings!Y21,0) -> 0 | BE21: =ROUNDUP(BC21/100*Buildings!AC21,0) -> 0 | BG21: =Buildings!AE21 -> 0 | BH21: =Buildings!AE21/100*Buildings!AF21 -> 0 | BM21: 0 | BP21: =(Buildings!AV21*Buildings!L21) -> 237 | BQ21: =(Buildings!AW21*(Buildings!Q21/100)) -> 0 | BR21: =(Buildings!AX21*(Buildings!U21/100)) -> 18.72295137 | BS21: 255.7229514 | BT21: =BS21*Buildings!I21 -> 8694.580347 | BV21: 8156.75
A22: =Land!A22 -> 2P-09 | B22: =IF(VLOOKUP(A22,'Control Panel'!$A$5:$B$69,2,FALSE)=TRUE,"ON","OFF") -> ON | C22: 2 | D22: school, residential | H22: 5452.75 | I22: =Land!J22 -> 2666 | J22: =I22*(1-Buildings!J22) -> 1333 | K22: =Land!M22 -> 363.25 | L22: 1090.5 | N22: =Land!R22 -> 435.9 | O22: =Land!T22 -> 0 | P22: =Land!V22 -> 653.85 | Q22: =Land!Q22 -> 0.75 | R22: 0.2998452279 | S22: 0.5995598551 | U22: =IF(Buildings!H22=0,0,Y22/Buildings!H22) -> 20474.35897 | V22: =IF(Land!H22=0,0,U22/Land!H22) -> 4.970711089 | W22: =IF(Land!J22=0,0,ROUNDUP(U22/Land!J22,0)) -> 8 | X22: 4504.358974 | Y22: =SUM(AO22,Buildings!Q22,Buildings!U22,Buildings!AH22,BC22,Buildings!AE22) -> 15970 | AA22: 82 | AB22: =AA22*Buildings!I22 -> 2788 | AC22: =Buildings!O22 -> 0.71 | AD22: =IF(SUM(AV22,BA22,BN22,BE22,BH22)=0,0,SUM(Buildings!Q22,Buildings!U22,Buildings!AH22,BC22,Buildings!AE22)/SUM(AV22,BA22,BN22,BE22,BH22)) -> 818.1818182 | AF22: =Land!J22 -> 2666 | AG22: =Buildings!J22*AF22 -> 1333 | AH22: 1333 | AJ22: =Buildings!L22 -> 100 | AK22: 160 | AL22: 40 | AM22: =Buildings!Y22 -> 400 | AO22: =Buildings!L22*Buildings!M22 -> 6970 | AP22: =Buildings!L22/(Land!H22/10000) -> 242.7773731 | AQ22: =ROUNDUP(Buildings!N22*Buildings!L22,0) -> 160 | AR22: =ROUNDUP(Buildings!L22*Buildings!O22,0) -> 71 | AT22: =Buildings!Q22 -> 0 | AU22: =IF(Buildings!R22=0,0,Buildings!Q22/Buildings!R22) -> 0 | AV22: =ROUNDUP(Buildings!Q22/100*Buildings!S22,0) -> 0 | AX22: =Buildings!U22 -> 0 | AY22: =ROUNDUP(IF(Buildings!V22=0,0,Buildings!U22/Buildings!V22),0) -> 0 | AZ22: =IF(SUM(AK22,AL22,AM22,BM22)=0,0,Buildings!U22/SUM(AK22,AL22,AM22,BM22)) -> 0 | BA22: =ROUNDUP(Buildings!U22/100*Buildings!W22,0) -> 0 | BC22: =Buildings!Y22*Buildings!Z22+Buildings!AB22 -> 9000 | BD22: =ROUNDUP(Buildings!AA22*Buildings!Y22,0) -> 40 | BE22: =ROUNDUP(BC22/100*Buildings!AC22,0) -> 11 | BG22: =Buildings!AE22 -> 0 | BH22: =Buildings!AE22/100*Buildings!AF22 -> 0 | BM22: 0 | BP22: =(Buildings!AV22*Buildings!L22) -> 50 | BQ22: =(Buildings!AW22*(Buildings!Q22/100)) -> 0 | BR22: =(Buildings!AX22*(Buildings!U22/100)) -> 0 | BS22: 61 | BT22: =BS22*Buildings!I22 -> 2074 | BV22: 2786.75
A23: =Land!A23 -> 2P-14 | B23: =IF(VLOOKUP(A23,'Control Panel'!$A$5:$B$69,2,FALSE)=TRUE,"ON","OFF") -> ON | C23: 2 | D23: commercial office with ground floor retail facing Front St | H23: 8184.75 | I23: =Land!J23 -> 3294 | J23: =I23*(1-Buildings!J23) -> 1647 | K23: =Land!M23 -> 810.75 | L23: 2433 | N23: =Land!R23 -> 972.9 | O23: =Land!T23 -> 0 | P23: =Land!V23 -> 1459.35 | Q23: =Land!Q23 -> 0.75 | R23: 0.2999306358 | S23: 0.8915055438 | U23: =IF(Buildings!H23=0,0,Y23/Buildings!H23) -> 38697.8706 | V23: =IF(Land!H23=0,0,U23/Land!H23) -> 5.91982111 | W23: =IF(Land!J23=0,0,ROUNDUP(U23/Land!J23,0)) -> 12 | X23: 5804.680589 | Y23: =SUM(AO23,Buildings!Q23,Buildings!U23,Buildings!AH23,BC23,Buildings!AE23) -> 32893.19001 | AA23: 325 | AB23: =AA23*Buildings!I23 -> 11050 | AC23: =Buildings!O23 -> 0.71 | AD23: =IF(SUM(AV23,BA23,BN23,BE23,BH23)=0,0,SUM(Buildings!Q23,Buildings!U23,Buildings!AH23,BC23,Buildings!AE23)/SUM(AV23,BA23,BN23,BE23,BH23)) -> 103.0530047 | AF23: =Land!J23 -> 3294 | AG23: =Buildings!J23*AF23 -> 1647 | AH23: 1647 | AJ23: =Buildings!L23 -> 157 | AK23: 252 | AL23: 731.6763335 | AM23: =Buildings!Y23 -> 0 | AO23: =Buildings!L23*Buildings!M23 -> 10942.9 | AP23: =Buildings!L23/(Land!H23/10000) -> 240.1713324 | AQ23: =ROUNDUP(Buildings!N23*Buildings!L23,0) -> 252 | AR23: =ROUNDUP(Buildings!L23*Buildings!O23,0) -> 112 | AT23: =Buildings!Q23 -> 21950.29001 | AU23: =IF(Buildings!R23=0,0,Buildings!Q23/Buildings!R23) -> 731.6763335 | AV23: =ROUNDUP(Buildings!Q23/100*Buildings!S23,0) -> 213 | AX23: =Buildings!U23 -> 0 | AY23: =ROUNDUP(IF(Buildings!V23=0,0,Buildings!U23/Buildings!V23),0) -> 0 | AZ23: =IF(SUM(AK23,AL23,AM23,BM23)=0,0,Buildings!U23/SUM(AK23,AL23,AM23,BM23)) -> 0 | BA23: =ROUNDUP(Buildings!U23/100*Buildings!W23,0) -> 0 | BC23: =Buildings!Y23*Buildings!Z23+Buildings!AB23 -> 0 | BD23: =ROUNDUP(Buildings!AA23*Buildings!Y23,0) -> 0 | BE23: =ROUNDUP(BC23/100*Buildings!AC23,0) -> 0 | BG23: =Buildings!AE23 -> 0 | BH23: =Buildings!AE23/100*Buildings!AF23 -> 0 | BM23: 0 | BP23: =(Buildings!AV23*Buildings!L23) -> 78.5 | BQ23: =(Buildings!AW23*(Buildings!Q23/100)) -> 153.65203 | BR23: =(Buildings!AX23*(Buildings!U23/100)) -> 0 | BS23: 232.15203 | BT23: =BS23*Buildings!I23 -> 7893.169021 | BV23: 4890.75
A24: =Land!A24 -> 2P-15 | B24: =IF(VLOOKUP(A24,'Control Panel'!$A$5:$B$69,2,FALSE)=TRUE,"ON","OFF") -> ON | C24: 2 | D24: residential with ground floor retail facing Front St | H24: 4041.3 | I24: =Land!J24 -> 1647 | J24: =I24*(1-Buildings!J24) -> 823.5 | K24: =Land!M24 -> 314 | L24: 1256.8 | N24: =Land!R24 -> 502.4 | O24: =Land!T24 -> 0 | P24: =Land!V24 -> 753.6 | Q24: =Land!Q24 -> 0.8 | R24: 0.3198370257 | S24: 0.9323732462 | U24: =IF(Buildings!H24=0,0,Y24/Buildings!H24) -> 25943.56637 | V24: =IF(Land!H24=0,0,U24/Land!H24) -> 8.064521718 | W24: =IF(Land!J24=0,0,ROUNDUP(U24/Land!J24,0)) -> 16 | X24: 4669.841946 | Y24: =SUM(AO24,Buildings!Q24,Buildings!U24,Buildings!AH24,BC24,Buildings!AE24) -> 21273.72442 | AA24: 216 | AB24: =AA24*Buildings!I24 -> 7344 | AC24: =Buildings!O24 -> 0.71 | AD24: =IF(SUM(AV24,BA24,BN24,BE24,BH24)=0,0,SUM(Buildings!Q24,Buildings!U24,Buildings!AH24,BC24,Buildings!AE24)/SUM(AV24,BA24,BN24,BE24,BH24)) -> 108.4018785 | AF24: =Land!J24 -> 1647 | AG24: =Buildings!J24*AF24 -> 823.5 | AH24: 823.5 | AJ24: =Buildings!L24 -> 285 | AK24: 456 | AL24: 18 | AM24: =Buildings!Y24 -> 0 | AO24: =Buildings!L24*Buildings!M24 -> 19864.5 | AP24: =Buildings!L24/(Land!H24/10000) -> 885.9185577 | AQ24: =ROUNDUP(Buildings!N24*Buildings!L24,0) -> 456 | AR24: =ROUNDUP(Buildings!L24*Buildings!O24,0) -> 203 | AT24: =Buildings!Q24 -> 0 | AU24: =IF(Buildings!R24=0,0,Buildings!Q24/Buildings!R24) -> 0 | AV24: =ROUNDUP(Buildings!Q24/100*Buildings!S24,0) -> 0 | AX24: =Buildings!U24 -> 1409.22442 | AY24: =ROUNDUP(IF(Buildings!V24=0,0,Buildings!U24/Buildings!V24),0) -> 18 | AZ24: =IF(SUM(AK24,AL24,AM24,BM24)=0,0,Buildings!U24/SUM(AK24,AL24,AM24,BM24)) -> 2.9730473 | BA24: =ROUNDUP(Buildings!U24/100*Buildings!W24,0) -> 13 | BC24: =Buildings!Y24*Buildings!Z24+Buildings!AB24 -> 0 | BD24: =ROUNDUP(Buildings!AA24*Buildings!Y24,0) -> 0 | BE24: =ROUNDUP(BC24/100*Buildings!AC24,0) -> 0 | BG24: =Buildings!AE24 -> 0 | BH24: =Buildings!AE24/100*Buildings!AF24 -> 0 | BM24: 0 | BP24: =(Buildings!AV24*Buildings!L24) -> 142.5 | BQ24: =(Buildings!AW24*(Buildings!Q24/100)) -> 0 | BR24: =(Buildings!AX24*(Buildings!U24/100)) -> 12.68301978 | BS24: 155.1830198 | BT24: =BS24*Buildings!I24 -> 5276.222673 | BV24: 2394.3
A25: =Land!A25 -> 2P-16W | B25: =IF(VLOOKUP(A25,'Control Panel'!$A$5:$B$69,2,FALSE)=TRUE,"ON","OFF") -> ON | C25: 2 | D25: residential with ground floor retail facing Front St | H25: 4040.25 | I25: =Land!J25 -> 1647 | J25: =I25*(1-Buildings!J25) -> 823.5 | K25: =Land!M25 -> 392.25 | L25: 1177.5 | N25: =Land!R25 -> 470.7 | O25: =Land!T25 -> 0 | P25: =Land!V25 -> 706.05 | Q25: =Land!Q25 -> 0.75 | R25: 0.2998566651 | S25: 0.8737701875 | U25: =IF(Buildings!H25=0,0,Y25/Buildings!H25) -> 15827.31947 | V25: =IF(Land!H25=0,0,U25/Land!H25) -> 4.921430183 | W25: =IF(Land!J25=0,0,ROUNDUP(U25/Land!J25,0)) -> 10 | X25: 2848.917504 | Y25: =SUM(AO25,Buildings!Q25,Buildings!U25,Buildings!AH25,BC25,Buildings!AE25) -> 12978.40196 | AA25: 131 | AB25: =AA25*Buildings!I25 -> 4454 | AC25: =Buildings!O25 -> 0.71 | AD25: =IF(SUM(AV25,BA25,BN25,BE25,BH25)=0,0,SUM(Buildings!Q25,Buildings!U25,Buildings!AH25,BC25,Buildings!AE25)/SUM(AV25,BA25,BN25,BE25,BH25)) -> 108.3232279 | AF25: =Land!J25 -> 1647 | AG25: =Buildings!J25*AF25 -> 823.5 | AH25: 823.5 | AJ25: =Buildings!L25 -> 166 | AK25: 266 | AL25: 18 | AM25: =Buildings!Y25 -> 0 | AO25: =Buildings!L25*Buildings!M25 -> 11570.2 | AP25: =Buildings!L25/(Land!H25/10000) -> 516.1691542 | AQ25: =ROUNDUP(Buildings!N25*Buildings!L25,0) -> 266 | AR25: =ROUNDUP(Buildings!L25*Buildings!O25,0) -> 118 | AT25: =Buildings!Q25 -> 0 | AU25: =IF(Buildings!R25=0,0,Buildings!Q25/Buildings!R25) -> 0 | AV25: =ROUNDUP(Buildings!Q25/100*Buildings!S25,0) -> 0 | AX25: =Buildings!U25 -> 1408.201963 | AY25: =ROUNDUP(IF(Buildings!V25=0,0,Buildings!U25/Buildings!V25),0) -> 18 | AZ25: =IF(SUM(AK25,AL25,AM25,BM25)=0,0,Buildings!U25/SUM(AK25,AL25,AM25,BM25)) -> 4.958457617 | BA25: =ROUNDUP(Buildings!U25/100*Buildings!W25,0) -> 13 | BC25: =Buildings!Y25*Buildings!Z25+Buildings!AB25 -> 0 | BD25: =ROUNDUP(Buildings!AA25*Buildings!Y25,0) -> 0 | BE25: =ROUNDUP(BC25/100*Buildings!AC25,0) -> 0 | BG25: =Buildings!AE25 -> 0 | BH25: =Buildings!AE25/100*Buildings!AF25 -> 0 | BM25: 0 | BP25: =(Buildings!AV25*Buildings!L25) -> 83 | BQ25: =(Buildings!AW25*(Buildings!Q25/100)) -> 0 | BR25: =(Buildings!AX25*(Buildings!U25/100)) -> 12.67381767 | BS25: 95.67381767 | BT25: =BS25*Buildings!I25 -> 3252.909801 | BV25: 2393.25
A26: =Land!A26 -> 2P-10 | B26: =IF(VLOOKUP(A26,'Control Panel'!$A$5:$B$69,2,FALSE)=TRUE,"ON","OFF") -> ON | C26: 2 | D26: residential with ground floor retail facing Front St | H26: 15008.25 | I26: =Land!J26 -> 5963 | J26: =I26*(1-Buildings!J26) -> 2981.5 | K26: =Land!M26 -> 1515.75 | L26: 4548 | N26: =Land!R26 -> 1818.9 | O26: =Land!T26 -> 0 | P26: =Land!V26 -> 2728.35 | Q26: =Land!Q26 -> 0.75 | R26: 0.2999628942 | S26: 0.9089500775 | U26: =IF(Buildings!H26=0,0,Y26/Buildings!H26) -> 33575.29519 | V26: =IF(Land!H26=0,0,U26/Land!H26) -> 2.791892166 | W26: =IF(Land!J26=0,0,ROUNDUP(U26/Land!J26,0)) -> 6 | X26: 6043.553135 | Y26: =SUM(AO26,Buildings!Q26,Buildings!U26,Buildings!AH26,BC26,Buildings!AE26) -> 27531.74206 | AA26: 279 | AB26: =AA26*Buildings!I26 -> 9486 | AC26: =Buildings!O26 -> 0.71 | AD26: =IF(SUM(AV26,BA26,BN26,BE26,BH26)=0,0,SUM(Buildings!Q26,Buildings!U26,Buildings!AH26,BC26,Buildings!AE26)/SUM(AV26,BA26,BN26,BE26,BH26)) -> 109.540098 | AF26: =Land!J26 -> 5963 | AG26: =Buildings!J26*AF26 -> 2981.5 | AH26: 2981.5 | AJ26: =Buildings!L26 -> 362 | AK26: 580 | AL26: 29 | AM26: =Buildings!Y26 -> 0 | AO26: =Buildings!L26*Buildings!M26 -> 25231.4 | AP26: =Buildings!L26/(Land!H26/10000) -> 301.0144687 | AQ26: =ROUNDUP(Buildings!N26*Buildings!L26,0) -> 580 | AR26: =ROUNDUP(Buildings!L26*Buildings!O26,0) -> 258 | AT26: =Buildings!Q26 -> 0 | AU26: =IF(Buildings!R26=0,0,Buildings!Q26/Buildings!R26) -> 0 | AV26: =ROUNDUP(Buildings!Q26/100*Buildings!S26,0) -> 0 | AX26: =Buildings!U26 -> 2300.342058 | AY26: =ROUNDUP(IF(Buildings!V26=0,0,Buildings!U26/Buildings!V26),0) -> 29 | AZ26: =IF(SUM(AK26,AL26,AM26,BM26)=0,0,Buildings!U26/SUM(AK26,AL26,AM26,BM26)) -> 3.777244759 | BA26: =ROUNDUP(Buildings!U26/100*Buildings!W26,0) -> 21 | BC26: =Buildings!Y26*Buildings!Z26+Buildings!AB26 -> 0 | BD26: =ROUNDUP(Buildings!AA26*Buildings!Y26,0) -> 0 | BE26: =ROUNDUP(BC26/100*Buildings!AC26,0) -> 0 | BG26: =Buildings!AE26 -> 0 | BH26: =Buildings!AE26/100*Buildings!AF26 -> 0 | BM26: 0 | BP26: =(Buildings!AV26*Buildings!L26) -> 181 | BQ26: =(Buildings!AW26*(Buildings!Q26/100)) -> 0 | BR26: =(Buildings!AX26*(Buildings!U26/100)) -> 20.70307852 | BS26: 201.7030785 | BT26: =BS26*Buildings!I26 -> 6857.90467 | BV26: 9045.25
A27: =Land!A27 -> 2P-11N | B27: =IF(VLOOKUP(A27,'Control Panel'!$A$5:$B$69,2,FALSE)=TRUE,"ON","OFF") -> ON | C27: 2 | D27: residential with ground floor retail facing Front St | H27: 4393.75 | I27: =Land!J27 -> 1500 | J27: =I27*(1-Buildings!J27) -> 750 | K27: =Land!M27 -> 535.75 | L27: 1608 | N27: =Land!R27 -> 642.9 | O27: =Land!T27 -> 0 | P27: =Land!V27 -> 964.35 | Q27: =Land!Q27 -> 0.75 | R27: 0.2998950437 | S27: 1.097411095 | U27: =IF(Buildings!H27=0,0,Y27/Buildings!H27) -> 24152.89335 | V27: =IF(Land!H27=0,0,U27/Land!H27) -> 6.629946019 | W27: =IF(Land!J27=0,0,ROUNDUP(U27/Land!J27,0)) -> 17 | X27: 4347.520803 | Y27: =SUM(AO27,Buildings!Q27,Buildings!U27,Buildings!AH27,BC27,Buildings!AE27) -> 19805.37255 | AA27: 200 | AB27: =AA27*Buildings!I27 -> 6800 | AC27: =Buildings!O27 -> 0.71 | AD27: =IF(SUM(AV27,BA27,BN27,BE27,BH27)=0,0,SUM(Buildings!Q27,Buildings!U27,Buildings!AH27,BC27,Buildings!AE27)/SUM(AV27,BA27,BN27,BE27,BH27)) -> 108.1987521 | AF27: =Land!J27 -> 1500 | AG27: =Buildings!J27*AF27 -> 750 | AH27: 750 | AJ27: =Buildings!L27 -> 250 | AK27: 400 | AL27: 30 | AM27: =Buildings!Y27 -> 0 | AO27: =Buildings!L27*Buildings!M27 -> 17425 | AP27: =Buildings!L27/(Land!H27/10000) -> 686.2475981 | AQ27: =ROUNDUP(Buildings!N27*Buildings!L27,0) -> 400 | AR27: =ROUNDUP(Buildings!L27*Buildings!O27,0) -> 178 | AT27: =Buildings!Q27 -> 0 | AU27: =IF(Buildings!R27=0,0,Buildings!Q27/Buildings!R27) -> 0 | AV27: =ROUNDUP(Buildings!Q27/100*Buildings!S27,0) -> 0 | AX27: =Buildings!U27 -> 2380.372546 | AY27: =ROUNDUP(IF(Buildings!V27=0,0,Buildings!U27/Buildings!V27),0) -> 30 | AZ27: =IF(SUM(AK27,AL27,AM27,BM27)=0,0,Buildings!U27/SUM(AK27,AL27,AM27,BM27)) -> 5.535750107 | BA27: =ROUNDUP(Buildings!U27/100*Buildings!W27,0) -> 22 | BC27: =Buildings!Y27*Buildings!Z27+Buildings!AB27 -> 0 | BD27: =ROUNDUP(Buildings!AA27*Buildings!Y27,0) -> 0 | BE27: =ROUNDUP(BC27/100*Buildings!AC27,0) -> 0 | BG27: =Buildings!AE27 -> 0 | BH27: =Buildings!AE27/100*Buildings!AF27 -> 0 | BM27: 0 | BP27: =(Buildings!AV27*Buildings!L27) -> 125 | BQ27: =(Buildings!AW27*(Buildings!Q27/100)) -> 0 | BR27: =(Buildings!AX27*(Buildings!U27/100)) -> 21.42335291 | BS27: 146.4233529 | BT27: =BS27*Buildings!I27 -> 4978.393999 | BV27: 2893.75
A28: =Land!A28 -> 2P-11S | B28: =IF(VLOOKUP(A28,'Control Panel'!$A$5:$B$69,2,FALSE)=TRUE,"ON","OFF") -> ON | C28: 2 | D28: residential | H28: 8969.8 | I28: =Land!J28 -> 3864 | J28: =I28*(1-Buildings!J28) -> 1932 | K28: =Land!M28 -> 634.6 | L28: 2539.2 | N28: =Land!R28 -> 1015.36 | O28: =Land!T28 -> 0 | P28: =Land!V28 -> 1523.04 | Q28: =Land!Q28 -> 0.8 | R28: 0.3199193396 | S28: 0.8489821401 | U28: =IF(Buildings!H28=0,0,Y28/Buildings!H28) -> 9435 | V28: =IF(Land!H28=0,0,U28/Land!H28) -> 1.340770215 | W28: =IF(Land!J28=0,0,ROUNDUP(U28/Land!J28,0)) -> 3 | X28: 1698.3 | Y28: =SUM(AO28,Buildings!Q28,Buildings!U28,Buildings!AH28,BC28,Buildings!AE28) -> 7736.7 | AA28: 79 | AB28: =AA28*Buildings!I28 -> 2686 | AC28: =Buildings!O28 -> 0.71 | AD28: =IF(SUM(AV28,BA28,BN28,BE28,BH28)=0,0,SUM(Buildings!Q28,Buildings!U28,Buildings!AH28,BC28,Buildings!AE28)/SUM(AV28,BA28,BN28,BE28,BH28)) -> 0 | AF28: =Land!J28 -> 3864 | AG28: =Buildings!J28*AF28 -> 1932 | AH28: 1932 | AJ28: =Buildings!L28 -> 111 | AK28: 178 | AL28: 0 | AM28: =Buildings!Y28 -> 0 | AO28: =Buildings!L28*Buildings!M28 -> 7736.7 | AP28: =Buildings!L28/(Land!H28/10000) -> 157.7376723 | AQ28: =ROUNDUP(Buildings!N28*Buildings!L28,0) -> 178 | AR28: =ROUNDUP(Buildings!L28*Buildings!O28,0) -> 79 | AT28: =Buildings!Q28 -> 0 | AU28: =IF(Buildings!R28=0,0,Buildings!Q28/Buildings!R28) -> 0 | AV28: =ROUNDUP(Buildings!Q28/100*Buildings!S28,0) -> 0 | AX28: =Buildings!U28 -> 0 | AY28: =ROUNDUP(IF(Buildings!V28=0,0,Buildings!U28/Buildings!V28),0) -> 0 | AZ28: =IF(SUM(AK28,AL28,AM28,BM28)=0,0,Buildings!U28/SUM(AK28,AL28,AM28,BM28)) -> 0 | BA28: =ROUNDUP(Buildings!U28/100*Buildings!W28,0) -> 0 | BC28: =Buildings!Y28*Buildings!Z28+Buildings!AB28 -> 0 | BD28: =ROUNDUP(Buildings!AA28*Buildings!Y28,0) -> 0 | BE28: =ROUNDUP(BC28/100*Buildings!AC28,0) -> 0 | BG28: =Buildings!AE28 -> 0 | BH28: =Buildings!AE28/100*Buildings!AF28 -> 0 | BM28: 0 | BP28: =(Buildings!AV28*Buildings!L28) -> 55.5 | BQ28: =(Buildings!AW28*(Buildings!Q28/100)) -> 0 | BR28: =(Buildings!AX28*(Buildings!U28/100)) -> 0 | BS28: 55.5 | BT28: =BS28*Buildings!I28 -> 1887 | BV28: 5105.8
A29: =Land!A29 -> 2P-12N | B29: =IF(VLOOKUP(A29,'Control Panel'!$A$5:$B$69,2,FALSE)=TRUE,"ON","OFF") -> ON | C29: 2 | D29: residential with ground floor retail facing Front St | H29: 4124.75 | I29: =Land!J29 -> 1500 | J29: =I29*(1-Buildings!J29) -> 750 | K29: =Land!M29 -> 468.5 | L29: 1406.25 | N29: =Land!R29 -> 562.2 | O29: =Land!T29 -> 0 | P29: =Land!V29 -> 843.3 | Q29: =Land!Q29 -> 0.75 | R29: 0.299879984 | S29: 1.022243772 | U29: =IF(Buildings!H29=0,0,Y29/Buildings!H29) -> 18056.55279 | V29: =IF(Land!H29=0,0,U29/Land!H29) -> 5.351675398 | W29: =IF(Land!J29=0,0,ROUNDUP(U29/Land!J29,0)) -> 13 | X29: 3250.179503 | Y29: =SUM(AO29,Buildings!Q29,Buildings!U29,Buildings!AH29,BC29,Buildings!AE29) -> 14806.37329 | AA29: 149 | AB29: =AA29*Buildings!I29 -> 5066 | AC29: =Buildings!O29 -> 0.71 | AD29: =IF(SUM(AV29,BA29,BN29,BE29,BH29)=0,0,SUM(Buildings!Q29,Buildings!U29,Buildings!AH29,BC29,Buildings!AE29)/SUM(AV29,BA29,BN29,BE29,BH29)) -> 107.6368233 | AF29: =Land!J29 -> 1500 | AG29: =Buildings!J29*AF29 -> 750 | AH29: 750 | AJ29: =Buildings!L29 -> 180 | AK29: 288 | AL29: 29 | AM29: =Buildings!Y29 -> 0 | AO29: =Buildings!L29*Buildings!M29 -> 12546 | AP29: =Buildings!L29/(Land!H29/10000) -> 533.4914049 | AQ29: =ROUNDUP(Buildings!N29*Buildings!L29,0) -> 288 | AR29: =ROUNDUP(Buildings!L29*Buildings!O29,0) -> 128 | AT29: =Buildings!Q29 -> 0 | AU29: =IF(Buildings!R29=0,0,Buildings!Q29/Buildings!R29) -> 0 | AV29: =ROUNDUP(Buildings!Q29/100*Buildings!S29,0) -> 0 | AX29: =Buildings!U29 -> 2260.37329 | AY29: =ROUNDUP(IF(Buildings!V29=0,0,Buildings!U29/Buildings!V29),0) -> 29 | AZ29: =IF(SUM(AK29,AL29,AM29,BM29)=0,0,Buildings!U29/SUM(AK29,AL29,AM29,BM29)) -> 7.130515109 | BA29: =ROUNDUP(Buildings!U29/100*Buildings!W29,0) -> 21 | BC29: =Buildings!Y29*Buildings!Z29+Buildings!AB29 -> 0 | BD29: =ROUNDUP(Buildings!AA29*Buildings!Y29,0) -> 0 | BE29: =ROUNDUP(BC29/100*Buildings!AC29,0) -> 0 | BG29: =Buildings!AE29 -> 0 | BH29: =Buildings!AE29/100*Buildings!AF29 -> 0 | BM29: 0 | BP29: =(Buildings!AV29*Buildings!L29) -> 90 | BQ29: =(Buildings!AW29*(Buildings!Q29/100)) -> 0 | BR29: =(Buildings!AX29*(Buildings!U29/100)) -> 20.34335961 | BS29: 110.3433596 | BT29: =BS29*Buildings!I29 -> 3751.674227 | BV29: 2624.75
A30: =Land!A30 -> 2P-12S | B30: =IF(VLOOKUP(A30,'Control Panel'!$A$5:$B$69,2,FALSE)=TRUE,"ON","OFF") -> ON | C30: 2 | D30: residential | H30: 8705.8 | I30: =Land!J30 -> 3734 | J30: =I30*(1-Buildings!J30) -> 1867 | K30: =Land!M30 -> 620.8 | L30: 2484 | N30: =Land!R30 -> 993.28 | O30: =Land!T30 -> 0 | P30: =Land!V30 -> 1489.92 | Q30: =Land!Q30 -> 0.8 | R30: 0.319917547 | S30: 0.8557053918 | U30: =IF(Buildings!H30=0,0,Y30/Buildings!H30) -> 8670 | V30: =IF(Land!H30=0,0,U30/Land!H30) -> 1.267914595 | W30: =IF(Land!J30=0,0,ROUNDUP(U30/Land!J30,0)) -> 3 | X30: 1560.6 | Y30: =SUM(AO30,Buildings!Q30,Buildings!U30,Buildings!AH30,BC30,Buildings!AE30) -> 7109.4 | AA30: 73 | AB30: =AA30*Buildings!I30 -> 2482 | AC30: =Buildings!O30 -> 0.71 | AD30: =IF(SUM(AV30,BA30,BN30,BE30,BH30)=0,0,SUM(Buildings!Q30,Buildings!U30,Buildings!AH30,BC30,Buildings!AE30)/SUM(AV30,BA30,BN30,BE30,BH30)) -> 0 | AF30: =Land!J30 -> 3734 | AG30: =Buildings!J30*AF30 -> 1867 | AH30: 1867 | AJ30: =Buildings!L30 -> 102 | AK30: 164 | AL30: 0 | AM30: =Buildings!Y30 -> 0 | AO30: =Buildings!L30*Buildings!M30 -> 7109.4 | AP30: =Buildings!L30/(Land!H30/10000) -> 149.1664229 | AQ30: =ROUNDUP(Buildings!N30*Buildings!L30,0) -> 164 | AR30: =ROUNDUP(Buildings!L30*Buildings!O30,0) -> 73 | AT30: =Buildings!Q30 -> 0 | AU30: =IF(Buildings!R30=0,0,Buildings!Q30/Buildings!R30) -> 0 | AV30: =ROUNDUP(Buildings!Q30/100*Buildings!S30,0) -> 0 | AX30: =Buildings!U30 -> 0 | AY30: =ROUNDUP(IF(Buildings!V30=0,0,Buildings!U30/Buildings!V30),0) -> 0 | AZ30: =IF(SUM(AK30,AL30,AM30,BM30)=0,0,Buildings!U30/SUM(AK30,AL30,AM30,BM30)) -> 0 | BA30: =ROUNDUP(Buildings!U30/100*Buildings!W30,0) -> 0 | BC30: =Buildings!Y30*Buildings!Z30+Buildings!AB30 -> 0 | BD30: =ROUNDUP(Buildings!AA30*Buildings!Y30,0) -> 0 | BE30: =ROUNDUP(BC30/100*Buildings!AC30,0) -> 0 | BG30: =Buildings!AE30 -> 0 | BH30: =Buildings!AE30/100*Buildings!AF30 -> 0 | BM30: 0 | BP30: =(Buildings!AV30*Buildings!L30) -> 51 | BQ30: =(Buildings!AW30*(Buildings!Q30/100)) -> 0 | BR30: =(Buildings!AX30*(Buildings!U30/100)) -> 0 | BS30: 51 | BT30: =BS30*Buildings!I30 -> 1734 | BV30: 4971.8
A31: =Land!A31 -> 2P-08 | B31: =IF(VLOOKUP(A31,'Control Panel'!$A$5:$B$69,2,FALSE)=TRUE,"ON","OFF") -> ON | C31: 2 | D31: residential with ground floor retail facing Mill Street | H31: 14185.25 | I31: =Land!J31 -> 6977 | J31: =I31*(1-Buildings!J31) -> 3488.5 | K31: =Land!M31 -> 929.75 | L31: 2790 | N31: =Land!R31 -> 1115.7 | O31: =Land!T31 -> 0 | P31: =Land!V31 -> 1673.55 | Q31: =Land!Q31 -> 0.75 | R31: 0.2999395121 | S31: 0.5898909078 | U31: =IF(Buildings!H31=0,0,Y31/Buildings!H31) -> 66108.46781 | V31: =IF(Land!H31=0,0,U31/Land!H31) -> 6.180672009 | W31: =IF(Land!J31=0,0,ROUNDUP(U31/Land!J31,0)) -> 10 | X31: 11899.52421 | Y31: =SUM(AO31,Buildings!Q31,Buildings!U31,Buildings!AH31,BC31,Buildings!AE31) -> 54208.9436 | AA31: 548 | AB31: =AA31*Buildings!I31 -> 18632 | AC31: =Buildings!O31 -> 0.71 | AD31: =IF(SUM(AV31,BA31,BN31,BE31,BH31)=0,0,SUM(Buildings!Q31,Buildings!U31,Buildings!AH31,BC31,Buildings!AE31)/SUM(AV31,BA31,BN31,BE31,BH31)) -> 108.7118175 | AF31: =Land!J31 -> 6977 | AG31: =Buildings!J31*AF31 -> 3488.5 | AH31: 3488.5 | AJ31: =Buildings!L31 -> 706 | AK31: 1130 | AL31: 63 | AM31: =Buildings!Y31 -> 0 | AO31: =Buildings!L31*Buildings!M31 -> 49208.2 | AP31: =Buildings!L31/(Land!H31/10000) -> 660.0598355 | AQ31: =ROUNDUP(Buildings!N31*Buildings!L31,0) -> 1130 | AR31: =ROUNDUP(Buildings!L31*Buildings!O31,0) -> 502 | AT31: =Buildings!Q31 -> 0 | AU31: =IF(Buildings!R31=0,0,Buildings!Q31/Buildings!R31) -> 0 | AV31: =ROUNDUP(Buildings!Q31/100*Buildings!S31,0) -> 0 | AX31: =Buildings!U31 -> 5000.743605 | AY31: =ROUNDUP(IF(Buildings!V31=0,0,Buildings!U31/Buildings!V31),0) -> 63 | AZ31: =IF(SUM(AK31,AL31,AM31,BM31)=0,0,Buildings!U31/SUM(AK31,AL31,AM31,BM31)) -> 4.191738143 | BA31: =ROUNDUP(Buildings!U31/100*Buildings!W31,0) -> 46 | BC31: =Buildings!Y31*Buildings!Z31+Buildings!AB31 -> 0 | BD31: =ROUNDUP(Buildings!AA31*Buildings!Y31,0) -> 0 | BE31: =ROUNDUP(BC31/100*Buildings!AC31,0) -> 0 | BG31: =Buildings!AE31 -> 0 | BH31: =Buildings!AE31/100*Buildings!AF31 -> 0 | BM31: 0 | BP31: =(Buildings!AV31*Buildings!L31) -> 353 | BQ31: =(Buildings!AW31*(Buildings!Q31/100)) -> 0 | BR31: =(Buildings!AX31*(Buildings!U31/100)) -> 45.00669244 | BS31: 398.0066924 | BT31: =BS31*Buildings!I31 -> 13532.22754 | BV31: 7208.25
A32: =Land!A32 -> 2P-P4 | B32: =IF(VLOOKUP(A32,'Control Panel'!$A$5:$B$69,2,FALSE)=TRUE,"ON","OFF") -> ON | C32: 2 | D32: neighborhood park (Front Street Mall) | H32: 5645.8 | I32: =Land!J32 -> 0 | J32: =I32*(1-Buildings!J32) -> 0 | K32: =Land!M32 -> 1129 | L32: 4516.8 | N32: =Land!R32 -> 2709.6 | O32: =Land!T32 -> 0 | P32: =Land!V32 -> 1806.4 | Q32: =Land!Q32 -> 0.8 | R32: 0.4799319848 | S32: 3.199546566 | U32: =IF(Buildings!H32=0,0,Y32/Buildings!H32) -> 0 | V32: =IF(Land!H32=0,0,U32/Land!H32) -> 0 | W32: =IF(Land!J32=0,0,ROUNDUP(U32/Land!J32,0)) -> 0 | X32: 0 | Y32: =SUM(AO32,Buildings!Q32,Buildings!U32,Buildings!AH32,BC32,Buildings!AE32) -> 0 | AA32: 0 | AB32: =AA32*Buildings!I32 -> 0 | AC32: =Buildings!O32 -> 0.71 | AD32: =IF(SUM(AV32,BA32,BN32,BE32,BH32)=0,0,SUM(Buildings!Q32,Buildings!U32,Buildings!AH32,BC32,Buildings!AE32)/SUM(AV32,BA32,BN32,BE32,BH32)) -> 0 | AF32: =Land!J32 -> 0 | AG32: =Buildings!J32*AF32 -> 0 | AH32: 0 | AJ32: =Buildings!L32 -> 0 | AK32: 0 | AL32: 0 | AM32: =Buildings!Y32 -> 0 | AO32: =Buildings!L32*Buildings!M32 -> 0 | AQ32: =ROUNDUP(Buildings!N32*Buildings!L32,0) -> 0 | AR32: =ROUNDUP(Buildings!L32*Buildings!O32,0) -> 0 | AT32: =Buildings!Q32 -> 0 | AU32: =IF(Buildings!R32=0,0,Buildings!Q32/Buildings!R32) -> 0 | AV32: =ROUNDUP(Buildings!Q32/100*Buildings!S32,0) -> 0 | AX32: =Buildings!U32 -> 0 | AY32: =ROUNDUP(IF(Buildings!V32=0,0,Buildings!U32/Buildings!V32),0) -> 0 | AZ32: =IF(SUM(AK32,AL32,AM32,BM32)=0,0,Buildings!U32/SUM(AK32,AL32,AM32,BM32)) -> 0 | BA32: =ROUNDUP(Buildings!U32/100*Buildings!W32,0) -> 0 | BC32: =Buildings!Y32*Buildings!Z32+Buildings!AB32 -> 0 | BD32: =ROUNDUP(Buildings!AA32*Buildings!Y32,0) -> 0 | BE32: =ROUNDUP(BC32/100*Buildings!AC32,0) -> 0 | BG32: =Buildings!AE32 -> 0 | BH32: =Buildings!AE32/100*Buildings!AF32 -> 0 | BM32: 0 | BP32: =(Buildings!AV32*Buildings!L32) -> 0 | BQ32: =(Buildings!AW32*(Buildings!Q32/100)) -> 0 | BR32: =(Buildings!AX32*(Buildings!U32/100)) -> 0 | BS32: 0 | BT32: =BS32*Buildings!I32 -> 0 | BV32: 5645.8
A33: =Land!A33 -> 2P-ST | B33: =IF(VLOOKUP(A33,'Control Panel'!$A$5:$B$69,2,FALSE)=TRUE,"ON","OFF") -> ON | C33: 2 | D33: neighborhood park (southern green strip) | H33: 13436.85 | I33: =Land!J33 -> 0 | J33: =I33*(1-Buildings!J33) -> 0 | K33: =Land!M33 -> 2015.4 | L33: 11421.45 | N33: =Land!R33 -> 9136.48 | O33: =Land!T33 -> 0 | P33: =Land!V33 -> 2284.12 | Q33: =Land!Q33 -> 0.85 | R33: 0.679956984 | S33: 4.24973115 | U33: =IF(Buildings!H33=0,0,Y33/Buildings!H33) -> 0 | V33: =IF(Land!H33=0,0,U33/Land!H33) -> 0 | W33: =IF(Land!J33=0,0,ROUNDUP(U33/Land!J33,0)) -> 0 | X33: 0 | Y33: =SUM(AO33,Buildings!Q33,Buildings!U33,Buildings!AH33,BC33,Buildings!AE33) -> 0 | AA33: 0 | AB33: =AA33*Buildings!I33 -> 0 | AC33: =Buildings!O33 -> 0.71 | AD33: =IF(SUM(AV33,BA33,BN33,BE33,BH33)=0,0,SUM(Buildings!Q33,Buildings!U33,Buildings!AH33,BC33,Buildings!AE33)/SUM(AV33,BA33,BN33,BE33,BH33)) -> 0 | AF33: =Land!J33 -> 0 | AG33: =Buildings!J33*AF33 -> 0 | AH33: 0 | AJ33: =Buildings!L33 -> 0 | AK33: 0 | AL33: 0 | AM33: =Buildings!Y33 -> 0 | AO33: =Buildings!L33*Buildings!M33 -> 0 | AQ33: =ROUNDUP(Buildings!N33*Buildings!L33,0) -> 0 | AR33: =ROUNDUP(Buildings!L33*Buildings!O33,0) -> 0 | AT33: =Buildings!Q33 -> 0 | AU33: =IF(Buildings!R33=0,0,Buildings!Q33/Buildings!R33) -> 0 | AV33: =ROUNDUP(Buildings!Q33/100*Buildings!S33,0) -> 0 | AX33: =Buildings!U33 -> 0 | AY33: =ROUNDUP(IF(Buildings!V33=0,0,Buildings!U33/Buildings!V33),0) -> 0 | AZ33: =IF(SUM(AK33,AL33,AM33,BM33)=0,0,Buildings!U33/SUM(AK33,AL33,AM33,BM33)) -> 0 | BA33: =ROUNDUP(Buildings!U33/100*Buildings!W33,0) -> 0 | BC33: =Buildings!Y33*Buildings!Z33+Buildings!AB33 -> 0 | BD33: =ROUNDUP(Buildings!AA33*Buildings!Y33,0) -> 0 | BE33: =ROUNDUP(BC33/100*Buildings!AC33,0) -> 0 | BG33: =Buildings!AE33 -> 0 | BH33: =Buildings!AE33/100*Buildings!AF33 -> 0 | BM33: 0 | BP33: =(Buildings!AV33*Buildings!L33) -> 0 | BQ33: =(Buildings!AW33*(Buildings!Q33/100)) -> 0 | BR33: =(Buildings!AX33*(Buildings!U33/100)) -> 0 | BS33: 0 | BT33: =BS33*Buildings!I33 -> 0 | BV33: 13436.85
A34: =Land!A34 -> 2P-ST | B34: =IF(VLOOKUP(A34,'Control Panel'!$A$5:$B$69,2,FALSE)=TRUE,"ON","OFF") -> ON | C34: 2 | D34: streets | H34: 32439.2 | I34: =Land!J34 -> 0 | J34: =I34*(1-Buildings!J34) -> 0 | K34: =Land!M34 -> 25951.2 | L34: 6488 | N34: =Land!R34 -> 4541.46 | O34: =Land!T34 -> 0 | P34: =Land!V34 -> 1946.34 | Q34: =Land!Q34 -> 0.2 | R34: 0.1399991368 | S34: 0.8999944512 | U34: =IF(Buildings!H34=0,0,Y34/Buildings!H34) -> 0 | V34: =IF(Land!H34=0,0,U34/Land!H34) -> 0 | W34: =IF(Land!J34=0,0,ROUNDUP(U34/Land!J34,0)) -> 0 | X34: 0 | Y34: =SUM(AO34,Buildings!Q34,Buildings!U34,Buildings!AH34,BC34,Buildings!AE34) -> 0 | AA34: 0 | AB34: =AA34*Buildings!I34 -> 0 | AC34: =Buildings!O34 -> 0.71 | AD34: =IF(SUM(AV34,BA34,BN34,BE34,BH34)=0,0,SUM(Buildings!Q34,Buildings!U34,Buildings!AH34,BC34,Buildings!AE34)/SUM(AV34,BA34,BN34,BE34,BH34)) -> 0 | AF34: =Land!J34 -> 0 | AG34: =Buildings!J34*AF34 -> 0 | AH34: 0 | AJ34: =Buildings!L34 -> 0 | AK34: 0 | AL34: 0 | AM34: =Buildings!Y34 -> 0 | AO34: =Buildings!L34*Buildings!M34 -> 0 | AQ34: =ROUNDUP(Buildings!N34*Buildings!L34,0) -> 0 | AR34: =ROUNDUP(Buildings!L34*Buildings!O34,0) -> 0 | AT34: =Buildings!Q34 -> 0 | AU34: =IF(Buildings!R34=0,0,Buildings!Q34/Buildings!R34) -> 0 | AV34: =ROUNDUP(Buildings!Q34/100*Buildings!S34,0) -> 0 | AX34: =Buildings!U34 -> 0 | AY34: =ROUNDUP(IF(Buildings!V34=0,0,Buildings!U34/Buildings!V34),0) -> 0 | AZ34: =IF(SUM(AK34,AL34,AM34,BM34)=0,0,Buildings!U34/SUM(AK34,AL34,AM34,BM34)) -> 0 | BA34: =ROUNDUP(Buildings!U34/100*Buildings!W34,0) -> 0 | BC34: =Buildings!Y34*Buildings!Z34+Buildings!AB34 -> 0 | BD34: =ROUNDUP(Buildings!AA34*Buildings!Y34,0) -> 0 | BE34: =ROUNDUP(BC34/100*Buildings!AC34,0) -> 0 | BG34: =Buildings!AE34 -> 0 | BH34: =Buildings!AE34/100*Buildings!AF34 -> 0 | BM34: 0 | BP34: =(Buildings!AV34*Buildings!L34) -> 0 | BQ34: =(Buildings!AW34*(Buildings!Q34/100)) -> 0 | BR34: =(Buildings!AX34*(Buildings!U34/100)) -> 0 | BS34: 0 | BT34: =BS34*Buildings!I34 -> 0 | BV34: 32439.2
A35: =Land!A35 -> 00:00:00 | B35: =IF(VLOOKUP(A35,'Control Panel'!$A$5:$B$69,2,FALSE)=TRUE,"ON","OFF") ->  | H35: 0 | I35: =Land!J35 -> 0 | J35: =I35*(1-Buildings!J35) -> 0 | K35: =Land!M35 -> 0 | L35: 0 | N35: =Land!R35 -> 0 | O35: =Land!T35 -> 0 | P35: =Land!V35 -> 0 | Q35: =Land!Q35 -> 0 | R35: 0 | S35: 0 | U35: =IF(Buildings!H35=0,0,Y35/Buildings!H35) -> 0 | V35: =IF(Land!H35=0,0,U35/Land!H35) -> 0 | W35: =IF(Land!J35=0,0,ROUNDUP(U35/Land!J35,0)) -> 0 | X35: 0 | Y35: =SUM(AO35,Buildings!Q35,Buildings!U35,Buildings!AH35,BC35,Buildings!AE35) -> 0 | AA35: 0 | AB35: =AA35*Buildings!I35 -> 0 | AC35: =Buildings!O35 -> 0.71 | AD35: =IF(SUM(AV35,BA35,BN35,BE35,BH35)=0,0,SUM(Buildings!Q35,Buildings!U35,Buildings!AH35,BC35,Buildings!AE35)/SUM(AV35,BA35,BN35,BE35,BH35)) -> 0 | AF35: =Land!J35 -> 0 | AG35: =Buildings!J35*AF35 -> 0 | AH35: 0 | AJ35: =Buildings!L35 -> 0 | AK35: 0 | AL35: 0 | AM35: =Buildings!Y35 -> 0 | AO35: =Buildings!L35*Buildings!M35 -> 0 | AQ35: =ROUNDUP(Buildings!N35*Buildings!L35,0) -> 0 | AR35: =ROUNDUP(Buildings!L35*Buildings!O35,0) -> 0 | AT35: =Buildings!Q35 -> 0 | AU35: =IF(Buildings!R35=0,0,Buildings!Q35/Buildings!R35) -> 0 | AV35: =ROUNDUP(Buildings!Q35/100*Buildings!S35,0) -> 0 | AX35: =Buildings!U35 -> 0 | AY35: =ROUNDUP(IF(Buildings!V35=0,0,Buildings!U35/Buildings!V35),0) -> 0 | AZ35: =IF(SUM(AK35,AL35,AM35,BM35)=0,0,Buildings!U35/SUM(AK35,AL35,AM35,BM35)) -> 0 | BA35: =ROUNDUP(Buildings!U35/100*Buildings!W35,0) -> 0 | BC35: =Buildings!Y35*Buildings!Z35+Buildings!AB35 -> 0 | BD35: =ROUNDUP(Buildings!AA35*Buildings!Y35,0) -> 0 | BE35: =ROUNDUP(BC35/100*Buildings!AC35,0) -> 0 | BG35: =Buildings!AE35 -> 0 | BH35: =Buildings!AE35/100*Buildings!AF35 -> 0 | BM35: 0 | BP35: =(Buildings!AV35*Buildings!L35) -> 0 | BQ35: =(Buildings!AW35*(Buildings!Q35/100)) -> 0 | BR35: =(Buildings!AX35*(Buildings!U35/100)) -> 0 | BS35: 0 | BT35: =BS35*Buildings!I35 -> 0 | BV35: 0
A36: =Land!A36 -> 00:00:00 | B36: =IF(VLOOKUP(A36,'Control Panel'!$A$5:$B$69,2,FALSE)=TRUE,"ON","OFF") ->  | H36: 0 | I36: =Land!J36 -> 0 | J36: =I36*(1-Buildings!J36) -> 0 | K36: =Land!M36 -> 0 | L36: 0 | N36: =Land!R36 -> 0 | O36: =Land!T36 -> 0 | P36: =Land!V36 -> 0 | Q36: =Land!Q36 -> 0 | R36: 0 | S36: 0 | U36: =IF(Buildings!H36=0,0,Y36/Buildings!H36) -> 0 | V36: =IF(Land!H36=0,0,U36/Land!H36) -> 0 | W36: =IF(Land!J36=0,0,ROUNDUP(U36/Land!J36,0)) -> 0 | X36: 0 | Y36: =SUM(AO36,Buildings!Q36,Buildings!U36,Buildings!AH36,BC36,Buildings!AE36) -> 0 | AA36: 0 | AB36: =AA36*Buildings!I36 -> 0 | AC36: =Buildings!O36 -> 0.71 | AD36: =IF(SUM(AV36,BA36,BN36,BE36,BH36)=0,0,SUM(Buildings!Q36,Buildings!U36,Buildings!AH36,BC36,Buildings!AE36)/SUM(AV36,BA36,BN36,BE36,BH36)) -> 0 | AF36: =Land!J36 -> 0 | AG36: =Buildings!J36*AF36 -> 0 | AH36: 0 | AJ36: =Buildings!L36 -> 0 | AK36: 0 | AL36: 0 | AM36: =Buildings!Y36 -> 0 | AO36: =Buildings!L36*Buildings!M36 -> 0 | AQ36: =ROUNDUP(Buildings!N36*Buildings!L36,0) -> 0 | AR36: =ROUNDUP(Buildings!L36*Buildings!O36,0) -> 0 | AT36: =Buildings!Q36 -> 0 | AU36: =IF(Buildings!R36=0,0,Buildings!Q36/Buildings!R36) -> 0 | AV36: =ROUNDUP(Buildings!Q36/100*Buildings!S36,0) -> 0 | AX36: =Buildings!U36 -> 0 | AY36: =ROUNDUP(IF(Buildings!V36=0,0,Buildings!U36/Buildings!V36),0) -> 0 | AZ36: =IF(SUM(AK36,AL36,AM36,BM36)=0,0,Buildings!U36/SUM(AK36,AL36,AM36,BM36)) -> 0 | BA36: =ROUNDUP(Buildings!U36/100*Buildings!W36,0) -> 0 | BC36: =Buildings!Y36*Buildings!Z36+Buildings!AB36 -> 0 | BD36: =ROUNDUP(Buildings!AA36*Buildings!Y36,0) -> 0 | BE36: =ROUNDUP(BC36/100*Buildings!AC36,0) -> 0 | BG36: =Buildings!AE36 -> 0 | BH36: =Buildings!AE36/100*Buildings!AF36 -> 0 | BM36: =BK36 -> 0 | BP36: =(Buildings!AV36*Buildings!L36) -> 0 | BQ36: =(Buildings!AW36*(Buildings!Q36/100)) -> 0 | BR36: =(Buildings!AX36*(Buildings!U36/100)) -> 0 | BS36: 0 | BT36: =BS36*Buildings!I36 -> 0 | BV36: 0
A37: =Land!A37 -> 00:00:00 | B37: =IF(VLOOKUP(A37,'Control Panel'!$A$5:$B$69,2,FALSE)=TRUE,"ON","OFF") ->  | H37: 0 | I37: =Land!J37 -> 0 | J37: =I37*(1-Buildings!J37) -> 0 | K37: =Land!M37 -> 0 | L37: 0 | N37: =Land!R37 -> 0 | O37: =Land!T37 -> 0 | P37: =Land!V37 -> 0 | Q37: =Land!Q37 -> 0 | R37: 0 | S37: 0 | U37: =IF(Buildings!H37=0,0,Y37/Buildings!H37) -> 0 | V37: =IF(Land!H37=0,0,U37/Land!H37) -> 0 | W37: =IF(Land!J37=0,0,ROUNDUP(U37/Land!J37,0)) -> 0 | X37: 0 | Y37: =SUM(AO37,Buildings!Q37,Buildings!U37,Buildings!AH37,BC37,Buildings!AE37) -> 0 | AA37: 0 | AB37: =AA37*Buildings!I37 -> 0 | AC37: =Buildings!O37 -> 0.71 | AD37: =IF(SUM(AV37,BA37,BN37,BE37,BH37)=0,0,SUM(Buildings!Q37,Buildings!U37,Buildings!AH37,BC37,Buildings!AE37)/SUM(AV37,BA37,BN37,BE37,BH37)) -> 0 | AF37: =Land!J37 -> 0 | AG37: =Buildings!J37*AF37 -> 0 | AH37: 0 | AJ37: =Buildings!L37 -> 0 | AK37: 0 | AL37: 0 | AM37: =Buildings!Y37 -> 0 | AO37: =Buildings!L37*Buildings!M37 -> 0 | AQ37: =ROUNDUP(Buildings!N37*Buildings!L37,0) -> 0 | AR37: =ROUNDUP(Buildings!L37*Buildings!O37,0) -> 0 | AT37: =Buildings!Q37 -> 0 | AU37: =IF(Buildings!R37=0,0,Buildings!Q37/Buildings!R37) -> 0 | AV37: =ROUNDUP(Buildings!Q37/100*Buildings!S37,0) -> 0 | AX37: =Buildings!U37 -> 0 | AY37: =ROUNDUP(IF(Buildings!V37=0,0,Buildings!U37/Buildings!V37),0) -> 0 | AZ37: =IF(SUM(AK37,AL37,AM37,BM37)=0,0,Buildings!U37/SUM(AK37,AL37,AM37,BM37)) -> 0 | BA37: =ROUNDUP(Buildings!U37/100*Buildings!W37,0) -> 0 | BC37: =Buildings!Y37*Buildings!Z37+Buildings!AB37 -> 0 | BD37: =ROUNDUP(Buildings!AA37*Buildings!Y37,0) -> 0 | BE37: =ROUNDUP(BC37/100*Buildings!AC37,0) -> 0 | BG37: =Buildings!AE37 -> 0 | BH37: =Buildings!AE37/100*Buildings!AF37 -> 0 | BM37: 0 | BP37: =(Buildings!AV37*Buildings!L37) -> 0 | BQ37: =(Buildings!AW37*(Buildings!Q37/100)) -> 0 | BR37: =(Buildings!AX37*(Buildings!U37/100)) -> 0 | BS37: 0 | BT37: =BS37*Buildings!I37 -> 0 | BV37: 0
A38: =Land!A38 -> 00:00:00 | B38: =IF(VLOOKUP(A38,'Control Panel'!$A$5:$B$69,2,FALSE)=TRUE,"ON","OFF") ->  | H38: 0 | I38: =Land!J38 -> 0 | J38: =I38*(1-Buildings!J38) -> 0 | K38: =Land!M38 -> 0 | L38: 0 | N38: =Land!R38 -> 0 | O38: =Land!T38 -> 0 | P38: =Land!V38 -> 0 | Q38: =Land!Q38 -> 0 | R38: 0 | S38: 0 | U38: =IF(Buildings!H38=0,0,Y38/Buildings!H38) -> 0 | V38: =IF(Land!H38=0,0,U38/Land!H38) -> 0 | W38: =IF(Land!J38=0,0,ROUNDUP(U38/Land!J38,0)) -> 0 | X38: 0 | Y38: =SUM(AO38,Buildings!Q38,Buildings!U38,Buildings!AH38,BC38,Buildings!AE38) -> 0 | AA38: 0 | AB38: =AA38*Buildings!I38 -> 0 | AC38: =Buildings!O38 -> 0.71 | AD38: =IF(SUM(AV38,BA38,BN38,BE38,BH38)=0,0,SUM(Buildings!Q38,Buildings!U38,Buildings!AH38,BC38,Buildings!AE38)/SUM(AV38,BA38,BN38,BE38,BH38)) -> 0 | AF38: =Land!J38 -> 0 | AG38: =Buildings!J38*AF38 -> 0 | AH38: 0 | AJ38: =Buildings!L38 -> 0 | AK38: 0 | AL38: 0 | AM38: =Buildings!Y38 -> 0 | AO38: =Buildings!L38*Buildings!M38 -> 0 | AQ38: =ROUNDUP(Buildings!N38*Buildings!L38,0) -> 0 | AR38: =ROUNDUP(Buildings!L38*Buildings!O38,0) -> 0 | AT38: =Buildings!Q38 -> 0 | AU38: =IF(Buildings!R38=0,0,Buildings!Q38/Buildings!R38) -> 0 | AV38: =ROUNDUP(Buildings!Q38/100*Buildings!S38,0) -> 0 | AX38: =Buildings!U38 -> 0 | AY38: =ROUNDUP(IF(Buildings!V38=0,0,Buildings!U38/Buildings!V38),0) -> 0 | AZ38: =IF(SUM(AK38,AL38,AM38,BM38)=0,0,Buildings!U38/SUM(AK38,AL38,AM38,BM38)) -> 0 | BA38: =ROUNDUP(Buildings!U38/100*Buildings!W38,0) -> 0 | BC38: =Buildings!Y38*Buildings!Z38+Buildings!AB38 -> 0 | BD38: =ROUNDUP(Buildings!AA38*Buildings!Y38,0) -> 0 | BE38: =ROUNDUP(BC38/100*Buildings!AC38,0) -> 0 | BG38: =Buildings!AE38 -> 0 | BH38: =Buildings!AE38/100*Buildings!AF38 -> 0 | BM38: 0 | BP38: =(Buildings!AV38*Buildings!L38) -> 0 | BQ38: =(Buildings!AW38*(Buildings!Q38/100)) -> 0 | BR38: =(Buildings!AX38*(Buildings!U38/100)) -> 0 | BS38: 0 | BT38: =BS38*Buildings!I38 -> 0 | BV38: 0
A39: =Land!A39 -> 00:00:00 | B39: =IF(VLOOKUP(A39,'Control Panel'!$A$5:$B$69,2,FALSE)=TRUE,"ON","OFF") ->  | H39: 0 | I39: =Land!J39 -> 0 | J39: =I39*(1-Buildings!J39) -> 0 | K39: =Land!M39 -> 0 | L39: 0 | N39: =Land!R39 -> 0 | O39: =Land!T39 -> 0 | P39: =Land!V39 -> 0 | Q39: =Land!Q39 -> 0 | R39: 0 | S39: 0 | U39: =IF(Buildings!H39=0,0,Y39/Buildings!H39) -> 0 | V39: =IF(Land!H39=0,0,U39/Land!H39) -> 0 | W39: =IF(Land!J39=0,0,ROUNDUP(U39/Land!J39,0)) -> 0 | X39: 0 | Y39: =SUM(AO39,Buildings!Q39,Buildings!U39,Buildings!AH39,BC39,Buildings!AE39) -> 0 | AA39: 0 | AB39: =AA39*Buildings!I39 -> 0 | AC39: =Buildings!O39 -> 0.71 | AD39: =IF(SUM(AV39,BA39,BN39,BE39,BH39)=0,0,SUM(Buildings!Q39,Buildings!U39,Buildings!AH39,BC39,Buildings!AE39)/SUM(AV39,BA39,BN39,BE39,BH39)) -> 0 | AF39: =Land!J39 -> 0 | AG39: =Buildings!J39*AF39 -> 0 | AH39: 0 | AJ39: =Buildings!L39 -> 0 | AK39: 0 | AL39: 0 | AM39: =Buildings!Y39 -> 0 | AO39: =Buildings!L39*Buildings!M39 -> 0 | AQ39: =ROUNDUP(Buildings!N39*Buildings!L39,0) -> 0 | AR39: =ROUNDUP(Buildings!L39*Buildings!O39,0) -> 0 | AT39: =Buildings!Q39 -> 0 | AU39: =IF(Buildings!R39=0,0,Buildings!Q39/Buildings!R39) -> 0 | AV39: =ROUNDUP(Buildings!Q39/100*Buildings!S39,0) -> 0 | AX39: =Buildings!U39 -> 0 | AY39: =ROUNDUP(IF(Buildings!V39=0,0,Buildings!U39/Buildings!V39),0) -> 0 | AZ39: =IF(SUM(AK39,AL39,AM39,BM39)=0,0,Buildings!U39/SUM(AK39,AL39,AM39,BM39)) -> 0 | BA39: =ROUNDUP(Buildings!U39/100*Buildings!W39,0) -> 0 | BC39: =Buildings!Y39*Buildings!Z39+Buildings!AB39 -> 0 | BD39: =ROUNDUP(Buildings!AA39*Buildings!Y39,0) -> 0 | BE39: =ROUNDUP(BC39/100*Buildings!AC39,0) -> 0 | BG39: =Buildings!AE39 -> 0 | BH39: =Buildings!AE39/100*Buildings!AF39 -> 0 | BM39: 0 | BP39: =(Buildings!AV39*Buildings!L39) -> 0 | BQ39: =(Buildings!AW39*(Buildings!Q39/100)) -> 0 | BR39: =(Buildings!AX39*(Buildings!U39/100)) -> 0 | BS39: 0 | BT39: =BS39*Buildings!I39 -> 0 | BV39: 0
A40: =Land!A40 -> 00:00:00 | B40: =IF(VLOOKUP(A40,'Control Panel'!$A$5:$B$69,2,FALSE)=TRUE,"ON","OFF") ->  | H40: 0 | I40: =Land!J40 -> 0 | J40: =I40*(1-Buildings!J40) -> 0 | K40: =Land!M40 -> 0 | L40: 0 | N40: =Land!R40 -> 0 | O40: =Land!T40 -> 0 | P40: =Land!V40 -> 0 | Q40: =Land!Q40 -> 0 | R40: 0 | S40: 0 | U40: =IF(Buildings!H40=0,0,Y40/Buildings!H40) -> 0 | V40: =IF(Land!H40=0,0,U40/Land!H40) -> 0 | W40: =IF(Land!J40=0,0,ROUNDUP(U40/Land!J40,0)) -> 0 | X40: 0 | Y40: =SUM(AO40,Buildings!Q40,Buildings!U40,Buildings!AH40,BC40,Buildings!AE40) -> 0 | AA40: 0 | AB40: =AA40*Buildings!I40 -> 0 | AC40: =Buildings!O40 -> 0.71 | AD40: =IF(SUM(AV40,BA40,BN40,BE40,BH40)=0,0,SUM(Buildings!Q40,Buildings!U40,Buildings!AH40,BC40,Buildings!AE40)/SUM(AV40,BA40,BN40,BE40,BH40)) -> 0 | AF40: =Land!J40 -> 0 | AG40: =Buildings!J40*AF40 -> 0 | AH40: 0 | AJ40: =Buildings!L40 -> 0 | AK40: 0 | AL40: 0 | AM40: =Buildings!Y40 -> 0 | AO40: =Buildings!L40*Buildings!M40 -> 0 | AQ40: =ROUNDUP(Buildings!N40*Buildings!L40,0) -> 0 | AR40: =ROUNDUP(Buildings!L40*Buildings!O40,0) -> 0 | AT40: =Buildings!Q40 -> 0 | AU40: =IF(Buildings!R40=0,0,Buildings!Q40/Buildings!R40) -> 0 | AV40: =ROUNDUP(Buildings!Q40/100*Buildings!S40,0) -> 0 | AX40: =Buildings!U40 -> 0 | AY40: =ROUNDUP(IF(Buildings!V40=0,0,Buildings!U40/Buildings!V40),0) -> 0 | AZ40: =IF(SUM(AK40,AL40,AM40,BM40)=0,0,Buildings!U40/SUM(AK40,AL40,AM40,BM40)) -> 0 | BA40: =ROUNDUP(Buildings!U40/100*Buildings!W40,0) -> 0 | BC40: =Buildings!Y40*Buildings!Z40+Buildings!AB40 -> 0 | BD40: =ROUNDUP(Buildings!AA40*Buildings!Y40,0) -> 0 | BE40: =ROUNDUP(BC40/100*Buildings!AC40,0) -> 0 | BG40: =Buildings!AE40 -> 0 | BH40: =Buildings!AE40/100*Buildings!AF40 -> 0 | BM40: 0 | BP40: =(Buildings!AV40*Buildings!L40) -> 0 | BQ40: =(Buildings!AW40*(Buildings!Q40/100)) -> 0 | BR40: =(Buildings!AX40*(Buildings!U40/100)) -> 0 | BS40: 0 | BT40: =BS40*Buildings!I40 -> 0 | BV40: 0
A41: =Land!A41 -> 00:00:00 | B41: =IF(VLOOKUP(A41,'Control Panel'!$A$5:$B$69,2,FALSE)=TRUE,"ON","OFF") ->  | H41: 0 | I41: =Land!J41 -> 0 | J41: =I41*(1-Buildings!J41) -> 0 | K41: =Land!M41 -> 0 | L41: 0 | N41: =Land!R41 -> 0 | O41: =Land!T41 -> 0 | P41: =Land!V41 -> 0 | Q41: =Land!Q41 -> 0 | R41: 0 | S41: 0 | U41: =IF(Buildings!H41=0,0,Y41/Buildings!H41) -> 0 | V41: =IF(Land!H41=0,0,U41/Land!H41) -> 0 | W41: =IF(Land!J41=0,0,ROUNDUP(U41/Land!J41,0)) -> 0 | X41: 0 | Y41: =SUM(AO41,Buildings!Q41,Buildings!U41,Buildings!AH41,BC41,Buildings!AE41) -> 0 | AA41: 0 | AB41: =AA41*Buildings!I41 -> 0 | AC41: =Buildings!O41 -> 0.71 | AD41: =IF(SUM(AV41,BA41,BN41,BE41,BH41)=0,0,SUM(Buildings!Q41,Buildings!U41,Buildings!AH41,BC41,Buildings!AE41)/SUM(AV41,BA41,BN41,BE41,BH41)) -> 0 | AF41: =Land!J41 -> 0 | AG41: =Buildings!J41*AF41 -> 0 | AH41: 0 | AJ41: =Buildings!L41 -> 0 | AK41: 0 | AL41: 0 | AM41: =Buildings!Y41 -> 0 | AO41: =Buildings!L41*Buildings!M41 -> 0 | AQ41: =ROUNDUP(Buildings!N41*Buildings!L41,0) -> 0 | AR41: =ROUNDUP(Buildings!L41*Buildings!O41,0) -> 0 | AT41: =Buildings!Q41 -> 0 | AU41: =IF(Buildings!R41=0,0,Buildings!Q41/Buildings!R41) -> 0 | AV41: =ROUNDUP(Buildings!Q41/100*Buildings!S41,0) -> 0 | AX41: =Buildings!U41 -> 0 | AY41: =ROUNDUP(IF(Buildings!V41=0,0,Buildings!U41/Buildings!V41),0) -> 0 | AZ41: =IF(SUM(AK41,AL41,AM41,BM41)=0,0,Buildings!U41/SUM(AK41,AL41,AM41,BM41)) -> 0 | BA41: =ROUNDUP(Buildings!U41/100*Buildings!W41,0) -> 0 | BC41: =Buildings!Y41*Buildings!Z41+Buildings!AB41 -> 0 | BD41: =ROUNDUP(Buildings!AA41*Buildings!Y41,0) -> 0 | BE41: =ROUNDUP(BC41/100*Buildings!AC41,0) -> 0 | BG41: =Buildings!AE41 -> 0 | BH41: =Buildings!AE41/100*Buildings!AF41 -> 0 | BM41: 0 | BP41: =(Buildings!AV41*Buildings!L41) -> 0 | BQ41: =(Buildings!AW41*(Buildings!Q41/100)) -> 0 | BR41: =(Buildings!AX41*(Buildings!U41/100)) -> 0 | BS41: 0 | BT41: =BS41*Buildings!I41 -> 0 | BV41: 0
A42: =Land!A42 -> 00:00:00 | B42: =IF(VLOOKUP(A42,'Control Panel'!$A$5:$B$69,2,FALSE)=TRUE,"ON","OFF") ->  | H42: 0 | I42: =Land!J42 -> 0 | J42: =I42*(1-Buildings!J42) -> 0 | K42: =Land!M42 -> 0 | L42: 0 | N42: =Land!R42 -> 0 | O42: =Land!T42 -> 0 | P42: =Land!V42 -> 0 | Q42: =Land!Q42 -> 0 | R42: 0 | S42: 0 | U42: =IF(Buildings!H42=0,0,Y42/Buildings!H42) -> 0 | V42: =IF(Land!H42=0,0,U42/Land!H42) -> 0 | W42: =IF(Land!J42=0,0,ROUNDUP(U42/Land!J42,0)) -> 0 | X42: 0 | Y42: =SUM(AO42,Buildings!Q42,Buildings!U42,Buildings!AH42,BC42,Buildings!AE42) -> 0 | AA42: 0 | AB42: =AA42*Buildings!I42 -> 0 | AC42: =Buildings!O42 -> 0.71 | AD42: =IF(SUM(AV42,BA42,BN42,BE42,BH42)=0,0,SUM(Buildings!Q42,Buildings!U42,Buildings!AH42,BC42,Buildings!AE42)/SUM(AV42,BA42,BN42,BE42,BH42)) -> 0 | AF42: =Land!J42 -> 0 | AG42: =Buildings!J42*AF42 -> 0 | AH42: 0 | AJ42: =Buildings!L42 -> 0 | AK42: 0 | AL42: 0 | AM42: =Buildings!Y42 -> 0 | AO42: =Buildings!L42*Buildings!M42 -> 0 | AQ42: =ROUNDUP(Buildings!N42*Buildings!L42,0) -> 0 | AR42: =ROUNDUP(Buildings!L42*Buildings!O42,0) -> 0 | AT42: =Buildings!Q42 -> 0 | AU42: =IF(Buildings!R42=0,0,Buildings!Q42/Buildings!R42) -> 0 | AV42: =ROUNDUP(Buildings!Q42/100*Buildings!S42,0) -> 0 | AX42: =Buildings!U42 -> 0 | AY42: =ROUNDUP(IF(Buildings!V42=0,0,Buildings!U42/Buildings!V42),0) -> 0 | AZ42: =IF(SUM(AK42,AL42,AM42,BM42)=0,0,Buildings!U42/SUM(AK42,AL42,AM42,BM42)) -> 0 | BA42: =ROUNDUP(Buildings!U42/100*Buildings!W42,0) -> 0 | BC42: =Buildings!Y42*Buildings!Z42+Buildings!AB42 -> 0 | BD42: =ROUNDUP(Buildings!AA42*Buildings!Y42,0) -> 0 | BE42: =ROUNDUP(BC42/100*Buildings!AC42,0) -> 0 | BG42: =Buildings!AE42 -> 0 | BH42: =Buildings!AE42/100*Buildings!AF42 -> 0 | BM42: 0 | BP42: =(Buildings!AV42*Buildings!L42) -> 0 | BQ42: =(Buildings!AW42*(Buildings!Q42/100)) -> 0 | BR42: =(Buildings!AX42*(Buildings!U42/100)) -> 0 | BS42: 0 | BT42: =BS42*Buildings!I42 -> 0 | BV42: 0
A43: =Land!A43 -> 00:00:00 | B43: =IF(VLOOKUP(A43,'Control Panel'!$A$5:$B$69,2,FALSE)=TRUE,"ON","OFF") ->  | H43: 0 | I43: =Land!J43 -> 0 | J43: =I43*(1-Buildings!J43) -> 0 | K43: =Land!M43 -> 0 | L43: 0 | N43: =Land!R43 -> 0 | O43: =Land!T43 -> 0 | P43: =Land!V43 -> 0 | Q43: =Land!Q43 -> 0 | R43: 0 | S43: 0 | U43: =IF(Buildings!H43=0,0,Y43/Buildings!H43) -> 0 | V43: =IF(Land!H43=0,0,U43/Land!H43) -> 0 | W43: =IF(Land!J43=0,0,ROUNDUP(U43/Land!J43,0)) -> 0 | X43: 0 | Y43: =SUM(AO43,Buildings!Q43,Buildings!U43,Buildings!AH43,BC43,Buildings!AE43) -> 0 | AA43: 0 | AB43: =AA43*Buildings!I43 -> 0 | AC43: =Buildings!O43 -> 0.71 | AD43: =IF(SUM(AV43,BA43,BN43,BE43,BH43)=0,0,SUM(Buildings!Q43,Buildings!U43,Buildings!AH43,BC43,Buildings!AE43)/SUM(AV43,BA43,BN43,BE43,BH43)) -> 0 | AF43: =Land!J43 -> 0 | AG43: =Buildings!J43*AF43 -> 0 | AH43: 0 | AJ43: =Buildings!L43 -> 0 | AK43: 0 | AL43: 0 | AM43: =Buildings!Y43 -> 0 | AO43: =Buildings!L43*Buildings!M43 -> 0 | AQ43: =ROUNDUP(Buildings!N43*Buildings!L43,0) -> 0 | AR43: =ROUNDUP(Buildings!L43*Buildings!O43,0) -> 0 | AT43: =Buildings!Q43 -> 0 | AU43: =IF(Buildings!R43=0,0,Buildings!Q43/Buildings!R43) -> 0 | AV43: =ROUNDUP(Buildings!Q43/100*Buildings!S43,0) -> 0 | AX43: =Buildings!U43 -> 0 | AY43: =ROUNDUP(IF(Buildings!V43=0,0,Buildings!U43/Buildings!V43),0) -> 0 | AZ43: =IF(SUM(AK43,AL43,AM43,BM43)=0,0,Buildings!U43/SUM(AK43,AL43,AM43,BM43)) -> 0 | BA43: =ROUNDUP(Buildings!U43/100*Buildings!W43,0) -> 0 | BC43: =Buildings!Y43*Buildings!Z43+Buildings!AB43 -> 0 | BD43: =ROUNDUP(Buildings!AA43*Buildings!Y43,0) -> 0 | BE43: =ROUNDUP(BC43/100*Buildings!AC43,0) -> 0 | BG43: =Buildings!AE43 -> 0 | BH43: =Buildings!AE43/100*Buildings!AF43 -> 0 | BM43: 0 | BP43: =(Buildings!AV43*Buildings!L43) -> 0 | BQ43: =(Buildings!AW43*(Buildings!Q43/100)) -> 0 | BR43: =(Buildings!AX43*(Buildings!U43/100)) -> 0 | BS43: 0 | BT43: =BS43*Buildings!I43 -> 0 | BV43: 0
A44: =Land!A44 -> 00:00:00 | B44: =IF(VLOOKUP(A44,'Control Panel'!$A$5:$B$69,2,FALSE)=TRUE,"ON","OFF") ->  | H44: 0 | I44: =Land!J44 -> 0 | J44: =I44*(1-Buildings!J44) -> 0 | K44: =Land!M44 -> 0 | L44: 0 | N44: =Land!R44 -> 0 | O44: =Land!T44 -> 0 | P44: =Land!V44 -> 0 | Q44: =Land!Q44 -> 0 | R44: 0 | S44: 0 | U44: =IF(Buildings!H44=0,0,Y44/Buildings!H44) -> 0 | V44: =IF(Land!H44=0,0,U44/Land!H44) -> 0 | W44: =IF(Land!J44=0,0,ROUNDUP(U44/Land!J44,0)) -> 0 | X44: 0 | Y44: =SUM(AO44,Buildings!Q44,Buildings!U44,Buildings!AH44,BC44,Buildings!AE44) -> 0 | AA44: 0 | AB44: =AA44*Buildings!I44 -> 0 | AC44: =Buildings!O44 -> 0.71 | AD44: =IF(SUM(AV44,BA44,BN44,BE44,BH44)=0,0,SUM(Buildings!Q44,Buildings!U44,Buildings!AH44,BC44,Buildings!AE44)/SUM(AV44,BA44,BN44,BE44,BH44)) -> 0 | AF44: =Land!J44 -> 0 | AG44: =Buildings!J44*AF44 -> 0 | AH44: 0 | AJ44: =Buildings!L44 -> 0 | AK44: 0 | AL44: 0 | AM44: =Buildings!Y44 -> 0 | AO44: =Buildings!L44*Buildings!M44 -> 0 | AQ44: =ROUNDUP(Buildings!N44*Buildings!L44,0) -> 0 | AR44: =ROUNDUP(Buildings!L44*Buildings!O44,0) -> 0 | AT44: =Buildings!Q44 -> 0 | AU44: =IF(Buildings!R44=0,0,Buildings!Q44/Buildings!R44) -> 0 | AV44: =ROUNDUP(Buildings!Q44/100*Buildings!S44,0) -> 0 | AX44: =Buildings!U44 -> 0 | AY44: =ROUNDUP(IF(Buildings!V44=0,0,Buildings!U44/Buildings!V44),0) -> 0 | AZ44: =IF(SUM(AK44,AL44,AM44,BM44)=0,0,Buildings!U44/SUM(AK44,AL44,AM44,BM44)) -> 0 | BA44: =ROUNDUP(Buildings!U44/100*Buildings!W44,0) -> 0 | BC44: =Buildings!Y44*Buildings!Z44+Buildings!AB44 -> 0 | BD44: =ROUNDUP(Buildings!AA44*Buildings!Y44,0) -> 0 | BE44: =ROUNDUP(BC44/100*Buildings!AC44,0) -> 0 | BG44: =Buildings!AE44 -> 0 | BH44: =Buildings!AE44/100*Buildings!AF44 -> 0 | BM44: 0 | BP44: =(Buildings!AV44*Buildings!L44) -> 0 | BQ44: =(Buildings!AW44*(Buildings!Q44/100)) -> 0 | BR44: =(Buildings!AX44*(Buildings!U44/100)) -> 0 | BS44: 0 | BT44: =BS44*Buildings!I44 -> 0 | BV44: 0
A45: =Land!A45 -> 00:00:00 | B45: =IF(VLOOKUP(A45,'Control Panel'!$A$5:$B$69,2,FALSE)=TRUE,"ON","OFF") ->  | H45: 0 | I45: =Land!J45 -> 0 | J45: =I45*(1-Buildings!J45) -> 0 | K45: =Land!M45 -> 0 | L45: 0 | N45: =Land!R45 -> 0 | O45: =Land!T45 -> 0 | P45: =Land!V45 -> 0 | Q45: =Land!Q45 -> 0 | R45: 0 | S45: 0 | U45: =IF(Buildings!H45=0,0,Y45/Buildings!H45) -> 0 | V45: =IF(Land!H45=0,0,U45/Land!H45) -> 0 | W45: =IF(Land!J45=0,0,ROUNDUP(U45/Land!J45,0)) -> 0 | X45: 0 | Y45: =SUM(AO45,Buildings!Q45,Buildings!U45,Buildings!AH45,BC45,Buildings!AE45) -> 0 | AA45: 0 | AB45: =AA45*Buildings!I45 -> 0 | AC45: =Buildings!O45 -> 0.71 | AD45: =IF(SUM(AV45,BA45,BN45,BE45,BH45)=0,0,SUM(Buildings!Q45,Buildings!U45,Buildings!AH45,BC45,Buildings!AE45)/SUM(AV45,BA45,BN45,BE45,BH45)) -> 0 | AF45: =Land!J45 -> 0 | AG45: =Buildings!J45*AF45 -> 0 | AH45: 0 | AJ45: =Buildings!L45 -> 0 | AK45: 0 | AL45: 0 | AM45: =Buildings!Y45 -> 0 | AO45: =Buildings!L45*Buildings!M45 -> 0 | AQ45: =ROUNDUP(Buildings!N45*Buildings!L45,0) -> 0 | AR45: =ROUNDUP(Buildings!L45*Buildings!O45,0) -> 0 | AT45: =Buildings!Q45 -> 0 | AU45: =IF(Buildings!R45=0,0,Buildings!Q45/Buildings!R45) -> 0 | AV45: =ROUNDUP(Buildings!Q45/100*Buildings!S45,0) -> 0 | AX45: =Buildings!U45 -> 0 | AY45: =ROUNDUP(IF(Buildings!V45=0,0,Buildings!U45/Buildings!V45),0) -> 0 | AZ45: =IF(SUM(AK45,AL45,AM45,BM45)=0,0,Buildings!U45/SUM(AK45,AL45,AM45,BM45)) -> 0 | BA45: =ROUNDUP(Buildings!U45/100*Buildings!W45,0) -> 0 | BC45: =Buildings!Y45*Buildings!Z45+Buildings!AB45 -> 0 | BD45: =ROUNDUP(Buildings!AA45*Buildings!Y45,0) -> 0 | BE45: =ROUNDUP(BC45/100*Buildings!AC45,0) -> 0 | BG45: =Buildings!AE45 -> 0 | BH45: =Buildings!AE45/100*Buildings!AF45 -> 0 | BM45: 0 | BP45: =(Buildings!AV45*Buildings!L45) -> 0 | BQ45: =(Buildings!AW45*(Buildings!Q45/100)) -> 0 | BR45: =(Buildings!AX45*(Buildings!U45/100)) -> 0 | BS45: 0 | BT45: =BS45*Buildings!I45 -> 0 | BV45: 0
A46: =Land!A46 -> 00:00:00 | B46: =IF(VLOOKUP(A46,'Control Panel'!$A$5:$B$69,2,FALSE)=TRUE,"ON","OFF") ->  | H46: 0 | I46: =Land!J46 -> 0 | J46: =I46*(1-Buildings!J46) -> 0 | K46: =Land!M46 -> 0 | L46: 0 | N46: =Land!R46 -> 0 | O46: =Land!T46 -> 0 | P46: =Land!V46 -> 0 | Q46: =Land!Q46 -> 0 | R46: 0 | S46: 0 | U46: =IF(Buildings!H46=0,0,Y46/Buildings!H46) -> 0 | V46: =IF(Land!H46=0,0,U46/Land!H46) -> 0 | W46: =IF(Land!J46=0,0,ROUNDUP(U46/Land!J46,0)) -> 0 | X46: 0 | Y46: =SUM(AO46,Buildings!Q46,Buildings!U46,Buildings!AH46,BC46,Buildings!AE46) -> 0 | AA46: 0 | AB46: =AA46*Buildings!I46 -> 0 | AC46: =Buildings!O46 -> 0.71 | AD46: =IF(SUM(AV46,BA46,BN46,BE46,BH46)=0,0,SUM(Buildings!Q46,Buildings!U46,Buildings!AH46,BC46,Buildings!AE46)/SUM(AV46,BA46,BN46,BE46,BH46)) -> 0 | AF46: =Land!J46 -> 0 | AG46: =Buildings!J46*AF46 -> 0 | AH46: 0 | AJ46: =Buildings!L46 -> 0 | AK46: 0 | AL46: 0 | AM46: =Buildings!Y46 -> 0 | AO46: =Buildings!L46*Buildings!M46 -> 0 | AQ46: =ROUNDUP(Buildings!N46*Buildings!L46,0) -> 0 | AR46: =ROUNDUP(Buildings!L46*Buildings!O46,0) -> 0 | AT46: =Buildings!Q46 -> 0 | AU46: =IF(Buildings!R46=0,0,Buildings!Q46/Buildings!R46) -> 0 | AV46: =ROUNDUP(Buildings!Q46/100*Buildings!S46,0) -> 0 | AX46: =Buildings!U46 -> 0 | AY46: =ROUNDUP(IF(Buildings!V46=0,0,Buildings!U46/Buildings!V46),0) -> 0 | AZ46: =IF(SUM(AK46,AL46,AM46,BM46)=0,0,Buildings!U46/SUM(AK46,AL46,AM46,BM46)) -> 0 | BA46: =ROUNDUP(Buildings!U46/100*Buildings!W46,0) -> 0 | BC46: =Buildings!Y46*Buildings!Z46+Buildings!AB46 -> 0 | BD46: =ROUNDUP(Buildings!AA46*Buildings!Y46,0) -> 0 | BE46: =ROUNDUP(BC46/100*Buildings!AC46,0) -> 0 | BG46: =Buildings!AE46 -> 0 | BH46: =Buildings!AE46/100*Buildings!AF46 -> 0 | BM46: 0 | BP46: =(Buildings!AV46*Buildings!L46) -> 0 | BQ46: =(Buildings!AW46*(Buildings!Q46/100)) -> 0 | BR46: =(Buildings!AX46*(Buildings!U46/100)) -> 0 | BS46: 0 | BT46: =BS46*Buildings!I46 -> 0 | BV46: 0
A47: =Land!A47 -> 00:00:00 | B47: =IF(VLOOKUP(A47,'Control Panel'!$A$5:$B$69,2,FALSE)=TRUE,"ON","OFF") ->  | H47: 0 | I47: =Land!J47 -> 0 | J47: =I47*(1-Buildings!J47) -> 0 | K47: =Land!M47 -> 0 | L47: 0 | N47: =Land!R47 -> 0 | O47: =Land!T47 -> 0 | P47: =Land!V47 -> 0 | Q47: =Land!Q47 -> 0 | R47: 0 | S47: 0 | U47: =IF(Buildings!H47=0,0,Y47/Buildings!H47) -> 0 | V47: =IF(Land!H47=0,0,U47/Land!H47) -> 0 | W47: =IF(Land!J47=0,0,ROUNDUP(U47/Land!J47,0)) -> 0 | X47: 0 | Y47: =SUM(AO47,Buildings!Q47,Buildings!U47,Buildings!AH47,BC47,Buildings!AE47) -> 0 | AA47: 0 | AB47: =AA47*Buildings!I47 -> 0 | AC47: =Buildings!O47 -> 0.71 | AD47: =IF(SUM(AV47,BA47,BN47,BE47,BH47)=0,0,SUM(Buildings!Q47,Buildings!U47,Buildings!AH47,BC47,Buildings!AE47)/SUM(AV47,BA47,BN47,BE47,BH47)) -> 0 | AF47: =Land!J47 -> 0 | AG47: =Buildings!J47*AF47 -> 0 | AH47: 0 | AJ47: =Buildings!L47 -> 0 | AK47: 0 | AL47: 0 | AM47: =Buildings!Y47 -> 0 | AO47: =Buildings!L47*Buildings!M47 -> 0 | AQ47: =ROUNDUP(Buildings!N47*Buildings!L47,0) -> 0 | AR47: =ROUNDUP(Buildings!L47*Buildings!O47,0) -> 0 | AT47: =Buildings!Q47 -> 0 | AU47: =IF(Buildings!R47=0,0,Buildings!Q47/Buildings!R47) -> 0 | AV47: =ROUNDUP(Buildings!Q47/100*Buildings!S47,0) -> 0 | AX47: =Buildings!U47 -> 0 | AY47: =ROUNDUP(IF(Buildings!V47=0,0,Buildings!U47/Buildings!V47),0) -> 0 | AZ47: =IF(SUM(AK47,AL47,AM47,BM47)=0,0,Buildings!U47/SUM(AK47,AL47,AM47,BM47)) -> 0 | BA47: =ROUNDUP(Buildings!U47/100*Buildings!W47,0) -> 0 | BC47: =Buildings!Y47*Buildings!Z47+Buildings!AB47 -> 0 | BD47: =ROUNDUP(Buildings!AA47*Buildings!Y47,0) -> 0 | BE47: =ROUNDUP(BC47/100*Buildings!AC47,0) -> 0 | BG47: =Buildings!AE47 -> 0 | BH47: =Buildings!AE47/100*Buildings!AF47 -> 0 | BM47: 0 | BP47: =(Buildings!AV47*Buildings!L47) -> 0 | BQ47: =(Buildings!AW47*(Buildings!Q47/100)) -> 0 | BR47: =(Buildings!AX47*(Buildings!U47/100)) -> 0 | BS47: 0 | BT47: =BS47*Buildings!I47 -> 0 | BV47: 0
A48: =Land!A48 -> 00:00:00 | B48: =IF(VLOOKUP(A48,'Control Panel'!$A$5:$B$69,2,FALSE)=TRUE,"ON","OFF") ->  | H48: 0 | I48: =Land!J48 -> 0 | J48: =I48*(1-Buildings!J48) -> 0 | K48: =Land!M48 -> 0 | L48: 0 | N48: =Land!R48 -> 0 | O48: =Land!T48 -> 0 | P48: =Land!V48 -> 0 | Q48: =Land!Q48 -> 0 | R48: 0 | S48: 0 | U48: =IF(Buildings!H48=0,0,Y48/Buildings!H48) -> 0 | V48: =IF(Land!H48=0,0,U48/Land!H48) -> 0 | W48: =IF(Land!J48=0,0,ROUNDUP(U48/Land!J48,0)) -> 0 | X48: 0 | Y48: =SUM(AO48,Buildings!Q48,Buildings!U48,Buildings!AH48,BC48,Buildings!AE48) -> 0 | AA48: 0 | AB48: =AA48*Buildings!I48 -> 0 | AC48: =Buildings!O48 -> 0.71 | AD48: =IF(SUM(AV48,BA48,BN48,BE48,BH48)=0,0,SUM(Buildings!Q48,Buildings!U48,Buildings!AH48,BC48,Buildings!AE48)/SUM(AV48,BA48,BN48,BE48,BH48)) -> 0 | AF48: =Land!J48 -> 0 | AG48: =Buildings!J48*AF48 -> 0 | AH48: 0 | AJ48: =Buildings!L48 -> 0 | AK48: 0 | AL48: 0 | AM48: =Buildings!Y48 -> 0 | AO48: =Buildings!L48*Buildings!M48 -> 0 | AQ48: =ROUNDUP(Buildings!N48*Buildings!L48,0) -> 0 | AR48: =ROUNDUP(Buildings!L48*Buildings!O48,0) -> 0 | AT48: =Buildings!Q48 -> 0 | AU48: =IF(Buildings!R48=0,0,Buildings!Q48/Buildings!R48) -> 0 | AV48: =ROUNDUP(Buildings!Q48/100*Buildings!S48,0) -> 0 | AX48: =Buildings!U48 -> 0 | AY48: =ROUNDUP(IF(Buildings!V48=0,0,Buildings!U48/Buildings!V48),0) -> 0 | AZ48: =IF(SUM(AK48,AL48,AM48,BM48)=0,0,Buildings!U48/SUM(AK48,AL48,AM48,BM48)) -> 0 | BA48: =ROUNDUP(Buildings!U48/100*Buildings!W48,0) -> 0 | BC48: =Buildings!Y48*Buildings!Z48+Buildings!AB48 -> 0 | BD48: =ROUNDUP(Buildings!AA48*Buildings!Y48,0) -> 0 | BE48: =ROUNDUP(BC48/100*Buildings!AC48,0) -> 0 | BG48: =Buildings!AE48 -> 0 | BH48: =Buildings!AE48/100*Buildings!AF48 -> 0 | BM48: 0 | BP48: =(Buildings!AV48*Buildings!L48) -> 0 | BQ48: =(Buildings!AW48*(Buildings!Q48/100)) -> 0 | BR48: =(Buildings!AX48*(Buildings!U48/100)) -> 0 | BS48: 0 | BT48: =BS48*Buildings!I48 -> 0 | BV48: 0
A49: =Land!A49 -> 00:00:00 | B49: =IF(VLOOKUP(A49,'Control Panel'!$A$5:$B$69,2,FALSE)=TRUE,"ON","OFF") ->  | H49: 0 | I49: =Land!J49 -> 0 | J49: =I49*(1-Buildings!J49) -> 0 | K49: =Land!M49 -> 0 | L49: 0 | N49: =Land!R49 -> 0 | O49: =Land!T49 -> 0 | P49: =Land!V49 -> 0 | Q49: =Land!Q49 -> 0 | R49: 0 | S49: 0 | U49: =IF(Buildings!H49=0,0,Y49/Buildings!H49) -> 0 | V49: =IF(Land!H49=0,0,U49/Land!H49) -> 0 | W49: =IF(Land!J49=0,0,ROUNDUP(U49/Land!J49,0)) -> 0 | X49: 0 | Y49: =SUM(AO49,Buildings!Q49,Buildings!U49,Buildings!AH49,BC49,Buildings!AE49) -> 0 | AA49: 0 | AB49: =AA49*Buildings!I49 -> 0 | AC49: =Buildings!O49 -> 0.71 | AD49: =IF(SUM(AV49,BA49,BN49,BE49,BH49)=0,0,SUM(Buildings!Q49,Buildings!U49,Buildings!AH49,BC49,Buildings!AE49)/SUM(AV49,BA49,BN49,BE49,BH49)) -> 0 | AF49: =Land!J49 -> 0 | AG49: =Buildings!J49*AF49 -> 0 | AH49: 0 | AJ49: =Buildings!L49 -> 0 | AK49: 0 | AL49: 0 | AM49: =Buildings!Y49 -> 0 | AO49: =Buildings!L49*Buildings!M49 -> 0 | AQ49: =ROUNDUP(Buildings!N49*Buildings!L49,0) -> 0 | AR49: =ROUNDUP(Buildings!L49*Buildings!O49,0) -> 0 | AT49: =Buildings!Q49 -> 0 | AU49: =IF(Buildings!R49=0,0,Buildings!Q49/Buildings!R49) -> 0 | AV49: =ROUNDUP(Buildings!Q49/100*Buildings!S49,0) -> 0 | AX49: =Buildings!U49 -> 0 | AY49: =ROUNDUP(IF(Buildings!V49=0,0,Buildings!U49/Buildings!V49),0) -> 0 | AZ49: =IF(SUM(AK49,AL49,AM49,BM49)=0,0,Buildings!U49/SUM(AK49,AL49,AM49,BM49)) -> 0 | BA49: =ROUNDUP(Buildings!U49/100*Buildings!W49,0) -> 0 | BC49: =Buildings!Y49*Buildings!Z49+Buildings!AB49 -> 0 | BD49: =ROUNDUP(Buildings!AA49*Buildings!Y49,0) -> 0 | BE49: =ROUNDUP(BC49/100*Buildings!AC49,0) -> 0 | BG49: =Buildings!AE49 -> 0 | BH49: =Buildings!AE49/100*Buildings!AF49 -> 0 | BM49: 0 | BP49: =(Buildings!AV49*Buildings!L49) -> 0 | BQ49: =(Buildings!AW49*(Buildings!Q49/100)) -> 0 | BR49: =(Buildings!AX49*(Buildings!U49/100)) -> 0 | BS49: 0 | BT49: =BS49*Buildings!I49 -> 0 | BV49: 0
A50: =Land!A50 -> 00:00:00 | B50: =IF(VLOOKUP(A50,'Control Panel'!$A$5:$B$69,2,FALSE)=TRUE,"ON","OFF") ->  | H50: 0 | I50: =Land!J50 -> 0 | J50: =I50*(1-Buildings!J50) -> 0 | K50: =Land!M50 -> 0 | L50: 0 | N50: =Land!R50 -> 0 | O50: =Land!T50 -> 0 | P50: =Land!V50 -> 0 | Q50: =Land!Q50 -> 0 | R50: 0 | S50: 0 | U50: =IF(Buildings!H50=0,0,Y50/Buildings!H50) -> 0 | V50: =IF(Land!H50=0,0,U50/Land!H50) -> 0 | W50: =IF(Land!J50=0,0,ROUNDUP(U50/Land!J50,0)) -> 0 | X50: 0 | Y50: =SUM(AO50,Buildings!Q50,Buildings!U50,Buildings!AH50,BC50,Buildings!AE50) -> 0 | AA50: 0 | AB50: =AA50*Buildings!I50 -> 0 | AC50: =Buildings!O50 -> 0.71 | AD50: =IF(SUM(AV50,BA50,BN50,BE50,BH50)=0,0,SUM(Buildings!Q50,Buildings!U50,Buildings!AH50,BC50,Buildings!AE50)/SUM(AV50,BA50,BN50,BE50,BH50)) -> 0 | AF50: =Land!J50 -> 0 | AG50: =Buildings!J50*AF50 -> 0 | AH50: 0 | AJ50: =Buildings!L50 -> 0 | AK50: 0 | AL50: 0 | AM50: =Buildings!Y50 -> 0 | AO50: =Buildings!L50*Buildings!M50 -> 0 | AQ50: =ROUNDUP(Buildings!N50*Buildings!L50,0) -> 0 | AR50: =ROUNDUP(Buildings!L50*Buildings!O50,0) -> 0 | AT50: =Buildings!Q50 -> 0 | AU50: =IF(Buildings!R50=0,0,Buildings!Q50/Buildings!R50) -> 0 | AV50: =ROUNDUP(Buildings!Q50/100*Buildings!S50,0) -> 0 | AX50: =Buildings!U50 -> 0 | AY50: =ROUNDUP(IF(Buildings!V50=0,0,Buildings!U50/Buildings!V50),0) -> 0 | AZ50: =IF(SUM(AK50,AL50,AM50,BM50)=0,0,Buildings!U50/SUM(AK50,AL50,AM50,BM50)) -> 0 | BA50: =ROUNDUP(Buildings!U50/100*Buildings!W50,0) -> 0 | BC50: =Buildings!Y50*Buildings!Z50+Buildings!AB50 -> 0 | BD50: =ROUNDUP(Buildings!AA50*Buildings!Y50,0) -> 0 | BE50: =ROUNDUP(BC50/100*Buildings!AC50,0) -> 0 | BG50: =Buildings!AE50 -> 0 | BH50: =Buildings!AE50/100*Buildings!AF50 -> 0 | BM50: 0 | BP50: =(Buildings!AV50*Buildings!L50) -> 0 | BQ50: =(Buildings!AW50*(Buildings!Q50/100)) -> 0 | BR50: =(Buildings!AX50*(Buildings!U50/100)) -> 0 | BS50: 0 | BT50: =BS50*Buildings!I50 -> 0 | BV50: 0
A51: =Land!A51 -> 00:00:00 | B51: =IF(VLOOKUP(A51,'Control Panel'!$A$5:$B$69,2,FALSE)=TRUE,"ON","OFF") ->  | H51: 0 | I51: =Land!J51 -> 0 | J51: =I51*(1-Buildings!J51) -> 0 | K51: =Land!M51 -> 0 | L51: 0 | N51: =Land!R51 -> 0 | O51: =Land!T51 -> 0 | P51: =Land!V51 -> 0 | Q51: =Land!Q51 -> 0 | R51: 0 | S51: 0 | U51: =IF(Buildings!H51=0,0,Y51/Buildings!H51) -> 0 | V51: =IF(Land!H51=0,0,U51/Land!H51) -> 0 | W51: =IF(Land!J51=0,0,ROUNDUP(U51/Land!J51,0)) -> 0 | X51: 0 | Y51: =SUM(AO51,Buildings!Q51,Buildings!U51,Buildings!AH51,BC51,Buildings!AE51) -> 0 | AA51: 0 | AB51: =AA51*Buildings!I51 -> 0 | AC51: =Buildings!O51 -> 0.71 | AD51: =IF(SUM(AV51,BA51,BN51,BE51,BH51)=0,0,SUM(Buildings!Q51,Buildings!U51,Buildings!AH51,BC51,Buildings!AE51)/SUM(AV51,BA51,BN51,BE51,BH51)) -> 0 | AF51: =Land!J51 -> 0 | AG51: =Buildings!J51*AF51 -> 0 | AH51: 0 | AJ51: =Buildings!L51 -> 0 | AK51: 0 | AL51: 0 | AM51: =Buildings!Y51 -> 0 | AO51: =Buildings!L51*Buildings!M51 -> 0 | AQ51: =ROUNDUP(Buildings!N51*Buildings!L51,0) -> 0 | AR51: =ROUNDUP(Buildings!L51*Buildings!O51,0) -> 0 | AT51: =Buildings!Q51 -> 0 | AU51: =IF(Buildings!R51=0,0,Buildings!Q51/Buildings!R51) -> 0 | AV51: =ROUNDUP(Buildings!Q51/100*Buildings!S51,0) -> 0 | AX51: =Buildings!U51 -> 0 | AY51: =ROUNDUP(IF(Buildings!V51=0,0,Buildings!U51/Buildings!V51),0) -> 0 | AZ51: =IF(SUM(AK51,AL51,AM51,BM51)=0,0,Buildings!U51/SUM(AK51,AL51,AM51,BM51)) -> 0 | BA51: =ROUNDUP(Buildings!U51/100*Buildings!W51,0) -> 0 | BC51: =Buildings!Y51*Buildings!Z51+Buildings!AB51 -> 0 | BD51: =ROUNDUP(Buildings!AA51*Buildings!Y51,0) -> 0 | BE51: =ROUNDUP(BC51/100*Buildings!AC51,0) -> 0 | BG51: =Buildings!AE51 -> 0 | BH51: =Buildings!AE51/100*Buildings!AF51 -> 0 | BM51: 0 | BP51: =(Buildings!AV51*Buildings!L51) -> 0 | BQ51: =(Buildings!AW51*(Buildings!Q51/100)) -> 0 | BR51: =(Buildings!AX51*(Buildings!U51/100)) -> 0 | BS51: 0 | BT51: =BS51*Buildings!I51 -> 0 | BV51: 0
A52: =Land!A52 -> 00:00:00 | B52: =IF(VLOOKUP(A52,'Control Panel'!$A$5:$B$69,2,FALSE)=TRUE,"ON","OFF") ->  | H52: 0 | I52: =Land!J52 -> 0 | J52: =I52*(1-Buildings!J52) -> 0 | K52: =Land!M52 -> 0 | L52: 0 | N52: =Land!R52 -> 0 | O52: =Land!T52 -> 0 | P52: =Land!V52 -> 0 | Q52: =Land!Q52 -> 0 | R52: 0 | S52: 0 | U52: =IF(Buildings!H52=0,0,Y52/Buildings!H52) -> 0 | V52: =IF(Land!H52=0,0,U52/Land!H52) -> 0 | W52: =IF(Land!J52=0,0,ROUNDUP(U52/Land!J52,0)) -> 0 | X52: 0 | Y52: =SUM(AO52,Buildings!Q52,Buildings!U52,Buildings!AH52,BC52,Buildings!AE52) -> 0 | AA52: 0 | AB52: =AA52*Buildings!I52 -> 0 | AC52: =Buildings!O52 -> 0.71 | AD52: =IF(SUM(AV52,BA52,BN52,BE52,BH52)=0,0,SUM(Buildings!Q52,Buildings!U52,Buildings!AH52,BC52,Buildings!AE52)/SUM(AV52,BA52,BN52,BE52,BH52)) -> 0 | AF52: =Land!J52 -> 0 | AG52: =Buildings!J52*AF52 -> 0 | AH52: 0 | AJ52: =Buildings!L52 -> 0 | AK52: 0 | AL52: 0 | AM52: =Buildings!Y52 -> 0 | AO52: =Buildings!L52*Buildings!M52 -> 0 | AQ52: =ROUNDUP(Buildings!N52*Buildings!L52,0) -> 0 | AR52: =ROUNDUP(Buildings!L52*Buildings!O52,0) -> 0 | AT52: =Buildings!Q52 -> 0 | AU52: =IF(Buildings!R52=0,0,Buildings!Q52/Buildings!R52) -> 0 | AV52: =ROUNDUP(Buildings!Q52/100*Buildings!S52,0) -> 0 | AX52: =Buildings!U52 -> 0 | AY52: =ROUNDUP(IF(Buildings!V52=0,0,Buildings!U52/Buildings!V52),0) -> 0 | AZ52: =IF(SUM(AK52,AL52,AM52,BM52)=0,0,Buildings!U52/SUM(AK52,AL52,AM52,BM52)) -> 0 | BA52: =ROUNDUP(Buildings!U52/100*Buildings!W52,0) -> 0 | BC52: =Buildings!Y52*Buildings!Z52+Buildings!AB52 -> 0 | BD52: =ROUNDUP(Buildings!AA52*Buildings!Y52,0) -> 0 | BE52: =ROUNDUP(BC52/100*Buildings!AC52,0) -> 0 | BG52: =Buildings!AE52 -> 0 | BH52: =Buildings!AE52/100*Buildings!AF52 -> 0 | BM52: 0 | BP52: =(Buildings!AV52*Buildings!L52) -> 0 | BQ52: =(Buildings!AW52*(Buildings!Q52/100)) -> 0 | BR52: =(Buildings!AX52*(Buildings!U52/100)) -> 0 | BS52: 0 | BT52: =BS52*Buildings!I52 -> 0 | BV52: 0
A53: =Land!A53 -> 00:00:00 | B53: =IF(VLOOKUP(A53,'Control Panel'!$A$5:$B$69,2,FALSE)=TRUE,"ON","OFF") ->  | H53: 0 | I53: =Land!J53 -> 0 | J53: =I53*(1-Buildings!J53) -> 0 | K53: =Land!M53 -> 0 | L53: 0 | N53: =Land!R53 -> 0 | O53: =Land!T53 -> 0 | P53: =Land!V53 -> 0 | Q53: =Land!Q53 -> 0 | R53: 0 | S53: 0 | U53: =IF(Buildings!H53=0,0,Y53/Buildings!H53) -> 0 | V53: =IF(Land!H53=0,0,U53/Land!H53) -> 0 | W53: =IF(Land!J53=0,0,ROUNDUP(U53/Land!J53,0)) -> 0 | X53: 0 | Y53: =SUM(AO53,Buildings!Q53,Buildings!U53,Buildings!AH53,BC53,Buildings!AE53) -> 0 | AA53: 0 | AB53: =AA53*Buildings!I53 -> 0 | AC53: =Buildings!O53 -> 0.71 | AD53: =IF(SUM(AV53,BA53,BN53,BE53,BH53)=0,0,SUM(Buildings!Q53,Buildings!U53,Buildings!AH53,BC53,Buildings!AE53)/SUM(AV53,BA53,BN53,BE53,BH53)) -> 0 | AF53: =Land!J53 -> 0 | AG53: =Buildings!J53*AF53 -> 0 | AH53: 0 | AJ53: =Buildings!L53 -> 0 | AK53: 0 | AL53: 0 | AM53: =Buildings!Y53 -> 0 | AO53: =Buildings!L53*Buildings!M53 -> 0 | AQ53: =ROUNDUP(Buildings!N53*Buildings!L53,0) -> 0 | AR53: =ROUNDUP(Buildings!L53*Buildings!O53,0) -> 0 | AT53: =Buildings!Q53 -> 0 | AU53: =IF(Buildings!R53=0,0,Buildings!Q53/Buildings!R53) -> 0 | AV53: =ROUNDUP(Buildings!Q53/100*Buildings!S53,0) -> 0 | AX53: =Buildings!U53 -> 0 | AY53: =ROUNDUP(IF(Buildings!V53=0,0,Buildings!U53/Buildings!V53),0) -> 0 | AZ53: =IF(SUM(AK53,AL53,AM53,BM53)=0,0,Buildings!U53/SUM(AK53,AL53,AM53,BM53)) -> 0 | BA53: =ROUNDUP(Buildings!U53/100*Buildings!W53,0) -> 0 | BC53: =Buildings!Y53*Buildings!Z53+Buildings!AB53 -> 0 | BD53: =ROUNDUP(Buildings!AA53*Buildings!Y53,0) -> 0 | BE53: =ROUNDUP(BC53/100*Buildings!AC53,0) -> 0 | BG53: =Buildings!AE53 -> 0 | BH53: =Buildings!AE53/100*Buildings!AF53 -> 0 | BM53: 0 | BP53: =(Buildings!AV53*Buildings!L53) -> 0 | BQ53: =(Buildings!AW53*(Buildings!Q53/100)) -> 0 | BR53: =(Buildings!AX53*(Buildings!U53/100)) -> 0 | BS53: 0 | BT53: =BS53*Buildings!I53 -> 0 | BV53: 0
A54: =Land!A54 -> 00:00:00 | B54: =IF(VLOOKUP(A54,'Control Panel'!$A$5:$B$69,2,FALSE)=TRUE,"ON","OFF") ->  | H54: 0 | I54: =Land!J54 -> 0 | J54: =I54*(1-Buildings!J54) -> 0 | K54: =Land!M54 -> 0 | L54: 0 | N54: =Land!R54 -> 0 | O54: =Land!T54 -> 0 | P54: =Land!V54 -> 0 | Q54: =Land!Q54 -> 0 | R54: 0 | S54: 0 | U54: =IF(Buildings!H54=0,0,Y54/Buildings!H54) -> 0 | V54: =IF(Land!H54=0,0,U54/Land!H54) -> 0 | W54: =IF(Land!J54=0,0,ROUNDUP(U54/Land!J54,0)) -> 0 | X54: 0 | Y54: =SUM(AO54,Buildings!Q54,Buildings!U54,Buildings!AH54,BC54,Buildings!AE54) -> 0 | AA54: 0 | AB54: =AA54*Buildings!I54 -> 0 | AC54: =Buildings!O54 -> 0.71 | AD54: =IF(SUM(AV54,BA54,BN54,BE54,BH54)=0,0,SUM(Buildings!Q54,Buildings!U54,Buildings!AH54,BC54,Buildings!AE54)/SUM(AV54,BA54,BN54,BE54,BH54)) -> 0 | AF54: =Land!J54 -> 0 | AG54: =Buildings!J54*AF54 -> 0 | AH54: 0 | AJ54: =Buildings!L54 -> 0 | AK54: 0 | AL54: 0 | AM54: =Buildings!Y54 -> 0 | AO54: =Buildings!L54*Buildings!M54 -> 0 | AQ54: =ROUNDUP(Buildings!N54*Buildings!L54,0) -> 0 | AR54: =ROUNDUP(Buildings!L54*Buildings!O54,0) -> 0 | AT54: =Buildings!Q54 -> 0 | AU54: =IF(Buildings!R54=0,0,Buildings!Q54/Buildings!R54) -> 0 | AV54: =ROUNDUP(Buildings!Q54/100*Buildings!S54,0) -> 0 | AX54: =Buildings!U54 -> 0 | AY54: =ROUNDUP(IF(Buildings!V54=0,0,Buildings!U54/Buildings!V54),0) -> 0 | AZ54: =IF(SUM(AK54,AL54,AM54,BM54)=0,0,Buildings!U54/SUM(AK54,AL54,AM54,BM54)) -> 0 | BA54: =ROUNDUP(Buildings!U54/100*Buildings!W54,0) -> 0 | BC54: =Buildings!Y54*Buildings!Z54+Buildings!AB54 -> 0 | BD54: =ROUNDUP(Buildings!AA54*Buildings!Y54,0) -> 0 | BE54: =ROUNDUP(BC54/100*Buildings!AC54,0) -> 0 | BG54: =Buildings!AE54 -> 0 | BH54: =Buildings!AE54/100*Buildings!AF54 -> 0 | BM54: 0 | BP54: =(Buildings!AV54*Buildings!L54) -> 0 | BQ54: =(Buildings!AW54*(Buildings!Q54/100)) -> 0 | BR54: =(Buildings!AX54*(Buildings!U54/100)) -> 0 | BS54: 0 | BT54: =BS54*Buildings!I54 -> 0 | BV54: 0
A55: =Land!A55 -> 00:00:00 | B55: =IF(VLOOKUP(A55,'Control Panel'!$A$5:$B$69,2,FALSE)=TRUE,"ON","OFF") ->  | H55: 0 | I55: =Land!J55 -> 0 | J55: =I55*(1-Buildings!J55) -> 0 | K55: =Land!M55 -> 0 | L55: 0 | N55: =Land!R55 -> 0 | O55: =Land!T55 -> 0 | P55: =Land!V55 -> 0 | Q55: =Land!Q55 -> 0 | R55: 0 | S55: 0 | U55: =IF(Buildings!H55=0,0,Y55/Buildings!H55) -> 0 | V55: =IF(Land!H55=0,0,U55/Land!H55) -> 0 | W55: =IF(Land!J55=0,0,ROUNDUP(U55/Land!J55,0)) -> 0 | X55: 0 | Y55: =SUM(AO55,Buildings!Q55,Buildings!U55,Buildings!AH55,BC55,Buildings!AE55) -> 0 | AA55: 0 | AB55: =AA55*Buildings!I55 -> 0 | AC55: =Buildings!O55 -> 0.71 | AD55: =IF(SUM(AV55,BA55,BN55,BE55,BH55)=0,0,SUM(Buildings!Q55,Buildings!U55,Buildings!AH55,BC55,Buildings!AE55)/SUM(AV55,BA55,BN55,BE55,BH55)) -> 0 | AF55: =Land!J55 -> 0 | AG55: =Buildings!J55*AF55 -> 0 | AH55: 0 | AJ55: =Buildings!L55 -> 0 | AK55: 0 | AL55: 0 | AM55: =Buildings!Y55 -> 0 | AO55: =Buildings!L55*Buildings!M55 -> 0 | AQ55: =ROUNDUP(Buildings!N55*Buildings!L55,0) -> 0 | AR55: =ROUNDUP(Buildings!L55*Buildings!O55,0) -> 0 | AT55: =Buildings!Q55 -> 0 | AU55: =IF(Buildings!R55=0,0,Buildings!Q55/Buildings!R55) -> 0 | AV55: =ROUNDUP(Buildings!Q55/100*Buildings!S55,0) -> 0 | AX55: =Buildings!U55 -> 0 | AY55: =ROUNDUP(IF(Buildings!V55=0,0,Buildings!U55/Buildings!V55),0) -> 0 | AZ55: =IF(SUM(AK55,AL55,AM55,BM55)=0,0,Buildings!U55/SUM(AK55,AL55,AM55,BM55)) -> 0 | BA55: =ROUNDUP(Buildings!U55/100*Buildings!W55,0) -> 0 | BC55: =Buildings!Y55*Buildings!Z55+Buildings!AB55 -> 0 | BD55: =ROUNDUP(Buildings!AA55*Buildings!Y55,0) -> 0 | BE55: =ROUNDUP(BC55/100*Buildings!AC55,0) -> 0 | BG55: =Buildings!AE55 -> 0 | BH55: =Buildings!AE55/100*Buildings!AF55 -> 0 | BM55: 0 | BP55: =(Buildings!AV55*Buildings!L55) -> 0 | BQ55: =(Buildings!AW55*(Buildings!Q55/100)) -> 0 | BR55: =(Buildings!AX55*(Buildings!U55/100)) -> 0 | BS55: 0 | BT55: =BS55*Buildings!I55 -> 0 | BV55: 0
A56: =Land!A56 -> 00:00:00 | B56: =IF(VLOOKUP(A56,'Control Panel'!$A$5:$B$69,2,FALSE)=TRUE,"ON","OFF") ->  | H56: 0 | I56: =Land!J56 -> 0 | J56: =I56*(1-Buildings!J56) -> 0 | K56: =Land!M56 -> 0 | L56: 0 | N56: =Land!R56 -> 0 | O56: =Land!T56 -> 0 | P56: =Land!V56 -> 0 | Q56: =Land!Q56 -> 0 | R56: 0 | S56: 0 | U56: =IF(Buildings!H56=0,0,Y56/Buildings!H56) -> 0 | V56: =IF(Land!H56=0,0,U56/Land!H56) -> 0 | W56: =IF(Land!J56=0,0,ROUNDUP(U56/Land!J56,0)) -> 0 | X56: 0 | Y56: =SUM(AO56,Buildings!Q56,Buildings!U56,Buildings!AH56,BC56,Buildings!AE56) -> 0 | AA56: 0 | AB56: =AA56*Buildings!I56 -> 0 | AC56: =Buildings!O56 -> 0.71 | AD56: =IF(SUM(AV56,BA56,BN56,BE56,BH56)=0,0,SUM(Buildings!Q56,Buildings!U56,Buildings!AH56,BC56,Buildings!AE56)/SUM(AV56,BA56,BN56,BE56,BH56)) -> 0 | AF56: =Land!J56 -> 0 | AG56: =Buildings!J56*AF56 -> 0 | AH56: 0 | AJ56: =Buildings!L56 -> 0 | AK56: 0 | AL56: 0 | AM56: =Buildings!Y56 -> 0 | AO56: =Buildings!L56*Buildings!M56 -> 0 | AQ56: =ROUNDUP(Buildings!N56*Buildings!L56,0) -> 0 | AR56: =ROUNDUP(Buildings!L56*Buildings!O56,0) -> 0 | AT56: =Buildings!Q56 -> 0 | AU56: =IF(Buildings!R56=0,0,Buildings!Q56/Buildings!R56) -> 0 | AV56: =ROUNDUP(Buildings!Q56/100*Buildings!S56,0) -> 0 | AX56: =Buildings!U56 -> 0 | AY56: =ROUNDUP(IF(Buildings!V56=0,0,Buildings!U56/Buildings!V56),0) -> 0 | AZ56: =IF(SUM(AK56,AL56,AM56,BM56)=0,0,Buildings!U56/SUM(AK56,AL56,AM56,BM56)) -> 0 | BA56: =ROUNDUP(Buildings!U56/100*Buildings!W56,0) -> 0 | BC56: =Buildings!Y56*Buildings!Z56+Buildings!AB56 -> 0 | BD56: =ROUNDUP(Buildings!AA56*Buildings!Y56,0) -> 0 | BE56: =ROUNDUP(BC56/100*Buildings!AC56,0) -> 0 | BG56: =Buildings!AE56 -> 0 | BH56: =Buildings!AE56/100*Buildings!AF56 -> 0 | BM56: 0 | BP56: =(Buildings!AV56*Buildings!L56) -> 0 | BQ56: =(Buildings!AW56*(Buildings!Q56/100)) -> 0 | BR56: =(Buildings!AX56*(Buildings!U56/100)) -> 0 | BS56: 0 | BT56: =BS56*Buildings!I56 -> 0 | BV56: 0
A57: =Land!A57 -> 00:00:00 | B57: =IF(VLOOKUP(A57,'Control Panel'!$A$5:$B$69,2,FALSE)=TRUE,"ON","OFF") ->  | H57: 0 | I57: =Land!J57 -> 0 | J57: =I57*(1-Buildings!J57) -> 0 | K57: =Land!M57 -> 0 | L57: 0 | N57: =Land!R57 -> 0 | O57: =Land!T57 -> 0 | P57: =Land!V57 -> 0 | Q57: =Land!Q57 -> 0 | R57: 0 | S57: 0 | U57: =IF(Buildings!H57=0,0,Y57/Buildings!H57) -> 0 | V57: =IF(Land!H57=0,0,U57/Land!H57) -> 0 | W57: =IF(Land!J57=0,0,ROUNDUP(U57/Land!J57,0)) -> 0 | X57: 0 | Y57: =SUM(AO57,Buildings!Q57,Buildings!U57,Buildings!AH57,BC57,Buildings!AE57) -> 0 | AA57: 0 | AB57: =AA57*Buildings!I57 -> 0 | AC57: =Buildings!O57 -> 0.71 | AD57: =IF(SUM(AV57,BA57,BN57,BE57,BH57)=0,0,SUM(Buildings!Q57,Buildings!U57,Buildings!AH57,BC57,Buildings!AE57)/SUM(AV57,BA57,BN57,BE57,BH57)) -> 0 | AF57: =Land!J57 -> 0 | AG57: =Buildings!J57*AF57 -> 0 | AH57: 0 | AJ57: =Buildings!L57 -> 0 | AK57: 0 | AL57: 0 | AM57: =Buildings!Y57 -> 0 | AO57: =Buildings!L57*Buildings!M57 -> 0 | AQ57: =ROUNDUP(Buildings!N57*Buildings!L57,0) -> 0 | AR57: =ROUNDUP(Buildings!L57*Buildings!O57,0) -> 0 | AT57: =Buildings!Q57 -> 0 | AU57: =IF(Buildings!R57=0,0,Buildings!Q57/Buildings!R57) -> 0 | AV57: =ROUNDUP(Buildings!Q57/100*Buildings!S57,0) -> 0 | AX57: =Buildings!U57 -> 0 | AY57: =ROUNDUP(IF(Buildings!V57=0,0,Buildings!U57/Buildings!V57),0) -> 0 | AZ57: =IF(SUM(AK57,AL57,AM57,BM57)=0,0,Buildings!U57/SUM(AK57,AL57,AM57,BM57)) -> 0 | BA57: =ROUNDUP(Buildings!U57/100*Buildings!W57,0) -> 0 | BC57: =Buildings!Y57*Buildings!Z57+Buildings!AB57 -> 0 | BD57: =ROUNDUP(Buildings!AA57*Buildings!Y57,0) -> 0 | BE57: =ROUNDUP(BC57/100*Buildings!AC57,0) -> 0 | BG57: =Buildings!AE57 -> 0 | BH57: =Buildings!AE57/100*Buildings!AF57 -> 0 | BM57: 0 | BP57: =(Buildings!AV57*Buildings!L57) -> 0 | BQ57: =(Buildings!AW57*(Buildings!Q57/100)) -> 0 | BR57: =(Buildings!AX57*(Buildings!U57/100)) -> 0 | BS57: 0 | BT57: =BS57*Buildings!I57 -> 0 | BV57: 0
A58: =Land!A58 -> 00:00:00 | B58: =IF(VLOOKUP(A58,'Control Panel'!$A$5:$B$69,2,FALSE)=TRUE,"ON","OFF") ->  | H58: 0 | I58: =Land!J58 -> 0 | J58: =I58*(1-Buildings!J58) -> 0 | K58: =Land!M58 -> 0 | L58: 0 | N58: =Land!R58 -> 0 | O58: =Land!T58 -> 0 | P58: =Land!V58 -> 0 | Q58: =Land!Q58 -> 0 | R58: 0 | S58: 0 | U58: =IF(Buildings!H58=0,0,Y58/Buildings!H58) -> 0 | V58: =IF(Land!H58=0,0,U58/Land!H58) -> 0 | W58: =IF(Land!J58=0,0,ROUNDUP(U58/Land!J58,0)) -> 0 | X58: 0 | Y58: =SUM(AO58,Buildings!Q58,Buildings!U58,Buildings!AH58,BC58,Buildings!AE58) -> 0 | AA58: 0 | AB58: =AA58*Buildings!I58 -> 0 | AC58: =Buildings!O58 -> 0.71 | AD58: =IF(SUM(AV58,BA58,BN58,BE58,BH58)=0,0,SUM(Buildings!Q58,Buildings!U58,Buildings!AH58,BC58,Buildings!AE58)/SUM(AV58,BA58,BN58,BE58,BH58)) -> 0 | AF58: =Land!J58 -> 0 | AG58: =Buildings!J58*AF58 -> 0 | AH58: 0 | AJ58: =Buildings!L58 -> 0 | AK58: 0 | AL58: 0 | AM58: =Buildings!Y58 -> 0 | AO58: =Buildings!L58*Buildings!M58 -> 0 | AQ58: =ROUNDUP(Buildings!N58*Buildings!L58,0) -> 0 | AR58: =ROUNDUP(Buildings!L58*Buildings!O58,0) -> 0 | AT58: =Buildings!Q58 -> 0 | AU58: =IF(Buildings!R58=0,0,Buildings!Q58/Buildings!R58) -> 0 | AV58: =ROUNDUP(Buildings!Q58/100*Buildings!S58,0) -> 0 | AX58: =Buildings!U58 -> 0 | AY58: =ROUNDUP(IF(Buildings!V58=0,0,Buildings!U58/Buildings!V58),0) -> 0 | AZ58: =IF(SUM(AK58,AL58,AM58,BM58)=0,0,Buildings!U58/SUM(AK58,AL58,AM58,BM58)) -> 0 | BA58: =ROUNDUP(Buildings!U58/100*Buildings!W58,0) -> 0 | BC58: =Buildings!Y58*Buildings!Z58+Buildings!AB58 -> 0 | BD58: =ROUNDUP(Buildings!AA58*Buildings!Y58,0) -> 0 | BE58: =ROUNDUP(BC58/100*Buildings!AC58,0) -> 0 | BG58: =Buildings!AE58 -> 0 | BH58: =Buildings!AE58/100*Buildings!AF58 -> 0 | BM58: 0 | BP58: =(Buildings!AV58*Buildings!L58) -> 0 | BQ58: =(Buildings!AW58*(Buildings!Q58/100)) -> 0 | BR58: =(Buildings!AX58*(Buildings!U58/100)) -> 0 | BS58: 0 | BT58: =BS58*Buildings!I58 -> 0 | BV58: 0
A59: =Land!A59 -> 00:00:00 | B59: =IF(VLOOKUP(A59,'Control Panel'!$A$5:$B$69,2,FALSE)=TRUE,"ON","OFF") ->  | H59: 0 | I59: =Land!J59 -> 0 | J59: =I59*(1-Buildings!J59) -> 0 | K59: =Land!M59 -> 0 | L59: 0 | N59: =Land!R59 -> 0 | O59: =Land!T59 -> 0 | P59: =Land!V59 -> 0 | Q59: =Land!Q59 -> 0 | R59: 0 | S59: 0 | U59: =IF(Buildings!H59=0,0,Y59/Buildings!H59) -> 0 | V59: =IF(Land!H59=0,0,U59/Land!H59) -> 0 | W59: =IF(Land!J59=0,0,ROUNDUP(U59/Land!J59,0)) -> 0 | X59: 0 | Y59: =SUM(AO59,Buildings!Q59,Buildings!U59,Buildings!AH59,BC59,Buildings!AE59) -> 0 | AA59: 0 | AB59: =AA59*Buildings!I59 -> 0 | AC59: =Buildings!O59 -> 0.71 | AD59: =IF(SUM(AV59,BA59,BN59,BE59,BH59)=0,0,SUM(Buildings!Q59,Buildings!U59,Buildings!AH59,BC59,Buildings!AE59)/SUM(AV59,BA59,BN59,BE59,BH59)) -> 0 | AF59: =Land!J59 -> 0 | AG59: =Buildings!J59*AF59 -> 0 | AH59: 0 | AJ59: =Buildings!L59 -> 0 | AK59: 0 | AL59: 0 | AM59: =Buildings!Y59 -> 0 | AO59: =Buildings!L59*Buildings!M59 -> 0 | AQ59: =ROUNDUP(Buildings!N59*Buildings!L59,0) -> 0 | AR59: =ROUNDUP(Buildings!L59*Buildings!O59,0) -> 0 | AT59: =Buildings!Q59 -> 0 | AU59: =IF(Buildings!R59=0,0,Buildings!Q59/Buildings!R59) -> 0 | AV59: =ROUNDUP(Buildings!Q59/100*Buildings!S59,0) -> 0 | AX59: =Buildings!U59 -> 0 | AY59: =ROUNDUP(IF(Buildings!V59=0,0,Buildings!U59/Buildings!V59),0) -> 0 | AZ59: =IF(SUM(AK59,AL59,AM59,BM59)=0,0,Buildings!U59/SUM(AK59,AL59,AM59,BM59)) -> 0 | BA59: =ROUNDUP(Buildings!U59/100*Buildings!W59,0) -> 0 | BC59: =Buildings!Y59*Buildings!Z59+Buildings!AB59 -> 0 | BD59: =ROUNDUP(Buildings!AA59*Buildings!Y59,0) -> 0 | BE59: =ROUNDUP(BC59/100*Buildings!AC59,0) -> 0 | BG59: =Buildings!AE59 -> 0 | BH59: =Buildings!AE59/100*Buildings!AF59 -> 0 | BM59: 0 | BP59: =(Buildings!AV59*Buildings!L59) -> 0 | BQ59: =(Buildings!AW59*(Buildings!Q59/100)) -> 0 | BR59: =(Buildings!AX59*(Buildings!U59/100)) -> 0 | BS59: 0 | BT59: =BS59*Buildings!I59 -> 0 | BV59: 0
A60: =Land!A60 -> 00:00:00 | B60: =IF(VLOOKUP(A60,'Control Panel'!$A$5:$B$69,2,FALSE)=TRUE,"ON","OFF") ->  | H60: 0 | I60: =Land!J60 -> 0 | J60: =I60*(1-Buildings!J60) -> 0 | K60: =Land!M60 -> 0 | L60: 0 | N60: =Land!R60 -> 0 | O60: =Land!T60 -> 0 | P60: =Land!V60 -> 0 | Q60: =Land!Q60 -> 0 | R60: 0 | S60: 0 | U60: =IF(Buildings!H60=0,0,Y60/Buildings!H60) -> 0 | V60: =IF(Land!H60=0,0,U60/Land!H60) -> 0 | W60: =IF(Land!J60=0,0,ROUNDUP(U60/Land!J60,0)) -> 0 | X60: 0 | Y60: =SUM(AO60,Buildings!Q60,Buildings!U60,Buildings!AH60,BC60,Buildings!AE60) -> 0 | AA60: 0 | AB60: =AA60*Buildings!I60 -> 0 | AC60: =Buildings!O60 -> 0.71 | AD60: =IF(SUM(AV60,BA60,BN60,BE60,BH60)=0,0,SUM(Buildings!Q60,Buildings!U60,Buildings!AH60,BC60,Buildings!AE60)/SUM(AV60,BA60,BN60,BE60,BH60)) -> 0 | AF60: =Land!J60 -> 0 | AG60: =Buildings!J60*AF60 -> 0 | AH60: 0 | AJ60: =Buildings!L60 -> 0 | AK60: 0 | AL60: 0 | AM60: =Buildings!Y60 -> 0 | AO60: =Buildings!L60*Buildings!M60 -> 0 | AQ60: =ROUNDUP(Buildings!N60*Buildings!L60,0) -> 0 | AR60: =ROUNDUP(Buildings!L60*Buildings!O60,0) -> 0 | AT60: =Buildings!Q60 -> 0 | AU60: =IF(Buildings!R60=0,0,Buildings!Q60/Buildings!R60) -> 0 | AV60: =ROUNDUP(Buildings!Q60/100*Buildings!S60,0) -> 0 | AX60: =Buildings!U60 -> 0 | AY60: =ROUNDUP(IF(Buildings!V60=0,0,Buildings!U60/Buildings!V60),0) -> 0 | AZ60: =IF(SUM(AK60,AL60,AM60,BM60)=0,0,Buildings!U60/SUM(AK60,AL60,AM60,BM60)) -> 0 | BA60: =ROUNDUP(Buildings!U60/100*Buildings!W60,0) -> 0 | BC60: =Buildings!Y60*Buildings!Z60+Buildings!AB60 -> 0 | BD60: =ROUNDUP(Buildings!AA60*Buildings!Y60,0) -> 0 | BE60: =ROUNDUP(BC60/100*Buildings!AC60,0) -> 0 | BG60: =Buildings!AE60 -> 0 | BH60: =Buildings!AE60/100*Buildings!AF60 -> 0 | BM60: 0 | BP60: =(Buildings!AV60*Buildings!L60) -> 0 | BQ60: =(Buildings!AW60*(Buildings!Q60/100)) -> 0 | BR60: =(Buildings!AX60*(Buildings!U60/100)) -> 0 | BS60: 0 | BT60: =BS60*Buildings!I60 -> 0 | BV60: 0
A61: =Land!A61 -> 00:00:00 | B61: =IF(VLOOKUP(A61,'Control Panel'!$A$5:$B$69,2,FALSE)=TRUE,"ON","OFF") ->  | H61: 0 | I61: =Land!J61 -> 0 | J61: =I61*(1-Buildings!J61) -> 0 | K61: =Land!M61 -> 0 | L61: 0 | N61: =Land!R61 -> 0 | O61: =Land!T61 -> 0 | P61: =Land!V61 -> 0 | Q61: =Land!Q61 -> 0 | R61: 0 | S61: 0 | U61: =IF(Buildings!H61=0,0,Y61/Buildings!H61) -> 0 | V61: =IF(Land!H61=0,0,U61/Land!H61) -> 0 | W61: =IF(Land!J61=0,0,ROUNDUP(U61/Land!J61,0)) -> 0 | X61: 0 | Y61: =SUM(AO61,Buildings!Q61,Buildings!U61,Buildings!AH61,BC61,Buildings!AE61) -> 0 | AA61: 0 | AB61: =AA61*Buildings!I61 -> 0 | AC61: =Buildings!O61 -> 0.71 | AD61: =IF(SUM(AV61,BA61,BN61,BE61,BH61)=0,0,SUM(Buildings!Q61,Buildings!U61,Buildings!AH61,BC61,Buildings!AE61)/SUM(AV61,BA61,BN61,BE61,BH61)) -> 0 | AF61: =Land!J61 -> 0 | AG61: =Buildings!J61*AF61 -> 0 | AH61: 0 | AJ61: =Buildings!L61 -> 0 | AK61: 0 | AL61: 0 | AM61: =Buildings!Y61 -> 0 | AO61: =Buildings!L61*Buildings!M61 -> 0 | AQ61: =ROUNDUP(Buildings!N61*Buildings!L61,0) -> 0 | AR61: =ROUNDUP(Buildings!L61*Buildings!O61,0) -> 0 | AT61: =Buildings!Q61 -> 0 | AU61: =IF(Buildings!R61=0,0,Buildings!Q61/Buildings!R61) -> 0 | AV61: =ROUNDUP(Buildings!Q61/100*Buildings!S61,0) -> 0 | AX61: =Buildings!U61 -> 0 | AY61: =ROUNDUP(IF(Buildings!V61=0,0,Buildings!U61/Buildings!V61),0) -> 0 | AZ61: =IF(SUM(AK61,AL61,AM61,BM61)=0,0,Buildings!U61/SUM(AK61,AL61,AM61,BM61)) -> 0 | BA61: =ROUNDUP(Buildings!U61/100*Buildings!W61,0) -> 0 | BC61: =Buildings!Y61*Buildings!Z61+Buildings!AB61 -> 0 | BD61: =ROUNDUP(Buildings!AA61*Buildings!Y61,0) -> 0 | BE61: =ROUNDUP(BC61/100*Buildings!AC61,0) -> 0 | BG61: =Buildings!AE61 -> 0 | BH61: =Buildings!AE61/100*Buildings!AF61 -> 0 | BM61: 0 | BP61: =(Buildings!AV61*Buildings!L61) -> 0 | BQ61: =(Buildings!AW61*(Buildings!Q61/100)) -> 0 | BR61: =(Buildings!AX61*(Buildings!U61/100)) -> 0 | BS61: 0 | BT61: =BS61*Buildings!I61 -> 0 | BV61: 0
